Workbook

Sheet GUÍA
B1: COTIZACIÓN DE ARRENDAMIENTO PURO
F2: Folio
F3: Fecha | G3: =TODAY() -> 2026-03-04
E6: Régimen
B7: Cliente | E7: Moral
B9: Contacto
B11: Teléfono
B13: E-mail
B15: Tipo de vehículo | C15: Vehículo utilitario
B17: Descripción del activo
B20: Valor factura sin IVA | C20: =C24/1.16 -> 0
B22: IVA | C22: =C20*0.16 -> 0
B24: Valor factura con IVA
B26: Plazo (meses) | C26: 18 | D26: 24 | E26: 36 | F26: 48 | G26: 60
B29: Anticipo | C29: 0.15
B31: Renta en depósito | C31: Si
B33: Flotilla (5 autos o mas) | C33: Si
B35: Residual | C35: 0 | D35: 0 | E35: 0 | F35: 0 | G35: 0
B37: Seguro financiado | C37: Si
B39: Seguro anual sin IVA | C39: 0
B41: Comisión Referencia | C41: 0.02
B43: Tipo de auto | C43: 1
B45: Gasolina / Diesel | C45: 1
B46: Eléctrico / Híbrido | C46: 2
B47: Carga / Transporte | C47: 3
C49: 18 | D49: 24 | E49: 36 | F49: 48 | G49: 60
B50: Valores sin IVA
B51: Renta Mensual | C51: 0 | D51: 0 | E51: 0 | F51: 0 | G51: 0
B53: GMOV | C53: 0 | D53: 0 | E53: 0 | F53: 0 | G53: 0
B55: GPS | C55: 0 | D55: 0 | E55: 0 | F55: 0 | G55: 0
B57: Mantenimiento preventivo
B59: Seguro de Daños | C59: 0 | D59: 0 | E59: 0 | F59: 0 | G59: 0
B61: Renta Total sin IVA | C61: 0 | D61: 0 | E61: 0 | F61: 0 | G61: 0
B63: Renta Total con IVA | C63: 0 | D63: 0 | E63: 0 | F63: 0 | G63: 0
B65: % de deducibilidad | C65: 0 | D65: 0 | E65: 0 | F65: 0 | G65: 0
C66: =Captura!K36 -> 0 | D66: =Captura!L36 -> 0 | E66: =Captura!M36 -> 0 | F66: =Captura!N36 -> 0 | G66: =Captura!O36 -> 0
B68: PAGO INICIAL
B69: Valores sin IVA
B70: Anticipo | C70: 0 | D70: 0 | E70: 0 | F70: 0 | G70: 0
B72: Comisión de apertura | C72: 0 | D72: 0 | E72: 0 | F72: 0 | G72: 0
B74: Gestoría y registro | C74: 0 | D74: 0 | E74: 0 | F74: 0 | G74: 0
B76: Seguro de daños * | C76: 0 | D76: 0 | E76: 0 | F76: 0 | G76: 0
B78: Renta en depósito | C78: 0 | D78: 0 | E78: 0 | F78: 0 | G78: 0
B80: Pago inicial sin IVA | C80: 0 | D80: 0 | E80: 0 | F80: 0 | G80: 0
B82: Pago inicial con IVA | C82: 0 | D82: 0 | E82: 0 | F82: 0 | G82: 0
B84: Valor residual | C84: 0 | D84: 0 | E84: 0 | F84: 0 | G84: 0
B86: * Seguro del primer año
A88: Notas:
A89: 1. Esta cotización no es una autorización y no representa ninguna obligación para Leasing Mobile de México, S. A. de C. V.
A90: 2. La información descrita en el presente documento está sujeta a cambios sin previo aviso.
A91: 3. Esta cotización no considera gastos que el equipo requiera para su adquisición, uso o mantenimiento.
A92: 4. Las rentas en depósito serán devueltas al cumplimiento de todas las obligaciones contractauales del Arrendatario.
A93: 5. Esta cotización no incluye el costo de emplacamiento ni verificación vehicular

Sheet Cotizador
B1: COTIZACIÓN DE ARRENDAMIENTO PURO
F2: Folio
F3: Fecha | G3: =TODAY() -> 2026-03-04
E6: Régimen
B7: Cliente | E7: Física AE
B9: Contacto
B11: Teléfono
B13: E-mail
B15: Tipo de vehículo | C15: Vehículo utilitario
B17: Descripción del activo
B20: Valor factura sin IVA | C20: =C24/1.16 -> 0
B22: IVA | C22: =C20*0.16 -> 0
B24: Valor factura con IVA
B26: Plazo (meses) | C26: 18 | D26: 24 | E26: 36 | F26: 48 | G26: 60
B29: Anticipo | C29: 0.15
B31: Renta en depósito | C31: Si
B33: Flotilla (5 autos o mas) | C33: Si
B35: Residual | C35: 0.5 | D35: 0.5 | E35: 0 | F35: 0 | G35: 0
B37: Seguro financiado | C37: Si
B39: Seguro anual sin IVA | C39: 0
B41: Comisión Referencia | C41: =GUÍA!C41 -> 0.02
B43: Tipo de auto | C43: 1
B45: Gasolina / Diesel | C45: 1
B46: Eléctrico / Híbrido | C46: 2
B47: Carga / Transporte | C47: 3
C49: 18 | D49: 24 | E49: 36 | F49: 48 | G49: 60
B50: Valores sin IVA
B51: Renta Mensual | C51: =IFERROR(Resumen!I27,0) -> 0 | D51: =IFERROR(Resumen!J27,0) -> 0 | E51: =IFERROR(Resumen!K27,0) -> 0 | F51: =IFERROR(Resumen!L27,0) -> 0 | G51: =IFERROR(Resumen!M27,0) -> 0
B53: GMOV | C53: =IFERROR(Resumen!I28,0) -> 0 | D53: =IFERROR(Resumen!J28,0) -> 0 | E53: =IFERROR(Resumen!K28,0) -> 0 | F53: =IFERROR(Resumen!L28,0) -> 0 | G53: =IFERROR(Resumen!M28,0) -> 0
B55: GPS | C55: =IFERROR(Resumen!I29,0) -> 0 | D55: =IFERROR(Resumen!J29,0) -> 0 | E55: =IFERROR(Resumen!K29,0) -> 0 | F55: =IFERROR(Resumen!L29,0) -> 0 | G55: =IFERROR(Resumen!M29,0) -> 0
B57: Mantenimiento preventivo
B59: Seguro de Daños | C59: =IFERROR(Resumen!I30,0) -> 0 | D59: =IFERROR(Resumen!J30,0) -> 0 | E59: =IFERROR(Resumen!K30,0) -> 0 | F59: =IFERROR(Resumen!L30,0) -> 0 | G59: =IFERROR(Resumen!M30,0) -> 0
B61: Renta Total sin IVA | C61: =C51+C53+C55+C59 -> 0 | D61: =D51+D53+D55+D59 -> 0 | E61: 0 | F61: 0 | G61: 0
B63: Renta Total con IVA | C63: =C61*1.16 -> 0 | D63: =D61*1.16 -> 0 | E63: 0 | F63: 0 | G63: 0
B65: % de deducibilidad | C65: =Resumen!I25 -> 0 | D65: =Resumen!J25 -> 0 | E65: =Resumen!K25 -> 0 | F65: =Resumen!L25 -> 0 | G65: =Resumen!M25 -> 0
C66: =Captura!K36 -> 0 | D66: =Captura!L36 -> 0 | E66: =Captura!M36 -> 0 | F66: =Captura!N36 -> 0 | G66: =Captura!O36 -> 0
B68: PAGO INICIAL
B69: Valores sin IVA
B70: Anticipo | C70: =Resumen!I34 -> 0 | D70: =Resumen!J34 -> 0 | E70: =Resumen!K34 -> 0 | F70: =Resumen!L34 -> 0 | G70: =Resumen!M34 -> 0
B72: Comisión de apertura | C72: =Resumen!I35 -> 0 | D72: =Resumen!J35 -> 0 | E72: =Resumen!K35 -> 0 | F72: =Resumen!L35 -> 0 | G72: =Resumen!M35 -> 0
B74: Gestoría y registro | C74: =Resumen!I36+Resumen!I37+Resumen!I38 -> 0 | D74: =Resumen!J36+Resumen!J37+Resumen!J38 -> 0 | E74: =Resumen!K36+Resumen!K37+Resumen!K38 -> 0 | F74: =Resumen!L36+Resumen!L37+Resumen!L38 -> 0 | G74: =Resumen!M36+Resumen!M37+Resumen!M38 -> 0
B76: Seguro de daños * | C76: =Captura!K22 -> 0 | D76: =Captura!L22 -> 0 | E76: =Captura!M22 -> 0 | F76: =Captura!N22 -> 0 | G76: =Captura!O22 -> 0
B78: Renta en depósito | C78: =Captura!K19 -> 0 | D78: =Captura!L19 -> 0 | E78: =Captura!M19 -> 0 | F78: =Captura!N19 -> 0 | G78: =Captura!O19 -> 0
B80: Pago inicial sin IVA | C80: =C70+C72+C74+C76+C78 -> 0 | D80: =D70+D72+D74+D76+D78 -> 0 | E80: =E70+E72+E74+E76+E78 -> 0 | F80: =F70+F72+F74+F76+F78 -> 0 | G80: =G70+G72+G74+G76+G78 -> 0
B82: Pago inicial con IVA | C82: =((C80-C78)*1.16)+C78 -> 0 | D82: =((D80-D78)*1.16)+D78 -> 0 | E82: 0 | F82: 0 | G82: 0
B84: Valor residual | C84: =IFERROR(Resumen!I44,0) -> 0 | D84: =IFERROR(Resumen!J44,0) -> 0 | E84: =IFERROR(Resumen!K44,0) -> 0 | F84: =IFERROR(Resumen!L44,0) -> 0 | G84: =IFERROR(Resumen!M44,0) -> 0
B86: * Seguro del primer año
A88: Notas:
A89: 1. Esta cotización no es una autorización y no representa ninguna obligación para Leasing Mobile de México, S. A. de C. V.
A90: 2. La información descrita en el presente documento está sujeta a cambios sin previo aviso.
A91: 3. Esta cotización no considera gastos que el equipo requiera para su adquisición, uso o mantenimiento.
A92: 4. Las rentas en depósito serán devueltas al cumplimiento de todas las obligaciones contractauales del Arrendatario.
A93: 5. Esta cotización no incluye el costo de emplacamiento ni verificación vehicular

Sheet Captura (hidden)
O2: Cotizador Arrendamiento Puro
N3: =TODAY() -> 2026-03-04
I5: Full service tasa | K5: 0.1
B6: Solicitante | I6: Condiciones del arrendamiento | M6: Condiciones del fondeo | Q6: No
B7: Nombre | D7: =Cotizador!C7 -> 0 | I7: Tasa de interés activa | K7: =IF(Cotizador!$C$33=Captura!$Q$8,Captura!$Q$9,Captura!$Q$7) -> 0.26 | M7: % de Fondeo | O7: 0.5 | Q7: 0.28 | R7: Tipo | S7: 2 | T7: =VLOOKUP(S7,R8:S14,2,FALSE) -> Vehículo utilitario
B8: Atención | D8: =Cotizador!C9 -> 0 | I8: No. de rentas en depósito | K8: =IF(Cotizador!C31=Referencia!D3,0,1) -> 1 | M8: Fondeo | O8: =+G20*O7-K10*C19 -> 0 | Q8: Si | R8: 1 | S8: Automóvil ejecutivo
B9: Teléfono | D9: =Cotizador!C11 -> 0 | I9: Comisión de apertura | K9: 0.03 | M9: Tasa de interés pasiva | O9: 0.16 | Q9: 0.26 | R9: 2 | S9: Vehículo utilitario
B10: e-mail | D10: =Cotizador!C13 -> 0 | I10: Anticipo | K10: =G18*(L10) -> 0 | L10: =Cotizador!$C$29 -> 0.15 | M10: Comisión de apertura | O10: 0.015 | R10: 3 | S10: Equipo de cómputo
J11: VP de Flujos | K11: =+'Plazo 1'!AJ18+'Plazo 1'!AK18 ->  | L11: =+'Plazo 2'!AJ18+'Plazo 2'!AK18 ->  | M11: =+'Plazo 3'!AJ18+'Plazo 3'!AK18 ->  | N11: =+'Plazo 4'!AJ18+'Plazo 4'!AK18 ->  | O11: =+'Plazo 5'!AJ18+'Plazo 5'!AK18 ->  | R11: 4 | S11: Equipo solar
B12: Equipo a cotizar | I12: Resultados | J12: Indicador Anualiz. | K12: =+'Plazo 1'!AK24 ->  | L12: =+'Plazo 2'!AK24 ->  | M12: =+'Plazo 3'!AK24 ->  | N12: =+'Plazo 4'!AK24 ->  | O12: =+'Plazo 5'!AK24 ->  | R12: 5 | S12: Otro 1
B13: Tipo de equipo | I13: Plazo en meses | K13: 18 | L13: 24 | M13: 36 | N13: 48 | O13: 60 | R13: 6 | S13: Otro 2
B14: Estado del equipo | I14: Renta mensual | K14: =ROUNDUP(PMT($K$7/12,K13,-$G$18-$G$41+K17,K29),0)*R24 -> 0 | L14: =ROUNDUP(PMT($K$7/12,L13,-$G$18-$G$41+L17,L29),0)*S24 -> 0 | M14: 0 | N14: 0 | O14: 0 | R14: 7 | S14: Otro 2
B15: Descripción | D15: =Cotizador!C17 -> 0 | I15: Factor | K15: =((K14*K13)+K10+K29)/G18*R24 ->  | L15: =((L14*L13)+K10+L29)/G18*S24 ->  | M15: =((M14*M13)+K10+M29)/G18*T24 ->  | N15: =((N14*N13)+K10+N29)/G18*U24 ->  | O15: =((O14*O13)+K10+O29)/G18*V24 -> 
I16: Renta total | K16: =+K14 -> 0 | L16: =+L14 -> 0 | M16: 0 | N16: 0 | O16: 0
I17: Anticipo | K17: =+$K$10*R24 -> 0 | L17: =+$K$10*S24 -> 0 | M17: =+$K$10*T24 -> 0 | N17: =+$K$10*U24 -> 0 | O17: =+$K$10*V24 -> 0 | R17: Estado | S17: 1 | T17: =VLOOKUP(S17,R18:S19,2,FALSE) -> Nuevo
B18: Valor factura sin IVA | G18: =Cotizador!$C$20 -> 0 | I18: Comisión de apertura | K18: =+$G$18*$K$9*R24 -> 0 | L18: 0 | M18: 0 | N18: =+$G$18*$K$9*U24 -> 0 | O18: =+$G$18*$K$9*V24 -> 0 | R18: 1 | S18: Nuevo | W18: =W28*W27 -> 0 | X18: =X28*X27 -> 0 | Y18: 0 | Z18: 0 | AA18: 0
B19: IVA | C19: 0.16 | G19: =+G18*C19 -> 0 | I19: Rentas en depósito | K19: =+K14*$K$8*R24 -> 0 | L19: =+L14*$K$8*S24 -> 0 | M19: =+M14*$K$8*T24 -> 0 | N19: =+N14*$K$8*U24 -> 0 | O19: =+O14*$K$8*V24 -> 0 | R19: 2 | S19: Usado
B20: Valor factura con IVA | G20: =+G18+G19 -> 0 | I20: Gestoría y Registro | K20: =+$G$23*R24 -> 0 | L20: =+$G$23*S24 -> 0 | M20: =+$G$23*T24 -> 0 | N20: =+$G$23*U24 -> 0 | O20: =+$G$23*V24 -> 0
I21: Equipo de geolocalización | K21: =+$G$24*R24 -> 0 | L21: =+$G$24*S24 -> 0 | M21: =+$G$24*T24 -> 0 | N21: =+$G$24*U24 -> 0 | O21: =+$G$24*V24 -> 0 | R21: Plazo | W21: Renta adicional total
B22: Accesorios - importes sin IVA | I22: Seguro de daños | K22: =IF($S$26=1,+$G$25*R24,0) -> 0 | L22: =IF($S$26=1,+$G$25*S24,0) -> 0 | M22: =IF($S$26=1,+$G$25*T24,0) -> 0 | N22: =IF($S$26=1,+$G$25*U24,0) -> 0 | O22: =IF($S$26=1,+$G$25*V24,0) -> 0 | R22: =+K13 -> 18 | S22: =+L13 -> 24 | T22: =+M13 -> 36 | U22: =+N13 -> 48 | V22: =+O13 -> 60 | W22: =R22 -> 18 | X22: =S22 -> 24 | Y22: 36 | Z22: 48 | AA22: 60
B23: Gestoría y Registro | F23: Pago único | G23: 2500 | I23: Placas y Tenencia | K23: =IF($S$33=1,+$G$26*R24,0) -> 0 | L23: =IF($S$33=1,+$G$26*S24,0) -> 0 | M23: =IF($S$33=1,+$G$26*T24,0) -> 0 | N23: =IF($S$33=1,+$G$26*U24,0) -> 0 | O23: =IF($S$33=1,+$G$26*V24,0) -> 0 | R23: FALSE | S23: FALSE | T23: FALSE | U23: FALSE | V23: FALSE | W23: =HLOOKUP(W22,W27:AA28,2,FALSE)+HLOOKUP(W22,W34:AA35,2,FALSE)+HLOOKUP(W22,W41:AA42,2,FALSE) -> 0 | X23: =HLOOKUP(X22,W27:AA28,2,FALSE)+HLOOKUP(X22,W34:AA35,2,FALSE)+HLOOKUP(X22,W41:AA42,2,FALSE) -> 0 | Y23: =HLOOKUP(Y22,W27:AA28,2,FALSE)+HLOOKUP(Y22,W34:AA35,2,FALSE)+HLOOKUP(Y22,W41:AA42,2,FALSE) -> 0 | Z23: =HLOOKUP(Z22,W27:AA28,2,FALSE)+HLOOKUP(Z22,W34:AA35,2,FALSE)+HLOOKUP(Z22,W41:AA42,2,FALSE) -> 0 | AA23: =HLOOKUP(AA22,W27:AA28,2,FALSE)+HLOOKUP(AA22,W34:AA35,2,FALSE)+HLOOKUP(AA22,W41:AA42,2,FALSE) -> 0
B24: Equipo de geolocalización | F24: Pago único | G24: 5000 | I24: Servicio de geolocalización | K24: =IF($S$40=1,+$G$27*R24,0) -> 0 | L24: =IF($S$40=1,+$G$27*S24,0) -> 0 | M24: =IF($S$40=1,+$G$27*T24,0) -> 0 | N24: =IF($S$40=1,+$G$27*U24,0) -> 0 | O24: =IF($S$40=1,+$G$27*V24,0) -> 0 | R24: =IF(R23=TRUE,1,0) -> 0 | S24: =IF(S23=TRUE,1,0) -> 0 | T24: 0 | U24: 0 | V24: 0
B25: Seguro de daños anual | G25: =Cotizador!$C$39 -> 0 | I25: =IF(B28="","Otro",+B28) -> Otro | K25: =+$G$28*R24 -> 0 | L25: =+$G$28*S24 -> 0 | M25: =+$G$28*T24 -> 0 | N25: =+$G$28*U24 -> 0 | O25: =+$G$28*V24 -> 0
B26: Placas y Tenencia anual | I26: IVA | K26: =$C$19*SUM(K17:K18,K20:K22) -> 0 | L26: =$C$19*SUM(L17:L18,L20:L22) -> 0 | M26: =$C$19*SUM(M17:M18,M20:M22) -> 0 | N26: 0 | O26: 0 | R26: Seguro de daños | S26: =IF(Cotizador!C37=Captura!T29,Captura!R29,Captura!R30) -> 2 | T26: =VLOOKUP(S26,R29:S30,2,FALSE) -> Pago en renta | W26: Rentas
B27: GPS | G27: 380 | I27: Desembolso inicial | K27: =SUM(K17:K22,K25:K26) -> 0 | L27: =SUM(L17:L22,L25:L26) -> 0 | M27: =SUM(M17:M22,M25:M26) -> 0 | N27: 0 | O27: 0 | R27: =R22 -> 18 | S27: =S22 -> 24 | T27: 36 | U27: 48 | V27: 60 | W27: 18 | X27: 24 | Y27: 36 | Z27: 48 | AA27: 60
I28: Residual % | K28: =Cotizador!C35 -> 0.5 | L28: =Cotizador!D35 -> 0.5 | M28: =Cotizador!E35 -> 0 | N28: =Cotizador!F35 -> 0 | O28: =Cotizador!G35 -> 0 | R28: =+G25 -> 0 | S28: =+R28*(1+$D$35) -> 0 | T28: =+S28*(1+$D$35) -> 0 | U28: =+T28*(1+$D$35) -> 0 | V28: =+U28*(1+$D$35) -> 0 | W28: =IF($S26=$R30,PMT($K$5/12,R27,-(($R28/12)*W27)*R27/W27),0) -> 0 | X28: =IF($S26=$R30,PMT($K$5/12,S27,-(($R28/12)*X27)*S27/X27),0) -> 0 | Y28: 0 | Z28: 0 | AA28: 0
I29: Residual sin IVA | K29: =+K28*$G$20*R24 -> 0 | L29: =+L28*$G$20*S24 -> 0 | M29: =+M28*$G$20*T24 -> 0 | N29: =+N28*$G$20*U24 -> 0 | O29: =+O28*$G$20*V24 -> 0 | R29: 1 | S29: Pago anual | T29: No
B30: Ejecutivo LMM | I30: Pago de fondeo sin IVA | K30: =PMT($O$9/12,K13,-$O$8,K33)*R24 -> 0 | L30: =PMT($O$9/12,L13,-$O$8,L33)*S24 -> 0 | M30: =PMT($O$9/12,M13,-$O$8,M33)*T24 -> 0 | N30: =PMT($O$9/12,N13,-$O$8,N33)*U24 -> 0 | O30: =PMT($O$9/12,O13,-$O$8,O33)*V24 -> 0 | R30: 2 | S30: Pago en renta | T30: Si
B31: Nombre | D31: xxxx | I31: Comisión de apertura sin IVA | K31: =+$G$20*$O$7*$O$10*R24 -> 0 | L31: =+$G$20*$O$7*$O$10*S24 -> 0 | M31: =+$G$20*$O$7*$O$10*T24 -> 0 | N31: =+$G$20*$O$7*$O$10*U24 -> 0 | O31: =+$G$20*$O$7*$O$10*V24 -> 0 | R31: 3 | S31: Otro no habilitado
B32: Teléfono | D32: xxxx | I32: Bullet payment % | K32: 0 | L32: 0 | M32: 0 | N32: 0 | O32: 0
B33: e-mail | D33: xxxx | I33: Bullet payment | K33: =+K32*$G$20*$O$7*R24 -> 0 | L33: =+L32*$G$20*$O$7*S24 -> 0 | M33: =+M32*$G$20*$O$7*T24 -> 0 | N33: =+N32*$G$20*$O$7*U24 -> 0 | O33: =+O32*$G$20*$O$7*V24 -> 0 | R33: Placas y Tenencia | S33: 1 | T33: =VLOOKUP(S33,R36:S37,2,FALSE) -> Pago anual | W33: Rentas
I34: Capital requerido | K34: =+$G$20-K14-K17-K18-K19-$O$8 -> 0 | L34: =+$G$20-L14-L17-L18-L19-$O$8 -> 0 | M34: =+$G$20-M14-M17-M18-M19-$O$8 -> 0 | N34: =+$G$20-N14-N17-N18-N19-$O$8 -> 0 | O34: =+$G$20-O14-O17-O18-O19-$O$8 -> 0 | R34: =R22 -> 18 | S34: =S22 -> 24 | T34: 36 | U34: 48 | V34: 60 | W34: 18 | X34: 24 | Y34: 36 | Z34: 48 | AA34: 60
B35: Tasa para VP | D35: 0.04 | I35: resumen | K35: detalle | L35: detalle | M35: detalle | N35: detalle | O35: detalle | R35: =+G26 -> 0 | S35: =+R35*(1+$D$35) -> 0 | T35: =+S35*(1+$D$35) -> 0 | U35: =+T35*(1+$D$35) -> 0 | V35: =+U35*(1+$D$35) -> 0 | W35: =IF($S33=$R37,PMT($K$5/12,R34,-$R35*R34/W34),0) -> 0 | X35: =IF($S33=$R37,PMT($K$5/12,S34,-$R35*S34/X34),0) -> 0 | Y35: 0 | Z35: 0 | AA35: 0
I36: Evaluación | K36: =IF(R24=0,0,'Plazo 1'!AK24) -> 0 | L36: =IF(S24=0,0,'Plazo 2'!AK24) -> 0 | M36: =IF(T24=0,0,'Plazo 3'!AK24) -> 0 | N36: =IF(U24=0,0,'Plazo 4'!AK24) -> 0 | O36: =IF(V24=0,0,'Plazo 5'!AK24) -> 0 | R36: 1 | S36: Pago anual
I37: Flujo de rentas vs fondeo | K37: =IF(K14-K30>=0,"Positivo","Negativo") -> Positivo | L37: =IF(L14-L30>=0,"Positivo","Negativo") -> Positivo | M37: =IF(M14-M30>=0,"Positivo","Negativo") -> Positivo | N37: =IF(N14-N30>=0,"Positivo","Negativo") -> Positivo | O37: =IF(O14-O30>=0,"Positivo","Negativo") -> Positivo | R37: 2 | S37: Pago en renta
R38: 3 | S38: Otro no habilitado
O40: v. 20240220 | R40: GPS y Servicios | S40: 1 | T40: =VLOOKUP(S40,R43:S44,2,FALSE) -> Pago anual | W40: Rentas
B41: Referencia | F41: =Cotizador!$C$41 -> 0.02 | G41: =F41*G18 -> 0 | I41: % Administración de flotilla | K41: 0.013 | R41: =R22 -> 18 | S41: =S22 -> 24 | T41: 36 | U41: 48 | V41: 60 | W41: 18 | X41: 24 | Y41: 36 | Z41: 48 | AA41: 60
F42: Poner % correspondiente | I42: Tipo de auto | K42: =Cotizador!C43 -> 1 | R42: =+G27 -> 380 | S42: =+R42*(1+$D$35) -> 395.2 | T42: =+S42*(1+$D$35) -> 411.008 | U42: =+T42*(1+$D$35) -> 427.44832 | V42: =+U42*(1+$D$35) -> 444.5462528 | W42: =IF($S40=$R44,PMT($K$5/12,R41,-$R42*R41/W41),0) -> 0 | X42: =IF($S40=$R44,PMT($K$5/12,S41,-$R42*S41/X41),0) -> 0 | Y42: 0 | Z42: 0 | AA42: 0
I43: Gasolina / Diesel | J43: 1 | R43: 1 | S43: Pago anual
I44: Eléctrico / Híbrido | J44: 2 | M44: =4804.38+4152+22500+8283.42 -> 39739.8 | R44: 2 | S44: Pago en renta
I45: Carga / Transporte | J45: 3 | R45: 3 | S45: Otro no habilitado
I47: Gastos de gestion de Mantenimiento y obligaciones vehiculares (GMOV) | K47: =IF(K15=0,0,$G$18*$K$41) ->  | O47: =IF(O15=0,0,$G$18*$K$41) -> 
I48: Renta sin GMOV | K48: =K14-K47 ->  | L48: =L14-L47 -> 
I50: Límite deducible mensual
I51: Gasolina / Diesel | K51: =IF(K15=0,0,Deducible!$D$2) ->  | L51: =IF(L15=0,0,Deducible!$D$2) ->  | M51: =IF(M15=0,0,Deducible!$D$2) ->  | N51: =IF(N15=0,0,Deducible!$D$2) ->  | O51: =IF(O15=0,0,Deducible!$D$2) -> 
I52: % de deducibilidad | K52: =IFERROR(IF(K51>K48,100%,K51/K48),0) -> 0 | L52: =IFERROR(IF(L51>L48,100%,L51/L48),0) -> 0 | M52: 0 | N52: 0 | O52: 0
I53: Eléctrico / Híbrido | K53: =IF(K15=0,0,Deducible!$D$3) ->  | L53: =IF(L15=0,0,Deducible!$D$3) ->  | M53: =IF(M15=0,0,Deducible!$D$3) ->  | N53: =IF(N15=0,0,Deducible!$D$3) ->  | O53: =IF(O15=0,0,Deducible!$D$3) -> 
I54: % de deducibilidad | K54: =IFERROR(IF(K53>K48,100%,K53/K48),0) -> 0 | L54: =IFERROR(IF(L53>L48,100%,L53/L48),0) -> 0 | M54: 0 | N54: 0 | O54: 0
I55: Carga / Transporte | K55: =K48 -> 
K56: =IFERROR(IF(K55>K48,100%,K55/K48),0) -> 0 | L56: =IFERROR(IF(L55>L48,100%,L55/L48),0) -> 0 | M56: 0 | N56: 0 | O56: 0
I59: GMOV | K59: =IFERROR(K47/K14,0) -> 0 | L59: =IFERROR(L47/L14,0) -> 0 | M59: 0 | N59: =IFERROR(N47/N14,0) -> 0 | O59: 0
I60: Renta ajustada | K60: =IFERROR(K48/K14,0) -> 0 | L60: =IFERROR(L48/L14,0) -> 0 | M60: 0 | N60: 0 | O60: 0
I61: Deducibilidad
I62: Gasolina / Diesel | J62: 1 | K62: =(K$59*1)+(K$60*K52) -> 0 | L62: =(L$59*1)+(L$60*L52) -> 0 | M62: 0 | N62: 0 | O62: 0
I63: Eléctrico / Híbrido | J63: 2 | K63: =(K$59*1)+(K$60*K54) -> 0 | L63: =(L$59*1)+(L$60*L54) -> 0 | M63: 0 | N63: 0 | O63: 0
I64: Carga / Transporte | J64: 3 | K64: =(K$59*1)+(K$60*K56) -> 0 | L64: =(L$59*1)+(L$60*L56) -> 0 | M64: 0 | N64: 0 | O64: 0

Sheet Resumen (hidden)
B7: Cotización
B8: Arrendamiento Puro
L10: =+Captura!N3 -> 2026-03-04
B14: Cliente: | E14: =+Captura!D7 -> 0 | I14: Teléfono | J14: =+Captura!D9 -> 0
B15: Atención: | E15: =+Captura!D8 -> 0 | I15: E-mail | J15: =+Captura!D10 -> 0
M18: =+Captura!O40 -> v. 20240220
B21: Tipo de equipo | E21: =+Captura!T7 -> Vehículo utilitario | M21: Regresar
B22: Estado del equipo | E22: =+Captura!T17 -> Nuevo
B23: Descripción | E23: =+Captura!D15 -> 0 | G23: RENTAS/MESES
G24: Factor interno | I24: =Captura!K15 ->  | J24: =Captura!L15 ->  | K24: =Captura!M15 ->  | L24: =Captura!N15 ->  | M24: =Captura!O15 -> 
G25: % de Deducibilidad | I25: =SUMIF(Captura!$J$62:$J$64,Captura!$K$42,Captura!K62:K64) -> 0 | J25: =SUMIF(Captura!$J$62:$J$64,Captura!$K$42,Captura!L62:L64) -> 0 | K25: =SUMIF(Captura!$J$62:$J$64,Captura!$K$42,Captura!M62:M64) -> 0 | L25: =SUMIF(Captura!$J$62:$J$64,Captura!$K$42,Captura!N62:N64) -> 0 | M25: =SUMIF(Captura!$J$62:$J$64,Captura!$K$42,Captura!O62:O64) -> 0
I26: =+Captura!K13 -> 18 | J26: =+Captura!L13 -> 24 | K26: =+Captura!M13 -> 36 | L26: =+Captura!N13 -> 48 | M26: =+Captura!O13 -> 60
B27: Valor factura sin IVA | E27: =+Captura!G18 -> 0 | G27: Renta mensual s/IVA | I27: =Captura!K48 ->  | J27: =Captura!L48 ->  | K27: =Captura!M48 ->  | L27: =Captura!N48 ->  | M27: =Captura!O48 -> 
G28: GMOV | I28: =Captura!K47 ->  | J28: =Captura!L47 ->  | K28: =Captura!M47 ->  | L28: =Captura!N47 ->  | M28: =Captura!O47 -> 
B29: IVA | E29: =+Captura!G19 -> 0 | G29: Servicio Geolocalización | I29: =IF(I24=0,0,Captura!K24) ->  | J29: =IF(J24=0,0,Captura!L24) ->  | K29: =IF(K24=0,0,Captura!M24) ->  | L29: =IF(L24=0,0,Captura!N24) ->  | M29: =IF(M24=0,0,Captura!O24) -> 
B30: Valor factura con IVA | E30: =+Captura!G20 -> 0 | G30: Seguro de daños | I30: =IF(I27=0,0,Captura!W28) ->  | J30: =IF(J27=0,0,Captura!X28) ->  | K30: =IF(K27=0,0,Captura!Y28) ->  | L30: =IF(L27=0,0,Captura!Z28) ->  | M30: =IF(M27=0,0,Captura!AA28) -> 
G31: Renta mensual s/IVA | I31: =SUM(I27:I30) ->  | J31: =SUM(J27:J30) ->  | K31: =SUM(K27:K30) ->  | L31: =SUM(L27:L30) ->  | M31: =SUM(M27:M30) -> 
G32: Renta mensual total | I32: =I31*1.16 ->  | J32: =J31*1.16 ->  | K32: =K31*1.16 ->  | L32: =L31*1.16 ->  | M32: =M31*1.16 -> 
G33: PAGO INICIAL
B34: No. de rentas en depósito | E34: =+Captura!K8 -> 1 | G34: Anticipo | I34: =+Captura!K17 -> 0 | J34: =+Captura!L17 -> 0 | K34: =+Captura!M17 -> 0 | L34: =+Captura!N17 -> 0 | M34: =+Captura!O17 -> 0
B35: Comisión de apertura | E35: =+Captura!K9 -> 0.03 | G35: Comisión de apertura | I35: =+Captura!K18 -> 0 | J35: =+Captura!L18 -> 0 | K35: =+Captura!M18 -> 0 | L35: =+Captura!N18 -> 0 | M35: =+Captura!O18 -> 0
B36: Anticipo | E36: =+Captura!K10 -> 0 | G36: Gestoría y Registro | I36: =+Captura!K20 -> 0 | J36: =+Captura!L20 -> 0 | K36: =+Captura!M20 -> 0 | L36: =+Captura!N20 -> 0 | M36: =+Captura!O20 -> 0
G37: Equipo de geo localización | I37: =+Captura!K21 -> 0 | J37: =+Captura!L21 -> 0 | K37: =+Captura!M21 -> 0 | L37: =+Captura!N21 -> 0 | M37: =+Captura!O21 -> 0
G38: Placas y Tenencia | I38: =+Captura!K23 -> 0 | J38: =+Captura!L23 -> 0 | K38: =+Captura!M23 -> 0 | L38: =+Captura!N23 -> 0 | M38: =+Captura!O23 -> 0
G39: =+Captura!I25 -> Otro | I39: =+Captura!K25 -> 0 | J39: =+Captura!L25 -> 0 | K39: =+Captura!M25 -> 0 | L39: =+Captura!N25 -> 0 | M39: =+Captura!O25 -> 0
B40: Gestoría y Registro | E40: =+Captura!F23 -> Pago único | G40: IVA | I40: =+Captura!K26 -> 0 | J40: =+Captura!L26 -> 0 | K40: =+Captura!M26 -> 0 | L40: =+Captura!N26 -> 0 | M40: =+Captura!O26 -> 0
B41: Equipo de geolocalización | E41: =+Captura!F24 -> Pago único | G41: Pago inicial | I41: =I43-I42 -> 0 | J41: =J43-J42 -> 0 | K41: 0 | L41: =L43-L42 -> 0 | M41: 0
B42: Seguro de daños | E42: =+Captura!T26 -> Pago en renta | G42: Rentas en depósito | I42: =+Captura!K19 -> 0 | J42: =+Captura!L19 -> 0 | K42: =+Captura!M19 -> 0 | L42: =+Captura!N19 -> 0 | M42: =+Captura!O19 -> 0
B43: Placas y Tenencia | E43: =+Captura!T33 -> Pago anual | G43: Pago Total inicial | I43: =Captura!K27 -> 0 | J43: =Captura!L27 -> 0 | K43: =Captura!M27 -> 0 | L43: =Captura!N27 -> 0 | M43: =Captura!O27 -> 0
B44: Servicio de geolocalización | E44: Pago mensual | G44: Residual s/IVA | I44: =IF(I24=0,0,Captura!$G$18*Captura!K28) ->  | J44: =IF(J24=0,0,Captura!$G$18*Captura!L28) ->  | K44: =IF(K24=0,0,Captura!$G$18*Captura!M28) ->  | L44: =IF(L24=0,0,Captura!$G$18*Captura!N28) ->  | M44: =IF(M24=0,0,Captura!$G$18*Captura!O28) -> 
B45: =+Captura!I25 -> Otro | E45: =+Captura!F28 -> 0 | G45: No incluye seguro anual, placas y tenencia. Pago inicial NO incluye renta 1. Las rentas en depósito NO se incluyen en la factura inicial, se otorga recibo.
B49: Notas:
B50: 1. Esta cotización no es una autorización y no representa ninguna obligación para Leasing Mobile de México, S. A. de C. V.
B51: 2. La información descrita en el presente documento está sujeta a cambios sin previo aviso.
B52: 3. Esta cotización no considera gastos que el equipo requiera para su adquisición, uso o mantenimiento.
B53: 4. Las rentas en depósito serán devueltas al cumplimiento de todas las obligaciones contractauales del Arrendatario.
B58: Documentación requerida:
B60: 1 | C60: Copia de Acta Constitutiva de la empresa y poder (es) del Rep. Legal
B61: 2 | C61: Información Financiera (últimos 3 años)
B62: 3 | C62: Comprobante de domicilio con antigüedad no mayor a 3 meses
D63: - Recibo de teléfono fijo.
D64: - Estado de cuenta bancario.
D65: - Recibo de luz, agua o predial.
B66: 4 | C66: Registro Federal de Contribuyentes.
B67: 5 | C67: Identificación oficial vigente
D68: - Credencial de elector.
D69: - Pasaporte.
D70: - FM2.
B71: 6 | C71: Buró de crédito de la empresa y principales accionistas.
B72: 7 | C72: Solicitud firmada.
B85: DIRECTIVO LEASING MOBILE | G85: =Captura!D31 -> xxxx | K85: =Captura!D8 -> 0
H86: =Captura!D32 -> xxxx
H87: =Captura!D33 -> xxxx

Sheet Deducible (hidden)
C1: Diario | D1: Mensual | E1: Anual
A2: Gasolina / Diesel | B2: 1 | C2: 200 | D2: =E2/12 -> 6000 | E2: =C2*360 -> 72000
A3: Eléctrico / Híbrido | B3: 2 | C3: 285 | D3: =E3/12 -> 8550 | E3: =C3*360 -> 102600
A4: Carga / Transporte | B4: 3 | F4: 100% deducible
B16: gmdo | C16: Seguro | D16: Renta | E16: Mensual
A17: =450000/1.16 -> 387931.0345 | B17: 5063 | C17: 1729.24 | D17: 5588.71 | E17: =B17+C17+D17 -> 12380.95 | F17: =E17*1.16 -> 14361.902
B18: =B17/A17 -> 0.01305128889 | F18: =Resumen!L32 -> 
F19: =F18-F17 -> 
D22: =(B17+D17)*36 -> 383461.56

Sheet Referencia (hidden)
A1: Tipo de activo | B1: Plazo | C1: Anticipo | D1: Flotilla | E1: Residual | F1: Tipo | G1: Persona
A2: Vehículo utilitario | B2: 18 | C2: 0 | D2: Si | E2: 0 | F2: 1 | G2: Moral
A3: Automóvil ejecutivo | B3: 24 | C3: 0.05 | D3: No | E3: 0.05 | F3: 2 | G3: Física AE
A4: Camiones | B4: 36 | C4: 0.1 | E4: 0.1 | F4: 3
B5: 48 | C5: 0.12 | E5: 0.15
C6: 0.15 | E6: 0.2
C7: 0.2 | E7: 0.25
C8: 0.25 | E8: 0.3
C9: 0.3 | E9: 0.35
E10: 0.4
E11: 0.45
E12: 0.5

Sheet Plazo 1 (hidden)
B7: Cotización
B8: Arrendamiento Puro
P10: =+Captura!N3 -> 2026-03-04
B12: Cliente: | E12: =+Captura!D7 -> 0 | J12: Teléfono | K12: =+Captura!D9 -> 0
B13: Atención: | E13: =+Captura!D8 -> 0 | J13: E-mail | K13: =+Captura!D10 -> 0
Q14: =+Captura!O40 -> v. 20240220
B17: Tipo de equipo | E17: =+Captura!T7 -> Vehículo utilitario | H17: Plazo del arrendamiento | J17: =+Captura!K13 -> 18 | L17: Gestoría y Registro | N17: =+Captura!F23 -> Pago único | AJ17: Valor presente de flujos
B18: Estado del equipo | E18: =+Captura!T17 -> Nuevo | H18: No. de rentas en depósito | J18: =+Captura!K8 -> 1 | L18: Equipo de geolocalizacióon | N18: =+Captura!F24 -> Pago único | Q18: =+Captura!K36 -> 0 | AJ18: =NPV(Captura!$D$35/12,AJ29:AJ88)+AJ28 ->  | AK18: =NPV(Captura!$D$35/12,AK29:AK88)+AK28 -> -759.7292447
B19: Descripción | E19: =+Captura!D15 -> 0 | H19: Comisión de apertura | J19: =+Captura!K9 -> 0.03 | L19: Seguro de daños | N19: =+Captura!T26 -> Pago en renta | AJ19: Tasa Interna de Retorno
H20: Anticipo | J20: =+Captura!K10 -> 0 | L20: Placas y Tenencia | N20: =+Captura!T33 -> Pago anual | AJ20: =IRR(AJ28:AJ88,0.01)*12 ->  | AK20: =IRR(AK28:AK88,0.01)*12 -> 
H21: Residual estimado | J21: Valor mercado | L21: Servicio de geolocalización | N21: =+Captura!T40 -> Pago anual | Q21: =+Captura!K37 -> Positivo | AJ21: Capital Req. | AK21: =+Captura!K34 -> 0
B22: Valor factura sin IVA | E22: =+Captura!G18 -> 0 | L22: =+Captura!I25 -> Otro | N22: =+Captura!F28 -> 0 | AJ22: VP / CR | AK22: =+(AJ18+AK18)/AK21 -> 
B23: IVA | E23: =+Captura!G19 -> 0 | Q23: Regresar
B24: Valor factua con IVA | E24: =+Captura!G20 -> 0 | AJ24: Indicador anualizado | AK24: =+AK22/J17*12 -> 
B26: Periodo | C26: Mes | D26: Renta | E26: Anticipo | F26: Comisión de apertura | G26: Rentas en depósito | H26: Devolución de rentas en depósito | I26: Gestoría y Registro | J26: Equipo de geo localización | K26: Seguro de daños | L26: Placas y Tenencia | M26: Servicio de geo localización | N26: =+L22 -> Otro | O26: Residual estimado | P26: IVA | Q26: TOTAL | T26: Mes | U26: Periodo | V26: Fondeo | W26: Comisión de apertura | X26: Intereses | Y26: Capital | Z26: Pago | AA26: Bullet | AB26: Equipo de geo localización | AC26: Seguro de daños | AD26: Placas y Tenencia | AE26: Servicio de geo localización | AF26: Otro | AG26: IVA | AH26: TOTAL | AJ26: Flujo Activo sin IVA | AK26: Flujo Pasivo sin IVA
B28: 0 | C28: =+P10 -> 2026-03-04 | D28: =+Captura!K16+Resumen!I29+Resumen!I30 ->  | E28: =+Captura!K10 -> 0 | F28: =+Captura!K18 -> 0 | G28: =+Captura!K19 -> 0 | H28: =IF(B28=J$17,-G$28,0) -> 0 | I28: =+Captura!K20 -> 0 | J28: =+Captura!K21 -> 0 | K28: =+Captura!K22 -> 0 | L28: =+Captura!K23 -> 0 | M28: =+Captura!K24 -> 0 | N28: =+Captura!K25 -> 0 | O28: =IF(B28=J$17,Captura!$K$29,0) -> 0 | P28: =SUM(D28:F28,I28:N28)*Captura!$C$19 ->  | Q28: =SUM(D28:P28)-O28 ->  | T28: 1 | U28: =+B28 -> 0 | V28: =+Captura!O8 -> 0 | W28: =+Captura!K31 -> 0 | AB28: =+J28 -> 0 | AC28: =+Captura!G25 -> 0 | AD28: =+Captura!G26 -> 0 | AE28: =+Captura!G27 -> 380 | AF28: =+N28 -> 0 | AG28: =+(W28+AB28+AC28+AD28+AE28+AF28)*Captura!$C$19 -> 60.8 | AH28: =SUM(W28,Z28:AG28) -> 440.8 | AJ28: =-E22+(Q28-P28)+O28 ->  | AK28: =+V28-(AH28-AG28) -> -380
B29: 1 | C29: =EDATE(C28,1) -> 2026-04-04 | D29: =IF(B29<J$17,Captura!$K$16,0)+Resumen!$I$29+Resumen!$I$30 ->  | H29: 0 | K29: 0 | L29: 0 | M29: 0 | O29: =IF(B29=J$17,Captura!$K$29,0) -> 0 | P29: =SUM(D29:F29,I29:N29)*Captura!$C$19 ->  | Q29: =SUM(D29:P29)-O29 ->  | T29: =IF(T28=12,1,T28+1) -> 2 | U29: =+B29 -> 1 | V29: =+V28-Y29-AA29 -> 0 | X29: =+V28*Captura!$O$9/12 -> 0 | Y29: =+Z29-X29 -> 0 | Z29: =+Captura!K30 -> 0 | AA29: =IF(U29=J$17,Captura!$K$33,0) -> 0 | AC29: 0 | AD29: 0 | AE29: 0 | AG29: =+(W29+AB29+AC29+AD29+AE29+AF29)*Captura!$C$19 -> 0 | AH29: =SUM(W29,Z29:AG29) -> 0 | AJ29: =Q29-P29+O29 ->  | AK29: =-(AH29-AG29) -> 0
B30: 2 | C30: =EDATE(C29,1) -> 2026-05-04 | D30: =IF(B30<J$17,Captura!$K$16,0)+Resumen!$I$29+Resumen!$I$30 ->  | H30: 0 | K30: 0 | L30: 0 | M30: 0 | O30: =IF(B30=J$17,Captura!$K$29,0) -> 0 | P30: =SUM(D30:F30,I30:N30)*Captura!$C$19 ->  | T30: =IF(T29=12,1,T29+1) -> 3 | U30: 2 | V30: =+V29-Y30-AA30 -> 0 | X30: =+V29*Captura!$O$9/12 -> 0 | Y30: =+Z30-X30 -> 0 | Z30: =IF(U30>J$17,0,Z29) -> 0 | AA30: =IF(U30=J$17,Captura!$K$33,0) -> 0 | AC30: 0 | AD30: 0 | AE30: 0 | AG30: =+(W30+AB30+AC30+AD30+AE30+AF30)*Captura!$C$19 -> 0 | AH30: 0 | AJ30: =Q30-P30+O30 ->  | AK30: =-(AH30-AG30) -> 0
B31: 3 | C31: 2026-06-04 | D31: =IF(B31<J$17,Captura!$K$16,0)+Resumen!$I$29+Resumen!$I$30 ->  | H31: 0 | K31: 0 | L31: 0 | M31: 0 | O31: =IF(B31=J$17,Captura!$K$29,0) -> 0 | P31: =SUM(D31:F31,I31:N31)*Captura!$C$19 ->  | T31: 4 | U31: 3 | V31: 0 | X31: =+V30*Captura!$O$9/12 -> 0 | Y31: 0 | Z31: =IF(U31>J$17,0,Z30) -> 0 | AA31: =IF(U31=J$17,Captura!$K$33,0) -> 0 | AC31: 0 | AD31: 0 | AE31: 0 | AG31: =+(W31+AB31+AC31+AD31+AE31+AF31)*Captura!$C$19 -> 0 | AH31: 0 | AK31: 0
B32: 4 | C32: 2026-07-04 | D32: =IF(B32<J$17,Captura!$K$16,0)+Resumen!$I$29+Resumen!$I$30 ->  | H32: 0 | K32: 0 | L32: 0 | M32: 0 | O32: =IF(B32=J$17,Captura!$K$29,0) -> 0 | P32: =SUM(D32:F32,I32:N32)*Captura!$C$19 ->  | T32: 5 | U32: 4 | V32: 0 | X32: =+V31*Captura!$O$9/12 -> 0 | Y32: 0 | Z32: 0 | AA32: =IF(U32=J$17,Captura!$K$33,0) -> 0 | AC32: 0 | AD32: 0 | AE32: 0 | AG32: =+(W32+AB32+AC32+AD32+AE32+AF32)*Captura!$C$19 -> 0 | AH32: 0 | AK32: 0
B33: 5 | C33: 2026-08-04 | D33: =IF(B33<J$17,Captura!$K$16,0)+Resumen!$I$29+Resumen!$I$30 ->  | H33: 0 | K33: 0 | L33: 0 | M33: 0 | O33: =IF(B33=J$17,Captura!$K$29,0) -> 0 | P33: =SUM(D33:F33,I33:N33)*Captura!$C$19 ->  | T33: 6 | U33: 5 | V33: 0 | X33: =+V32*Captura!$O$9/12 -> 0 | Y33: 0 | Z33: 0 | AA33: =IF(U33=J$17,Captura!$K$33,0) -> 0 | AC33: 0 | AD33: 0 | AE33: 0 | AG33: =+(W33+AB33+AC33+AD33+AE33+AF33)*Captura!$C$19 -> 0 | AH33: 0 | AK33: 0
B34: 6 | C34: 2026-09-04 | D34: =IF(B34<J$17,Captura!$K$16,0)+Resumen!$I$29+Resumen!$I$30 ->  | H34: 0 | K34: 0 | L34: 0 | M34: 0 | O34: =IF(B34=J$17,Captura!$K$29,0) -> 0 | P34: =SUM(D34:F34,I34:N34)*Captura!$C$19 ->  | T34: 7 | U34: 6 | V34: 0 | X34: =+V33*Captura!$O$9/12 -> 0 | Y34: 0 | Z34: 0 | AA34: =IF(U34=J$17,Captura!$K$33,0) -> 0 | AC34: 0 | AD34: 0 | AE34: 0 | AG34: =+(W34+AB34+AC34+AD34+AE34+AF34)*Captura!$C$19 -> 0 | AH34: 0 | AK34: 0
B35: 7 | C35: 2026-10-04 | D35: =IF(B35<J$17,Captura!$K$16,0)+Resumen!$I$29+Resumen!$I$30 ->  | H35: 0 | K35: 0 | L35: 0 | M35: 0 | O35: =IF(B35=J$17,Captura!$K$29,0) -> 0 | P35: =SUM(D35:F35,I35:N35)*Captura!$C$19 ->  | T35: 8 | U35: 7 | V35: 0 | X35: =+V34*Captura!$O$9/12 -> 0 | Y35: 0 | Z35: 0 | AA35: =IF(U35=J$17,Captura!$K$33,0) -> 0 | AC35: 0 | AD35: 0 | AE35: 0 | AG35: =+(W35+AB35+AC35+AD35+AE35+AF35)*Captura!$C$19 -> 0 | AH35: 0 | AK35: 0
B36: 8 | C36: 2026-11-04 | D36: =IF(B36<J$17,Captura!$K$16,0)+Resumen!$I$29+Resumen!$I$30 ->  | H36: 0 | K36: 0 | L36: 0 | M36: 0 | O36: =IF(B36=J$17,Captura!$K$29,0) -> 0 | P36: =SUM(D36:F36,I36:N36)*Captura!$C$19 ->  | T36: 9 | U36: 8 | V36: 0 | X36: =+V35*Captura!$O$9/12 -> 0 | Y36: 0 | Z36: 0 | AA36: =IF(U36=J$17,Captura!$K$33,0) -> 0 | AC36: 0 | AD36: 0 | AE36: 0 | AG36: =+(W36+AB36+AC36+AD36+AE36+AF36)*Captura!$C$19 -> 0 | AH36: 0 | AK36: 0
B37: 9 | C37: 2026-12-04 | D37: =IF(B37<J$17,Captura!$K$16,0)+Resumen!$I$29+Resumen!$I$30 ->  | H37: 0 | K37: 0 | L37: 0 | M37: 0 | O37: =IF(B37=J$17,Captura!$K$29,0) -> 0 | P37: =SUM(D37:F37,I37:N37)*Captura!$C$19 ->  | T37: 10 | U37: 9 | V37: 0 | X37: =+V36*Captura!$O$9/12 -> 0 | Y37: 0 | Z37: 0 | AA37: =IF(U37=J$17,Captura!$K$33,0) -> 0 | AC37: 0 | AD37: 0 | AE37: 0 | AG37: =+(W37+AB37+AC37+AD37+AE37+AF37)*Captura!$C$19 -> 0 | AH37: 0 | AK37: 0
B38: 10 | C38: 2027-01-04 | D38: =IF(B38<J$17,Captura!$K$16,0)+Resumen!$I$29+Resumen!$I$30 ->  | H38: 0 | K38: 0 | L38: 0 | M38: 0 | O38: =IF(B38=J$17,Captura!$K$29,0) -> 0 | P38: =SUM(D38:F38,I38:N38)*Captura!$C$19 ->  | T38: 11 | U38: 10 | V38: 0 | X38: =+V37*Captura!$O$9/12 -> 0 | Y38: 0 | Z38: 0 | AA38: =IF(U38=J$17,Captura!$K$33,0) -> 0 | AC38: 0 | AD38: 0 | AE38: 0 | AG38: =+(W38+AB38+AC38+AD38+AE38+AF38)*Captura!$C$19 -> 0 | AH38: 0 | AK38: 0
B39: 11 | C39: 2027-02-04 | D39: =IF(B39<J$17,Captura!$K$16,0)+Resumen!$I$29+Resumen!$I$30 ->  | H39: 0 | K39: 0 | L39: 0 | M39: 0 | O39: =IF(B39=J$17,Captura!$K$29,0) -> 0 | P39: =SUM(D39:F39,I39:N39)*Captura!$C$19 ->  | T39: 12 | U39: 11 | V39: 0 | X39: =+V38*Captura!$O$9/12 -> 0 | Y39: 0 | Z39: 0 | AA39: =IF(U39=J$17,Captura!$K$33,0) -> 0 | AC39: 0 | AD39: 0 | AE39: 0 | AG39: =+(W39+AB39+AC39+AD39+AE39+AF39)*Captura!$C$19 -> 0 | AH39: 0 | AK39: 0
B40: 12 | C40: 2027-03-04 | D40: =IF(B40<J$17,Captura!$K$16,0)+Resumen!$I$29+Resumen!$I$30 ->  | H40: 0 | K40: =IF(B40+1>=$J$17,0,K28*(1+Captura!$D$35)) -> 0 | L40: =IF(B40+1>=$J$17,0,L28*(1+Captura!$D$35)) -> 0 | M40: =IF(B40+1>=$J$17,0,M28*(1+Captura!$D$35)) -> 0 | O40: =IF(B40=J$17,Captura!$K$29,0) -> 0 | P40: =SUM(D40:F40,I40:N40)*Captura!$C$19 ->  | T40: 1 | U40: 12 | V40: 0 | X40: =+V39*Captura!$O$9/12 -> 0 | Y40: 0 | Z40: 0 | AA40: =IF(U40=J$17,Captura!$K$33,0) -> 0 | AC40: =IF(U40+1>=$J$17,0,AC28*(1+Captura!$D$35)) -> 0 | AD40: =IF(U40+1>=$J$17,0,AD28*(1+Captura!$D$35)) -> 0 | AE40: =IF(U40+1>=$J$17,0,AE28*(1+Captura!$D$35)) -> 395.2 | AG40: =+(W40+AB40+AC40+AD40+AE40+AF40)*Captura!$C$19 -> 63.232 | AH40: 458.432 | AK40: -395.2
B41: 13 | C41: 2027-04-04 | D41: =IF(B41<J$17,Captura!$K$16,0)+Resumen!$I$29+Resumen!$I$30 ->  | H41: 0 | K41: =IF(B41+1>=$J$17,0,K29*(1+Captura!$D$35)) -> 0 | L41: =IF(B41+1>=$J$17,0,L29*(1+Captura!$D$35)) -> 0 | M41: =IF(B41+1>=$J$17,0,M29*(1+Captura!$D$35)) -> 0 | O41: =IF(B41=J$17,Captura!$K$29,0) -> 0 | P41: =SUM(D41:F41,I41:N41)*Captura!$C$19 ->  | T41: 2 | U41: 13 | V41: 0 | X41: =+V40*Captura!$O$9/12 -> 0 | Y41: 0 | Z41: 0 | AA41: =IF(U41=J$17,Captura!$K$33,0) -> 0 | AC41: =IF(U41+1>=$J$17,0,AC29*(1+Captura!$D$35)) -> 0 | AD41: =IF(U41+1>=$J$17,0,AD29*(1+Captura!$D$35)) -> 0 | AE41: =IF(U41+1>=$J$17,0,AE29*(1+Captura!$D$35)) -> 0 | AG41: =+(W41+AB41+AC41+AD41+AE41+AF41)*Captura!$C$19 -> 0 | AH41: 0 | AK41: 0
B42: 14 | C42: 2027-05-04 | D42: =IF(B42<J$17,Captura!$K$16,0)+Resumen!$I$29+Resumen!$I$30 ->  | H42: =IF(B42=J$17,-G$28,0) -> 0 | K42: =IF(B42+1>=$J$17,0,K30*(1+Captura!$D$35)) -> 0 | L42: =IF(B42+1>=$J$17,0,L30*(1+Captura!$D$35)) -> 0 | M42: =IF(B42+1>=$J$17,0,M30*(1+Captura!$D$35)) -> 0 | O42: =IF(B42=J$17,Captura!$K$29,0) -> 0 | P42: =SUM(D42:F42,I42:N42)*Captura!$C$19 ->  | T42: 3 | U42: 14 | V42: 0 | X42: =+V41*Captura!$O$9/12 -> 0 | Y42: 0 | Z42: 0 | AA42: =IF(U42=J$17,Captura!$K$33,0) -> 0 | AC42: =IF(U42+1>=$J$17,0,AC30*(1+Captura!$D$35)) -> 0 | AD42: =IF(U42+1>=$J$17,0,AD30*(1+Captura!$D$35)) -> 0 | AE42: =IF(U42+1>=$J$17,0,AE30*(1+Captura!$D$35)) -> 0 | AG42: =+(W42+AB42+AC42+AD42+AE42+AF42)*Captura!$C$19 -> 0 | AH42: 0 | AK42: 0
B43: 15 | C43: 2027-06-04 | D43: =IF(B43<J$17,Captura!$K$16,0)+Resumen!$I$29+Resumen!$I$30 ->  | H43: 0 | K43: =IF(B43+1>=$J$17,0,K31*(1+Captura!$D$35)) -> 0 | L43: =IF(B43+1>=$J$17,0,L31*(1+Captura!$D$35)) -> 0 | M43: =IF(B43+1>=$J$17,0,M31*(1+Captura!$D$35)) -> 0 | O43: =IF(B43=J$17,Captura!$K$29,0) -> 0 | P43: =SUM(D43:F43,I43:N43)*Captura!$C$19 ->  | T43: 4 | U43: 15 | V43: 0 | X43: =+V42*Captura!$O$9/12 -> 0 | Y43: 0 | Z43: 0 | AA43: =IF(U43=J$17,Captura!$K$33,0) -> 0 | AC43: =IF(U43+1>=$J$17,0,AC31*(1+Captura!$D$35)) -> 0 | AD43: =IF(U43+1>=$J$17,0,AD31*(1+Captura!$D$35)) -> 0 | AE43: =IF(U43+1>=$J$17,0,AE31*(1+Captura!$D$35)) -> 0 | AG43: =+(W43+AB43+AC43+AD43+AE43+AF43)*Captura!$C$19 -> 0 | AH43: 0 | AK43: 0
B44: 16 | C44: 2027-07-04 | D44: =IF(B44<J$17,Captura!$K$16,0)+Resumen!$I$29+Resumen!$I$30 ->  | H44: 0 | K44: =IF(B44+1>=$J$17,0,K32*(1+Captura!$D$35)) -> 0 | L44: =IF(B44+1>=$J$17,0,L32*(1+Captura!$D$35)) -> 0 | M44: =IF(B44+1>=$J$17,0,M32*(1+Captura!$D$35)) -> 0 | O44: =IF(B44=J$17,Captura!$K$29,0) -> 0 | P44: =SUM(D44:F44,I44:N44)*Captura!$C$19 ->  | T44: 5 | U44: 16 | V44: 0 | X44: =+V43*Captura!$O$9/12 -> 0 | Y44: 0 | Z44: 0 | AA44: =IF(U44=J$17,Captura!$K$33,0) -> 0 | AC44: =IF(U44+1>=$J$17,0,AC32*(1+Captura!$D$35)) -> 0 | AD44: =IF(U44+1>=$J$17,0,AD32*(1+Captura!$D$35)) -> 0 | AE44: =IF(U44+1>=$J$17,0,AE32*(1+Captura!$D$35)) -> 0 | AG44: =+(W44+AB44+AC44+AD44+AE44+AF44)*Captura!$C$19 -> 0 | AH44: 0 | AK44: 0
B45: 17 | C45: 2027-08-04 | D45: =IF(B45<J$17,Captura!$K$16,0)+Resumen!$I$29+Resumen!$I$30 ->  | H45: 0 | K45: =IF(B45+1>=$J$17,0,K33*(1+Captura!$D$35)) -> 0 | L45: =IF(B45+1>=$J$17,0,L33*(1+Captura!$D$35)) -> 0 | M45: =IF(B45+1>=$J$17,0,M33*(1+Captura!$D$35)) -> 0 | O45: =IF(B45=J$17,Captura!$K$29,0) -> 0 | P45: =SUM(D45:F45,I45:N45)*Captura!$C$19 ->  | T45: 6 | U45: 17 | V45: 0 | X45: =+V44*Captura!$O$9/12 -> 0 | Y45: 0 | Z45: 0 | AA45: =IF(U45=J$17,Captura!$K$33,0) -> 0 | AC45: =IF(U45+1>=$J$17,0,AC33*(1+Captura!$D$35)) -> 0 | AD45: =IF(U45+1>=$J$17,0,AD33*(1+Captura!$D$35)) -> 0 | AE45: =IF(U45+1>=$J$17,0,AE33*(1+Captura!$D$35)) -> 0 | AG45: =+(W45+AB45+AC45+AD45+AE45+AF45)*Captura!$C$19 -> 0 | AH45: 0 | AK45: 0
B46: 18 | C46: 2027-09-04 | D46: =IF(B46<J$17,Captura!$K$16,0) -> 0 | H46: 0 | K46: =IF(B46+1>=$J$17,0,K34*(1+Captura!$D$35)) -> 0 | L46: =IF(B46+1>=$J$17,0,L34*(1+Captura!$D$35)) -> 0 | M46: =IF(B46+1>=$J$17,0,M34*(1+Captura!$D$35)) -> 0 | O46: =IF(B46=J$17,Captura!$K$29,0) -> 0 | P46: =SUM(D46:F46,I46:N46)*Captura!$C$19 -> 0 | Q46: 0 | T46: 7 | U46: 18 | V46: 0 | X46: =+V45*Captura!$O$9/12 -> 0 | Y46: 0 | Z46: 0 | AA46: =IF(U46=J$17,Captura!$K$33,0) -> 0 | AC46: =IF(U46+1>=$J$17,0,AC34*(1+Captura!$D$35)) -> 0 | AD46: =IF(U46+1>=$J$17,0,AD34*(1+Captura!$D$35)) -> 0 | AE46: =IF(U46+1>=$J$17,0,AE34*(1+Captura!$D$35)) -> 0 | AG46: =+(W46+AB46+AC46+AD46+AE46+AF46)*Captura!$C$19 -> 0 | AH46: 0 | AJ46: 0 | AK46: 0
B47: 19 | C47: 2027-10-04 | D47: =IF(B47<J$17,Captura!$K$16,0) -> 0 | H47: 0 | K47: =IF(B47+1>=$J$17,0,K35*(1+Captura!$D$35)) -> 0 | L47: =IF(B47+1>=$J$17,0,L35*(1+Captura!$D$35)) -> 0 | M47: =IF(B47+1>=$J$17,0,M35*(1+Captura!$D$35)) -> 0 | O47: =IF(B47=J$17,Captura!$K$29,0) -> 0 | P47: =SUM(D47:F47,I47:N47)*Captura!$C$19 -> 0 | Q47: 0 | T47: 8 | U47: 19 | V47: 0 | X47: =+V46*Captura!$O$9/12 -> 0 | Y47: 0 | Z47: 0 | AA47: =IF(U47=J$17,Captura!$K$33,0) -> 0 | AC47: =IF(U47+1>=$J$17,0,AC35*(1+Captura!$D$35)) -> 0 | AD47: =IF(U47+1>=$J$17,0,AD35*(1+Captura!$D$35)) -> 0 | AE47: =IF(U47+1>=$J$17,0,AE35*(1+Captura!$D$35)) -> 0 | AG47: =+(W47+AB47+AC47+AD47+AE47+AF47)*Captura!$C$19 -> 0 | AH47: 0 | AJ47: 0 | AK47: 0
B48: 20 | C48: 2027-11-04 | D48: =IF(B48<J$17,Captura!$K$16,0) -> 0 | H48: 0 | K48: =IF(B48+1>=$J$17,0,K36*(1+Captura!$D$35)) -> 0 | L48: =IF(B48+1>=$J$17,0,L36*(1+Captura!$D$35)) -> 0 | M48: =IF(B48+1>=$J$17,0,M36*(1+Captura!$D$35)) -> 0 | O48: =IF(B48=J$17,Captura!$K$29,0) -> 0 | P48: =SUM(D48:F48,I48:N48)*Captura!$C$19 -> 0 | Q48: 0 | T48: 9 | U48: 20 | V48: 0 | X48: =+V47*Captura!$O$9/12 -> 0 | Y48: 0 | Z48: 0 | AA48: =IF(U48=J$17,Captura!$K$33,0) -> 0 | AC48: =IF(U48+1>=$J$17,0,AC36*(1+Captura!$D$35)) -> 0 | AD48: =IF(U48+1>=$J$17,0,AD36*(1+Captura!$D$35)) -> 0 | AE48: =IF(U48+1>=$J$17,0,AE36*(1+Captura!$D$35)) -> 0 | AG48: =+(W48+AB48+AC48+AD48+AE48+AF48)*Captura!$C$19 -> 0 | AH48: 0 | AJ48: 0 | AK48: 0
B49: 21 | C49: 2027-12-04 | D49: =IF(B49<J$17,Captura!$K$16,0) -> 0 | H49: 0 | K49: =IF(B49+1>=$J$17,0,K37*(1+Captura!$D$35)) -> 0 | L49: =IF(B49+1>=$J$17,0,L37*(1+Captura!$D$35)) -> 0 | M49: =IF(B49+1>=$J$17,0,M37*(1+Captura!$D$35)) -> 0 | O49: =IF(B49=J$17,Captura!$K$29,0) -> 0 | P49: =SUM(D49:F49,I49:N49)*Captura!$C$19 -> 0 | Q49: 0 | T49: 10 | U49: 21 | V49: 0 | X49: =+V48*Captura!$O$9/12 -> 0 | Y49: 0 | Z49: 0 | AA49: =IF(U49=J$17,Captura!$K$33,0) -> 0 | AC49: =IF(U49+1>=$J$17,0,AC37*(1+Captura!$D$35)) -> 0 | AD49: =IF(U49+1>=$J$17,0,AD37*(1+Captura!$D$35)) -> 0 | AE49: =IF(U49+1>=$J$17,0,AE37*(1+Captura!$D$35)) -> 0 | AG49: =+(W49+AB49+AC49+AD49+AE49+AF49)*Captura!$C$19 -> 0 | AH49: 0 | AJ49: 0 | AK49: 0
B50: 22 | C50: 2028-01-04 | D50: =IF(B50<J$17,Captura!$K$16,0) -> 0 | H50: 0 | K50: =IF(B50+1>=$J$17,0,K38*(1+Captura!$D$35)) -> 0 | L50: =IF(B50+1>=$J$17,0,L38*(1+Captura!$D$35)) -> 0 | M50: =IF(B50+1>=$J$17,0,M38*(1+Captura!$D$35)) -> 0 | O50: =IF(B50=J$17,Captura!$K$29,0) -> 0 | P50: =SUM(D50:F50,I50:N50)*Captura!$C$19 -> 0 | Q50: 0 | T50: 11 | U50: 22 | V50: 0 | X50: =+V49*Captura!$O$9/12 -> 0 | Y50: 0 | Z50: 0 | AA50: =IF(U50=J$17,Captura!$K$33,0) -> 0 | AC50: =IF(U50+1>=$J$17,0,AC38*(1+Captura!$D$35)) -> 0 | AD50: =IF(U50+1>=$J$17,0,AD38*(1+Captura!$D$35)) -> 0 | AE50: =IF(U50+1>=$J$17,0,AE38*(1+Captura!$D$35)) -> 0 | AG50: =+(W50+AB50+AC50+AD50+AE50+AF50)*Captura!$C$19 -> 0 | AH50: 0 | AJ50: 0 | AK50: 0
B51: 23 | C51: 2028-02-04 | D51: =IF(B51<J$17,Captura!$K$16,0) -> 0 | H51: 0 | K51: =IF(B51+1>=$J$17,0,K39*(1+Captura!$D$35)) -> 0 | L51: =IF(B51+1>=$J$17,0,L39*(1+Captura!$D$35)) -> 0 | M51: =IF(B51+1>=$J$17,0,M39*(1+Captura!$D$35)) -> 0 | O51: =IF(B51=J$17,Captura!$K$29,0) -> 0 | P51: =SUM(D51:F51,I51:N51)*Captura!$C$19 -> 0 | Q51: 0 | T51: 12 | U51: 23 | V51: 0 | X51: =+V50*Captura!$O$9/12 -> 0 | Y51: 0 | Z51: 0 | AA51: =IF(U51=J$17,Captura!$K$33,0) -> 0 | AC51: =IF(U51+1>=$J$17,0,AC39*(1+Captura!$D$35)) -> 0 | AD51: =IF(U51+1>=$J$17,0,AD39*(1+Captura!$D$35)) -> 0 | AE51: =IF(U51+1>=$J$17,0,AE39*(1+Captura!$D$35)) -> 0 | AG51: =+(W51+AB51+AC51+AD51+AE51+AF51)*Captura!$C$19 -> 0 | AH51: 0 | AJ51: 0 | AK51: 0
B52: 24 | C52: 2028-03-04 | D52: =IF(B52<J$17,Captura!$K$16,0) -> 0 | H52: 0 | K52: =IF(B52+1>=$J$17,0,K40*(1+Captura!$D$35)) -> 0 | L52: =IF(B52+1>=$J$17,0,L40*(1+Captura!$D$35)) -> 0 | M52: =IF(B52+1>=$J$17,0,M40*(1+Captura!$D$35)) -> 0 | O52: =IF(B52=J$17,Captura!$K$29,0) -> 0 | P52: =SUM(D52:F52,I52:N52)*Captura!$C$19 -> 0 | Q52: 0 | T52: 1 | U52: 24 | V52: 0 | X52: =+V51*Captura!$O$9/12 -> 0 | Y52: 0 | Z52: 0 | AA52: =IF(U52=J$17,Captura!$K$33,0) -> 0 | AC52: =IF(U52+1>=$J$17,0,AC40*(1+Captura!$D$35)) -> 0 | AD52: =IF(U52+1>=$J$17,0,AD40*(1+Captura!$D$35)) -> 0 | AE52: =IF(U52+1>=$J$17,0,AE40*(1+Captura!$D$35)) -> 0 | AG52: =+(W52+AB52+AC52+AD52+AE52+AF52)*Captura!$C$19 -> 0 | AH52: 0 | AJ52: 0 | AK52: 0
B53: 25 | C53: 2028-04-04 | D53: =IF(B53<J$17,Captura!$K$16,0) -> 0 | H53: 0 | K53: =IF(B53+1>=$J$17,0,K41*(1+Captura!$D$35)) -> 0 | L53: =IF(B53+1>=$J$17,0,L41*(1+Captura!$D$35)) -> 0 | M53: =IF(B53+1>=$J$17,0,M41*(1+Captura!$D$35)) -> 0 | O53: =IF(B53=J$17,Captura!$K$29,0) -> 0 | P53: =SUM(D53:F53,I53:N53)*Captura!$C$19 -> 0 | Q53: 0 | T53: 2 | U53: 25 | V53: 0 | X53: =+V52*Captura!$O$9/12 -> 0 | Y53: 0 | Z53: 0 | AA53: =IF(U53=J$17,Captura!$K$33,0) -> 0 | AC53: =IF(U53+1>=$J$17,0,AC41*(1+Captura!$D$35)) -> 0 | AD53: =IF(U53+1>=$J$17,0,AD41*(1+Captura!$D$35)) -> 0 | AE53: =IF(U53+1>=$J$17,0,AE41*(1+Captura!$D$35)) -> 0 | AG53: =+(W53+AB53+AC53+AD53+AE53+AF53)*Captura!$C$19 -> 0 | AH53: 0 | AJ53: 0 | AK53: 0
B54: 26 | C54: 2028-05-04 | D54: =IF(B54<J$17,Captura!$K$16,0) -> 0 | H54: 0 | K54: =IF(B54+1>=$J$17,0,K42*(1+Captura!$D$35)) -> 0 | L54: =IF(B54+1>=$J$17,0,L42*(1+Captura!$D$35)) -> 0 | M54: =IF(B54+1>=$J$17,0,M42*(1+Captura!$D$35)) -> 0 | O54: =IF(B54=J$17,Captura!$K$29,0) -> 0 | P54: =SUM(D54:F54,I54:N54)*Captura!$C$19 -> 0 | Q54: 0 | T54: 3 | U54: 26 | V54: 0 | X54: =+V53*Captura!$O$9/12 -> 0 | Y54: 0 | Z54: 0 | AA54: =IF(U54=J$17,Captura!$K$33,0) -> 0 | AC54: =IF(U54+1>=$J$17,0,AC42*(1+Captura!$D$35)) -> 0 | AD54: =IF(U54+1>=$J$17,0,AD42*(1+Captura!$D$35)) -> 0 | AE54: =IF(U54+1>=$J$17,0,AE42*(1+Captura!$D$35)) -> 0 | AG54: =+(W54+AB54+AC54+AD54+AE54+AF54)*Captura!$C$19 -> 0 | AH54: 0 | AJ54: 0 | AK54: 0
B55: 27 | C55: 2028-06-04 | D55: =IF(B55<J$17,Captura!$K$16,0) -> 0 | H55: 0 | K55: =IF(B55+1>=$J$17,0,K43*(1+Captura!$D$35)) -> 0 | L55: =IF(B55+1>=$J$17,0,L43*(1+Captura!$D$35)) -> 0 | M55: =IF(B55+1>=$J$17,0,M43*(1+Captura!$D$35)) -> 0 | O55: =IF(B55=J$17,Captura!$K$29,0) -> 0 | P55: =SUM(D55:F55,I55:N55)*Captura!$C$19 -> 0 | Q55: 0 | T55: 4 | U55: 27 | V55: 0 | X55: =+V54*Captura!$O$9/12 -> 0 | Y55: 0 | Z55: 0 | AA55: =IF(U55=J$17,Captura!$K$33,0) -> 0 | AC55: =IF(U55+1>=$J$17,0,AC43*(1+Captura!$D$35)) -> 0 | AD55: =IF(U55+1>=$J$17,0,AD43*(1+Captura!$D$35)) -> 0 | AE55: =IF(U55+1>=$J$17,0,AE43*(1+Captura!$D$35)) -> 0 | AG55: =+(W55+AB55+AC55+AD55+AE55+AF55)*Captura!$C$19 -> 0 | AH55: 0 | AJ55: 0 | AK55: 0
B56: 28 | C56: 2028-07-04 | D56: =IF(B56<J$17,Captura!$K$16,0) -> 0 | H56: 0 | K56: =IF(B56+1>=$J$17,0,K44*(1+Captura!$D$35)) -> 0 | L56: =IF(B56+1>=$J$17,0,L44*(1+Captura!$D$35)) -> 0 | M56: =IF(B56+1>=$J$17,0,M44*(1+Captura!$D$35)) -> 0 | O56: =IF(B56=J$17,Captura!$K$29,0) -> 0 | P56: =SUM(D56:F56,I56:N56)*Captura!$C$19 -> 0 | Q56: 0 | T56: 5 | U56: 28 | V56: 0 | X56: =+V55*Captura!$O$9/12 -> 0 | Y56: 0 | Z56: 0 | AA56: =IF(U56=J$17,Captura!$K$33,0) -> 0 | AC56: =IF(U56+1>=$J$17,0,AC44*(1+Captura!$D$35)) -> 0 | AD56: =IF(U56+1>=$J$17,0,AD44*(1+Captura!$D$35)) -> 0 | AE56: =IF(U56+1>=$J$17,0,AE44*(1+Captura!$D$35)) -> 0 | AG56: =+(W56+AB56+AC56+AD56+AE56+AF56)*Captura!$C$19 -> 0 | AH56: 0 | AJ56: 0 | AK56: 0
B57: 29 | C57: 2028-08-04 | D57: =IF(B57<J$17,Captura!$K$16,0) -> 0 | H57: 0 | K57: =IF(B57+1>=$J$17,0,K45*(1+Captura!$D$35)) -> 0 | L57: =IF(B57+1>=$J$17,0,L45*(1+Captura!$D$35)) -> 0 | M57: =IF(B57+1>=$J$17,0,M45*(1+Captura!$D$35)) -> 0 | O57: =IF(B57=J$17,Captura!$K$29,0) -> 0 | P57: =SUM(D57:F57,I57:N57)*Captura!$C$19 -> 0 | Q57: 0 | T57: 6 | U57: 29 | V57: 0 | X57: =+V56*Captura!$O$9/12 -> 0 | Y57: 0 | Z57: 0 | AA57: =IF(U57=J$17,Captura!$K$33,0) -> 0 | AC57: =IF(U57+1>=$J$17,0,AC45*(1+Captura!$D$35)) -> 0 | AD57: =IF(U57+1>=$J$17,0,AD45*(1+Captura!$D$35)) -> 0 | AE57: =IF(U57+1>=$J$17,0,AE45*(1+Captura!$D$35)) -> 0 | AG57: =+(W57+AB57+AC57+AD57+AE57+AF57)*Captura!$C$19 -> 0 | AH57: 0 | AJ57: 0 | AK57: 0
B58: 30 | C58: 2028-09-04 | D58: =IF(B58<J$17,Captura!$K$16,0) -> 0 | H58: 0 | K58: =IF(B58+1>=$J$17,0,K46*(1+Captura!$D$35)) -> 0 | L58: =IF(B58+1>=$J$17,0,L46*(1+Captura!$D$35)) -> 0 | M58: =IF(B58+1>=$J$17,0,M46*(1+Captura!$D$35)) -> 0 | O58: =IF(B58=J$17,Captura!$K$29,0) -> 0 | P58: =SUM(D58:F58,I58:N58)*Captura!$C$19 -> 0 | Q58: 0 | T58: 7 | U58: 30 | V58: 0 | X58: =+V57*Captura!$O$9/12 -> 0 | Y58: 0 | Z58: 0 | AA58: =IF(U58=J$17,Captura!$K$33,0) -> 0 | AC58: =IF(U58+1>=$J$17,0,AC46*(1+Captura!$D$35)) -> 0 | AD58: =IF(U58+1>=$J$17,0,AD46*(1+Captura!$D$35)) -> 0 | AE58: =IF(U58+1>=$J$17,0,AE46*(1+Captura!$D$35)) -> 0 | AG58: =+(W58+AB58+AC58+AD58+AE58+AF58)*Captura!$C$19 -> 0 | AH58: 0 | AJ58: 0 | AK58: 0
B59: 31 | C59: 2028-10-04 | D59: =IF(B59<J$17,Captura!$K$16,0) -> 0 | H59: 0 | K59: =IF(B59+1>=$J$17,0,K47*(1+Captura!$D$35)) -> 0 | L59: =IF(B59+1>=$J$17,0,L47*(1+Captura!$D$35)) -> 0 | M59: =IF(B59+1>=$J$17,0,M47*(1+Captura!$D$35)) -> 0 | O59: =IF(B59=J$17,Captura!$K$29,0) -> 0 | P59: =SUM(D59:F59,I59:N59)*Captura!$C$19 -> 0 | Q59: 0 | T59: 8 | U59: 31 | V59: 0 | X59: =+V58*Captura!$O$9/12 -> 0 | Y59: 0 | Z59: 0 | AA59: =IF(U59=J$17,Captura!$K$33,0) -> 0 | AC59: =IF(U59+1>=$J$17,0,AC47*(1+Captura!$D$35)) -> 0 | AD59: =IF(U59+1>=$J$17,0,AD47*(1+Captura!$D$35)) -> 0 | AE59: =IF(U59+1>=$J$17,0,AE47*(1+Captura!$D$35)) -> 0 | AG59: =+(W59+AB59+AC59+AD59+AE59+AF59)*Captura!$C$19 -> 0 | AH59: 0 | AJ59: 0 | AK59: 0
B60: 32 | C60: 2028-11-04 | D60: =IF(B60<J$17,Captura!$K$16,0) -> 0 | H60: 0 | K60: =IF(B60+1>=$J$17,0,K48*(1+Captura!$D$35)) -> 0 | L60: =IF(B60+1>=$J$17,0,L48*(1+Captura!$D$35)) -> 0 | M60: =IF(B60+1>=$J$17,0,M48*(1+Captura!$D$35)) -> 0 | O60: =IF(B60=J$17,Captura!$K$29,0) -> 0 | P60: =SUM(D60:F60,I60:N60)*Captura!$C$19 -> 0 | Q60: 0 | T60: 9 | U60: 32 | V60: 0 | X60: =+V59*Captura!$O$9/12 -> 0 | Y60: 0 | Z60: 0 | AA60: =IF(U60=J$17,Captura!$K$33,0) -> 0 | AC60: =IF(U60+1>=$J$17,0,AC48*(1+Captura!$D$35)) -> 0 | AD60: =IF(U60+1>=$J$17,0,AD48*(1+Captura!$D$35)) -> 0 | AE60: =IF(U60+1>=$J$17,0,AE48*(1+Captura!$D$35)) -> 0 | AG60: =+(W60+AB60+AC60+AD60+AE60+AF60)*Captura!$C$19 -> 0 | AH60: 0 | AJ60: 0 | AK60: 0
B61: 33 | C61: 2028-12-04 | D61: =IF(B61<J$17,Captura!$K$16,0) -> 0 | H61: 0 | K61: =IF(B61+1>=$J$17,0,K49*(1+Captura!$D$35)) -> 0 | L61: =IF(B61+1>=$J$17,0,L49*(1+Captura!$D$35)) -> 0 | M61: =IF(B61+1>=$J$17,0,M49*(1+Captura!$D$35)) -> 0 | O61: =IF(B61=J$17,Captura!$K$29,0) -> 0 | P61: =SUM(D61:F61,I61:N61)*Captura!$C$19 -> 0 | Q61: 0 | T61: 10 | U61: 33 | V61: 0 | X61: =+V60*Captura!$O$9/12 -> 0 | Y61: 0 | Z61: 0 | AA61: =IF(U61=J$17,Captura!$K$33,0) -> 0 | AC61: =IF(U61+1>=$J$17,0,AC49*(1+Captura!$D$35)) -> 0 | AD61: =IF(U61+1>=$J$17,0,AD49*(1+Captura!$D$35)) -> 0 | AE61: =IF(U61+1>=$J$17,0,AE49*(1+Captura!$D$35)) -> 0 | AG61: =+(W61+AB61+AC61+AD61+AE61+AF61)*Captura!$C$19 -> 0 | AH61: 0 | AJ61: 0 | AK61: 0
B62: 34 | C62: 2029-01-04 | D62: =IF(B62<J$17,Captura!$K$16,0) -> 0 | H62: 0 | K62: =IF(B62+1>=$J$17,0,K50*(1+Captura!$D$35)) -> 0 | L62: =IF(B62+1>=$J$17,0,L50*(1+Captura!$D$35)) -> 0 | M62: =IF(B62+1>=$J$17,0,M50*(1+Captura!$D$35)) -> 0 | O62: =IF(B62=J$17,Captura!$K$29,0) -> 0 | P62: =SUM(D62:F62,I62:N62)*Captura!$C$19 -> 0 | Q62: 0 | T62: 11 | U62: 34 | V62: 0 | X62: =+V61*Captura!$O$9/12 -> 0 | Y62: 0 | Z62: 0 | AA62: =IF(U62=J$17,Captura!$K$33,0) -> 0 | AC62: =IF(U62+1>=$J$17,0,AC50*(1+Captura!$D$35)) -> 0 | AD62: =IF(U62+1>=$J$17,0,AD50*(1+Captura!$D$35)) -> 0 | AE62: =IF(U62+1>=$J$17,0,AE50*(1+Captura!$D$35)) -> 0 | AG62: =+(W62+AB62+AC62+AD62+AE62+AF62)*Captura!$C$19 -> 0 | AH62: 0 | AJ62: 0 | AK62: 0
B63: 35 | C63: 2029-02-04 | D63: =IF(B63<J$17,Captura!$K$16,0) -> 0 | H63: 0 | K63: =IF(B63+1>=$J$17,0,K51*(1+Captura!$D$35)) -> 0 | L63: =IF(B63+1>=$J$17,0,L51*(1+Captura!$D$35)) -> 0 | M63: =IF(B63+1>=$J$17,0,M51*(1+Captura!$D$35)) -> 0 | O63: =IF(B63=J$17,Captura!$K$29,0) -> 0 | P63: =SUM(D63:F63,I63:N63)*Captura!$C$19 -> 0 | Q63: 0 | T63: 12 | U63: 35 | V63: 0 | X63: =+V62*Captura!$O$9/12 -> 0 | Y63: 0 | Z63: 0 | AA63: =IF(U63=J$17,Captura!$K$33,0) -> 0 | AC63: =IF(U63+1>=$J$17,0,AC51*(1+Captura!$D$35)) -> 0 | AD63: =IF(U63+1>=$J$17,0,AD51*(1+Captura!$D$35)) -> 0 | AE63: =IF(U63+1>=$J$17,0,AE51*(1+Captura!$D$35)) -> 0 | AG63: =+(W63+AB63+AC63+AD63+AE63+AF63)*Captura!$C$19 -> 0 | AH63: 0 | AJ63: 0 | AK63: 0
B64: 36 | C64: 2029-03-04 | D64: =IF(B64<J$17,Captura!$K$16,0) -> 0 | H64: 0 | K64: =IF(B64+1>=$J$17,0,K52*(1+Captura!$D$35)) -> 0 | L64: =IF(B64+1>=$J$17,0,L52*(1+Captura!$D$35)) -> 0 | M64: =IF(B64+1>=$J$17,0,M52*(1+Captura!$D$35)) -> 0 | O64: =IF(B64=J$17,Captura!$K$29,0) -> 0 | P64: =SUM(D64:F64,I64:N64)*Captura!$C$19 -> 0 | Q64: 0 | T64: 1 | U64: 36 | V64: 0 | X64: =+V63*Captura!$O$9/12 -> 0 | Y64: 0 | Z64: 0 | AA64: =IF(U64=J$17,Captura!$K$33,0) -> 0 | AC64: =IF(U64+1>=$J$17,0,AC52*(1+Captura!$D$35)) -> 0 | AD64: =IF(U64+1>=$J$17,0,AD52*(1+Captura!$D$35)) -> 0 | AE64: =IF(U64+1>=$J$17,0,AE52*(1+Captura!$D$35)) -> 0 | AG64: =+(W64+AB64+AC64+AD64+AE64+AF64)*Captura!$C$19 -> 0 | AH64: 0 | AJ64: 0 | AK64: 0
B65: 37 | C65: 2029-04-04 | D65: =IF(B65<J$17,Captura!$K$16,0) -> 0 | H65: 0 | K65: =IF(B65+1>=$J$17,0,K53*(1+Captura!$D$35)) -> 0 | L65: =IF(B65+1>=$J$17,0,L53*(1+Captura!$D$35)) -> 0 | M65: =IF(B65+1>=$J$17,0,M53*(1+Captura!$D$35)) -> 0 | O65: =IF(B65=J$17,Captura!$K$29,0) -> 0 | P65: =SUM(D65:F65,I65:N65)*Captura!$C$19 -> 0 | Q65: 0 | T65: 2 | U65: 37 | V65: 0 | X65: =+V64*Captura!$O$9/12 -> 0 | Y65: 0 | Z65: 0 | AA65: =IF(U65=J$17,Captura!$K$33,0) -> 0 | AC65: =IF(U65+1>=$J$17,0,AC53*(1+Captura!$D$35)) -> 0 | AD65: =IF(U65+1>=$J$17,0,AD53*(1+Captura!$D$35)) -> 0 | AE65: =IF(U65+1>=$J$17,0,AE53*(1+Captura!$D$35)) -> 0 | AG65: =+(W65+AB65+AC65+AD65+AE65+AF65)*Captura!$C$19 -> 0 | AH65: 0 | AJ65: 0 | AK65: 0
B66: 38 | C66: 2029-05-04 | D66: =IF(B66<J$17,Captura!$K$16,0) -> 0 | H66: 0 | K66: =IF(B66+1>=$J$17,0,K54*(1+Captura!$D$35)) -> 0 | L66: =IF(B66+1>=$J$17,0,L54*(1+Captura!$D$35)) -> 0 | M66: =IF(B66+1>=$J$17,0,M54*(1+Captura!$D$35)) -> 0 | O66: =IF(B66=J$17,Captura!$K$29,0) -> 0 | P66: =SUM(D66:F66,I66:N66)*Captura!$C$19 -> 0 | Q66: 0 | T66: 3 | U66: 38 | V66: 0 | X66: =+V65*Captura!$O$9/12 -> 0 | Y66: 0 | Z66: 0 | AA66: =IF(U66=J$17,Captura!$K$33,0) -> 0 | AC66: =IF(U66+1>=$J$17,0,AC54*(1+Captura!$D$35)) -> 0 | AD66: =IF(U66+1>=$J$17,0,AD54*(1+Captura!$D$35)) -> 0 | AE66: =IF(U66+1>=$J$17,0,AE54*(1+Captura!$D$35)) -> 0 | AG66: =+(W66+AB66+AC66+AD66+AE66+AF66)*Captura!$C$19 -> 0 | AH66: 0 | AJ66: 0 | AK66: 0
B67: 39 | C67: 2029-06-04 | D67: =IF(B67<J$17,Captura!$K$16,0) -> 0 | H67: 0 | K67: =IF(B67+1>=$J$17,0,K55*(1+Captura!$D$35)) -> 0 | L67: =IF(B67+1>=$J$17,0,L55*(1+Captura!$D$35)) -> 0 | M67: =IF(B67+1>=$J$17,0,M55*(1+Captura!$D$35)) -> 0 | O67: =IF(B67=J$17,Captura!$K$29,0) -> 0 | P67: =SUM(D67:F67,I67:N67)*Captura!$C$19 -> 0 | Q67: 0 | T67: 4 | U67: 39 | V67: 0 | X67: =+V66*Captura!$O$9/12 -> 0 | Y67: 0 | Z67: 0 | AA67: =IF(U67=J$17,Captura!$K$33,0) -> 0 | AC67: =IF(U67+1>=$J$17,0,AC55*(1+Captura!$D$35)) -> 0 | AD67: =IF(U67+1>=$J$17,0,AD55*(1+Captura!$D$35)) -> 0 | AE67: =IF(U67+1>=$J$17,0,AE55*(1+Captura!$D$35)) -> 0 | AG67: =+(W67+AB67+AC67+AD67+AE67+AF67)*Captura!$C$19 -> 0 | AH67: 0 | AJ67: 0 | AK67: 0
B68: 40 | C68: 2029-07-04 | D68: =IF(B68<J$17,Captura!$K$16,0) -> 0 | H68: 0 | K68: =IF(B68+1>=$J$17,0,K56*(1+Captura!$D$35)) -> 0 | L68: =IF(B68+1>=$J$17,0,L56*(1+Captura!$D$35)) -> 0 | M68: =IF(B68+1>=$J$17,0,M56*(1+Captura!$D$35)) -> 0 | O68: =IF(B68=J$17,Captura!$K$29,0) -> 0 | P68: =SUM(D68:F68,I68:N68)*Captura!$C$19 -> 0 | Q68: 0 | T68: 5 | U68: 40 | V68: 0 | X68: =+V67*Captura!$O$9/12 -> 0 | Y68: 0 | Z68: 0 | AA68: =IF(U68=J$17,Captura!$K$33,0) -> 0 | AC68: =IF(U68+1>=$J$17,0,AC56*(1+Captura!$D$35)) -> 0 | AD68: =IF(U68+1>=$J$17,0,AD56*(1+Captura!$D$35)) -> 0 | AE68: =IF(U68+1>=$J$17,0,AE56*(1+Captura!$D$35)) -> 0 | AG68: =+(W68+AB68+AC68+AD68+AE68+AF68)*Captura!$C$19 -> 0 | AH68: 0 | AJ68: 0 | AK68: 0
B69: 41 | C69: 2029-08-04 | D69: =IF(B69<J$17,Captura!$K$16,0) -> 0 | H69: 0 | K69: =IF(B69+1>=$J$17,0,K57*(1+Captura!$D$35)) -> 0 | L69: =IF(B69+1>=$J$17,0,L57*(1+Captura!$D$35)) -> 0 | M69: =IF(B69+1>=$J$17,0,M57*(1+Captura!$D$35)) -> 0 | O69: =IF(B69=J$17,Captura!$K$29,0) -> 0 | P69: =SUM(D69:F69,I69:N69)*Captura!$C$19 -> 0 | Q69: 0 | T69: 6 | U69: 41 | V69: 0 | X69: =+V68*Captura!$O$9/12 -> 0 | Y69: 0 | Z69: 0 | AA69: =IF(U69=J$17,Captura!$K$33,0) -> 0 | AC69: =IF(U69+1>=$J$17,0,AC57*(1+Captura!$D$35)) -> 0 | AD69: =IF(U69+1>=$J$17,0,AD57*(1+Captura!$D$35)) -> 0 | AE69: =IF(U69+1>=$J$17,0,AE57*(1+Captura!$D$35)) -> 0 | AG69: =+(W69+AB69+AC69+AD69+AE69+AF69)*Captura!$C$19 -> 0 | AH69: 0 | AJ69: 0 | AK69: 0
B70: 42 | C70: 2029-09-04 | D70: =IF(B70<J$17,Captura!$K$16,0) -> 0 | H70: 0 | K70: =IF(B70+1>=$J$17,0,K58*(1+Captura!$D$35)) -> 0 | L70: =IF(B70+1>=$J$17,0,L58*(1+Captura!$D$35)) -> 0 | M70: =IF(B70+1>=$J$17,0,M58*(1+Captura!$D$35)) -> 0 | O70: =IF(B70=J$17,Captura!$K$29,0) -> 0 | P70: =SUM(D70:F70,I70:N70)*Captura!$C$19 -> 0 | Q70: 0 | T70: 7 | U70: 42 | V70: 0 | X70: =+V69*Captura!$O$9/12 -> 0 | Y70: 0 | Z70: 0 | AA70: =IF(U70=J$17,Captura!$K$33,0) -> 0 | AC70: =IF(U70+1>=$J$17,0,AC58*(1+Captura!$D$35)) -> 0 | AD70: =IF(U70+1>=$J$17,0,AD58*(1+Captura!$D$35)) -> 0 | AE70: =IF(U70+1>=$J$17,0,AE58*(1+Captura!$D$35)) -> 0 | AG70: =+(W70+AB70+AC70+AD70+AE70+AF70)*Captura!$C$19 -> 0 | AH70: 0 | AJ70: 0 | AK70: 0
B71: 43 | C71: 2029-10-04 | D71: =IF(B71<J$17,Captura!$K$16,0) -> 0 | H71: 0 | K71: =IF(B71+1>=$J$17,0,K59*(1+Captura!$D$35)) -> 0 | L71: =IF(B71+1>=$J$17,0,L59*(1+Captura!$D$35)) -> 0 | M71: =IF(B71+1>=$J$17,0,M59*(1+Captura!$D$35)) -> 0 | O71: =IF(B71=J$17,Captura!$K$29,0) -> 0 | P71: =SUM(D71:F71,I71:N71)*Captura!$C$19 -> 0 | Q71: 0 | T71: 8 | U71: 43 | V71: 0 | X71: =+V70*Captura!$O$9/12 -> 0 | Y71: 0 | Z71: 0 | AA71: =IF(U71=J$17,Captura!$K$33,0) -> 0 | AC71: =IF(U71+1>=$J$17,0,AC59*(1+Captura!$D$35)) -> 0 | AD71: =IF(U71+1>=$J$17,0,AD59*(1+Captura!$D$35)) -> 0 | AE71: =IF(U71+1>=$J$17,0,AE59*(1+Captura!$D$35)) -> 0 | AG71: =+(W71+AB71+AC71+AD71+AE71+AF71)*Captura!$C$19 -> 0 | AH71: 0 | AJ71: 0 | AK71: 0
B72: 44 | C72: 2029-11-04 | D72: =IF(B72<J$17,Captura!$K$16,0) -> 0 | H72: 0 | K72: =IF(B72+1>=$J$17,0,K60*(1+Captura!$D$35)) -> 0 | L72: =IF(B72+1>=$J$17,0,L60*(1+Captura!$D$35)) -> 0 | M72: =IF(B72+1>=$J$17,0,M60*(1+Captura!$D$35)) -> 0 | O72: =IF(B72=J$17,Captura!$K$29,0) -> 0 | P72: =SUM(D72:F72,I72:N72)*Captura!$C$19 -> 0 | Q72: 0 | T72: 9 | U72: 44 | V72: 0 | X72: =+V71*Captura!$O$9/12 -> 0 | Y72: 0 | Z72: 0 | AA72: =IF(U72=J$17,Captura!$K$33,0) -> 0 | AC72: =IF(U72+1>=$J$17,0,AC60*(1+Captura!$D$35)) -> 0 | AD72: =IF(U72+1>=$J$17,0,AD60*(1+Captura!$D$35)) -> 0 | AE72: =IF(U72+1>=$J$17,0,AE60*(1+Captura!$D$35)) -> 0 | AG72: =+(W72+AB72+AC72+AD72+AE72+AF72)*Captura!$C$19 -> 0 | AH72: 0 | AJ72: 0 | AK72: 0
B73: 45 | C73: 2029-12-04 | D73: =IF(B73<J$17,Captura!$K$16,0) -> 0 | H73: 0 | K73: =IF(B73+1>=$J$17,0,K61*(1+Captura!$D$35)) -> 0 | L73: =IF(B73+1>=$J$17,0,L61*(1+Captura!$D$35)) -> 0 | M73: =IF(B73+1>=$J$17,0,M61*(1+Captura!$D$35)) -> 0 | O73: =IF(B73=J$17,Captura!$K$29,0) -> 0 | P73: =SUM(D73:F73,I73:N73)*Captura!$C$19 -> 0 | Q73: 0 | T73: 10 | U73: 45 | V73: 0 | X73: =+V72*Captura!$O$9/12 -> 0 | Y73: 0 | Z73: 0 | AA73: =IF(U73=J$17,Captura!$K$33,0) -> 0 | AC73: =IF(U73+1>=$J$17,0,AC61*(1+Captura!$D$35)) -> 0 | AD73: =IF(U73+1>=$J$17,0,AD61*(1+Captura!$D$35)) -> 0 | AE73: =IF(U73+1>=$J$17,0,AE61*(1+Captura!$D$35)) -> 0 | AG73: =+(W73+AB73+AC73+AD73+AE73+AF73)*Captura!$C$19 -> 0 | AH73: 0 | AJ73: 0 | AK73: 0
B74: 46 | C74: 2030-01-04 | D74: =IF(B74<J$17,Captura!$K$16,0) -> 0 | H74: 0 | K74: =IF(B74+1>=$J$17,0,K62*(1+Captura!$D$35)) -> 0 | L74: =IF(B74+1>=$J$17,0,L62*(1+Captura!$D$35)) -> 0 | M74: =IF(B74+1>=$J$17,0,M62*(1+Captura!$D$35)) -> 0 | O74: =IF(B74=J$17,Captura!$K$29,0) -> 0 | P74: =SUM(D74:F74,I74:N74)*Captura!$C$19 -> 0 | Q74: 0 | T74: 11 | U74: 46 | V74: 0 | X74: =+V73*Captura!$O$9/12 -> 0 | Y74: 0 | Z74: 0 | AA74: =IF(U74=J$17,Captura!$K$33,0) -> 0 | AC74: =IF(U74+1>=$J$17,0,AC62*(1+Captura!$D$35)) -> 0 | AD74: =IF(U74+1>=$J$17,0,AD62*(1+Captura!$D$35)) -> 0 | AE74: =IF(U74+1>=$J$17,0,AE62*(1+Captura!$D$35)) -> 0 | AG74: =+(W74+AB74+AC74+AD74+AE74+AF74)*Captura!$C$19 -> 0 | AH74: 0 | AJ74: 0 | AK74: 0
B75: 47 | C75: 2030-02-04 | D75: =IF(B75<J$17,Captura!$K$16,0) -> 0 | H75: 0 | K75: =IF(B75+1>=$J$17,0,K63*(1+Captura!$D$35)) -> 0 | L75: =IF(B75+1>=$J$17,0,L63*(1+Captura!$D$35)) -> 0 | M75: =IF(B75+1>=$J$17,0,M63*(1+Captura!$D$35)) -> 0 | O75: =IF(B75=J$17,Captura!$K$29,0) -> 0 | P75: =SUM(D75:F75,I75:N75)*Captura!$C$19 -> 0 | Q75: 0 | T75: 12 | U75: 47 | V75: 0 | X75: =+V74*Captura!$O$9/12 -> 0 | Y75: 0 | Z75: 0 | AA75: =IF(U75=J$17,Captura!$K$33,0) -> 0 | AC75: =IF(U75+1>=$J$17,0,AC63*(1+Captura!$D$35)) -> 0 | AD75: =IF(U75+1>=$J$17,0,AD63*(1+Captura!$D$35)) -> 0 | AE75: =IF(U75+1>=$J$17,0,AE63*(1+Captura!$D$35)) -> 0 | AG75: =+(W75+AB75+AC75+AD75+AE75+AF75)*Captura!$C$19 -> 0 | AH75: 0 | AJ75: 0 | AK75: 0
B76: 48 | C76: 2030-03-04 | D76: =IF(B76<J$17,Captura!$K$16,0) -> 0 | H76: 0 | K76: =IF(B76+1>=$J$17,0,K64*(1+Captura!$D$35)) -> 0 | L76: =IF(B76+1>=$J$17,0,L64*(1+Captura!$D$35)) -> 0 | M76: =IF(B76+1>=$J$17,0,M64*(1+Captura!$D$35)) -> 0 | O76: =IF(B76=J$17,Captura!$K$29,0) -> 0 | P76: =SUM(D76:F76,I76:N76)*Captura!$C$19 -> 0 | Q76: 0 | T76: 1 | U76: 48 | V76: 0 | X76: =+V75*Captura!$O$9/12 -> 0 | Y76: 0 | Z76: 0 | AA76: =IF(U76=J$17,Captura!$K$33,0) -> 0 | AC76: =IF(U76+1>=$J$17,0,AC64*(1+Captura!$D$35)) -> 0 | AD76: =IF(U76+1>=$J$17,0,AD64*(1+Captura!$D$35)) -> 0 | AE76: =IF(U76+1>=$J$17,0,AE64*(1+Captura!$D$35)) -> 0 | AG76: =+(W76+AB76+AC76+AD76+AE76+AF76)*Captura!$C$19 -> 0 | AH76: 0 | AJ76: 0 | AK76: 0
B77: 49 | C77: 2030-04-04 | D77: =IF(B77<J$17,Captura!$K$16,0) -> 0 | H77: 0 | K77: =IF(B77+1>=$J$17,0,K65*(1+Captura!$D$35)) -> 0 | L77: =IF(B77+1>=$J$17,0,L65*(1+Captura!$D$35)) -> 0 | M77: =IF(B77+1>=$J$17,0,M65*(1+Captura!$D$35)) -> 0 | O77: =IF(B77=J$17,Captura!$K$29,0) -> 0 | P77: =SUM(D77:F77,I77:N77)*Captura!$C$19 -> 0 | Q77: 0 | T77: 2 | U77: 49 | V77: 0 | X77: =+V76*Captura!$O$9/12 -> 0 | Y77: 0 | Z77: 0 | AA77: =IF(U77=J$17,Captura!$K$33,0) -> 0 | AC77: =IF(U77+1>=$J$17,0,AC65*(1+Captura!$D$35)) -> 0 | AD77: =IF(U77+1>=$J$17,0,AD65*(1+Captura!$D$35)) -> 0 | AE77: =IF(U77+1>=$J$17,0,AE65*(1+Captura!$D$35)) -> 0 | AG77: =+(W77+AB77+AC77+AD77+AE77+AF77)*Captura!$C$19 -> 0 | AH77: 0 | AJ77: 0 | AK77: 0
B78: 50 | C78: 2030-05-04 | D78: =IF(B78<J$17,Captura!$K$16,0) -> 0 | H78: 0 | K78: =IF(B78+1>=$J$17,0,K66*(1+Captura!$D$35)) -> 0 | L78: =IF(B78+1>=$J$17,0,L66*(1+Captura!$D$35)) -> 0 | M78: =IF(B78+1>=$J$17,0,M66*(1+Captura!$D$35)) -> 0 | O78: =IF(B78=J$17,Captura!$K$29,0) -> 0 | P78: =SUM(D78:F78,I78:N78)*Captura!$C$19 -> 0 | Q78: 0 | T78: 3 | U78: 50 | V78: 0 | X78: =+V77*Captura!$O$9/12 -> 0 | Y78: 0 | Z78: 0 | AA78: =IF(U78=J$17,Captura!$K$33,0) -> 0 | AC78: =IF(U78+1>=$J$17,0,AC66*(1+Captura!$D$35)) -> 0 | AD78: =IF(U78+1>=$J$17,0,AD66*(1+Captura!$D$35)) -> 0 | AE78: =IF(U78+1>=$J$17,0,AE66*(1+Captura!$D$35)) -> 0 | AG78: =+(W78+AB78+AC78+AD78+AE78+AF78)*Captura!$C$19 -> 0 | AH78: 0 | AJ78: 0 | AK78: 0
B79: 51 | C79: 2030-06-04 | D79: =IF(B79<J$17,Captura!$K$16,0) -> 0 | H79: 0 | K79: =IF(B79+1>=$J$17,0,K67*(1+Captura!$D$35)) -> 0 | L79: =IF(B79+1>=$J$17,0,L67*(1+Captura!$D$35)) -> 0 | M79: =IF(B79+1>=$J$17,0,M67*(1+Captura!$D$35)) -> 0 | O79: =IF(B79=J$17,Captura!$K$29,0) -> 0 | P79: =SUM(D79:F79,I79:N79)*Captura!$C$19 -> 0 | Q79: 0 | T79: 4 | U79: 51 | V79: 0 | X79: =+V78*Captura!$O$9/12 -> 0 | Y79: 0 | Z79: 0 | AA79: =IF(U79=J$17,Captura!$K$33,0) -> 0 | AC79: =IF(U79+1>=$J$17,0,AC67*(1+Captura!$D$35)) -> 0 | AD79: =IF(U79+1>=$J$17,0,AD67*(1+Captura!$D$35)) -> 0 | AE79: =IF(U79+1>=$J$17,0,AE67*(1+Captura!$D$35)) -> 0 | AG79: =+(W79+AB79+AC79+AD79+AE79+AF79)*Captura!$C$19 -> 0 | AH79: 0 | AJ79: 0 | AK79: 0
B80: 52 | C80: 2030-07-04 | D80: =IF(B80<J$17,Captura!$K$16,0) -> 0 | H80: 0 | K80: =IF(B80+1>=$J$17,0,K68*(1+Captura!$D$35)) -> 0 | L80: =IF(B80+1>=$J$17,0,L68*(1+Captura!$D$35)) -> 0 | M80: =IF(B80+1>=$J$17,0,M68*(1+Captura!$D$35)) -> 0 | O80: =IF(B80=J$17,Captura!$K$29,0) -> 0 | P80: =SUM(D80:F80,I80:N80)*Captura!$C$19 -> 0 | Q80: 0 | T80: 5 | U80: 52 | V80: 0 | X80: =+V79*Captura!$O$9/12 -> 0 | Y80: 0 | Z80: 0 | AA80: =IF(U80=J$17,Captura!$K$33,0) -> 0 | AC80: =IF(U80+1>=$J$17,0,AC68*(1+Captura!$D$35)) -> 0 | AD80: =IF(U80+1>=$J$17,0,AD68*(1+Captura!$D$35)) -> 0 | AE80: =IF(U80+1>=$J$17,0,AE68*(1+Captura!$D$35)) -> 0 | AG80: =+(W80+AB80+AC80+AD80+AE80+AF80)*Captura!$C$19 -> 0 | AH80: 0 | AJ80: 0 | AK80: 0
B81: 53 | C81: 2030-08-04 | D81: =IF(B81<J$17,Captura!$K$16,0) -> 0 | H81: 0 | K81: =IF(B81+1>=$J$17,0,K69*(1+Captura!$D$35)) -> 0 | L81: =IF(B81+1>=$J$17,0,L69*(1+Captura!$D$35)) -> 0 | M81: =IF(B81+1>=$J$17,0,M69*(1+Captura!$D$35)) -> 0 | O81: =IF(B81=J$17,Captura!$K$29,0) -> 0 | P81: =SUM(D81:F81,I81:N81)*Captura!$C$19 -> 0 | Q81: 0 | T81: 6 | U81: 53 | V81: 0 | X81: =+V80*Captura!$O$9/12 -> 0 | Y81: 0 | Z81: 0 | AA81: =IF(U81=J$17,Captura!$K$33,0) -> 0 | AC81: =IF(U81+1>=$J$17,0,AC69*(1+Captura!$D$35)) -> 0 | AD81: =IF(U81+1>=$J$17,0,AD69*(1+Captura!$D$35)) -> 0 | AE81: =IF(U81+1>=$J$17,0,AE69*(1+Captura!$D$35)) -> 0 | AG81: =+(W81+AB81+AC81+AD81+AE81+AF81)*Captura!$C$19 -> 0 | AH81: 0 | AJ81: 0 | AK81: 0
B82: 54 | C82: 2030-09-04 | D82: =IF(B82<J$17,Captura!$K$16,0) -> 0 | H82: 0 | K82: =IF(B82+1>=$J$17,0,K70*(1+Captura!$D$35)) -> 0 | L82: =IF(B82+1>=$J$17,0,L70*(1+Captura!$D$35)) -> 0 | M82: =IF(B82+1>=$J$17,0,M70*(1+Captura!$D$35)) -> 0 | O82: =IF(B82=J$17,Captura!$K$29,0) -> 0 | P82: =SUM(D82:F82,I82:N82)*Captura!$C$19 -> 0 | Q82: 0 | T82: 7 | U82: 54 | V82: 0 | X82: =+V81*Captura!$O$9/12 -> 0 | Y82: 0 | Z82: 0 | AA82: =IF(U82=J$17,Captura!$K$33,0) -> 0 | AC82: =IF(U82+1>=$J$17,0,AC70*(1+Captura!$D$35)) -> 0 | AD82: =IF(U82+1>=$J$17,0,AD70*(1+Captura!$D$35)) -> 0 | AE82: =IF(U82+1>=$J$17,0,AE70*(1+Captura!$D$35)) -> 0 | AG82: =+(W82+AB82+AC82+AD82+AE82+AF82)*Captura!$C$19 -> 0 | AH82: 0 | AJ82: 0 | AK82: 0
B83: 55 | C83: 2030-10-04 | D83: =IF(B83<J$17,Captura!$K$16,0) -> 0 | H83: 0 | K83: =IF(B83+1>=$J$17,0,K71*(1+Captura!$D$35)) -> 0 | L83: =IF(B83+1>=$J$17,0,L71*(1+Captura!$D$35)) -> 0 | M83: =IF(B83+1>=$J$17,0,M71*(1+Captura!$D$35)) -> 0 | O83: =IF(B83=J$17,Captura!$K$29,0) -> 0 | P83: =SUM(D83:F83,I83:N83)*Captura!$C$19 -> 0 | Q83: 0 | T83: 8 | U83: 55 | V83: 0 | X83: =+V82*Captura!$O$9/12 -> 0 | Y83: 0 | Z83: 0 | AA83: =IF(U83=J$17,Captura!$K$33,0) -> 0 | AC83: =IF(U83+1>=$J$17,0,AC71*(1+Captura!$D$35)) -> 0 | AD83: =IF(U83+1>=$J$17,0,AD71*(1+Captura!$D$35)) -> 0 | AE83: =IF(U83+1>=$J$17,0,AE71*(1+Captura!$D$35)) -> 0 | AG83: =+(W83+AB83+AC83+AD83+AE83+AF83)*Captura!$C$19 -> 0 | AH83: 0 | AJ83: 0 | AK83: 0
B84: 56 | C84: 2030-11-04 | D84: =IF(B84<J$17,Captura!$K$16,0) -> 0 | H84: 0 | K84: =IF(B84+1>=$J$17,0,K72*(1+Captura!$D$35)) -> 0 | L84: =IF(B84+1>=$J$17,0,L72*(1+Captura!$D$35)) -> 0 | M84: =IF(B84+1>=$J$17,0,M72*(1+Captura!$D$35)) -> 0 | O84: =IF(B84=J$17,Captura!$K$29,0) -> 0 | P84: =SUM(D84:F84,I84:N84)*Captura!$C$19 -> 0 | Q84: 0 | T84: 9 | U84: 56 | V84: 0 | X84: =+V83*Captura!$O$9/12 -> 0 | Y84: 0 | Z84: 0 | AA84: =IF(U84=J$17,Captura!$K$33,0) -> 0 | AC84: =IF(U84+1>=$J$17,0,AC72*(1+Captura!$D$35)) -> 0 | AD84: =IF(U84+1>=$J$17,0,AD72*(1+Captura!$D$35)) -> 0 | AE84: =IF(U84+1>=$J$17,0,AE72*(1+Captura!$D$35)) -> 0 | AG84: =+(W84+AB84+AC84+AD84+AE84+AF84)*Captura!$C$19 -> 0 | AH84: 0 | AJ84: 0 | AK84: 0
B85: 57 | C85: 2030-12-04 | D85: =IF(B85<J$17,Captura!$K$16,0) -> 0 | H85: 0 | K85: =IF(B85+1>=$J$17,0,K73*(1+Captura!$D$35)) -> 0 | L85: =IF(B85+1>=$J$17,0,L73*(1+Captura!$D$35)) -> 0 | M85: =IF(B85+1>=$J$17,0,M73*(1+Captura!$D$35)) -> 0 | O85: =IF(B85=J$17,Captura!$K$29,0) -> 0 | P85: =SUM(D85:F85,I85:N85)*Captura!$C$19 -> 0 | Q85: 0 | T85: 10 | U85: 57 | V85: 0 | X85: =+V84*Captura!$O$9/12 -> 0 | Y85: 0 | Z85: 0 | AA85: =IF(U85=J$17,Captura!$K$33,0) -> 0 | AC85: =IF(U85+1>=$J$17,0,AC73*(1+Captura!$D$35)) -> 0 | AD85: =IF(U85+1>=$J$17,0,AD73*(1+Captura!$D$35)) -> 0 | AE85: =IF(U85+1>=$J$17,0,AE73*(1+Captura!$D$35)) -> 0 | AG85: =+(W85+AB85+AC85+AD85+AE85+AF85)*Captura!$C$19 -> 0 | AH85: 0 | AJ85: 0 | AK85: 0
B86: 58 | C86: 2031-01-04 | D86: =IF(B86<J$17,Captura!$K$16,0) -> 0 | H86: 0 | K86: =IF(B86+1>=$J$17,0,K74*(1+Captura!$D$35)) -> 0 | L86: =IF(B86+1>=$J$17,0,L74*(1+Captura!$D$35)) -> 0 | M86: =IF(B86+1>=$J$17,0,M74*(1+Captura!$D$35)) -> 0 | O86: =IF(B86=J$17,Captura!$K$29,0) -> 0 | P86: =SUM(D86:F86,I86:N86)*Captura!$C$19 -> 0 | Q86: 0 | T86: 11 | U86: 58 | V86: 0 | X86: =+V85*Captura!$O$9/12 -> 0 | Y86: 0 | Z86: 0 | AA86: =IF(U86=J$17,Captura!$K$33,0) -> 0 | AC86: =IF(U86+1>=$J$17,0,AC74*(1+Captura!$D$35)) -> 0 | AD86: =IF(U86+1>=$J$17,0,AD74*(1+Captura!$D$35)) -> 0 | AE86: =IF(U86+1>=$J$17,0,AE74*(1+Captura!$D$35)) -> 0 | AG86: =+(W86+AB86+AC86+AD86+AE86+AF86)*Captura!$C$19 -> 0 | AH86: 0 | AJ86: 0 | AK86: 0
B87: 59 | C87: 2031-02-04 | D87: =IF(B87<J$17,Captura!$K$16,0) -> 0 | H87: 0 | K87: =IF(B87+1>=$J$17,0,K75*(1+Captura!$D$35)) -> 0 | L87: =IF(B87+1>=$J$17,0,L75*(1+Captura!$D$35)) -> 0 | M87: =IF(B87+1>=$J$17,0,M75*(1+Captura!$D$35)) -> 0 | O87: =IF(B87=J$17,Captura!$K$29,0) -> 0 | P87: =SUM(D87:F87,I87:N87)*Captura!$C$19 -> 0 | Q87: 0 | T87: 12 | U87: 59 | V87: 0 | X87: =+V86*Captura!$O$9/12 -> 0 | Y87: 0 | Z87: 0 | AA87: =IF(U87=J$17,Captura!$K$33,0) -> 0 | AC87: =IF(U87+1>=$J$17,0,AC75*(1+Captura!$D$35)) -> 0 | AD87: =IF(U87+1>=$J$17,0,AD75*(1+Captura!$D$35)) -> 0 | AE87: =IF(U87+1>=$J$17,0,AE75*(1+Captura!$D$35)) -> 0 | AG87: =+(W87+AB87+AC87+AD87+AE87+AF87)*Captura!$C$19 -> 0 | AH87: 0 | AJ87: 0 | AK87: 0
B88: 60 | C88: 2031-03-04 | D88: =IF(B88<J$17,Captura!$K$16,0) -> 0 | H88: 0 | K88: =IF(B88+1>=$J$17,0,K76*(1+Captura!$D$35)) -> 0 | L88: =IF(B88+1>=$J$17,0,L76*(1+Captura!$D$35)) -> 0 | M88: =IF(B88+1>=$J$17,0,M76*(1+Captura!$D$35)) -> 0 | O88: =IF(B88=J$17,Captura!$K$29,0) -> 0 | P88: =SUM(D88:F88,I88:N88)*Captura!$C$19 -> 0 | Q88: 0 | T88: 1 | U88: 60 | V88: 0 | X88: =+V87*Captura!$O$9/12 -> 0 | Y88: 0 | Z88: 0 | AA88: =IF(U88=J$17,Captura!$K$33,0) -> 0 | AC88: =IF(U88+1>=$J$17,0,AC76*(1+Captura!$D$35)) -> 0 | AD88: =IF(U88+1>=$J$17,0,AD76*(1+Captura!$D$35)) -> 0 | AE88: =IF(U88+1>=$J$17,0,AE76*(1+Captura!$D$35)) -> 0 | AG88: =+(W88+AB88+AC88+AD88+AE88+AF88)*Captura!$C$19 -> 0 | AH88: 0 | AJ88: 0 | AK88: 0
B92: Notas:
B93: 1. Esta cotización no es una autorización y no representa ninguna obligación para Leasing Mobile de México, S. A. de C. V.
B94: 2. La información descrita en el presente documento está sujeta a cambios sin previo aviso.
B95: 3. Esta cotización no considera gastos que el equipo requiera para su adquisición, uso o mantenimiento.
B96: 4. Las rentas en depósito serán devueltas al cumplimiento de todas las obligaciones contractauales del Arrendatario.
B107: __________________________________
B108: Leasing Mobile de Mexico, SA de CV
B109: =+Captura!D31 -> xxxx
B110: =+Captura!D32 -> xxxx
B111: =+Captura!D33 -> xxxx

Sheet Plazo 2 (hidden)
B7: Cotización
B8: Arrendamiento Puro
P10: =+Captura!N3 -> 2026-03-04
B12: Cliente: | E12: =+Captura!D7 -> 0 | J12: Teléfono | K12: =+Captura!D9 -> 0
B13: Atención: | E13: =+Captura!D8 -> 0 | J13: E-mail | K13: =+Captura!D10 -> 0
Q14: =+Captura!O40 -> v. 20240220
B17: Tipo de equipo | E17: =+Captura!T7 -> Vehículo utilitario | H17: Plazo del arrendamiento | J17: =+Captura!L13 -> 24 | L17: Gestoría y Registro | N17: =+Captura!F23 -> Pago único | AJ17: Valor presente de flujos
B18: Estado del equipo | E18: =+Captura!T17 -> Nuevo | H18: No. de rentas en depósito | J18: =+Captura!K8 -> 1 | L18: Equipo de geolocalizacióon | N18: =+Captura!F24 -> Pago único | Q18: =+Captura!L36 -> 0 | AJ18: =NPV(Captura!$D$35/12,AJ29:AJ88)+AJ28 ->  | AK18: =NPV(Captura!$D$35/12,AK29:AK88)+AK28 -> -759.7292447
B19: Descripción | E19: =+Captura!D15 -> 0 | H19: Comisión de apertura | J19: =+Captura!K9 -> 0.03 | L19: Seguro de daños | N19: =+Captura!T26 -> Pago en renta | AJ19: Tasa Interna de Retorno
H20: Anticipo | J20: =+Captura!K10 -> 0 | L20: Placas y Tenencia | N20: =+Captura!T33 -> Pago anual | AJ20: =IRR(AJ28:AJ88,0.01)*12 ->  | AK20: =IRR(AK28:AK88,0.01)*12 -> 
H21: Residual estimado | J21: Valor mercado | L21: Servicio de geolocalización | N21: =+Captura!T40 -> Pago anual | Q21: =+Captura!L37 -> Positivo | AJ21: Capital Req. | AK21: =+Captura!L34 -> 0
B22: Valor factura sin IVA | E22: =+Captura!G18 -> 0 | L22: =+Captura!I25 -> Otro | N22: =+Captura!F28 -> 0 | AJ22: VP / CR | AK22: =+(AJ18+AK18)/AK21 -> 
B23: IVA | E23: =+Captura!G19 -> 0 | Q23: Regresar
B24: Valor factua con IVA | E24: =+Captura!G20 -> 0 | AJ24: Indicador anualizado | AK24: =+AK22/J17*12 -> 
B26: Periodo | C26: Mes | D26: Renta | E26: Anticipo | F26: Comisión de apertura | G26: Rentas en depósito | H26: Devolución de rentas en depósito | I26: Gestoría y Registro | J26: Equipo de geo localización | K26: Seguro de daños | L26: Placas y Tenencia | M26: Servicio de geo localización | N26: =+L22 -> Otro | O26: Residual estimado | P26: IVA | Q26: TOTAL | T26: Mes | U26: Periodo | V26: Fondeo | W26: Comisión de apertura | X26: Intereses | Y26: Capital | Z26: Pago | AA26: Bullet | AB26: Equipo de geo localización | AC26: Seguro de daños | AD26: Placas y Tenencia | AE26: Servicio de geo localización | AF26: Otro | AG26: IVA | AH26: TOTAL | AJ26: Flujo Activo sin IVA | AK26: Flujo Pasivo sin IVA
B28: 0 | C28: =+P10 -> 2026-03-04 | D28: =+Captura!L16+Resumen!J29+Resumen!J30 ->  | E28: =+Captura!K10 -> 0 | F28: =+Captura!L18 -> 0 | G28: =+Captura!L19 -> 0 | H28: =IF(B28=J$17,-G$28,0) -> 0 | I28: =+Captura!L20 -> 0 | J28: =+Captura!L21 -> 0 | K28: =+Captura!L22 -> 0 | L28: =+Captura!L23 -> 0 | M28: =+Captura!L24 -> 0 | N28: =+Captura!L25 -> 0 | O28: =IF(B28=J$17,Captura!$L$29,0) -> 0 | P28: =SUM(D28:F28,I28:N28)*Captura!$C$19 ->  | Q28: =SUM(D28:P28)-O28 ->  | T28: 1 | U28: =+B28 -> 0 | V28: =+Captura!O8 -> 0 | W28: =+Captura!L31 -> 0 | AB28: =+J28 -> 0 | AC28: =+Captura!G25 -> 0 | AD28: =+Captura!G26 -> 0 | AE28: =+Captura!G27 -> 380 | AF28: =+N28 -> 0 | AG28: =+(W28+AB28+AC28+AD28+AE28+AF28)*Captura!$C$19 -> 60.8 | AH28: =SUM(W28,Z28:AG28) -> 440.8 | AJ28: =-E22+(Q28-P28)+O28 ->  | AK28: =+V28-(AH28-AG28) -> -380
B29: 1 | C29: =EDATE(C28,1) -> 2026-04-04 | D29: =IF(B29<J$17,Captura!$L$16,0)+Resumen!$J$29+Resumen!$J$30 ->  | H29: 0 | K29: 0 | L29: 0 | M29: 0 | O29: =IF(B29=J$17,Captura!$L$29,0) -> 0 | P29: =SUM(D29:F29,I29:N29)*Captura!$C$19 ->  | Q29: =SUM(D29:P29)-O29 ->  | T29: =IF(T28=12,1,T28+1) -> 2 | U29: =+B29 -> 1 | V29: =+V28-Y29-AA29 -> 0 | X29: =+V28*Captura!$O$9/12 -> 0 | Y29: =+Z29-X29 -> 0 | Z29: =+Captura!L30 -> 0 | AA29: =IF(U29=J$17,Captura!$L$33,0) -> 0 | AC29: 0 | AD29: 0 | AE29: 0 | AG29: =+(W29+AB29+AC29+AD29+AE29+AF29)*Captura!$C$19 -> 0 | AH29: =SUM(W29,Z29:AG29) -> 0 | AJ29: =Q29-P29+O29 ->  | AK29: =-(AH29-AG29) -> 0
B30: 2 | C30: =EDATE(C29,1) -> 2026-05-04 | D30: =IF(B30<J$17,Captura!$L$16,0)+Resumen!$J$29+Resumen!$J$30 ->  | H30: 0 | K30: 0 | L30: 0 | M30: 0 | O30: =IF(B30=J$17,Captura!$L$29,0) -> 0 | P30: =SUM(D30:F30,I30:N30)*Captura!$C$19 ->  | T30: =IF(T29=12,1,T29+1) -> 3 | U30: 2 | V30: =+V29-Y30-AA30 -> 0 | X30: =+V29*Captura!$O$9/12 -> 0 | Y30: =+Z30-X30 -> 0 | Z30: =IF(U30>J$17,0,Z29) -> 0 | AA30: =IF(U30=J$17,Captura!$L$33,0) -> 0 | AC30: 0 | AD30: 0 | AE30: 0 | AG30: =+(W30+AB30+AC30+AD30+AE30+AF30)*Captura!$C$19 -> 0 | AH30: 0 | AJ30: =Q30-P30+O30 ->  | AK30: =-(AH30-AG30) -> 0
B31: 3 | C31: 2026-06-04 | D31: =IF(B31<J$17,Captura!$L$16,0)+Resumen!$J$29+Resumen!$J$30 ->  | H31: 0 | K31: 0 | L31: 0 | M31: 0 | O31: =IF(B31=J$17,Captura!$L$29,0) -> 0 | P31: =SUM(D31:F31,I31:N31)*Captura!$C$19 ->  | T31: 4 | U31: 3 | V31: 0 | X31: =+V30*Captura!$O$9/12 -> 0 | Y31: 0 | Z31: =IF(U31>J$17,0,Z30) -> 0 | AA31: =IF(U31=J$17,Captura!$L$33,0) -> 0 | AC31: 0 | AD31: 0 | AE31: 0 | AG31: =+(W31+AB31+AC31+AD31+AE31+AF31)*Captura!$C$19 -> 0 | AH31: 0 | AK31: 0
B32: 4 | C32: 2026-07-04 | D32: =IF(B32<J$17,Captura!$L$16,0)+Resumen!$J$29+Resumen!$J$30 ->  | H32: 0 | K32: 0 | L32: 0 | M32: 0 | O32: =IF(B32=J$17,Captura!$L$29,0) -> 0 | P32: =SUM(D32:F32,I32:N32)*Captura!$C$19 ->  | T32: 5 | U32: 4 | V32: 0 | X32: =+V31*Captura!$O$9/12 -> 0 | Y32: 0 | Z32: 0 | AA32: =IF(U32=J$17,Captura!$L$33,0) -> 0 | AC32: 0 | AD32: 0 | AE32: 0 | AG32: =+(W32+AB32+AC32+AD32+AE32+AF32)*Captura!$C$19 -> 0 | AH32: 0 | AK32: 0
B33: 5 | C33: 2026-08-04 | D33: =IF(B33<J$17,Captura!$L$16,0)+Resumen!$J$29+Resumen!$J$30 ->  | H33: 0 | K33: 0 | L33: 0 | M33: 0 | O33: =IF(B33=J$17,Captura!$L$29,0) -> 0 | P33: =SUM(D33:F33,I33:N33)*Captura!$C$19 ->  | T33: 6 | U33: 5 | V33: 0 | X33: =+V32*Captura!$O$9/12 -> 0 | Y33: 0 | Z33: 0 | AA33: =IF(U33=J$17,Captura!$L$33,0) -> 0 | AC33: 0 | AD33: 0 | AE33: 0 | AG33: =+(W33+AB33+AC33+AD33+AE33+AF33)*Captura!$C$19 -> 0 | AH33: 0 | AK33: 0
B34: 6 | C34: 2026-09-04 | D34: =IF(B34<J$17,Captura!$L$16,0)+Resumen!$J$29+Resumen!$J$30 ->  | H34: 0 | K34: 0 | L34: 0 | M34: 0 | O34: =IF(B34=J$17,Captura!$L$29,0) -> 0 | P34: =SUM(D34:F34,I34:N34)*Captura!$C$19 ->  | T34: 7 | U34: 6 | V34: 0 | X34: =+V33*Captura!$O$9/12 -> 0 | Y34: 0 | Z34: 0 | AA34: =IF(U34=J$17,Captura!$L$33,0) -> 0 | AC34: 0 | AD34: 0 | AE34: 0 | AG34: =+(W34+AB34+AC34+AD34+AE34+AF34)*Captura!$C$19 -> 0 | AH34: 0 | AK34: 0
B35: 7 | C35: 2026-10-04 | D35: =IF(B35<J$17,Captura!$L$16,0)+Resumen!$J$29+Resumen!$J$30 ->  | H35: 0 | K35: 0 | L35: 0 | M35: 0 | O35: =IF(B35=J$17,Captura!$L$29,0) -> 0 | P35: =SUM(D35:F35,I35:N35)*Captura!$C$19 ->  | T35: 8 | U35: 7 | V35: 0 | X35: =+V34*Captura!$O$9/12 -> 0 | Y35: 0 | Z35: 0 | AA35: =IF(U35=J$17,Captura!$L$33,0) -> 0 | AC35: 0 | AD35: 0 | AE35: 0 | AG35: =+(W35+AB35+AC35+AD35+AE35+AF35)*Captura!$C$19 -> 0 | AH35: 0 | AK35: 0
B36: 8 | C36: 2026-11-04 | D36: =IF(B36<J$17,Captura!$L$16,0)+Resumen!$J$29+Resumen!$J$30 ->  | H36: 0 | K36: 0 | L36: 0 | M36: 0 | O36: =IF(B36=J$17,Captura!$L$29,0) -> 0 | P36: =SUM(D36:F36,I36:N36)*Captura!$C$19 ->  | T36: 9 | U36: 8 | V36: 0 | X36: =+V35*Captura!$O$9/12 -> 0 | Y36: 0 | Z36: 0 | AA36: =IF(U36=J$17,Captura!$L$33,0) -> 0 | AC36: 0 | AD36: 0 | AE36: 0 | AG36: =+(W36+AB36+AC36+AD36+AE36+AF36)*Captura!$C$19 -> 0 | AH36: 0 | AK36: 0
B37: 9 | C37: 2026-12-04 | D37: =IF(B37<J$17,Captura!$L$16,0)+Resumen!$J$29+Resumen!$J$30 ->  | H37: 0 | K37: 0 | L37: 0 | M37: 0 | O37: =IF(B37=J$17,Captura!$L$29,0) -> 0 | P37: =SUM(D37:F37,I37:N37)*Captura!$C$19 ->  | T37: 10 | U37: 9 | V37: 0 | X37: =+V36*Captura!$O$9/12 -> 0 | Y37: 0 | Z37: 0 | AA37: =IF(U37=J$17,Captura!$L$33,0) -> 0 | AC37: 0 | AD37: 0 | AE37: 0 | AG37: =+(W37+AB37+AC37+AD37+AE37+AF37)*Captura!$C$19 -> 0 | AH37: 0 | AK37: 0
B38: 10 | C38: 2027-01-04 | D38: =IF(B38<J$17,Captura!$L$16,0)+Resumen!$J$29+Resumen!$J$30 ->  | H38: 0 | K38: 0 | L38: 0 | M38: 0 | O38: =IF(B38=J$17,Captura!$L$29,0) -> 0 | P38: =SUM(D38:F38,I38:N38)*Captura!$C$19 ->  | T38: 11 | U38: 10 | V38: 0 | X38: =+V37*Captura!$O$9/12 -> 0 | Y38: 0 | Z38: 0 | AA38: =IF(U38=J$17,Captura!$L$33,0) -> 0 | AC38: 0 | AD38: 0 | AE38: 0 | AG38: =+(W38+AB38+AC38+AD38+AE38+AF38)*Captura!$C$19 -> 0 | AH38: 0 | AK38: 0
B39: 11 | C39: 2027-02-04 | D39: =IF(B39<J$17,Captura!$L$16,0)+Resumen!$J$29+Resumen!$J$30 ->  | H39: 0 | K39: 0 | L39: 0 | M39: 0 | O39: =IF(B39=J$17,Captura!$L$29,0) -> 0 | P39: =SUM(D39:F39,I39:N39)*Captura!$C$19 ->  | T39: 12 | U39: 11 | V39: 0 | X39: =+V38*Captura!$O$9/12 -> 0 | Y39: 0 | Z39: 0 | AA39: =IF(U39=J$17,Captura!$L$33,0) -> 0 | AC39: 0 | AD39: 0 | AE39: 0 | AG39: =+(W39+AB39+AC39+AD39+AE39+AF39)*Captura!$C$19 -> 0 | AH39: 0 | AK39: 0
B40: 12 | C40: 2027-03-04 | D40: =IF(B40<J$17,Captura!$L$16,0)+Resumen!$J$29+Resumen!$J$30 ->  | H40: 0 | K40: =IF(B40+1>=$J$17,0,K28*(1+Captura!$D$35)) -> 0 | L40: =IF(B40+1>=$J$17,0,L28*(1+Captura!$D$35)) -> 0 | M40: =IF(B40+1>=$J$17,0,M28*(1+Captura!$D$35)) -> 0 | O40: =IF(B40=J$17,Captura!$L$29,0) -> 0 | P40: =SUM(D40:F40,I40:N40)*Captura!$C$19 ->  | T40: 1 | U40: 12 | V40: 0 | X40: =+V39*Captura!$O$9/12 -> 0 | Y40: 0 | Z40: 0 | AA40: =IF(U40=J$17,Captura!$L$33,0) -> 0 | AC40: =IF(U40+1>=$J$17,0,AC28*(1+Captura!$D$35)) -> 0 | AD40: =IF(U40+1>=$J$17,0,AD28*(1+Captura!$D$35)) -> 0 | AE40: =IF(U40+1>=$J$17,0,AE28*(1+Captura!$D$35)) -> 395.2 | AG40: =+(W40+AB40+AC40+AD40+AE40+AF40)*Captura!$C$19 -> 63.232 | AH40: 458.432 | AK40: -395.2
B41: 13 | C41: 2027-04-04 | D41: =IF(B41<J$17,Captura!$L$16,0)+Resumen!$J$29+Resumen!$J$30 ->  | H41: 0 | K41: =IF(B41+1>=$J$17,0,K29*(1+Captura!$D$35)) -> 0 | L41: =IF(B41+1>=$J$17,0,L29*(1+Captura!$D$35)) -> 0 | M41: =IF(B41+1>=$J$17,0,M29*(1+Captura!$D$35)) -> 0 | O41: =IF(B41=J$17,Captura!$L$29,0) -> 0 | P41: =SUM(D41:F41,I41:N41)*Captura!$C$19 ->  | T41: 2 | U41: 13 | V41: 0 | X41: =+V40*Captura!$O$9/12 -> 0 | Y41: 0 | Z41: 0 | AA41: =IF(U41=J$17,Captura!$L$33,0) -> 0 | AC41: =IF(U41+1>=$J$17,0,AC29*(1+Captura!$D$35)) -> 0 | AD41: =IF(U41+1>=$J$17,0,AD29*(1+Captura!$D$35)) -> 0 | AE41: =IF(U41+1>=$J$17,0,AE29*(1+Captura!$D$35)) -> 0 | AG41: =+(W41+AB41+AC41+AD41+AE41+AF41)*Captura!$C$19 -> 0 | AH41: 0 | AK41: 0
B42: 14 | C42: 2027-05-04 | D42: =IF(B42<J$17,Captura!$L$16,0)+Resumen!$J$29+Resumen!$J$30 ->  | H42: 0 | K42: =IF(B42+1>=$J$17,0,K30*(1+Captura!$D$35)) -> 0 | L42: =IF(B42+1>=$J$17,0,L30*(1+Captura!$D$35)) -> 0 | M42: =IF(B42+1>=$J$17,0,M30*(1+Captura!$D$35)) -> 0 | O42: =IF(B42=J$17,Captura!$L$29,0) -> 0 | P42: =SUM(D42:F42,I42:N42)*Captura!$C$19 ->  | T42: 3 | U42: 14 | V42: 0 | X42: =+V41*Captura!$O$9/12 -> 0 | Y42: 0 | Z42: 0 | AA42: =IF(U42=J$17,Captura!$L$33,0) -> 0 | AC42: =IF(U42+1>=$J$17,0,AC30*(1+Captura!$D$35)) -> 0 | AD42: =IF(U42+1>=$J$17,0,AD30*(1+Captura!$D$35)) -> 0 | AE42: =IF(U42+1>=$J$17,0,AE30*(1+Captura!$D$35)) -> 0 | AG42: =+(W42+AB42+AC42+AD42+AE42+AF42)*Captura!$C$19 -> 0 | AH42: 0 | AK42: 0
B43: 15 | C43: 2027-06-04 | D43: =IF(B43<J$17,Captura!$L$16,0)+Resumen!$J$29+Resumen!$J$30 ->  | H43: 0 | K43: =IF(B43+1>=$J$17,0,K31*(1+Captura!$D$35)) -> 0 | L43: =IF(B43+1>=$J$17,0,L31*(1+Captura!$D$35)) -> 0 | M43: =IF(B43+1>=$J$17,0,M31*(1+Captura!$D$35)) -> 0 | O43: =IF(B43=J$17,Captura!$L$29,0) -> 0 | P43: =SUM(D43:F43,I43:N43)*Captura!$C$19 ->  | T43: 4 | U43: 15 | V43: 0 | X43: =+V42*Captura!$O$9/12 -> 0 | Y43: 0 | Z43: 0 | AA43: =IF(U43=J$17,Captura!$L$33,0) -> 0 | AC43: =IF(U43+1>=$J$17,0,AC31*(1+Captura!$D$35)) -> 0 | AD43: =IF(U43+1>=$J$17,0,AD31*(1+Captura!$D$35)) -> 0 | AE43: =IF(U43+1>=$J$17,0,AE31*(1+Captura!$D$35)) -> 0 | AG43: =+(W43+AB43+AC43+AD43+AE43+AF43)*Captura!$C$19 -> 0 | AH43: 0 | AK43: 0
B44: 16 | C44: 2027-07-04 | D44: =IF(B44<J$17,Captura!$L$16,0)+Resumen!$J$29+Resumen!$J$30 ->  | H44: 0 | K44: =IF(B44+1>=$J$17,0,K32*(1+Captura!$D$35)) -> 0 | L44: =IF(B44+1>=$J$17,0,L32*(1+Captura!$D$35)) -> 0 | M44: =IF(B44+1>=$J$17,0,M32*(1+Captura!$D$35)) -> 0 | O44: =IF(B44=J$17,Captura!$L$29,0) -> 0 | P44: =SUM(D44:F44,I44:N44)*Captura!$C$19 ->  | T44: 5 | U44: 16 | V44: 0 | X44: =+V43*Captura!$O$9/12 -> 0 | Y44: 0 | Z44: 0 | AA44: =IF(U44=J$17,Captura!$L$33,0) -> 0 | AC44: =IF(U44+1>=$J$17,0,AC32*(1+Captura!$D$35)) -> 0 | AD44: =IF(U44+1>=$J$17,0,AD32*(1+Captura!$D$35)) -> 0 | AE44: =IF(U44+1>=$J$17,0,AE32*(1+Captura!$D$35)) -> 0 | AG44: =+(W44+AB44+AC44+AD44+AE44+AF44)*Captura!$C$19 -> 0 | AH44: 0 | AK44: 0
B45: 17 | C45: 2027-08-04 | D45: =IF(B45<J$17,Captura!$L$16,0)+Resumen!$J$29+Resumen!$J$30 ->  | H45: 0 | K45: =IF(B45+1>=$J$17,0,K33*(1+Captura!$D$35)) -> 0 | L45: =IF(B45+1>=$J$17,0,L33*(1+Captura!$D$35)) -> 0 | M45: =IF(B45+1>=$J$17,0,M33*(1+Captura!$D$35)) -> 0 | O45: =IF(B45=J$17,Captura!$L$29,0) -> 0 | P45: =SUM(D45:F45,I45:N45)*Captura!$C$19 ->  | T45: 6 | U45: 17 | V45: 0 | X45: =+V44*Captura!$O$9/12 -> 0 | Y45: 0 | Z45: 0 | AA45: =IF(U45=J$17,Captura!$L$33,0) -> 0 | AC45: =IF(U45+1>=$J$17,0,AC33*(1+Captura!$D$35)) -> 0 | AD45: =IF(U45+1>=$J$17,0,AD33*(1+Captura!$D$35)) -> 0 | AE45: =IF(U45+1>=$J$17,0,AE33*(1+Captura!$D$35)) -> 0 | AG45: =+(W45+AB45+AC45+AD45+AE45+AF45)*Captura!$C$19 -> 0 | AH45: 0 | AK45: 0
B46: 18 | C46: 2027-09-04 | D46: =IF(B46<J$17,Captura!$L$16,0)+Resumen!$J$29+Resumen!$J$30 ->  | H46: 0 | K46: =IF(B46+1>=$J$17,0,K34*(1+Captura!$D$35)) -> 0 | L46: =IF(B46+1>=$J$17,0,L34*(1+Captura!$D$35)) -> 0 | M46: =IF(B46+1>=$J$17,0,M34*(1+Captura!$D$35)) -> 0 | O46: =IF(B46=J$17,Captura!$L$29,0) -> 0 | P46: =SUM(D46:F46,I46:N46)*Captura!$C$19 ->  | T46: 7 | U46: 18 | V46: 0 | X46: =+V45*Captura!$O$9/12 -> 0 | Y46: 0 | Z46: 0 | AA46: =IF(U46=J$17,Captura!$L$33,0) -> 0 | AC46: =IF(U46+1>=$J$17,0,AC34*(1+Captura!$D$35)) -> 0 | AD46: =IF(U46+1>=$J$17,0,AD34*(1+Captura!$D$35)) -> 0 | AE46: =IF(U46+1>=$J$17,0,AE34*(1+Captura!$D$35)) -> 0 | AG46: =+(W46+AB46+AC46+AD46+AE46+AF46)*Captura!$C$19 -> 0 | AH46: 0 | AK46: 0
B47: 19 | C47: 2027-10-04 | D47: =IF(B47<J$17,Captura!$L$16,0)+Resumen!$J$29+Resumen!$J$30 ->  | H47: 0 | K47: =IF(B47+1>=$J$17,0,K35*(1+Captura!$D$35)) -> 0 | L47: =IF(B47+1>=$J$17,0,L35*(1+Captura!$D$35)) -> 0 | M47: =IF(B47+1>=$J$17,0,M35*(1+Captura!$D$35)) -> 0 | O47: =IF(B47=J$17,Captura!$L$29,0) -> 0 | P47: =SUM(D47:F47,I47:N47)*Captura!$C$19 ->  | T47: 8 | U47: 19 | V47: 0 | X47: =+V46*Captura!$O$9/12 -> 0 | Y47: 0 | Z47: 0 | AA47: =IF(U47=J$17,Captura!$L$33,0) -> 0 | AC47: =IF(U47+1>=$J$17,0,AC35*(1+Captura!$D$35)) -> 0 | AD47: =IF(U47+1>=$J$17,0,AD35*(1+Captura!$D$35)) -> 0 | AE47: =IF(U47+1>=$J$17,0,AE35*(1+Captura!$D$35)) -> 0 | AG47: =+(W47+AB47+AC47+AD47+AE47+AF47)*Captura!$C$19 -> 0 | AH47: 0 | AK47: 0
B48: 20 | C48: 2027-11-04 | D48: =IF(B48<J$17,Captura!$L$16,0)+Resumen!$J$29+Resumen!$J$30 ->  | H48: 0 | K48: =IF(B48+1>=$J$17,0,K36*(1+Captura!$D$35)) -> 0 | L48: =IF(B48+1>=$J$17,0,L36*(1+Captura!$D$35)) -> 0 | M48: =IF(B48+1>=$J$17,0,M36*(1+Captura!$D$35)) -> 0 | O48: =IF(B48=J$17,Captura!$L$29,0) -> 0 | P48: =SUM(D48:F48,I48:N48)*Captura!$C$19 ->  | T48: 9 | U48: 20 | V48: 0 | X48: =+V47*Captura!$O$9/12 -> 0 | Y48: 0 | Z48: 0 | AA48: =IF(U48=J$17,Captura!$L$33,0) -> 0 | AC48: =IF(U48+1>=$J$17,0,AC36*(1+Captura!$D$35)) -> 0 | AD48: =IF(U48+1>=$J$17,0,AD36*(1+Captura!$D$35)) -> 0 | AE48: =IF(U48+1>=$J$17,0,AE36*(1+Captura!$D$35)) -> 0 | AG48: =+(W48+AB48+AC48+AD48+AE48+AF48)*Captura!$C$19 -> 0 | AH48: 0 | AK48: 0
B49: 21 | C49: 2027-12-04 | D49: =IF(B49<J$17,Captura!$L$16,0)+Resumen!$J$29+Resumen!$J$30 ->  | H49: 0 | K49: =IF(B49+1>=$J$17,0,K37*(1+Captura!$D$35)) -> 0 | L49: =IF(B49+1>=$J$17,0,L37*(1+Captura!$D$35)) -> 0 | M49: =IF(B49+1>=$J$17,0,M37*(1+Captura!$D$35)) -> 0 | O49: =IF(B49=J$17,Captura!$L$29,0) -> 0 | P49: =SUM(D49:F49,I49:N49)*Captura!$C$19 ->  | T49: 10 | U49: 21 | V49: 0 | X49: =+V48*Captura!$O$9/12 -> 0 | Y49: 0 | Z49: 0 | AA49: =IF(U49=J$17,Captura!$L$33,0) -> 0 | AC49: =IF(U49+1>=$J$17,0,AC37*(1+Captura!$D$35)) -> 0 | AD49: =IF(U49+1>=$J$17,0,AD37*(1+Captura!$D$35)) -> 0 | AE49: =IF(U49+1>=$J$17,0,AE37*(1+Captura!$D$35)) -> 0 | AG49: =+(W49+AB49+AC49+AD49+AE49+AF49)*Captura!$C$19 -> 0 | AH49: 0 | AK49: 0
B50: 22 | C50: 2028-01-04 | D50: =IF(B50<J$17,Captura!$L$16,0)+Resumen!$J$29+Resumen!$J$30 ->  | H50: 0 | K50: =IF(B50+1>=$J$17,0,K38*(1+Captura!$D$35)) -> 0 | L50: =IF(B50+1>=$J$17,0,L38*(1+Captura!$D$35)) -> 0 | M50: =IF(B50+1>=$J$17,0,M38*(1+Captura!$D$35)) -> 0 | O50: =IF(B50=J$17,Captura!$L$29,0) -> 0 | P50: =SUM(D50:F50,I50:N50)*Captura!$C$19 ->  | T50: 11 | U50: 22 | V50: 0 | X50: =+V49*Captura!$O$9/12 -> 0 | Y50: 0 | Z50: 0 | AA50: =IF(U50=J$17,Captura!$L$33,0) -> 0 | AC50: =IF(U50+1>=$J$17,0,AC38*(1+Captura!$D$35)) -> 0 | AD50: =IF(U50+1>=$J$17,0,AD38*(1+Captura!$D$35)) -> 0 | AE50: =IF(U50+1>=$J$17,0,AE38*(1+Captura!$D$35)) -> 0 | AG50: =+(W50+AB50+AC50+AD50+AE50+AF50)*Captura!$C$19 -> 0 | AH50: 0 | AK50: 0
B51: 23 | C51: 2028-02-04 | D51: =IF(B51<J$17,Captura!$L$16,0)+Resumen!$J$29+Resumen!$J$30 ->  | H51: 0 | K51: =IF(B51+1>=$J$17,0,K39*(1+Captura!$D$35)) -> 0 | L51: =IF(B51+1>=$J$17,0,L39*(1+Captura!$D$35)) -> 0 | M51: =IF(B51+1>=$J$17,0,M39*(1+Captura!$D$35)) -> 0 | O51: =IF(B51=J$17,Captura!$L$29,0) -> 0 | P51: =SUM(D51:F51,I51:N51)*Captura!$C$19 ->  | T51: 12 | U51: 23 | V51: 0 | X51: =+V50*Captura!$O$9/12 -> 0 | Y51: 0 | Z51: 0 | AA51: =IF(U51=J$17,Captura!$L$33,0) -> 0 | AC51: =IF(U51+1>=$J$17,0,AC39*(1+Captura!$D$35)) -> 0 | AD51: =IF(U51+1>=$J$17,0,AD39*(1+Captura!$D$35)) -> 0 | AE51: =IF(U51+1>=$J$17,0,AE39*(1+Captura!$D$35)) -> 0 | AG51: =+(W51+AB51+AC51+AD51+AE51+AF51)*Captura!$C$19 -> 0 | AH51: 0 | AK51: 0
B52: 24 | C52: 2028-03-04 | D52: =IF(B52<J$17,Captura!$L$16,0) -> 0 | H52: 0 | K52: =IF(B52+1>=$J$17,0,K40*(1+Captura!$D$35)) -> 0 | L52: =IF(B52+1>=$J$17,0,L40*(1+Captura!$D$35)) -> 0 | M52: =IF(B52+1>=$J$17,0,M40*(1+Captura!$D$35)) -> 0 | O52: =IF(B52=J$17,Captura!$L$29,0) -> 0 | P52: =SUM(D52:F52,I52:N52)*Captura!$C$19 -> 0 | Q52: 0 | T52: 1 | U52: 24 | V52: 0 | X52: =+V51*Captura!$O$9/12 -> 0 | Y52: 0 | Z52: 0 | AA52: =IF(U52=J$17,Captura!$L$33,0) -> 0 | AC52: =IF(U52+1>=$J$17,0,AC40*(1+Captura!$D$35)) -> 0 | AD52: =IF(U52+1>=$J$17,0,AD40*(1+Captura!$D$35)) -> 0 | AE52: =IF(U52+1>=$J$17,0,AE40*(1+Captura!$D$35)) -> 0 | AG52: =+(W52+AB52+AC52+AD52+AE52+AF52)*Captura!$C$19 -> 0 | AH52: 0 | AJ52: 0 | AK52: 0
B53: 25 | C53: 2028-04-04 | D53: =IF(B53<J$17,Captura!$L$16,0) -> 0 | H53: 0 | K53: =IF(B53+1>=$J$17,0,K41*(1+Captura!$D$35)) -> 0 | L53: =IF(B53+1>=$J$17,0,L41*(1+Captura!$D$35)) -> 0 | M53: =IF(B53+1>=$J$17,0,M41*(1+Captura!$D$35)) -> 0 | O53: =IF(B53=J$17,Captura!$L$29,0) -> 0 | P53: =SUM(D53:F53,I53:N53)*Captura!$C$19 -> 0 | Q53: 0 | T53: 2 | U53: 25 | V53: 0 | X53: =+V52*Captura!$O$9/12 -> 0 | Y53: 0 | Z53: 0 | AA53: =IF(U53=J$17,Captura!$L$33,0) -> 0 | AC53: =IF(U53+1>=$J$17,0,AC41*(1+Captura!$D$35)) -> 0 | AD53: =IF(U53+1>=$J$17,0,AD41*(1+Captura!$D$35)) -> 0 | AE53: =IF(U53+1>=$J$17,0,AE41*(1+Captura!$D$35)) -> 0 | AG53: =+(W53+AB53+AC53+AD53+AE53+AF53)*Captura!$C$19 -> 0 | AH53: 0 | AJ53: 0 | AK53: 0
B54: 26 | C54: 2028-05-04 | D54: =IF(B54<J$17,Captura!$L$16,0) -> 0 | H54: 0 | K54: =IF(B54+1>=$J$17,0,K42*(1+Captura!$D$35)) -> 0 | L54: =IF(B54+1>=$J$17,0,L42*(1+Captura!$D$35)) -> 0 | M54: =IF(B54+1>=$J$17,0,M42*(1+Captura!$D$35)) -> 0 | O54: =IF(B54=J$17,Captura!$L$29,0) -> 0 | P54: =SUM(D54:F54,I54:N54)*Captura!$C$19 -> 0 | Q54: 0 | T54: 3 | U54: 26 | V54: 0 | X54: =+V53*Captura!$O$9/12 -> 0 | Y54: 0 | Z54: 0 | AA54: =IF(U54=J$17,Captura!$L$33,0) -> 0 | AC54: =IF(U54+1>=$J$17,0,AC42*(1+Captura!$D$35)) -> 0 | AD54: =IF(U54+1>=$J$17,0,AD42*(1+Captura!$D$35)) -> 0 | AE54: =IF(U54+1>=$J$17,0,AE42*(1+Captura!$D$35)) -> 0 | AG54: =+(W54+AB54+AC54+AD54+AE54+AF54)*Captura!$C$19 -> 0 | AH54: 0 | AJ54: 0 | AK54: 0
B55: 27 | C55: 2028-06-04 | D55: =IF(B55<J$17,Captura!$L$16,0) -> 0 | H55: 0 | K55: =IF(B55+1>=$J$17,0,K43*(1+Captura!$D$35)) -> 0 | L55: =IF(B55+1>=$J$17,0,L43*(1+Captura!$D$35)) -> 0 | M55: =IF(B55+1>=$J$17,0,M43*(1+Captura!$D$35)) -> 0 | O55: =IF(B55=J$17,Captura!$L$29,0) -> 0 | P55: =SUM(D55:F55,I55:N55)*Captura!$C$19 -> 0 | Q55: 0 | T55: 4 | U55: 27 | V55: 0 | X55: =+V54*Captura!$O$9/12 -> 0 | Y55: 0 | Z55: 0 | AA55: =IF(U55=J$17,Captura!$L$33,0) -> 0 | AC55: =IF(U55+1>=$J$17,0,AC43*(1+Captura!$D$35)) -> 0 | AD55: =IF(U55+1>=$J$17,0,AD43*(1+Captura!$D$35)) -> 0 | AE55: =IF(U55+1>=$J$17,0,AE43*(1+Captura!$D$35)) -> 0 | AG55: =+(W55+AB55+AC55+AD55+AE55+AF55)*Captura!$C$19 -> 0 | AH55: 0 | AJ55: 0 | AK55: 0
B56: 28 | C56: 2028-07-04 | D56: =IF(B56<J$17,Captura!$L$16,0) -> 0 | H56: 0 | K56: =IF(B56+1>=$J$17,0,K44*(1+Captura!$D$35)) -> 0 | L56: =IF(B56+1>=$J$17,0,L44*(1+Captura!$D$35)) -> 0 | M56: =IF(B56+1>=$J$17,0,M44*(1+Captura!$D$35)) -> 0 | O56: =IF(B56=J$17,Captura!$L$29,0) -> 0 | P56: =SUM(D56:F56,I56:N56)*Captura!$C$19 -> 0 | Q56: 0 | T56: 5 | U56: 28 | V56: 0 | X56: =+V55*Captura!$O$9/12 -> 0 | Y56: 0 | Z56: 0 | AA56: =IF(U56=J$17,Captura!$L$33,0) -> 0 | AC56: =IF(U56+1>=$J$17,0,AC44*(1+Captura!$D$35)) -> 0 | AD56: =IF(U56+1>=$J$17,0,AD44*(1+Captura!$D$35)) -> 0 | AE56: =IF(U56+1>=$J$17,0,AE44*(1+Captura!$D$35)) -> 0 | AG56: =+(W56+AB56+AC56+AD56+AE56+AF56)*Captura!$C$19 -> 0 | AH56: 0 | AJ56: 0 | AK56: 0
B57: 29 | C57: 2028-08-04 | D57: =IF(B57<J$17,Captura!$L$16,0) -> 0 | H57: 0 | K57: =IF(B57+1>=$J$17,0,K45*(1+Captura!$D$35)) -> 0 | L57: =IF(B57+1>=$J$17,0,L45*(1+Captura!$D$35)) -> 0 | M57: =IF(B57+1>=$J$17,0,M45*(1+Captura!$D$35)) -> 0 | O57: =IF(B57=J$17,Captura!$L$29,0) -> 0 | P57: =SUM(D57:F57,I57:N57)*Captura!$C$19 -> 0 | Q57: 0 | T57: 6 | U57: 29 | V57: 0 | X57: =+V56*Captura!$O$9/12 -> 0 | Y57: 0 | Z57: 0 | AA57: =IF(U57=J$17,Captura!$L$33,0) -> 0 | AC57: =IF(U57+1>=$J$17,0,AC45*(1+Captura!$D$35)) -> 0 | AD57: =IF(U57+1>=$J$17,0,AD45*(1+Captura!$D$35)) -> 0 | AE57: =IF(U57+1>=$J$17,0,AE45*(1+Captura!$D$35)) -> 0 | AG57: =+(W57+AB57+AC57+AD57+AE57+AF57)*Captura!$C$19 -> 0 | AH57: 0 | AJ57: 0 | AK57: 0
B58: 30 | C58: 2028-09-04 | D58: =IF(B58<J$17,Captura!$L$16,0) -> 0 | H58: 0 | K58: =IF(B58+1>=$J$17,0,K46*(1+Captura!$D$35)) -> 0 | L58: =IF(B58+1>=$J$17,0,L46*(1+Captura!$D$35)) -> 0 | M58: =IF(B58+1>=$J$17,0,M46*(1+Captura!$D$35)) -> 0 | O58: =IF(B58=J$17,Captura!$L$29,0) -> 0 | P58: =SUM(D58:F58,I58:N58)*Captura!$C$19 -> 0 | Q58: 0 | T58: 7 | U58: 30 | V58: 0 | X58: =+V57*Captura!$O$9/12 -> 0 | Y58: 0 | Z58: 0 | AA58: =IF(U58=J$17,Captura!$L$33,0) -> 0 | AC58: =IF(U58+1>=$J$17,0,AC46*(1+Captura!$D$35)) -> 0 | AD58: =IF(U58+1>=$J$17,0,AD46*(1+Captura!$D$35)) -> 0 | AE58: =IF(U58+1>=$J$17,0,AE46*(1+Captura!$D$35)) -> 0 | AG58: =+(W58+AB58+AC58+AD58+AE58+AF58)*Captura!$C$19 -> 0 | AH58: 0 | AJ58: 0 | AK58: 0
B59: 31 | C59: 2028-10-04 | D59: =IF(B59<J$17,Captura!$L$16,0) -> 0 | H59: 0 | K59: =IF(B59+1>=$J$17,0,K47*(1+Captura!$D$35)) -> 0 | L59: =IF(B59+1>=$J$17,0,L47*(1+Captura!$D$35)) -> 0 | M59: =IF(B59+1>=$J$17,0,M47*(1+Captura!$D$35)) -> 0 | O59: =IF(B59=J$17,Captura!$L$29,0) -> 0 | P59: =SUM(D59:F59,I59:N59)*Captura!$C$19 -> 0 | Q59: 0 | T59: 8 | U59: 31 | V59: 0 | X59: =+V58*Captura!$O$9/12 -> 0 | Y59: 0 | Z59: 0 | AA59: =IF(U59=J$17,Captura!$L$33,0) -> 0 | AC59: =IF(U59+1>=$J$17,0,AC47*(1+Captura!$D$35)) -> 0 | AD59: =IF(U59+1>=$J$17,0,AD47*(1+Captura!$D$35)) -> 0 | AE59: =IF(U59+1>=$J$17,0,AE47*(1+Captura!$D$35)) -> 0 | AG59: =+(W59+AB59+AC59+AD59+AE59+AF59)*Captura!$C$19 -> 0 | AH59: 0 | AJ59: 0 | AK59: 0
B60: 32 | C60: 2028-11-04 | D60: =IF(B60<J$17,Captura!$L$16,0) -> 0 | H60: 0 | K60: =IF(B60+1>=$J$17,0,K48*(1+Captura!$D$35)) -> 0 | L60: =IF(B60+1>=$J$17,0,L48*(1+Captura!$D$35)) -> 0 | M60: =IF(B60+1>=$J$17,0,M48*(1+Captura!$D$35)) -> 0 | O60: =IF(B60=J$17,Captura!$L$29,0) -> 0 | P60: =SUM(D60:F60,I60:N60)*Captura!$C$19 -> 0 | Q60: 0 | T60: 9 | U60: 32 | V60: 0 | X60: =+V59*Captura!$O$9/12 -> 0 | Y60: 0 | Z60: 0 | AA60: =IF(U60=J$17,Captura!$L$33,0) -> 0 | AC60: =IF(U60+1>=$J$17,0,AC48*(1+Captura!$D$35)) -> 0 | AD60: =IF(U60+1>=$J$17,0,AD48*(1+Captura!$D$35)) -> 0 | AE60: =IF(U60+1>=$J$17,0,AE48*(1+Captura!$D$35)) -> 0 | AG60: =+(W60+AB60+AC60+AD60+AE60+AF60)*Captura!$C$19 -> 0 | AH60: 0 | AJ60: 0 | AK60: 0
B61: 33 | C61: 2028-12-04 | D61: =IF(B61<J$17,Captura!$L$16,0) -> 0 | H61: 0 | K61: =IF(B61+1>=$J$17,0,K49*(1+Captura!$D$35)) -> 0 | L61: =IF(B61+1>=$J$17,0,L49*(1+Captura!$D$35)) -> 0 | M61: =IF(B61+1>=$J$17,0,M49*(1+Captura!$D$35)) -> 0 | O61: =IF(B61=J$17,Captura!$L$29,0) -> 0 | P61: =SUM(D61:F61,I61:N61)*Captura!$C$19 -> 0 | Q61: 0 | T61: 10 | U61: 33 | V61: 0 | X61: =+V60*Captura!$O$9/12 -> 0 | Y61: 0 | Z61: 0 | AA61: =IF(U61=J$17,Captura!$L$33,0) -> 0 | AC61: =IF(U61+1>=$J$17,0,AC49*(1+Captura!$D$35)) -> 0 | AD61: =IF(U61+1>=$J$17,0,AD49*(1+Captura!$D$35)) -> 0 | AE61: =IF(U61+1>=$J$17,0,AE49*(1+Captura!$D$35)) -> 0 | AG61: =+(W61+AB61+AC61+AD61+AE61+AF61)*Captura!$C$19 -> 0 | AH61: 0 | AJ61: 0 | AK61: 0
B62: 34 | C62: 2029-01-04 | D62: =IF(B62<J$17,Captura!$L$16,0) -> 0 | H62: 0 | K62: =IF(B62+1>=$J$17,0,K50*(1+Captura!$D$35)) -> 0 | L62: =IF(B62+1>=$J$17,0,L50*(1+Captura!$D$35)) -> 0 | M62: =IF(B62+1>=$J$17,0,M50*(1+Captura!$D$35)) -> 0 | O62: =IF(B62=J$17,Captura!$L$29,0) -> 0 | P62: =SUM(D62:F62,I62:N62)*Captura!$C$19 -> 0 | Q62: 0 | T62: 11 | U62: 34 | V62: 0 | X62: =+V61*Captura!$O$9/12 -> 0 | Y62: 0 | Z62: 0 | AA62: =IF(U62=J$17,Captura!$L$33,0) -> 0 | AC62: =IF(U62+1>=$J$17,0,AC50*(1+Captura!$D$35)) -> 0 | AD62: =IF(U62+1>=$J$17,0,AD50*(1+Captura!$D$35)) -> 0 | AE62: =IF(U62+1>=$J$17,0,AE50*(1+Captura!$D$35)) -> 0 | AG62: =+(W62+AB62+AC62+AD62+AE62+AF62)*Captura!$C$19 -> 0 | AH62: 0 | AJ62: 0 | AK62: 0
B63: 35 | C63: 2029-02-04 | D63: =IF(B63<J$17,Captura!$L$16,0) -> 0 | H63: 0 | K63: =IF(B63+1>=$J$17,0,K51*(1+Captura!$D$35)) -> 0 | L63: =IF(B63+1>=$J$17,0,L51*(1+Captura!$D$35)) -> 0 | M63: =IF(B63+1>=$J$17,0,M51*(1+Captura!$D$35)) -> 0 | O63: =IF(B63=J$17,Captura!$L$29,0) -> 0 | P63: =SUM(D63:F63,I63:N63)*Captura!$C$19 -> 0 | Q63: 0 | T63: 12 | U63: 35 | V63: 0 | X63: =+V62*Captura!$O$9/12 -> 0 | Y63: 0 | Z63: 0 | AA63: =IF(U63=J$17,Captura!$L$33,0) -> 0 | AC63: =IF(U63+1>=$J$17,0,AC51*(1+Captura!$D$35)) -> 0 | AD63: =IF(U63+1>=$J$17,0,AD51*(1+Captura!$D$35)) -> 0 | AE63: =IF(U63+1>=$J$17,0,AE51*(1+Captura!$D$35)) -> 0 | AG63: =+(W63+AB63+AC63+AD63+AE63+AF63)*Captura!$C$19 -> 0 | AH63: 0 | AJ63: 0 | AK63: 0
B64: 36 | C64: 2029-03-04 | D64: =IF(B64<J$17,Captura!$L$16,0) -> 0 | H64: 0 | K64: =IF(B64+1>=$J$17,0,K52*(1+Captura!$D$35)) -> 0 | L64: =IF(B64+1>=$J$17,0,L52*(1+Captura!$D$35)) -> 0 | M64: =IF(B64+1>=$J$17,0,M52*(1+Captura!$D$35)) -> 0 | O64: =IF(B64=J$17,Captura!$L$29,0) -> 0 | P64: =SUM(D64:F64,I64:N64)*Captura!$C$19 -> 0 | Q64: 0 | T64: 1 | U64: 36 | V64: 0 | X64: =+V63*Captura!$O$9/12 -> 0 | Y64: 0 | Z64: 0 | AA64: =IF(U64=J$17,Captura!$L$33,0) -> 0 | AC64: =IF(U64+1>=$J$17,0,AC52*(1+Captura!$D$35)) -> 0 | AD64: =IF(U64+1>=$J$17,0,AD52*(1+Captura!$D$35)) -> 0 | AE64: =IF(U64+1>=$J$17,0,AE52*(1+Captura!$D$35)) -> 0 | AG64: =+(W64+AB64+AC64+AD64+AE64+AF64)*Captura!$C$19 -> 0 | AH64: 0 | AJ64: 0 | AK64: 0
B65: 37 | C65: 2029-04-04 | D65: =IF(B65<J$17,Captura!$L$16,0) -> 0 | H65: 0 | K65: =IF(B65+1>=$J$17,0,K53*(1+Captura!$D$35)) -> 0 | L65: =IF(B65+1>=$J$17,0,L53*(1+Captura!$D$35)) -> 0 | M65: =IF(B65+1>=$J$17,0,M53*(1+Captura!$D$35)) -> 0 | O65: =IF(B65=J$17,Captura!$L$29,0) -> 0 | P65: =SUM(D65:F65,I65:N65)*Captura!$C$19 -> 0 | Q65: 0 | T65: 2 | U65: 37 | V65: 0 | X65: =+V64*Captura!$O$9/12 -> 0 | Y65: 0 | Z65: 0 | AA65: =IF(U65=J$17,Captura!$L$33,0) -> 0 | AC65: =IF(U65+1>=$J$17,0,AC53*(1+Captura!$D$35)) -> 0 | AD65: =IF(U65+1>=$J$17,0,AD53*(1+Captura!$D$35)) -> 0 | AE65: =IF(U65+1>=$J$17,0,AE53*(1+Captura!$D$35)) -> 0 | AG65: =+(W65+AB65+AC65+AD65+AE65+AF65)*Captura!$C$19 -> 0 | AH65: 0 | AJ65: 0 | AK65: 0
B66: 38 | C66: 2029-05-04 | D66: =IF(B66<J$17,Captura!$L$16,0) -> 0 | H66: 0 | K66: =IF(B66+1>=$J$17,0,K54*(1+Captura!$D$35)) -> 0 | L66: =IF(B66+1>=$J$17,0,L54*(1+Captura!$D$35)) -> 0 | M66: =IF(B66+1>=$J$17,0,M54*(1+Captura!$D$35)) -> 0 | O66: =IF(B66=J$17,Captura!$L$29,0) -> 0 | P66: =SUM(D66:F66,I66:N66)*Captura!$C$19 -> 0 | Q66: 0 | T66: 3 | U66: 38 | V66: 0 | X66: =+V65*Captura!$O$9/12 -> 0 | Y66: 0 | Z66: 0 | AA66: =IF(U66=J$17,Captura!$L$33,0) -> 0 | AC66: =IF(U66+1>=$J$17,0,AC54*(1+Captura!$D$35)) -> 0 | AD66: =IF(U66+1>=$J$17,0,AD54*(1+Captura!$D$35)) -> 0 | AE66: =IF(U66+1>=$J$17,0,AE54*(1+Captura!$D$35)) -> 0 | AG66: =+(W66+AB66+AC66+AD66+AE66+AF66)*Captura!$C$19 -> 0 | AH66: 0 | AJ66: 0 | AK66: 0
B67: 39 | C67: 2029-06-04 | D67: =IF(B67<J$17,Captura!$L$16,0) -> 0 | H67: 0 | K67: =IF(B67+1>=$J$17,0,K55*(1+Captura!$D$35)) -> 0 | L67: =IF(B67+1>=$J$17,0,L55*(1+Captura!$D$35)) -> 0 | M67: =IF(B67+1>=$J$17,0,M55*(1+Captura!$D$35)) -> 0 | O67: =IF(B67=J$17,Captura!$L$29,0) -> 0 | P67: =SUM(D67:F67,I67:N67)*Captura!$C$19 -> 0 | Q67: 0 | T67: 4 | U67: 39 | V67: 0 | X67: =+V66*Captura!$O$9/12 -> 0 | Y67: 0 | Z67: 0 | AA67: =IF(U67=J$17,Captura!$L$33,0) -> 0 | AC67: =IF(U67+1>=$J$17,0,AC55*(1+Captura!$D$35)) -> 0 | AD67: =IF(U67+1>=$J$17,0,AD55*(1+Captura!$D$35)) -> 0 | AE67: =IF(U67+1>=$J$17,0,AE55*(1+Captura!$D$35)) -> 0 | AG67: =+(W67+AB67+AC67+AD67+AE67+AF67)*Captura!$C$19 -> 0 | AH67: 0 | AJ67: 0 | AK67: 0
B68: 40 | C68: 2029-07-04 | D68: =IF(B68<J$17,Captura!$L$16,0) -> 0 | H68: 0 | K68: =IF(B68+1>=$J$17,0,K56*(1+Captura!$D$35)) -> 0 | L68: =IF(B68+1>=$J$17,0,L56*(1+Captura!$D$35)) -> 0 | M68: =IF(B68+1>=$J$17,0,M56*(1+Captura!$D$35)) -> 0 | O68: =IF(B68=J$17,Captura!$L$29,0) -> 0 | P68: =SUM(D68:F68,I68:N68)*Captura!$C$19 -> 0 | Q68: 0 | T68: 5 | U68: 40 | V68: 0 | X68: =+V67*Captura!$O$9/12 -> 0 | Y68: 0 | Z68: 0 | AA68: =IF(U68=J$17,Captura!$L$33,0) -> 0 | AC68: =IF(U68+1>=$J$17,0,AC56*(1+Captura!$D$35)) -> 0 | AD68: =IF(U68+1>=$J$17,0,AD56*(1+Captura!$D$35)) -> 0 | AE68: =IF(U68+1>=$J$17,0,AE56*(1+Captura!$D$35)) -> 0 | AG68: =+(W68+AB68+AC68+AD68+AE68+AF68)*Captura!$C$19 -> 0 | AH68: 0 | AJ68: 0 | AK68: 0
B69: 41 | C69: 2029-08-04 | D69: =IF(B69<J$17,Captura!$L$16,0) -> 0 | H69: 0 | K69: =IF(B69+1>=$J$17,0,K57*(1+Captura!$D$35)) -> 0 | L69: =IF(B69+1>=$J$17,0,L57*(1+Captura!$D$35)) -> 0 | M69: =IF(B69+1>=$J$17,0,M57*(1+Captura!$D$35)) -> 0 | O69: =IF(B69=J$17,Captura!$L$29,0) -> 0 | P69: =SUM(D69:F69,I69:N69)*Captura!$C$19 -> 0 | Q69: 0 | T69: 6 | U69: 41 | V69: 0 | X69: =+V68*Captura!$O$9/12 -> 0 | Y69: 0 | Z69: 0 | AA69: =IF(U69=J$17,Captura!$L$33,0) -> 0 | AC69: =IF(U69+1>=$J$17,0,AC57*(1+Captura!$D$35)) -> 0 | AD69: =IF(U69+1>=$J$17,0,AD57*(1+Captura!$D$35)) -> 0 | AE69: =IF(U69+1>=$J$17,0,AE57*(1+Captura!$D$35)) -> 0 | AG69: =+(W69+AB69+AC69+AD69+AE69+AF69)*Captura!$C$19 -> 0 | AH69: 0 | AJ69: 0 | AK69: 0
B70: 42 | C70: 2029-09-04 | D70: =IF(B70<J$17,Captura!$L$16,0) -> 0 | H70: 0 | K70: =IF(B70+1>=$J$17,0,K58*(1+Captura!$D$35)) -> 0 | L70: =IF(B70+1>=$J$17,0,L58*(1+Captura!$D$35)) -> 0 | M70: =IF(B70+1>=$J$17,0,M58*(1+Captura!$D$35)) -> 0 | O70: =IF(B70=J$17,Captura!$L$29,0) -> 0 | P70: =SUM(D70:F70,I70:N70)*Captura!$C$19 -> 0 | Q70: 0 | T70: 7 | U70: 42 | V70: 0 | X70: =+V69*Captura!$O$9/12 -> 0 | Y70: 0 | Z70: 0 | AA70: =IF(U70=J$17,Captura!$L$33,0) -> 0 | AC70: =IF(U70+1>=$J$17,0,AC58*(1+Captura!$D$35)) -> 0 | AD70: =IF(U70+1>=$J$17,0,AD58*(1+Captura!$D$35)) -> 0 | AE70: =IF(U70+1>=$J$17,0,AE58*(1+Captura!$D$35)) -> 0 | AG70: =+(W70+AB70+AC70+AD70+AE70+AF70)*Captura!$C$19 -> 0 | AH70: 0 | AJ70: 0 | AK70: 0
B71: 43 | C71: 2029-10-04 | D71: =IF(B71<J$17,Captura!$L$16,0) -> 0 | H71: 0 | K71: =IF(B71+1>=$J$17,0,K59*(1+Captura!$D$35)) -> 0 | L71: =IF(B71+1>=$J$17,0,L59*(1+Captura!$D$35)) -> 0 | M71: =IF(B71+1>=$J$17,0,M59*(1+Captura!$D$35)) -> 0 | O71: =IF(B71=J$17,Captura!$L$29,0) -> 0 | P71: =SUM(D71:F71,I71:N71)*Captura!$C$19 -> 0 | Q71: 0 | T71: 8 | U71: 43 | V71: 0 | X71: =+V70*Captura!$O$9/12 -> 0 | Y71: 0 | Z71: 0 | AA71: =IF(U71=J$17,Captura!$L$33,0) -> 0 | AC71: =IF(U71+1>=$J$17,0,AC59*(1+Captura!$D$35)) -> 0 | AD71: =IF(U71+1>=$J$17,0,AD59*(1+Captura!$D$35)) -> 0 | AE71: =IF(U71+1>=$J$17,0,AE59*(1+Captura!$D$35)) -> 0 | AG71: =+(W71+AB71+AC71+AD71+AE71+AF71)*Captura!$C$19 -> 0 | AH71: 0 | AJ71: 0 | AK71: 0
B72: 44 | C72: 2029-11-04 | D72: =IF(B72<J$17,Captura!$L$16,0) -> 0 | H72: 0 | K72: =IF(B72+1>=$J$17,0,K60*(1+Captura!$D$35)) -> 0 | L72: =IF(B72+1>=$J$17,0,L60*(1+Captura!$D$35)) -> 0 | M72: =IF(B72+1>=$J$17,0,M60*(1+Captura!$D$35)) -> 0 | O72: =IF(B72=J$17,Captura!$L$29,0) -> 0 | P72: =SUM(D72:F72,I72:N72)*Captura!$C$19 -> 0 | Q72: 0 | T72: 9 | U72: 44 | V72: 0 | X72: =+V71*Captura!$O$9/12 -> 0 | Y72: 0 | Z72: 0 | AA72: =IF(U72=J$17,Captura!$L$33,0) -> 0 | AC72: =IF(U72+1>=$J$17,0,AC60*(1+Captura!$D$35)) -> 0 | AD72: =IF(U72+1>=$J$17,0,AD60*(1+Captura!$D$35)) -> 0 | AE72: =IF(U72+1>=$J$17,0,AE60*(1+Captura!$D$35)) -> 0 | AG72: =+(W72+AB72+AC72+AD72+AE72+AF72)*Captura!$C$19 -> 0 | AH72: 0 | AJ72: 0 | AK72: 0
B73: 45 | C73: 2029-12-04 | D73: =IF(B73<J$17,Captura!$L$16,0) -> 0 | H73: 0 | K73: =IF(B73+1>=$J$17,0,K61*(1+Captura!$D$35)) -> 0 | L73: =IF(B73+1>=$J$17,0,L61*(1+Captura!$D$35)) -> 0 | M73: =IF(B73+1>=$J$17,0,M61*(1+Captura!$D$35)) -> 0 | O73: =IF(B73=J$17,Captura!$L$29,0) -> 0 | P73: =SUM(D73:F73,I73:N73)*Captura!$C$19 -> 0 | Q73: 0 | T73: 10 | U73: 45 | V73: 0 | X73: =+V72*Captura!$O$9/12 -> 0 | Y73: 0 | Z73: 0 | AA73: =IF(U73=J$17,Captura!$L$33,0) -> 0 | AC73: =IF(U73+1>=$J$17,0,AC61*(1+Captura!$D$35)) -> 0 | AD73: =IF(U73+1>=$J$17,0,AD61*(1+Captura!$D$35)) -> 0 | AE73: =IF(U73+1>=$J$17,0,AE61*(1+Captura!$D$35)) -> 0 | AG73: =+(W73+AB73+AC73+AD73+AE73+AF73)*Captura!$C$19 -> 0 | AH73: 0 | AJ73: 0 | AK73: 0
B74: 46 | C74: 2030-01-04 | D74: =IF(B74<J$17,Captura!$L$16,0) -> 0 | H74: 0 | K74: =IF(B74+1>=$J$17,0,K62*(1+Captura!$D$35)) -> 0 | L74: =IF(B74+1>=$J$17,0,L62*(1+Captura!$D$35)) -> 0 | M74: =IF(B74+1>=$J$17,0,M62*(1+Captura!$D$35)) -> 0 | O74: =IF(B74=J$17,Captura!$L$29,0) -> 0 | P74: =SUM(D74:F74,I74:N74)*Captura!$C$19 -> 0 | Q74: 0 | T74: 11 | U74: 46 | V74: 0 | X74: =+V73*Captura!$O$9/12 -> 0 | Y74: 0 | Z74: 0 | AA74: =IF(U74=J$17,Captura!$L$33,0) -> 0 | AC74: =IF(U74+1>=$J$17,0,AC62*(1+Captura!$D$35)) -> 0 | AD74: =IF(U74+1>=$J$17,0,AD62*(1+Captura!$D$35)) -> 0 | AE74: =IF(U74+1>=$J$17,0,AE62*(1+Captura!$D$35)) -> 0 | AG74: =+(W74+AB74+AC74+AD74+AE74+AF74)*Captura!$C$19 -> 0 | AH74: 0 | AJ74: 0 | AK74: 0
B75: 47 | C75: 2030-02-04 | D75: =IF(B75<J$17,Captura!$L$16,0) -> 0 | H75: 0 | K75: =IF(B75+1>=$J$17,0,K63*(1+Captura!$D$35)) -> 0 | L75: =IF(B75+1>=$J$17,0,L63*(1+Captura!$D$35)) -> 0 | M75: =IF(B75+1>=$J$17,0,M63*(1+Captura!$D$35)) -> 0 | O75: =IF(B75=J$17,Captura!$L$29,0) -> 0 | P75: =SUM(D75:F75,I75:N75)*Captura!$C$19 -> 0 | Q75: 0 | T75: 12 | U75: 47 | V75: 0 | X75: =+V74*Captura!$O$9/12 -> 0 | Y75: 0 | Z75: 0 | AA75: =IF(U75=J$17,Captura!$L$33,0) -> 0 | AC75: =IF(U75+1>=$J$17,0,AC63*(1+Captura!$D$35)) -> 0 | AD75: =IF(U75+1>=$J$17,0,AD63*(1+Captura!$D$35)) -> 0 | AE75: =IF(U75+1>=$J$17,0,AE63*(1+Captura!$D$35)) -> 0 | AG75: =+(W75+AB75+AC75+AD75+AE75+AF75)*Captura!$C$19 -> 0 | AH75: 0 | AJ75: 0 | AK75: 0
B76: 48 | C76: 2030-03-04 | D76: =IF(B76<J$17,Captura!$L$16,0) -> 0 | H76: 0 | K76: =IF(B76+1>=$J$17,0,K64*(1+Captura!$D$35)) -> 0 | L76: =IF(B76+1>=$J$17,0,L64*(1+Captura!$D$35)) -> 0 | M76: =IF(B76+1>=$J$17,0,M64*(1+Captura!$D$35)) -> 0 | O76: =IF(B76=J$17,Captura!$L$29,0) -> 0 | P76: =SUM(D76:F76,I76:N76)*Captura!$C$19 -> 0 | Q76: 0 | T76: 1 | U76: 48 | V76: 0 | X76: =+V75*Captura!$O$9/12 -> 0 | Y76: 0 | Z76: 0 | AA76: =IF(U76=J$17,Captura!$L$33,0) -> 0 | AC76: =IF(U76+1>=$J$17,0,AC64*(1+Captura!$D$35)) -> 0 | AD76: =IF(U76+1>=$J$17,0,AD64*(1+Captura!$D$35)) -> 0 | AE76: =IF(U76+1>=$J$17,0,AE64*(1+Captura!$D$35)) -> 0 | AG76: =+(W76+AB76+AC76+AD76+AE76+AF76)*Captura!$C$19 -> 0 | AH76: 0 | AJ76: 0 | AK76: 0
B77: 49 | C77: 2030-04-04 | D77: =IF(B77<J$17,Captura!$L$16,0) -> 0 | H77: 0 | K77: =IF(B77+1>=$J$17,0,K65*(1+Captura!$D$35)) -> 0 | L77: =IF(B77+1>=$J$17,0,L65*(1+Captura!$D$35)) -> 0 | M77: =IF(B77+1>=$J$17,0,M65*(1+Captura!$D$35)) -> 0 | O77: =IF(B77=J$17,Captura!$L$29,0) -> 0 | P77: =SUM(D77:F77,I77:N77)*Captura!$C$19 -> 0 | Q77: 0 | T77: 2 | U77: 49 | V77: 0 | X77: =+V76*Captura!$O$9/12 -> 0 | Y77: 0 | Z77: 0 | AA77: =IF(U77=J$17,Captura!$L$33,0) -> 0 | AC77: =IF(U77+1>=$J$17,0,AC65*(1+Captura!$D$35)) -> 0 | AD77: =IF(U77+1>=$J$17,0,AD65*(1+Captura!$D$35)) -> 0 | AE77: =IF(U77+1>=$J$17,0,AE65*(1+Captura!$D$35)) -> 0 | AG77: =+(W77+AB77+AC77+AD77+AE77+AF77)*Captura!$C$19 -> 0 | AH77: 0 | AJ77: 0 | AK77: 0
B78: 50 | C78: 2030-05-04 | D78: =IF(B78<J$17,Captura!$L$16,0) -> 0 | H78: 0 | K78: =IF(B78+1>=$J$17,0,K66*(1+Captura!$D$35)) -> 0 | L78: =IF(B78+1>=$J$17,0,L66*(1+Captura!$D$35)) -> 0 | M78: =IF(B78+1>=$J$17,0,M66*(1+Captura!$D$35)) -> 0 | O78: =IF(B78=J$17,Captura!$L$29,0) -> 0 | P78: =SUM(D78:F78,I78:N78)*Captura!$C$19 -> 0 | Q78: 0 | T78: 3 | U78: 50 | V78: 0 | X78: =+V77*Captura!$O$9/12 -> 0 | Y78: 0 | Z78: 0 | AA78: =IF(U78=J$17,Captura!$L$33,0) -> 0 | AC78: =IF(U78+1>=$J$17,0,AC66*(1+Captura!$D$35)) -> 0 | AD78: =IF(U78+1>=$J$17,0,AD66*(1+Captura!$D$35)) -> 0 | AE78: =IF(U78+1>=$J$17,0,AE66*(1+Captura!$D$35)) -> 0 | AG78: =+(W78+AB78+AC78+AD78+AE78+AF78)*Captura!$C$19 -> 0 | AH78: 0 | AJ78: 0 | AK78: 0
B79: 51 | C79: 2030-06-04 | D79: =IF(B79<J$17,Captura!$L$16,0) -> 0 | H79: 0 | K79: =IF(B79+1>=$J$17,0,K67*(1+Captura!$D$35)) -> 0 | L79: =IF(B79+1>=$J$17,0,L67*(1+Captura!$D$35)) -> 0 | M79: =IF(B79+1>=$J$17,0,M67*(1+Captura!$D$35)) -> 0 | O79: =IF(B79=J$17,Captura!$L$29,0) -> 0 | P79: =SUM(D79:F79,I79:N79)*Captura!$C$19 -> 0 | Q79: 0 | T79: 4 | U79: 51 | V79: 0 | X79: =+V78*Captura!$O$9/12 -> 0 | Y79: 0 | Z79: 0 | AA79: =IF(U79=J$17,Captura!$L$33,0) -> 0 | AC79: =IF(U79+1>=$J$17,0,AC67*(1+Captura!$D$35)) -> 0 | AD79: =IF(U79+1>=$J$17,0,AD67*(1+Captura!$D$35)) -> 0 | AE79: =IF(U79+1>=$J$17,0,AE67*(1+Captura!$D$35)) -> 0 | AG79: =+(W79+AB79+AC79+AD79+AE79+AF79)*Captura!$C$19 -> 0 | AH79: 0 | AJ79: 0 | AK79: 0
B80: 52 | C80: 2030-07-04 | D80: =IF(B80<J$17,Captura!$L$16,0) -> 0 | H80: 0 | K80: =IF(B80+1>=$J$17,0,K68*(1+Captura!$D$35)) -> 0 | L80: =IF(B80+1>=$J$17,0,L68*(1+Captura!$D$35)) -> 0 | M80: =IF(B80+1>=$J$17,0,M68*(1+Captura!$D$35)) -> 0 | O80: =IF(B80=J$17,Captura!$L$29,0) -> 0 | P80: =SUM(D80:F80,I80:N80)*Captura!$C$19 -> 0 | Q80: 0 | T80: 5 | U80: 52 | V80: 0 | X80: =+V79*Captura!$O$9/12 -> 0 | Y80: 0 | Z80: 0 | AA80: =IF(U80=J$17,Captura!$L$33,0) -> 0 | AC80: =IF(U80+1>=$J$17,0,AC68*(1+Captura!$D$35)) -> 0 | AD80: =IF(U80+1>=$J$17,0,AD68*(1+Captura!$D$35)) -> 0 | AE80: =IF(U80+1>=$J$17,0,AE68*(1+Captura!$D$35)) -> 0 | AG80: =+(W80+AB80+AC80+AD80+AE80+AF80)*Captura!$C$19 -> 0 | AH80: 0 | AJ80: 0 | AK80: 0
B81: 53 | C81: 2030-08-04 | D81: =IF(B81<J$17,Captura!$L$16,0) -> 0 | H81: 0 | K81: =IF(B81+1>=$J$17,0,K69*(1+Captura!$D$35)) -> 0 | L81: =IF(B81+1>=$J$17,0,L69*(1+Captura!$D$35)) -> 0 | M81: =IF(B81+1>=$J$17,0,M69*(1+Captura!$D$35)) -> 0 | O81: =IF(B81=J$17,Captura!$L$29,0) -> 0 | P81: =SUM(D81:F81,I81:N81)*Captura!$C$19 -> 0 | Q81: 0 | T81: 6 | U81: 53 | V81: 0 | X81: =+V80*Captura!$O$9/12 -> 0 | Y81: 0 | Z81: 0 | AA81: =IF(U81=J$17,Captura!$L$33,0) -> 0 | AC81: =IF(U81+1>=$J$17,0,AC69*(1+Captura!$D$35)) -> 0 | AD81: =IF(U81+1>=$J$17,0,AD69*(1+Captura!$D$35)) -> 0 | AE81: =IF(U81+1>=$J$17,0,AE69*(1+Captura!$D$35)) -> 0 | AG81: =+(W81+AB81+AC81+AD81+AE81+AF81)*Captura!$C$19 -> 0 | AH81: 0 | AJ81: 0 | AK81: 0
B82: 54 | C82: 2030-09-04 | D82: =IF(B82<J$17,Captura!$L$16,0) -> 0 | H82: 0 | K82: =IF(B82+1>=$J$17,0,K70*(1+Captura!$D$35)) -> 0 | L82: =IF(B82+1>=$J$17,0,L70*(1+Captura!$D$35)) -> 0 | M82: =IF(B82+1>=$J$17,0,M70*(1+Captura!$D$35)) -> 0 | O82: =IF(B82=J$17,Captura!$L$29,0) -> 0 | P82: =SUM(D82:F82,I82:N82)*Captura!$C$19 -> 0 | Q82: 0 | T82: 7 | U82: 54 | V82: 0 | X82: =+V81*Captura!$O$9/12 -> 0 | Y82: 0 | Z82: 0 | AA82: =IF(U82=J$17,Captura!$L$33,0) -> 0 | AC82: =IF(U82+1>=$J$17,0,AC70*(1+Captura!$D$35)) -> 0 | AD82: =IF(U82+1>=$J$17,0,AD70*(1+Captura!$D$35)) -> 0 | AE82: =IF(U82+1>=$J$17,0,AE70*(1+Captura!$D$35)) -> 0 | AG82: =+(W82+AB82+AC82+AD82+AE82+AF82)*Captura!$C$19 -> 0 | AH82: 0 | AJ82: 0 | AK82: 0
B83: 55 | C83: 2030-10-04 | D83: =IF(B83<J$17,Captura!$L$16,0) -> 0 | H83: 0 | K83: =IF(B83+1>=$J$17,0,K71*(1+Captura!$D$35)) -> 0 | L83: =IF(B83+1>=$J$17,0,L71*(1+Captura!$D$35)) -> 0 | M83: =IF(B83+1>=$J$17,0,M71*(1+Captura!$D$35)) -> 0 | O83: =IF(B83=J$17,Captura!$L$29,0) -> 0 | P83: =SUM(D83:F83,I83:N83)*Captura!$C$19 -> 0 | Q83: 0 | T83: 8 | U83: 55 | V83: 0 | X83: =+V82*Captura!$O$9/12 -> 0 | Y83: 0 | Z83: 0 | AA83: =IF(U83=J$17,Captura!$L$33,0) -> 0 | AC83: =IF(U83+1>=$J$17,0,AC71*(1+Captura!$D$35)) -> 0 | AD83: =IF(U83+1>=$J$17,0,AD71*(1+Captura!$D$35)) -> 0 | AE83: =IF(U83+1>=$J$17,0,AE71*(1+Captura!$D$35)) -> 0 | AG83: =+(W83+AB83+AC83+AD83+AE83+AF83)*Captura!$C$19 -> 0 | AH83: 0 | AJ83: 0 | AK83: 0
B84: 56 | C84: 2030-11-04 | D84: =IF(B84<J$17,Captura!$L$16,0) -> 0 | H84: 0 | K84: =IF(B84+1>=$J$17,0,K72*(1+Captura!$D$35)) -> 0 | L84: =IF(B84+1>=$J$17,0,L72*(1+Captura!$D$35)) -> 0 | M84: =IF(B84+1>=$J$17,0,M72*(1+Captura!$D$35)) -> 0 | O84: =IF(B84=J$17,Captura!$L$29,0) -> 0 | P84: =SUM(D84:F84,I84:N84)*Captura!$C$19 -> 0 | Q84: 0 | T84: 9 | U84: 56 | V84: 0 | X84: =+V83*Captura!$O$9/12 -> 0 | Y84: 0 | Z84: 0 | AA84: =IF(U84=J$17,Captura!$L$33,0) -> 0 | AC84: =IF(U84+1>=$J$17,0,AC72*(1+Captura!$D$35)) -> 0 | AD84: =IF(U84+1>=$J$17,0,AD72*(1+Captura!$D$35)) -> 0 | AE84: =IF(U84+1>=$J$17,0,AE72*(1+Captura!$D$35)) -> 0 | AG84: =+(W84+AB84+AC84+AD84+AE84+AF84)*Captura!$C$19 -> 0 | AH84: 0 | AJ84: 0 | AK84: 0
B85: 57 | C85: 2030-12-04 | D85: =IF(B85<J$17,Captura!$L$16,0) -> 0 | H85: 0 | K85: =IF(B85+1>=$J$17,0,K73*(1+Captura!$D$35)) -> 0 | L85: =IF(B85+1>=$J$17,0,L73*(1+Captura!$D$35)) -> 0 | M85: =IF(B85+1>=$J$17,0,M73*(1+Captura!$D$35)) -> 0 | O85: =IF(B85=J$17,Captura!$L$29,0) -> 0 | P85: =SUM(D85:F85,I85:N85)*Captura!$C$19 -> 0 | Q85: 0 | T85: 10 | U85: 57 | V85: 0 | X85: =+V84*Captura!$O$9/12 -> 0 | Y85: 0 | Z85: 0 | AA85: =IF(U85=J$17,Captura!$L$33,0) -> 0 | AC85: =IF(U85+1>=$J$17,0,AC73*(1+Captura!$D$35)) -> 0 | AD85: =IF(U85+1>=$J$17,0,AD73*(1+Captura!$D$35)) -> 0 | AE85: =IF(U85+1>=$J$17,0,AE73*(1+Captura!$D$35)) -> 0 | AG85: =+(W85+AB85+AC85+AD85+AE85+AF85)*Captura!$C$19 -> 0 | AH85: 0 | AJ85: 0 | AK85: 0
B86: 58 | C86: 2031-01-04 | D86: =IF(B86<J$17,Captura!$L$16,0) -> 0 | H86: 0 | K86: =IF(B86+1>=$J$17,0,K74*(1+Captura!$D$35)) -> 0 | L86: =IF(B86+1>=$J$17,0,L74*(1+Captura!$D$35)) -> 0 | M86: =IF(B86+1>=$J$17,0,M74*(1+Captura!$D$35)) -> 0 | O86: =IF(B86=J$17,Captura!$L$29,0) -> 0 | P86: =SUM(D86:F86,I86:N86)*Captura!$C$19 -> 0 | Q86: 0 | T86: 11 | U86: 58 | V86: 0 | X86: =+V85*Captura!$O$9/12 -> 0 | Y86: 0 | Z86: 0 | AA86: =IF(U86=J$17,Captura!$L$33,0) -> 0 | AC86: =IF(U86+1>=$J$17,0,AC74*(1+Captura!$D$35)) -> 0 | AD86: =IF(U86+1>=$J$17,0,AD74*(1+Captura!$D$35)) -> 0 | AE86: =IF(U86+1>=$J$17,0,AE74*(1+Captura!$D$35)) -> 0 | AG86: =+(W86+AB86+AC86+AD86+AE86+AF86)*Captura!$C$19 -> 0 | AH86: 0 | AJ86: 0 | AK86: 0
B87: 59 | C87: 2031-02-04 | D87: =IF(B87<J$17,Captura!$L$16,0) -> 0 | H87: 0 | K87: =IF(B87+1>=$J$17,0,K75*(1+Captura!$D$35)) -> 0 | L87: =IF(B87+1>=$J$17,0,L75*(1+Captura!$D$35)) -> 0 | M87: =IF(B87+1>=$J$17,0,M75*(1+Captura!$D$35)) -> 0 | O87: =IF(B87=J$17,Captura!$L$29,0) -> 0 | P87: =SUM(D87:F87,I87:N87)*Captura!$C$19 -> 0 | Q87: 0 | T87: 12 | U87: 59 | V87: 0 | X87: =+V86*Captura!$O$9/12 -> 0 | Y87: 0 | Z87: 0 | AA87: =IF(U87=J$17,Captura!$L$33,0) -> 0 | AC87: =IF(U87+1>=$J$17,0,AC75*(1+Captura!$D$35)) -> 0 | AD87: =IF(U87+1>=$J$17,0,AD75*(1+Captura!$D$35)) -> 0 | AE87: =IF(U87+1>=$J$17,0,AE75*(1+Captura!$D$35)) -> 0 | AG87: =+(W87+AB87+AC87+AD87+AE87+AF87)*Captura!$C$19 -> 0 | AH87: 0 | AJ87: 0 | AK87: 0
B88: 60 | C88: 2031-03-04 | D88: =IF(B88<J$17,Captura!$L$16,0) -> 0 | H88: 0 | K88: =IF(B88+1>=$J$17,0,K76*(1+Captura!$D$35)) -> 0 | L88: =IF(B88+1>=$J$17,0,L76*(1+Captura!$D$35)) -> 0 | M88: =IF(B88+1>=$J$17,0,M76*(1+Captura!$D$35)) -> 0 | O88: =IF(B88=J$17,Captura!$L$29,0) -> 0 | P88: =SUM(D88:F88,I88:N88)*Captura!$C$19 -> 0 | Q88: 0 | T88: 1 | U88: 60 | V88: 0 | X88: =+V87*Captura!$O$9/12 -> 0 | Y88: 0 | Z88: 0 | AA88: =IF(U88=J$17,Captura!$L$33,0) -> 0 | AC88: =IF(U88+1>=$J$17,0,AC76*(1+Captura!$D$35)) -> 0 | AD88: =IF(U88+1>=$J$17,0,AD76*(1+Captura!$D$35)) -> 0 | AE88: =IF(U88+1>=$J$17,0,AE76*(1+Captura!$D$35)) -> 0 | AG88: =+(W88+AB88+AC88+AD88+AE88+AF88)*Captura!$C$19 -> 0 | AH88: 0 | AJ88: 0 | AK88: 0
B92: Notas:
B93: 1. Esta cotización no es una autorización y no representa ninguna obligación para Leasing Mobile de México, S. A. de C. V.
B94: 2. La información descrita en el presente documento está sujeta a cambios sin previo aviso.
B95: 3. Esta cotización no considera gastos que el equipo requiera para su adquisición, uso o mantenimiento.
B96: 4. Las rentas en depósito serán devueltas al cumplimiento de todas las obligaciones contractauales del Arrendatario.
B107: __________________________________
B108: Leasing Mobile de Mexico, SA de CV
B109: =+Captura!D31 -> xxxx
B110: =+Captura!D32 -> xxxx
B111: =+Captura!D33 -> xxxx

Sheet Plazo 3 (hidden)
B7: Cotización
B8: Arrendamiento Puro
P10: =+Captura!N3 -> 2026-03-04
B12: Cliente: | E12: =+Captura!D7 -> 0 | J12: Teléfono | K12: =+Captura!D9 -> 0
B13: Atención: | E13: =+Captura!D8 -> 0 | J13: E-mail | K13: =+Captura!D10 -> 0
Q14: =+Captura!O40 -> v. 20240220
B17: Tipo de equipo | E17: =+Captura!T7 -> Vehículo utilitario | H17: Plazo del arrendamiento | J17: =+Captura!M13 -> 36 | L17: Gestoría y Registro | N17: =+Captura!F23 -> Pago único | AJ17: Valor presente de flujos
B18: Estado del equipo | E18: =+Captura!T17 -> Nuevo | H18: No. de rentas en depósito | J18: =+Captura!K8 -> 1 | L18: Equipo de geolocalizacióon | N18: =+Captura!F24 -> Pago único | Q18: =+Captura!M36 -> 0 | AJ18: =NPV(Captura!$D$35/12,AJ29:AJ88)+AJ28 ->  | AK18: =NPV(Captura!$D$35/12,AK29:AK88)+AK28 -> -1139.187927
B19: Descripción | E19: =+Captura!D15 -> 0 | H19: Comisión de apertura | J19: =+Captura!K9 -> 0.03 | L19: Seguro de daños | N19: =+Captura!T26 -> Pago en renta | AJ19: Tasa Interna de Retorno
H20: Anticipo | J20: =+Captura!K10 -> 0 | L20: Placas y Tenencia | N20: =+Captura!T33 -> Pago anual | AJ20: =IRR(AJ28:AJ88,0.01)*12 ->  | AK20: =IRR(AK28:AK88,0.01)*12 -> 
H21: Residual estimado | J21: Valor mercado | L21: Servicio de geolocalización | N21: =+Captura!T40 -> Pago anual | Q21: =+Captura!M37 -> Positivo | AJ21: Capital Req. | AK21: =+Captura!M34 -> 0
B22: Valor factura sin IVA | E22: =+Captura!G18 -> 0 | L22: =+Captura!I25 -> Otro | N22: =+Captura!F28 -> 0 | AJ22: VP / CR | AK22: =+(AJ18+AK18)/AK21 -> 
B23: IVA | E23: =+Captura!G19 -> 0 | Q23: Regresar
B24: Valor factua con IVA | E24: =+Captura!G20 -> 0 | AJ24: Indicador anualizado | AK24: =+AK22/J17*12 -> 
B26: Periodo | C26: Mes | D26: Renta | E26: Anticipo | F26: Comisión de apertura | G26: Rentas en depósito | H26: Devolución de rentas en depósito | I26: Gestoría y Registro | J26: Equipo de geo localización | K26: Seguro de daños | L26: Placas y Tenencia | M26: Servicio de geo localización | N26: =+L22 -> Otro | O26: Residual estimado | P26: IVA | Q26: TOTAL | T26: Mes | U26: Periodo | V26: Fondeo | W26: Comisión de apertura | X26: Intereses | Y26: Capital | Z26: Pago | AA26: Bullet | AB26: Equipo de geo localización | AC26: Seguro de daños | AD26: Placas y Tenencia | AE26: Servicio de geo localización | AF26: Otro | AG26: IVA | AH26: TOTAL | AJ26: Flujo Activo sin IVA | AK26: Flujo Pasivo sin IVA
B28: 0 | C28: =+P10 -> 2026-03-04 | D28: =+Captura!M16+Resumen!K29+Resumen!K30 ->  | E28: =+Captura!K10 -> 0 | F28: =+Captura!M18 -> 0 | G28: =+Captura!M19 -> 0 | H28: =IF(B28=J$17,-G$28,0) -> 0 | I28: =+Captura!M20 -> 0 | J28: =+Captura!M21 -> 0 | K28: =+Captura!M22 -> 0 | L28: =+Captura!M23 -> 0 | M28: =+Captura!M24 -> 0 | N28: =+Captura!M25 -> 0 | O28: =IF(B28=J$17,Captura!$M$29,0) -> 0 | P28: =SUM(D28:F28,I28:N28)*Captura!$C$19 ->  | Q28: =SUM(D28:P28)-O28 ->  | T28: 1 | U28: =+B28 -> 0 | V28: =+Captura!O8 -> 0 | W28: =+Captura!M31 -> 0 | AB28: =+J28 -> 0 | AC28: =+Captura!G25 -> 0 | AD28: =+Captura!G26 -> 0 | AE28: =+Captura!G27 -> 380 | AF28: =+N28 -> 0 | AG28: =+(W28+AB28+AC28+AD28+AE28+AF28)*Captura!$C$19 -> 60.8 | AH28: =SUM(W28,Z28:AG28) -> 440.8 | AJ28: =-E22+(Q28-P28)+O28 ->  | AK28: =+V28-(AH28-AG28) -> -380
B29: 1 | C29: =EDATE(C28,1) -> 2026-04-04 | D29: =IF(B29<J$17,Captura!$M$16,0)+Resumen!$K$29+Resumen!$K$30 ->  | H29: 0 | K29: 0 | L29: 0 | M29: 0 | O29: =IF(B29=J$17,Captura!$M$29,0) -> 0 | P29: =SUM(D29:F29,I29:N29)*Captura!$C$19 ->  | Q29: =SUM(D29:P29)-O29 ->  | T29: =IF(T28=12,1,T28+1) -> 2 | U29: =+B29 -> 1 | V29: =+V28-Y29-AA29 -> 0 | X29: =+V28*Captura!$O$9/12 -> 0 | Y29: =+Z29-X29 -> 0 | Z29: =+Captura!M30 -> 0 | AA29: =IF(U29=J$17,Captura!$M$33,0) -> 0 | AC29: 0 | AD29: 0 | AE29: 0 | AG29: =+(W29+AB29+AC29+AD29+AE29+AF29)*Captura!$C$19 -> 0 | AH29: =SUM(W29,Z29:AG29) -> 0 | AJ29: =Q29-P29+O29 ->  | AK29: =-(AH29-AG29) -> 0
B30: 2 | C30: =EDATE(C29,1) -> 2026-05-04 | D30: =IF(B30<J$17,Captura!$M$16,0)+Resumen!$K$29+Resumen!$K$30 ->  | H30: 0 | K30: 0 | L30: 0 | M30: 0 | O30: =IF(B30=J$17,Captura!$M$29,0) -> 0 | P30: =SUM(D30:F30,I30:N30)*Captura!$C$19 ->  | T30: =IF(T29=12,1,T29+1) -> 3 | U30: 2 | V30: =+V29-Y30-AA30 -> 0 | X30: =+V29*Captura!$O$9/12 -> 0 | Y30: =+Z30-X30 -> 0 | Z30: =IF(U30>J$17,0,Z29) -> 0 | AA30: =IF(U30=J$17,Captura!$M$33,0) -> 0 | AC30: 0 | AD30: 0 | AE30: 0 | AG30: =+(W30+AB30+AC30+AD30+AE30+AF30)*Captura!$C$19 -> 0 | AH30: 0 | AJ30: =Q30-P30+O30 ->  | AK30: =-(AH30-AG30) -> 0
B31: 3 | C31: 2026-06-04 | D31: =IF(B31<J$17,Captura!$M$16,0)+Resumen!$K$29+Resumen!$K$30 ->  | H31: 0 | K31: 0 | L31: 0 | M31: 0 | O31: =IF(B31=J$17,Captura!$M$29,0) -> 0 | P31: =SUM(D31:F31,I31:N31)*Captura!$C$19 ->  | T31: 4 | U31: 3 | V31: 0 | X31: =+V30*Captura!$O$9/12 -> 0 | Y31: 0 | Z31: =IF(U31>J$17,0,Z30) -> 0 | AA31: =IF(U31=J$17,Captura!$M$33,0) -> 0 | AC31: 0 | AD31: 0 | AE31: 0 | AG31: =+(W31+AB31+AC31+AD31+AE31+AF31)*Captura!$C$19 -> 0 | AH31: 0 | AK31: 0
B32: 4 | C32: 2026-07-04 | D32: =IF(B32<J$17,Captura!$M$16,0)+Resumen!$K$29+Resumen!$K$30 ->  | H32: 0 | K32: 0 | L32: 0 | M32: 0 | O32: =IF(B32=J$17,Captura!$M$29,0) -> 0 | P32: =SUM(D32:F32,I32:N32)*Captura!$C$19 ->  | T32: 5 | U32: 4 | V32: 0 | X32: =+V31*Captura!$O$9/12 -> 0 | Y32: 0 | Z32: 0 | AA32: =IF(U32=J$17,Captura!$M$33,0) -> 0 | AC32: 0 | AD32: 0 | AE32: 0 | AG32: =+(W32+AB32+AC32+AD32+AE32+AF32)*Captura!$C$19 -> 0 | AH32: 0 | AK32: 0
B33: 5 | C33: 2026-08-04 | D33: =IF(B33<J$17,Captura!$M$16,0)+Resumen!$K$29+Resumen!$K$30 ->  | H33: 0 | K33: 0 | L33: 0 | M33: 0 | O33: =IF(B33=J$17,Captura!$M$29,0) -> 0 | P33: =SUM(D33:F33,I33:N33)*Captura!$C$19 ->  | T33: 6 | U33: 5 | V33: 0 | X33: =+V32*Captura!$O$9/12 -> 0 | Y33: 0 | Z33: 0 | AA33: =IF(U33=J$17,Captura!$M$33,0) -> 0 | AC33: 0 | AD33: 0 | AE33: 0 | AG33: =+(W33+AB33+AC33+AD33+AE33+AF33)*Captura!$C$19 -> 0 | AH33: 0 | AK33: 0
B34: 6 | C34: 2026-09-04 | D34: =IF(B34<J$17,Captura!$M$16,0)+Resumen!$K$29+Resumen!$K$30 ->  | H34: 0 | K34: 0 | L34: 0 | M34: 0 | O34: =IF(B34=J$17,Captura!$M$29,0) -> 0 | P34: =SUM(D34:F34,I34:N34)*Captura!$C$19 ->  | T34: 7 | U34: 6 | V34: 0 | X34: =+V33*Captura!$O$9/12 -> 0 | Y34: 0 | Z34: 0 | AA34: =IF(U34=J$17,Captura!$M$33,0) -> 0 | AC34: 0 | AD34: 0 | AE34: 0 | AG34: =+(W34+AB34+AC34+AD34+AE34+AF34)*Captura!$C$19 -> 0 | AH34: 0 | AK34: 0
B35: 7 | C35: 2026-10-04 | D35: =IF(B35<J$17,Captura!$M$16,0)+Resumen!$K$29+Resumen!$K$30 ->  | H35: 0 | K35: 0 | L35: 0 | M35: 0 | O35: =IF(B35=J$17,Captura!$M$29,0) -> 0 | P35: =SUM(D35:F35,I35:N35)*Captura!$C$19 ->  | T35: 8 | U35: 7 | V35: 0 | X35: =+V34*Captura!$O$9/12 -> 0 | Y35: 0 | Z35: 0 | AA35: =IF(U35=J$17,Captura!$M$33,0) -> 0 | AC35: 0 | AD35: 0 | AE35: 0 | AG35: =+(W35+AB35+AC35+AD35+AE35+AF35)*Captura!$C$19 -> 0 | AH35: 0 | AK35: 0
B36: 8 | C36: 2026-11-04 | D36: =IF(B36<J$17,Captura!$M$16,0)+Resumen!$K$29+Resumen!$K$30 ->  | H36: 0 | K36: 0 | L36: 0 | M36: 0 | O36: =IF(B36=J$17,Captura!$M$29,0) -> 0 | P36: =SUM(D36:F36,I36:N36)*Captura!$C$19 ->  | T36: 9 | U36: 8 | V36: 0 | X36: =+V35*Captura!$O$9/12 -> 0 | Y36: 0 | Z36: 0 | AA36: =IF(U36=J$17,Captura!$M$33,0) -> 0 | AC36: 0 | AD36: 0 | AE36: 0 | AG36: =+(W36+AB36+AC36+AD36+AE36+AF36)*Captura!$C$19 -> 0 | AH36: 0 | AK36: 0
B37: 9 | C37: 2026-12-04 | D37: =IF(B37<J$17,Captura!$M$16,0)+Resumen!$K$29+Resumen!$K$30 ->  | H37: 0 | K37: 0 | L37: 0 | M37: 0 | O37: =IF(B37=J$17,Captura!$M$29,0) -> 0 | P37: =SUM(D37:F37,I37:N37)*Captura!$C$19 ->  | T37: 10 | U37: 9 | V37: 0 | X37: =+V36*Captura!$O$9/12 -> 0 | Y37: 0 | Z37: 0 | AA37: =IF(U37=J$17,Captura!$M$33,0) -> 0 | AC37: 0 | AD37: 0 | AE37: 0 | AG37: =+(W37+AB37+AC37+AD37+AE37+AF37)*Captura!$C$19 -> 0 | AH37: 0 | AK37: 0
B38: 10 | C38: 2027-01-04 | D38: =IF(B38<J$17,Captura!$M$16,0)+Resumen!$K$29+Resumen!$K$30 ->  | H38: 0 | K38: 0 | L38: 0 | M38: 0 | O38: =IF(B38=J$17,Captura!$M$29,0) -> 0 | P38: =SUM(D38:F38,I38:N38)*Captura!$C$19 ->  | T38: 11 | U38: 10 | V38: 0 | X38: =+V37*Captura!$O$9/12 -> 0 | Y38: 0 | Z38: 0 | AA38: =IF(U38=J$17,Captura!$M$33,0) -> 0 | AC38: 0 | AD38: 0 | AE38: 0 | AG38: =+(W38+AB38+AC38+AD38+AE38+AF38)*Captura!$C$19 -> 0 | AH38: 0 | AK38: 0
B39: 11 | C39: 2027-02-04 | D39: =IF(B39<J$17,Captura!$M$16,0)+Resumen!$K$29+Resumen!$K$30 ->  | H39: 0 | K39: 0 | L39: 0 | M39: 0 | O39: =IF(B39=J$17,Captura!$M$29,0) -> 0 | P39: =SUM(D39:F39,I39:N39)*Captura!$C$19 ->  | T39: 12 | U39: 11 | V39: 0 | X39: =+V38*Captura!$O$9/12 -> 0 | Y39: 0 | Z39: 0 | AA39: =IF(U39=J$17,Captura!$M$33,0) -> 0 | AC39: 0 | AD39: 0 | AE39: 0 | AG39: =+(W39+AB39+AC39+AD39+AE39+AF39)*Captura!$C$19 -> 0 | AH39: 0 | AK39: 0
B40: 12 | C40: 2027-03-04 | D40: =IF(B40<J$17,Captura!$M$16,0)+Resumen!$K$29+Resumen!$K$30 ->  | H40: 0 | K40: =IF(B40+1>=$J$17,0,K28*(1+Captura!$D$35)) -> 0 | L40: =IF(B40+1>=$J$17,0,L28*(1+Captura!$D$35)) -> 0 | M40: =IF(B40+1>=$J$17,0,M28*(1+Captura!$D$35)) -> 0 | O40: =IF(B40=J$17,Captura!$M$29,0) -> 0 | P40: =SUM(D40:F40,I40:N40)*Captura!$C$19 ->  | T40: 1 | U40: 12 | V40: 0 | X40: =+V39*Captura!$O$9/12 -> 0 | Y40: 0 | Z40: 0 | AA40: =IF(U40=J$17,Captura!$M$33,0) -> 0 | AC40: =IF(U40+1>=$J$17,0,AC28*(1+Captura!$D$35)) -> 0 | AD40: =IF(U40+1>=$J$17,0,AD28*(1+Captura!$D$35)) -> 0 | AE40: =IF(U40+1>=$J$17,0,AE28*(1+Captura!$D$35)) -> 395.2 | AG40: =+(W40+AB40+AC40+AD40+AE40+AF40)*Captura!$C$19 -> 63.232 | AH40: 458.432 | AK40: -395.2
B41: 13 | C41: 2027-04-04 | D41: =IF(B41<J$17,Captura!$M$16,0)+Resumen!$K$29+Resumen!$K$30 ->  | H41: 0 | K41: =IF(B41+1>=$J$17,0,K29*(1+Captura!$D$35)) -> 0 | L41: =IF(B41+1>=$J$17,0,L29*(1+Captura!$D$35)) -> 0 | M41: =IF(B41+1>=$J$17,0,M29*(1+Captura!$D$35)) -> 0 | O41: =IF(B41=J$17,Captura!$M$29,0) -> 0 | P41: =SUM(D41:F41,I41:N41)*Captura!$C$19 ->  | T41: 2 | U41: 13 | V41: 0 | X41: =+V40*Captura!$O$9/12 -> 0 | Y41: 0 | Z41: 0 | AA41: =IF(U41=J$17,Captura!$M$33,0) -> 0 | AC41: =IF(U41+1>=$J$17,0,AC29*(1+Captura!$D$35)) -> 0 | AD41: =IF(U41+1>=$J$17,0,AD29*(1+Captura!$D$35)) -> 0 | AE41: =IF(U41+1>=$J$17,0,AE29*(1+Captura!$D$35)) -> 0 | AG41: =+(W41+AB41+AC41+AD41+AE41+AF41)*Captura!$C$19 -> 0 | AH41: 0 | AK41: 0
B42: 14 | C42: 2027-05-04 | D42: =IF(B42<J$17,Captura!$M$16,0)+Resumen!$K$29+Resumen!$K$30 ->  | H42: 0 | K42: =IF(B42+1>=$J$17,0,K30*(1+Captura!$D$35)) -> 0 | L42: =IF(B42+1>=$J$17,0,L30*(1+Captura!$D$35)) -> 0 | M42: =IF(B42+1>=$J$17,0,M30*(1+Captura!$D$35)) -> 0 | O42: =IF(B42=J$17,Captura!$M$29,0) -> 0 | P42: =SUM(D42:F42,I42:N42)*Captura!$C$19 ->  | T42: 3 | U42: 14 | V42: 0 | X42: =+V41*Captura!$O$9/12 -> 0 | Y42: 0 | Z42: 0 | AA42: =IF(U42=J$17,Captura!$M$33,0) -> 0 | AC42: =IF(U42+1>=$J$17,0,AC30*(1+Captura!$D$35)) -> 0 | AD42: =IF(U42+1>=$J$17,0,AD30*(1+Captura!$D$35)) -> 0 | AE42: =IF(U42+1>=$J$17,0,AE30*(1+Captura!$D$35)) -> 0 | AG42: =+(W42+AB42+AC42+AD42+AE42+AF42)*Captura!$C$19 -> 0 | AH42: 0 | AK42: 0
B43: 15 | C43: 2027-06-04 | D43: =IF(B43<J$17,Captura!$M$16,0)+Resumen!$K$29+Resumen!$K$30 ->  | H43: 0 | K43: =IF(B43+1>=$J$17,0,K31*(1+Captura!$D$35)) -> 0 | L43: =IF(B43+1>=$J$17,0,L31*(1+Captura!$D$35)) -> 0 | M43: =IF(B43+1>=$J$17,0,M31*(1+Captura!$D$35)) -> 0 | O43: =IF(B43=J$17,Captura!$M$29,0) -> 0 | P43: =SUM(D43:F43,I43:N43)*Captura!$C$19 ->  | T43: 4 | U43: 15 | V43: 0 | X43: =+V42*Captura!$O$9/12 -> 0 | Y43: 0 | Z43: 0 | AA43: =IF(U43=J$17,Captura!$M$33,0) -> 0 | AC43: =IF(U43+1>=$J$17,0,AC31*(1+Captura!$D$35)) -> 0 | AD43: =IF(U43+1>=$J$17,0,AD31*(1+Captura!$D$35)) -> 0 | AE43: =IF(U43+1>=$J$17,0,AE31*(1+Captura!$D$35)) -> 0 | AG43: =+(W43+AB43+AC43+AD43+AE43+AF43)*Captura!$C$19 -> 0 | AH43: 0 | AK43: 0
B44: 16 | C44: 2027-07-04 | D44: =IF(B44<J$17,Captura!$M$16,0)+Resumen!$K$29+Resumen!$K$30 ->  | H44: 0 | K44: =IF(B44+1>=$J$17,0,K32*(1+Captura!$D$35)) -> 0 | L44: =IF(B44+1>=$J$17,0,L32*(1+Captura!$D$35)) -> 0 | M44: =IF(B44+1>=$J$17,0,M32*(1+Captura!$D$35)) -> 0 | O44: =IF(B44=J$17,Captura!$M$29,0) -> 0 | P44: =SUM(D44:F44,I44:N44)*Captura!$C$19 ->  | T44: 5 | U44: 16 | V44: 0 | X44: =+V43*Captura!$O$9/12 -> 0 | Y44: 0 | Z44: 0 | AA44: =IF(U44=J$17,Captura!$M$33,0) -> 0 | AC44: =IF(U44+1>=$J$17,0,AC32*(1+Captura!$D$35)) -> 0 | AD44: =IF(U44+1>=$J$17,0,AD32*(1+Captura!$D$35)) -> 0 | AE44: =IF(U44+1>=$J$17,0,AE32*(1+Captura!$D$35)) -> 0 | AG44: =+(W44+AB44+AC44+AD44+AE44+AF44)*Captura!$C$19 -> 0 | AH44: 0 | AK44: 0
B45: 17 | C45: 2027-08-04 | D45: =IF(B45<J$17,Captura!$M$16,0)+Resumen!$K$29+Resumen!$K$30 ->  | H45: 0 | K45: =IF(B45+1>=$J$17,0,K33*(1+Captura!$D$35)) -> 0 | L45: =IF(B45+1>=$J$17,0,L33*(1+Captura!$D$35)) -> 0 | M45: =IF(B45+1>=$J$17,0,M33*(1+Captura!$D$35)) -> 0 | O45: =IF(B45=J$17,Captura!$M$29,0) -> 0 | P45: =SUM(D45:F45,I45:N45)*Captura!$C$19 ->  | T45: 6 | U45: 17 | V45: 0 | X45: =+V44*Captura!$O$9/12 -> 0 | Y45: 0 | Z45: 0 | AA45: =IF(U45=J$17,Captura!$M$33,0) -> 0 | AC45: =IF(U45+1>=$J$17,0,AC33*(1+Captura!$D$35)) -> 0 | AD45: =IF(U45+1>=$J$17,0,AD33*(1+Captura!$D$35)) -> 0 | AE45: =IF(U45+1>=$J$17,0,AE33*(1+Captura!$D$35)) -> 0 | AG45: =+(W45+AB45+AC45+AD45+AE45+AF45)*Captura!$C$19 -> 0 | AH45: 0 | AK45: 0
B46: 18 | C46: 2027-09-04 | D46: =IF(B46<J$17,Captura!$M$16,0)+Resumen!$K$29+Resumen!$K$30 ->  | H46: 0 | K46: =IF(B46+1>=$J$17,0,K34*(1+Captura!$D$35)) -> 0 | L46: =IF(B46+1>=$J$17,0,L34*(1+Captura!$D$35)) -> 0 | M46: =IF(B46+1>=$J$17,0,M34*(1+Captura!$D$35)) -> 0 | O46: =IF(B46=J$17,Captura!$M$29,0) -> 0 | P46: =SUM(D46:F46,I46:N46)*Captura!$C$19 ->  | T46: 7 | U46: 18 | V46: 0 | X46: =+V45*Captura!$O$9/12 -> 0 | Y46: 0 | Z46: 0 | AA46: =IF(U46=J$17,Captura!$M$33,0) -> 0 | AC46: =IF(U46+1>=$J$17,0,AC34*(1+Captura!$D$35)) -> 0 | AD46: =IF(U46+1>=$J$17,0,AD34*(1+Captura!$D$35)) -> 0 | AE46: =IF(U46+1>=$J$17,0,AE34*(1+Captura!$D$35)) -> 0 | AG46: =+(W46+AB46+AC46+AD46+AE46+AF46)*Captura!$C$19 -> 0 | AH46: 0 | AK46: 0
B47: 19 | C47: 2027-10-04 | D47: =IF(B47<J$17,Captura!$M$16,0)+Resumen!$K$29+Resumen!$K$30 ->  | H47: 0 | K47: =IF(B47+1>=$J$17,0,K35*(1+Captura!$D$35)) -> 0 | L47: =IF(B47+1>=$J$17,0,L35*(1+Captura!$D$35)) -> 0 | M47: =IF(B47+1>=$J$17,0,M35*(1+Captura!$D$35)) -> 0 | O47: =IF(B47=J$17,Captura!$M$29,0) -> 0 | P47: =SUM(D47:F47,I47:N47)*Captura!$C$19 ->  | T47: 8 | U47: 19 | V47: 0 | X47: =+V46*Captura!$O$9/12 -> 0 | Y47: 0 | Z47: 0 | AA47: =IF(U47=J$17,Captura!$M$33,0) -> 0 | AC47: =IF(U47+1>=$J$17,0,AC35*(1+Captura!$D$35)) -> 0 | AD47: =IF(U47+1>=$J$17,0,AD35*(1+Captura!$D$35)) -> 0 | AE47: =IF(U47+1>=$J$17,0,AE35*(1+Captura!$D$35)) -> 0 | AG47: =+(W47+AB47+AC47+AD47+AE47+AF47)*Captura!$C$19 -> 0 | AH47: 0 | AK47: 0
B48: 20 | C48: 2027-11-04 | D48: =IF(B48<J$17,Captura!$M$16,0)+Resumen!$K$29+Resumen!$K$30 ->  | H48: 0 | K48: =IF(B48+1>=$J$17,0,K36*(1+Captura!$D$35)) -> 0 | L48: =IF(B48+1>=$J$17,0,L36*(1+Captura!$D$35)) -> 0 | M48: =IF(B48+1>=$J$17,0,M36*(1+Captura!$D$35)) -> 0 | O48: =IF(B48=J$17,Captura!$M$29,0) -> 0 | P48: =SUM(D48:F48,I48:N48)*Captura!$C$19 ->  | T48: 9 | U48: 20 | V48: 0 | X48: =+V47*Captura!$O$9/12 -> 0 | Y48: 0 | Z48: 0 | AA48: =IF(U48=J$17,Captura!$M$33,0) -> 0 | AC48: =IF(U48+1>=$J$17,0,AC36*(1+Captura!$D$35)) -> 0 | AD48: =IF(U48+1>=$J$17,0,AD36*(1+Captura!$D$35)) -> 0 | AE48: =IF(U48+1>=$J$17,0,AE36*(1+Captura!$D$35)) -> 0 | AG48: =+(W48+AB48+AC48+AD48+AE48+AF48)*Captura!$C$19 -> 0 | AH48: 0 | AK48: 0
B49: 21 | C49: 2027-12-04 | D49: =IF(B49<J$17,Captura!$M$16,0)+Resumen!$K$29+Resumen!$K$30 ->  | H49: 0 | K49: =IF(B49+1>=$J$17,0,K37*(1+Captura!$D$35)) -> 0 | L49: =IF(B49+1>=$J$17,0,L37*(1+Captura!$D$35)) -> 0 | M49: =IF(B49+1>=$J$17,0,M37*(1+Captura!$D$35)) -> 0 | O49: =IF(B49=J$17,Captura!$M$29,0) -> 0 | P49: =SUM(D49:F49,I49:N49)*Captura!$C$19 ->  | T49: 10 | U49: 21 | V49: 0 | X49: =+V48*Captura!$O$9/12 -> 0 | Y49: 0 | Z49: 0 | AA49: =IF(U49=J$17,Captura!$M$33,0) -> 0 | AC49: =IF(U49+1>=$J$17,0,AC37*(1+Captura!$D$35)) -> 0 | AD49: =IF(U49+1>=$J$17,0,AD37*(1+Captura!$D$35)) -> 0 | AE49: =IF(U49+1>=$J$17,0,AE37*(1+Captura!$D$35)) -> 0 | AG49: =+(W49+AB49+AC49+AD49+AE49+AF49)*Captura!$C$19 -> 0 | AH49: 0 | AK49: 0
B50: 22 | C50: 2028-01-04 | D50: =IF(B50<J$17,Captura!$M$16,0)+Resumen!$K$29+Resumen!$K$30 ->  | H50: 0 | K50: =IF(B50+1>=$J$17,0,K38*(1+Captura!$D$35)) -> 0 | L50: =IF(B50+1>=$J$17,0,L38*(1+Captura!$D$35)) -> 0 | M50: =IF(B50+1>=$J$17,0,M38*(1+Captura!$D$35)) -> 0 | O50: =IF(B50=J$17,Captura!$M$29,0) -> 0 | P50: =SUM(D50:F50,I50:N50)*Captura!$C$19 ->  | T50: 11 | U50: 22 | V50: 0 | X50: =+V49*Captura!$O$9/12 -> 0 | Y50: 0 | Z50: 0 | AA50: =IF(U50=J$17,Captura!$M$33,0) -> 0 | AC50: =IF(U50+1>=$J$17,0,AC38*(1+Captura!$D$35)) -> 0 | AD50: =IF(U50+1>=$J$17,0,AD38*(1+Captura!$D$35)) -> 0 | AE50: =IF(U50+1>=$J$17,0,AE38*(1+Captura!$D$35)) -> 0 | AG50: =+(W50+AB50+AC50+AD50+AE50+AF50)*Captura!$C$19 -> 0 | AH50: 0 | AK50: 0
B51: 23 | C51: 2028-02-04 | D51: =IF(B51<J$17,Captura!$M$16,0)+Resumen!$K$29+Resumen!$K$30 ->  | H51: 0 | K51: =IF(B51+1>=$J$17,0,K39*(1+Captura!$D$35)) -> 0 | L51: =IF(B51+1>=$J$17,0,L39*(1+Captura!$D$35)) -> 0 | M51: =IF(B51+1>=$J$17,0,M39*(1+Captura!$D$35)) -> 0 | O51: =IF(B51=J$17,Captura!$M$29,0) -> 0 | P51: =SUM(D51:F51,I51:N51)*Captura!$C$19 ->  | T51: 12 | U51: 23 | V51: 0 | X51: =+V50*Captura!$O$9/12 -> 0 | Y51: 0 | Z51: 0 | AA51: =IF(U51=J$17,Captura!$M$33,0) -> 0 | AC51: =IF(U51+1>=$J$17,0,AC39*(1+Captura!$D$35)) -> 0 | AD51: =IF(U51+1>=$J$17,0,AD39*(1+Captura!$D$35)) -> 0 | AE51: =IF(U51+1>=$J$17,0,AE39*(1+Captura!$D$35)) -> 0 | AG51: =+(W51+AB51+AC51+AD51+AE51+AF51)*Captura!$C$19 -> 0 | AH51: 0 | AK51: 0
B52: 24 | C52: 2028-03-04 | D52: =IF(B52<J$17,Captura!$M$16,0)+Resumen!$K$29+Resumen!$K$30 ->  | H52: 0 | K52: =IF(B52+1>=$J$17,0,K40*(1+Captura!$D$35)) -> 0 | L52: =IF(B52+1>=$J$17,0,L40*(1+Captura!$D$35)) -> 0 | M52: =IF(B52+1>=$J$17,0,M40*(1+Captura!$D$35)) -> 0 | O52: =IF(B52=J$17,Captura!$M$29,0) -> 0 | P52: =SUM(D52:F52,I52:N52)*Captura!$C$19 ->  | T52: 1 | U52: 24 | V52: 0 | X52: =+V51*Captura!$O$9/12 -> 0 | Y52: 0 | Z52: 0 | AA52: =IF(U52=J$17,Captura!$M$33,0) -> 0 | AC52: =IF(U52+1>=$J$17,0,AC40*(1+Captura!$D$35)) -> 0 | AD52: =IF(U52+1>=$J$17,0,AD40*(1+Captura!$D$35)) -> 0 | AE52: =IF(U52+1>=$J$17,0,AE40*(1+Captura!$D$35)) -> 411.008 | AG52: =+(W52+AB52+AC52+AD52+AE52+AF52)*Captura!$C$19 -> 65.76128 | AH52: 476.76928 | AK52: -411.008
B53: 25 | C53: 2028-04-04 | D53: =IF(B53<J$17,Captura!$M$16,0)+Resumen!$K$29+Resumen!$K$30 ->  | H53: 0 | K53: =IF(B53+1>=$J$17,0,K41*(1+Captura!$D$35)) -> 0 | L53: =IF(B53+1>=$J$17,0,L41*(1+Captura!$D$35)) -> 0 | M53: =IF(B53+1>=$J$17,0,M41*(1+Captura!$D$35)) -> 0 | O53: =IF(B53=J$17,Captura!$M$29,0) -> 0 | P53: =SUM(D53:F53,I53:N53)*Captura!$C$19 ->  | T53: 2 | U53: 25 | V53: 0 | X53: =+V52*Captura!$O$9/12 -> 0 | Y53: 0 | Z53: 0 | AA53: =IF(U53=J$17,Captura!$M$33,0) -> 0 | AC53: =IF(U53+1>=$J$17,0,AC41*(1+Captura!$D$35)) -> 0 | AD53: =IF(U53+1>=$J$17,0,AD41*(1+Captura!$D$35)) -> 0 | AE53: =IF(U53+1>=$J$17,0,AE41*(1+Captura!$D$35)) -> 0 | AG53: =+(W53+AB53+AC53+AD53+AE53+AF53)*Captura!$C$19 -> 0 | AH53: 0 | AK53: 0
B54: 26 | C54: 2028-05-04 | D54: =IF(B54<J$17,Captura!$M$16,0)+Resumen!$K$29+Resumen!$K$30 ->  | H54: 0 | K54: =IF(B54+1>=$J$17,0,K42*(1+Captura!$D$35)) -> 0 | L54: =IF(B54+1>=$J$17,0,L42*(1+Captura!$D$35)) -> 0 | M54: =IF(B54+1>=$J$17,0,M42*(1+Captura!$D$35)) -> 0 | O54: =IF(B54=J$17,Captura!$M$29,0) -> 0 | P54: =SUM(D54:F54,I54:N54)*Captura!$C$19 ->  | T54: 3 | U54: 26 | V54: 0 | X54: =+V53*Captura!$O$9/12 -> 0 | Y54: 0 | Z54: 0 | AA54: =IF(U54=J$17,Captura!$M$33,0) -> 0 | AC54: =IF(U54+1>=$J$17,0,AC42*(1+Captura!$D$35)) -> 0 | AD54: =IF(U54+1>=$J$17,0,AD42*(1+Captura!$D$35)) -> 0 | AE54: =IF(U54+1>=$J$17,0,AE42*(1+Captura!$D$35)) -> 0 | AG54: =+(W54+AB54+AC54+AD54+AE54+AF54)*Captura!$C$19 -> 0 | AH54: 0 | AK54: 0
B55: 27 | C55: 2028-06-04 | D55: =IF(B55<J$17,Captura!$M$16,0)+Resumen!$K$29+Resumen!$K$30 ->  | H55: 0 | K55: =IF(B55+1>=$J$17,0,K43*(1+Captura!$D$35)) -> 0 | L55: =IF(B55+1>=$J$17,0,L43*(1+Captura!$D$35)) -> 0 | M55: =IF(B55+1>=$J$17,0,M43*(1+Captura!$D$35)) -> 0 | O55: =IF(B55=J$17,Captura!$M$29,0) -> 0 | P55: =SUM(D55:F55,I55:N55)*Captura!$C$19 ->  | T55: 4 | U55: 27 | V55: 0 | X55: =+V54*Captura!$O$9/12 -> 0 | Y55: 0 | Z55: 0 | AA55: =IF(U55=J$17,Captura!$M$33,0) -> 0 | AC55: =IF(U55+1>=$J$17,0,AC43*(1+Captura!$D$35)) -> 0 | AD55: =IF(U55+1>=$J$17,0,AD43*(1+Captura!$D$35)) -> 0 | AE55: =IF(U55+1>=$J$17,0,AE43*(1+Captura!$D$35)) -> 0 | AG55: =+(W55+AB55+AC55+AD55+AE55+AF55)*Captura!$C$19 -> 0 | AH55: 0 | AK55: 0
B56: 28 | C56: 2028-07-04 | D56: =IF(B56<J$17,Captura!$M$16,0)+Resumen!$K$29+Resumen!$K$30 ->  | H56: 0 | K56: =IF(B56+1>=$J$17,0,K44*(1+Captura!$D$35)) -> 0 | L56: =IF(B56+1>=$J$17,0,L44*(1+Captura!$D$35)) -> 0 | M56: =IF(B56+1>=$J$17,0,M44*(1+Captura!$D$35)) -> 0 | O56: =IF(B56=J$17,Captura!$M$29,0) -> 0 | P56: =SUM(D56:F56,I56:N56)*Captura!$C$19 ->  | T56: 5 | U56: 28 | V56: 0 | X56: =+V55*Captura!$O$9/12 -> 0 | Y56: 0 | Z56: 0 | AA56: =IF(U56=J$17,Captura!$M$33,0) -> 0 | AC56: =IF(U56+1>=$J$17,0,AC44*(1+Captura!$D$35)) -> 0 | AD56: =IF(U56+1>=$J$17,0,AD44*(1+Captura!$D$35)) -> 0 | AE56: =IF(U56+1>=$J$17,0,AE44*(1+Captura!$D$35)) -> 0 | AG56: =+(W56+AB56+AC56+AD56+AE56+AF56)*Captura!$C$19 -> 0 | AH56: 0 | AK56: 0
B57: 29 | C57: 2028-08-04 | D57: =IF(B57<J$17,Captura!$M$16,0)+Resumen!$K$29+Resumen!$K$30 ->  | H57: 0 | K57: =IF(B57+1>=$J$17,0,K45*(1+Captura!$D$35)) -> 0 | L57: =IF(B57+1>=$J$17,0,L45*(1+Captura!$D$35)) -> 0 | M57: =IF(B57+1>=$J$17,0,M45*(1+Captura!$D$35)) -> 0 | O57: =IF(B57=J$17,Captura!$M$29,0) -> 0 | P57: =SUM(D57:F57,I57:N57)*Captura!$C$19 ->  | T57: 6 | U57: 29 | V57: 0 | X57: =+V56*Captura!$O$9/12 -> 0 | Y57: 0 | Z57: 0 | AA57: =IF(U57=J$17,Captura!$M$33,0) -> 0 | AC57: =IF(U57+1>=$J$17,0,AC45*(1+Captura!$D$35)) -> 0 | AD57: =IF(U57+1>=$J$17,0,AD45*(1+Captura!$D$35)) -> 0 | AE57: =IF(U57+1>=$J$17,0,AE45*(1+Captura!$D$35)) -> 0 | AG57: =+(W57+AB57+AC57+AD57+AE57+AF57)*Captura!$C$19 -> 0 | AH57: 0 | AK57: 0
B58: 30 | C58: 2028-09-04 | D58: =IF(B58<J$17,Captura!$M$16,0)+Resumen!$K$29+Resumen!$K$30 ->  | H58: 0 | K58: =IF(B58+1>=$J$17,0,K46*(1+Captura!$D$35)) -> 0 | L58: =IF(B58+1>=$J$17,0,L46*(1+Captura!$D$35)) -> 0 | M58: =IF(B58+1>=$J$17,0,M46*(1+Captura!$D$35)) -> 0 | O58: =IF(B58=J$17,Captura!$M$29,0) -> 0 | P58: =SUM(D58:F58,I58:N58)*Captura!$C$19 ->  | T58: 7 | U58: 30 | V58: 0 | X58: =+V57*Captura!$O$9/12 -> 0 | Y58: 0 | Z58: 0 | AA58: =IF(U58=J$17,Captura!$M$33,0) -> 0 | AC58: =IF(U58+1>=$J$17,0,AC46*(1+Captura!$D$35)) -> 0 | AD58: =IF(U58+1>=$J$17,0,AD46*(1+Captura!$D$35)) -> 0 | AE58: =IF(U58+1>=$J$17,0,AE46*(1+Captura!$D$35)) -> 0 | AG58: =+(W58+AB58+AC58+AD58+AE58+AF58)*Captura!$C$19 -> 0 | AH58: 0 | AK58: 0
B59: 31 | C59: 2028-10-04 | D59: =IF(B59<J$17,Captura!$M$16,0)+Resumen!$K$29+Resumen!$K$30 ->  | H59: 0 | K59: =IF(B59+1>=$J$17,0,K47*(1+Captura!$D$35)) -> 0 | L59: =IF(B59+1>=$J$17,0,L47*(1+Captura!$D$35)) -> 0 | M59: =IF(B59+1>=$J$17,0,M47*(1+Captura!$D$35)) -> 0 | O59: =IF(B59=J$17,Captura!$M$29,0) -> 0 | P59: =SUM(D59:F59,I59:N59)*Captura!$C$19 ->  | T59: 8 | U59: 31 | V59: 0 | X59: =+V58*Captura!$O$9/12 -> 0 | Y59: 0 | Z59: 0 | AA59: =IF(U59=J$17,Captura!$M$33,0) -> 0 | AC59: =IF(U59+1>=$J$17,0,AC47*(1+Captura!$D$35)) -> 0 | AD59: =IF(U59+1>=$J$17,0,AD47*(1+Captura!$D$35)) -> 0 | AE59: =IF(U59+1>=$J$17,0,AE47*(1+Captura!$D$35)) -> 0 | AG59: =+(W59+AB59+AC59+AD59+AE59+AF59)*Captura!$C$19 -> 0 | AH59: 0 | AK59: 0
B60: 32 | C60: 2028-11-04 | D60: =IF(B60<J$17,Captura!$M$16,0)+Resumen!$K$29+Resumen!$K$30 ->  | H60: 0 | K60: =IF(B60+1>=$J$17,0,K48*(1+Captura!$D$35)) -> 0 | L60: =IF(B60+1>=$J$17,0,L48*(1+Captura!$D$35)) -> 0 | M60: =IF(B60+1>=$J$17,0,M48*(1+Captura!$D$35)) -> 0 | O60: =IF(B60=J$17,Captura!$M$29,0) -> 0 | P60: =SUM(D60:F60,I60:N60)*Captura!$C$19 ->  | T60: 9 | U60: 32 | V60: 0 | X60: =+V59*Captura!$O$9/12 -> 0 | Y60: 0 | Z60: 0 | AA60: =IF(U60=J$17,Captura!$M$33,0) -> 0 | AC60: =IF(U60+1>=$J$17,0,AC48*(1+Captura!$D$35)) -> 0 | AD60: =IF(U60+1>=$J$17,0,AD48*(1+Captura!$D$35)) -> 0 | AE60: =IF(U60+1>=$J$17,0,AE48*(1+Captura!$D$35)) -> 0 | AG60: =+(W60+AB60+AC60+AD60+AE60+AF60)*Captura!$C$19 -> 0 | AH60: 0 | AK60: 0
B61: 33 | C61: 2028-12-04 | D61: =IF(B61<J$17,Captura!$M$16,0)+Resumen!$K$29+Resumen!$K$30 ->  | H61: 0 | K61: =IF(B61+1>=$J$17,0,K49*(1+Captura!$D$35)) -> 0 | L61: =IF(B61+1>=$J$17,0,L49*(1+Captura!$D$35)) -> 0 | M61: =IF(B61+1>=$J$17,0,M49*(1+Captura!$D$35)) -> 0 | O61: =IF(B61=J$17,Captura!$M$29,0) -> 0 | P61: =SUM(D61:F61,I61:N61)*Captura!$C$19 ->  | T61: 10 | U61: 33 | V61: 0 | X61: =+V60*Captura!$O$9/12 -> 0 | Y61: 0 | Z61: 0 | AA61: =IF(U61=J$17,Captura!$M$33,0) -> 0 | AC61: =IF(U61+1>=$J$17,0,AC49*(1+Captura!$D$35)) -> 0 | AD61: =IF(U61+1>=$J$17,0,AD49*(1+Captura!$D$35)) -> 0 | AE61: =IF(U61+1>=$J$17,0,AE49*(1+Captura!$D$35)) -> 0 | AG61: =+(W61+AB61+AC61+AD61+AE61+AF61)*Captura!$C$19 -> 0 | AH61: 0 | AK61: 0
B62: 34 | C62: 2029-01-04 | D62: =IF(B62<J$17,Captura!$M$16,0)+Resumen!$K$29+Resumen!$K$30 ->  | H62: 0 | K62: =IF(B62+1>=$J$17,0,K50*(1+Captura!$D$35)) -> 0 | L62: =IF(B62+1>=$J$17,0,L50*(1+Captura!$D$35)) -> 0 | M62: =IF(B62+1>=$J$17,0,M50*(1+Captura!$D$35)) -> 0 | O62: =IF(B62=J$17,Captura!$M$29,0) -> 0 | P62: =SUM(D62:F62,I62:N62)*Captura!$C$19 ->  | T62: 11 | U62: 34 | V62: 0 | X62: =+V61*Captura!$O$9/12 -> 0 | Y62: 0 | Z62: 0 | AA62: =IF(U62=J$17,Captura!$M$33,0) -> 0 | AC62: =IF(U62+1>=$J$17,0,AC50*(1+Captura!$D$35)) -> 0 | AD62: =IF(U62+1>=$J$17,0,AD50*(1+Captura!$D$35)) -> 0 | AE62: =IF(U62+1>=$J$17,0,AE50*(1+Captura!$D$35)) -> 0 | AG62: =+(W62+AB62+AC62+AD62+AE62+AF62)*Captura!$C$19 -> 0 | AH62: 0 | AK62: 0
B63: 35 | C63: 2029-02-04 | D63: =IF(B63<J$17,Captura!$M$16,0)+Resumen!$K$29+Resumen!$K$30 ->  | H63: 0 | K63: =IF(B63+1>=$J$17,0,K51*(1+Captura!$D$35)) -> 0 | L63: =IF(B63+1>=$J$17,0,L51*(1+Captura!$D$35)) -> 0 | M63: =IF(B63+1>=$J$17,0,M51*(1+Captura!$D$35)) -> 0 | O63: =IF(B63=J$17,Captura!$M$29,0) -> 0 | P63: =SUM(D63:F63,I63:N63)*Captura!$C$19 ->  | T63: 12 | U63: 35 | V63: 0 | X63: =+V62*Captura!$O$9/12 -> 0 | Y63: 0 | Z63: 0 | AA63: =IF(U63=J$17,Captura!$M$33,0) -> 0 | AC63: =IF(U63+1>=$J$17,0,AC51*(1+Captura!$D$35)) -> 0 | AD63: =IF(U63+1>=$J$17,0,AD51*(1+Captura!$D$35)) -> 0 | AE63: =IF(U63+1>=$J$17,0,AE51*(1+Captura!$D$35)) -> 0 | AG63: =+(W63+AB63+AC63+AD63+AE63+AF63)*Captura!$C$19 -> 0 | AH63: 0 | AK63: 0
B64: 36 | C64: 2029-03-04 | D64: =IF(B64<J$17,Captura!$M$16,0) -> 0 | H64: 0 | K64: =IF(B64+1>=$J$17,0,K52*(1+Captura!$D$35)) -> 0 | L64: =IF(B64+1>=$J$17,0,L52*(1+Captura!$D$35)) -> 0 | M64: =IF(B64+1>=$J$17,0,M52*(1+Captura!$D$35)) -> 0 | O64: =IF(B64=J$17,Captura!$M$29,0) -> 0 | P64: =SUM(D64:F64,I64:N64)*Captura!$C$19 -> 0 | Q64: 0 | T64: 1 | U64: 36 | V64: 0 | X64: =+V63*Captura!$O$9/12 -> 0 | Y64: 0 | Z64: 0 | AA64: =IF(U64=J$17,Captura!$M$33,0) -> 0 | AC64: =IF(U64+1>=$J$17,0,AC52*(1+Captura!$D$35)) -> 0 | AD64: =IF(U64+1>=$J$17,0,AD52*(1+Captura!$D$35)) -> 0 | AE64: =IF(U64+1>=$J$17,0,AE52*(1+Captura!$D$35)) -> 0 | AG64: =+(W64+AB64+AC64+AD64+AE64+AF64)*Captura!$C$19 -> 0 | AH64: 0 | AJ64: 0 | AK64: 0
B65: 37 | C65: 2029-04-04 | D65: =IF(B65<J$17,Captura!$M$16,0) -> 0 | H65: 0 | K65: =IF(B65+1>=$J$17,0,K53*(1+Captura!$D$35)) -> 0 | L65: =IF(B65+1>=$J$17,0,L53*(1+Captura!$D$35)) -> 0 | M65: =IF(B65+1>=$J$17,0,M53*(1+Captura!$D$35)) -> 0 | O65: =IF(B65=J$17,Captura!$M$29,0) -> 0 | P65: =SUM(D65:F65,I65:N65)*Captura!$C$19 -> 0 | Q65: 0 | T65: 2 | U65: 37 | V65: 0 | X65: =+V64*Captura!$O$9/12 -> 0 | Y65: 0 | Z65: 0 | AA65: =IF(U65=J$17,Captura!$M$33,0) -> 0 | AC65: =IF(U65+1>=$J$17,0,AC53*(1+Captura!$D$35)) -> 0 | AD65: =IF(U65+1>=$J$17,0,AD53*(1+Captura!$D$35)) -> 0 | AE65: =IF(U65+1>=$J$17,0,AE53*(1+Captura!$D$35)) -> 0 | AG65: =+(W65+AB65+AC65+AD65+AE65+AF65)*Captura!$C$19 -> 0 | AH65: 0 | AJ65: 0 | AK65: 0
B66: 38 | C66: 2029-05-04 | D66: =IF(B66<J$17,Captura!$M$16,0) -> 0 | H66: 0 | K66: =IF(B66+1>=$J$17,0,K54*(1+Captura!$D$35)) -> 0 | L66: =IF(B66+1>=$J$17,0,L54*(1+Captura!$D$35)) -> 0 | M66: =IF(B66+1>=$J$17,0,M54*(1+Captura!$D$35)) -> 0 | O66: =IF(B66=J$17,Captura!$M$29,0) -> 0 | P66: =SUM(D66:F66,I66:N66)*Captura!$C$19 -> 0 | Q66: 0 | T66: 3 | U66: 38 | V66: 0 | X66: =+V65*Captura!$O$9/12 -> 0 | Y66: 0 | Z66: 0 | AA66: =IF(U66=J$17,Captura!$M$33,0) -> 0 | AC66: =IF(U66+1>=$J$17,0,AC54*(1+Captura!$D$35)) -> 0 | AD66: =IF(U66+1>=$J$17,0,AD54*(1+Captura!$D$35)) -> 0 | AE66: =IF(U66+1>=$J$17,0,AE54*(1+Captura!$D$35)) -> 0 | AG66: =+(W66+AB66+AC66+AD66+AE66+AF66)*Captura!$C$19 -> 0 | AH66: 0 | AJ66: 0 | AK66: 0
B67: 39 | C67: 2029-06-04 | D67: =IF(B67<J$17,Captura!$M$16,0) -> 0 | H67: 0 | K67: =IF(B67+1>=$J$17,0,K55*(1+Captura!$D$35)) -> 0 | L67: =IF(B67+1>=$J$17,0,L55*(1+Captura!$D$35)) -> 0 | M67: =IF(B67+1>=$J$17,0,M55*(1+Captura!$D$35)) -> 0 | O67: =IF(B67=J$17,Captura!$M$29,0) -> 0 | P67: =SUM(D67:F67,I67:N67)*Captura!$C$19 -> 0 | Q67: 0 | T67: 4 | U67: 39 | V67: 0 | X67: =+V66*Captura!$O$9/12 -> 0 | Y67: 0 | Z67: 0 | AA67: =IF(U67=J$17,Captura!$M$33,0) -> 0 | AC67: =IF(U67+1>=$J$17,0,AC55*(1+Captura!$D$35)) -> 0 | AD67: =IF(U67+1>=$J$17,0,AD55*(1+Captura!$D$35)) -> 0 | AE67: =IF(U67+1>=$J$17,0,AE55*(1+Captura!$D$35)) -> 0 | AG67: =+(W67+AB67+AC67+AD67+AE67+AF67)*Captura!$C$19 -> 0 | AH67: 0 | AJ67: 0 | AK67: 0
B68: 40 | C68: 2029-07-04 | D68: =IF(B68<J$17,Captura!$M$16,0) -> 0 | H68: 0 | K68: =IF(B68+1>=$J$17,0,K56*(1+Captura!$D$35)) -> 0 | L68: =IF(B68+1>=$J$17,0,L56*(1+Captura!$D$35)) -> 0 | M68: =IF(B68+1>=$J$17,0,M56*(1+Captura!$D$35)) -> 0 | O68: =IF(B68=J$17,Captura!$M$29,0) -> 0 | P68: =SUM(D68:F68,I68:N68)*Captura!$C$19 -> 0 | Q68: 0 | T68: 5 | U68: 40 | V68: 0 | X68: =+V67*Captura!$O$9/12 -> 0 | Y68: 0 | Z68: 0 | AA68: =IF(U68=J$17,Captura!$M$33,0) -> 0 | AC68: =IF(U68+1>=$J$17,0,AC56*(1+Captura!$D$35)) -> 0 | AD68: =IF(U68+1>=$J$17,0,AD56*(1+Captura!$D$35)) -> 0 | AE68: =IF(U68+1>=$J$17,0,AE56*(1+Captura!$D$35)) -> 0 | AG68: =+(W68+AB68+AC68+AD68+AE68+AF68)*Captura!$C$19 -> 0 | AH68: 0 | AJ68: 0 | AK68: 0
B69: 41 | C69: 2029-08-04 | D69: =IF(B69<J$17,Captura!$M$16,0) -> 0 | H69: 0 | K69: =IF(B69+1>=$J$17,0,K57*(1+Captura!$D$35)) -> 0 | L69: =IF(B69+1>=$J$17,0,L57*(1+Captura!$D$35)) -> 0 | M69: =IF(B69+1>=$J$17,0,M57*(1+Captura!$D$35)) -> 0 | O69: =IF(B69=J$17,Captura!$M$29,0) -> 0 | P69: =SUM(D69:F69,I69:N69)*Captura!$C$19 -> 0 | Q69: 0 | T69: 6 | U69: 41 | V69: 0 | X69: =+V68*Captura!$O$9/12 -> 0 | Y69: 0 | Z69: 0 | AA69: =IF(U69=J$17,Captura!$M$33,0) -> 0 | AC69: =IF(U69+1>=$J$17,0,AC57*(1+Captura!$D$35)) -> 0 | AD69: =IF(U69+1>=$J$17,0,AD57*(1+Captura!$D$35)) -> 0 | AE69: =IF(U69+1>=$J$17,0,AE57*(1+Captura!$D$35)) -> 0 | AG69: =+(W69+AB69+AC69+AD69+AE69+AF69)*Captura!$C$19 -> 0 | AH69: 0 | AJ69: 0 | AK69: 0
B70: 42 | C70: 2029-09-04 | D70: =IF(B70<J$17,Captura!$M$16,0) -> 0 | H70: 0 | K70: =IF(B70+1>=$J$17,0,K58*(1+Captura!$D$35)) -> 0 | L70: =IF(B70+1>=$J$17,0,L58*(1+Captura!$D$35)) -> 0 | M70: =IF(B70+1>=$J$17,0,M58*(1+Captura!$D$35)) -> 0 | O70: =IF(B70=J$17,Captura!$M$29,0) -> 0 | P70: =SUM(D70:F70,I70:N70)*Captura!$C$19 -> 0 | Q70: 0 | T70: 7 | U70: 42 | V70: 0 | X70: =+V69*Captura!$O$9/12 -> 0 | Y70: 0 | Z70: 0 | AA70: =IF(U70=J$17,Captura!$M$33,0) -> 0 | AC70: =IF(U70+1>=$J$17,0,AC58*(1+Captura!$D$35)) -> 0 | AD70: =IF(U70+1>=$J$17,0,AD58*(1+Captura!$D$35)) -> 0 | AE70: =IF(U70+1>=$J$17,0,AE58*(1+Captura!$D$35)) -> 0 | AG70: =+(W70+AB70+AC70+AD70+AE70+AF70)*Captura!$C$19 -> 0 | AH70: 0 | AJ70: 0 | AK70: 0
B71: 43 | C71: 2029-10-04 | D71: =IF(B71<J$17,Captura!$M$16,0) -> 0 | H71: 0 | K71: =IF(B71+1>=$J$17,0,K59*(1+Captura!$D$35)) -> 0 | L71: =IF(B71+1>=$J$17,0,L59*(1+Captura!$D$35)) -> 0 | M71: =IF(B71+1>=$J$17,0,M59*(1+Captura!$D$35)) -> 0 | O71: =IF(B71=J$17,Captura!$M$29,0) -> 0 | P71: =SUM(D71:F71,I71:N71)*Captura!$C$19 -> 0 | Q71: 0 | T71: 8 | U71: 43 | V71: 0 | X71: =+V70*Captura!$O$9/12 -> 0 | Y71: 0 | Z71: 0 | AA71: =IF(U71=J$17,Captura!$M$33,0) -> 0 | AC71: =IF(U71+1>=$J$17,0,AC59*(1+Captura!$D$35)) -> 0 | AD71: =IF(U71+1>=$J$17,0,AD59*(1+Captura!$D$35)) -> 0 | AE71: =IF(U71+1>=$J$17,0,AE59*(1+Captura!$D$35)) -> 0 | AG71: =+(W71+AB71+AC71+AD71+AE71+AF71)*Captura!$C$19 -> 0 | AH71: 0 | AJ71: 0 | AK71: 0
B72: 44 | C72: 2029-11-04 | D72: =IF(B72<J$17,Captura!$M$16,0) -> 0 | H72: 0 | K72: =IF(B72+1>=$J$17,0,K60*(1+Captura!$D$35)) -> 0 | L72: =IF(B72+1>=$J$17,0,L60*(1+Captura!$D$35)) -> 0 | M72: =IF(B72+1>=$J$17,0,M60*(1+Captura!$D$35)) -> 0 | O72: =IF(B72=J$17,Captura!$M$29,0) -> 0 | P72: =SUM(D72:F72,I72:N72)*Captura!$C$19 -> 0 | Q72: 0 | T72: 9 | U72: 44 | V72: 0 | X72: =+V71*Captura!$O$9/12 -> 0 | Y72: 0 | Z72: 0 | AA72: =IF(U72=J$17,Captura!$M$33,0) -> 0 | AC72: =IF(U72+1>=$J$17,0,AC60*(1+Captura!$D$35)) -> 0 | AD72: =IF(U72+1>=$J$17,0,AD60*(1+Captura!$D$35)) -> 0 | AE72: =IF(U72+1>=$J$17,0,AE60*(1+Captura!$D$35)) -> 0 | AG72: =+(W72+AB72+AC72+AD72+AE72+AF72)*Captura!$C$19 -> 0 | AH72: 0 | AJ72: 0 | AK72: 0
B73: 45 | C73: 2029-12-04 | D73: =IF(B73<J$17,Captura!$M$16,0) -> 0 | H73: 0 | K73: =IF(B73+1>=$J$17,0,K61*(1+Captura!$D$35)) -> 0 | L73: =IF(B73+1>=$J$17,0,L61*(1+Captura!$D$35)) -> 0 | M73: =IF(B73+1>=$J$17,0,M61*(1+Captura!$D$35)) -> 0 | O73: =IF(B73=J$17,Captura!$M$29,0) -> 0 | P73: =SUM(D73:F73,I73:N73)*Captura!$C$19 -> 0 | Q73: 0 | T73: 10 | U73: 45 | V73: 0 | X73: =+V72*Captura!$O$9/12 -> 0 | Y73: 0 | Z73: 0 | AA73: =IF(U73=J$17,Captura!$M$33,0) -> 0 | AC73: =IF(U73+1>=$J$17,0,AC61*(1+Captura!$D$35)) -> 0 | AD73: =IF(U73+1>=$J$17,0,AD61*(1+Captura!$D$35)) -> 0 | AE73: =IF(U73+1>=$J$17,0,AE61*(1+Captura!$D$35)) -> 0 | AG73: =+(W73+AB73+AC73+AD73+AE73+AF73)*Captura!$C$19 -> 0 | AH73: 0 | AJ73: 0 | AK73: 0
B74: 46 | C74: 2030-01-04 | D74: =IF(B74<J$17,Captura!$M$16,0) -> 0 | H74: 0 | K74: =IF(B74+1>=$J$17,0,K62*(1+Captura!$D$35)) -> 0 | L74: =IF(B74+1>=$J$17,0,L62*(1+Captura!$D$35)) -> 0 | M74: =IF(B74+1>=$J$17,0,M62*(1+Captura!$D$35)) -> 0 | O74: =IF(B74=J$17,Captura!$M$29,0) -> 0 | P74: =SUM(D74:F74,I74:N74)*Captura!$C$19 -> 0 | Q74: 0 | T74: 11 | U74: 46 | V74: 0 | X74: =+V73*Captura!$O$9/12 -> 0 | Y74: 0 | Z74: 0 | AA74: =IF(U74=J$17,Captura!$M$33,0) -> 0 | AC74: =IF(U74+1>=$J$17,0,AC62*(1+Captura!$D$35)) -> 0 | AD74: =IF(U74+1>=$J$17,0,AD62*(1+Captura!$D$35)) -> 0 | AE74: =IF(U74+1>=$J$17,0,AE62*(1+Captura!$D$35)) -> 0 | AG74: =+(W74+AB74+AC74+AD74+AE74+AF74)*Captura!$C$19 -> 0 | AH74: 0 | AJ74: 0 | AK74: 0
B75: 47 | C75: 2030-02-04 | D75: =IF(B75<J$17,Captura!$M$16,0) -> 0 | H75: 0 | K75: =IF(B75+1>=$J$17,0,K63*(1+Captura!$D$35)) -> 0 | L75: =IF(B75+1>=$J$17,0,L63*(1+Captura!$D$35)) -> 0 | M75: =IF(B75+1>=$J$17,0,M63*(1+Captura!$D$35)) -> 0 | O75: =IF(B75=J$17,Captura!$M$29,0) -> 0 | P75: =SUM(D75:F75,I75:N75)*Captura!$C$19 -> 0 | Q75: 0 | T75: 12 | U75: 47 | V75: 0 | X75: =+V74*Captura!$O$9/12 -> 0 | Y75: 0 | Z75: 0 | AA75: =IF(U75=J$17,Captura!$M$33,0) -> 0 | AC75: =IF(U75+1>=$J$17,0,AC63*(1+Captura!$D$35)) -> 0 | AD75: =IF(U75+1>=$J$17,0,AD63*(1+Captura!$D$35)) -> 0 | AE75: =IF(U75+1>=$J$17,0,AE63*(1+Captura!$D$35)) -> 0 | AG75: =+(W75+AB75+AC75+AD75+AE75+AF75)*Captura!$C$19 -> 0 | AH75: 0 | AJ75: 0 | AK75: 0
B76: 48 | C76: 2030-03-04 | D76: =IF(B76<J$17,Captura!$M$16,0) -> 0 | H76: 0 | K76: =IF(B76+1>=$J$17,0,K64*(1+Captura!$D$35)) -> 0 | L76: =IF(B76+1>=$J$17,0,L64*(1+Captura!$D$35)) -> 0 | M76: =IF(B76+1>=$J$17,0,M64*(1+Captura!$D$35)) -> 0 | O76: =IF(B76=J$17,Captura!$M$29,0) -> 0 | P76: =SUM(D76:F76,I76:N76)*Captura!$C$19 -> 0 | Q76: 0 | T76: 1 | U76: 48 | V76: 0 | X76: =+V75*Captura!$O$9/12 -> 0 | Y76: 0 | Z76: 0 | AA76: =IF(U76=J$17,Captura!$M$33,0) -> 0 | AC76: =IF(U76+1>=$J$17,0,AC64*(1+Captura!$D$35)) -> 0 | AD76: =IF(U76+1>=$J$17,0,AD64*(1+Captura!$D$35)) -> 0 | AE76: =IF(U76+1>=$J$17,0,AE64*(1+Captura!$D$35)) -> 0 | AG76: =+(W76+AB76+AC76+AD76+AE76+AF76)*Captura!$C$19 -> 0 | AH76: 0 | AJ76: 0 | AK76: 0
B77: 49 | C77: 2030-04-04 | D77: =IF(B77<J$17,Captura!$M$16,0) -> 0 | H77: 0 | K77: =IF(B77+1>=$J$17,0,K65*(1+Captura!$D$35)) -> 0 | L77: =IF(B77+1>=$J$17,0,L65*(1+Captura!$D$35)) -> 0 | M77: =IF(B77+1>=$J$17,0,M65*(1+Captura!$D$35)) -> 0 | O77: =IF(B77=J$17,Captura!$M$29,0) -> 0 | P77: =SUM(D77:F77,I77:N77)*Captura!$C$19 -> 0 | Q77: 0 | T77: 2 | U77: 49 | V77: 0 | X77: =+V76*Captura!$O$9/12 -> 0 | Y77: 0 | Z77: 0 | AA77: =IF(U77=J$17,Captura!$M$33,0) -> 0 | AC77: =IF(U77+1>=$J$17,0,AC65*(1+Captura!$D$35)) -> 0 | AD77: =IF(U77+1>=$J$17,0,AD65*(1+Captura!$D$35)) -> 0 | AE77: =IF(U77+1>=$J$17,0,AE65*(1+Captura!$D$35)) -> 0 | AG77: =+(W77+AB77+AC77+AD77+AE77+AF77)*Captura!$C$19 -> 0 | AH77: 0 | AJ77: 0 | AK77: 0
B78: 50 | C78: 2030-05-04 | D78: =IF(B78<J$17,Captura!$M$16,0) -> 0 | H78: 0 | K78: =IF(B78+1>=$J$17,0,K66*(1+Captura!$D$35)) -> 0 | L78: =IF(B78+1>=$J$17,0,L66*(1+Captura!$D$35)) -> 0 | M78: =IF(B78+1>=$J$17,0,M66*(1+Captura!$D$35)) -> 0 | O78: =IF(B78=J$17,Captura!$M$29,0) -> 0 | P78: =SUM(D78:F78,I78:N78)*Captura!$C$19 -> 0 | Q78: 0 | T78: 3 | U78: 50 | V78: 0 | X78: =+V77*Captura!$O$9/12 -> 0 | Y78: 0 | Z78: 0 | AA78: =IF(U78=J$17,Captura!$M$33,0) -> 0 | AC78: =IF(U78+1>=$J$17,0,AC66*(1+Captura!$D$35)) -> 0 | AD78: =IF(U78+1>=$J$17,0,AD66*(1+Captura!$D$35)) -> 0 | AE78: =IF(U78+1>=$J$17,0,AE66*(1+Captura!$D$35)) -> 0 | AG78: =+(W78+AB78+AC78+AD78+AE78+AF78)*Captura!$C$19 -> 0 | AH78: 0 | AJ78: 0 | AK78: 0
B79: 51 | C79: 2030-06-04 | D79: =IF(B79<J$17,Captura!$M$16,0) -> 0 | H79: 0 | K79: =IF(B79+1>=$J$17,0,K67*(1+Captura!$D$35)) -> 0 | L79: =IF(B79+1>=$J$17,0,L67*(1+Captura!$D$35)) -> 0 | M79: =IF(B79+1>=$J$17,0,M67*(1+Captura!$D$35)) -> 0 | O79: =IF(B79=J$17,Captura!$M$29,0) -> 0 | P79: =SUM(D79:F79,I79:N79)*Captura!$C$19 -> 0 | Q79: 0 | T79: 4 | U79: 51 | V79: 0 | X79: =+V78*Captura!$O$9/12 -> 0 | Y79: 0 | Z79: 0 | AA79: =IF(U79=J$17,Captura!$M$33,0) -> 0 | AC79: =IF(U79+1>=$J$17,0,AC67*(1+Captura!$D$35)) -> 0 | AD79: =IF(U79+1>=$J$17,0,AD67*(1+Captura!$D$35)) -> 0 | AE79: =IF(U79+1>=$J$17,0,AE67*(1+Captura!$D$35)) -> 0 | AG79: =+(W79+AB79+AC79+AD79+AE79+AF79)*Captura!$C$19 -> 0 | AH79: 0 | AJ79: 0 | AK79: 0
B80: 52 | C80: 2030-07-04 | D80: =IF(B80<J$17,Captura!$M$16,0) -> 0 | H80: 0 | K80: =IF(B80+1>=$J$17,0,K68*(1+Captura!$D$35)) -> 0 | L80: =IF(B80+1>=$J$17,0,L68*(1+Captura!$D$35)) -> 0 | M80: =IF(B80+1>=$J$17,0,M68*(1+Captura!$D$35)) -> 0 | O80: =IF(B80=J$17,Captura!$M$29,0) -> 0 | P80: =SUM(D80:F80,I80:N80)*Captura!$C$19 -> 0 | Q80: 0 | T80: 5 | U80: 52 | V80: 0 | X80: =+V79*Captura!$O$9/12 -> 0 | Y80: 0 | Z80: 0 | AA80: =IF(U80=J$17,Captura!$M$33,0) -> 0 | AC80: =IF(U80+1>=$J$17,0,AC68*(1+Captura!$D$35)) -> 0 | AD80: =IF(U80+1>=$J$17,0,AD68*(1+Captura!$D$35)) -> 0 | AE80: =IF(U80+1>=$J$17,0,AE68*(1+Captura!$D$35)) -> 0 | AG80: =+(W80+AB80+AC80+AD80+AE80+AF80)*Captura!$C$19 -> 0 | AH80: 0 | AJ80: 0 | AK80: 0
B81: 53 | C81: 2030-08-04 | D81: =IF(B81<J$17,Captura!$M$16,0) -> 0 | H81: 0 | K81: =IF(B81+1>=$J$17,0,K69*(1+Captura!$D$35)) -> 0 | L81: =IF(B81+1>=$J$17,0,L69*(1+Captura!$D$35)) -> 0 | M81: =IF(B81+1>=$J$17,0,M69*(1+Captura!$D$35)) -> 0 | O81: =IF(B81=J$17,Captura!$M$29,0) -> 0 | P81: =SUM(D81:F81,I81:N81)*Captura!$C$19 -> 0 | Q81: 0 | T81: 6 | U81: 53 | V81: 0 | X81: =+V80*Captura!$O$9/12 -> 0 | Y81: 0 | Z81: 0 | AA81: =IF(U81=J$17,Captura!$M$33,0) -> 0 | AC81: =IF(U81+1>=$J$17,0,AC69*(1+Captura!$D$35)) -> 0 | AD81: =IF(U81+1>=$J$17,0,AD69*(1+Captura!$D$35)) -> 0 | AE81: =IF(U81+1>=$J$17,0,AE69*(1+Captura!$D$35)) -> 0 | AG81: =+(W81+AB81+AC81+AD81+AE81+AF81)*Captura!$C$19 -> 0 | AH81: 0 | AJ81: 0 | AK81: 0
B82: 54 | C82: 2030-09-04 | D82: =IF(B82<J$17,Captura!$M$16,0) -> 0 | H82: 0 | K82: =IF(B82+1>=$J$17,0,K70*(1+Captura!$D$35)) -> 0 | L82: =IF(B82+1>=$J$17,0,L70*(1+Captura!$D$35)) -> 0 | M82: =IF(B82+1>=$J$17,0,M70*(1+Captura!$D$35)) -> 0 | O82: =IF(B82=J$17,Captura!$M$29,0) -> 0 | P82: =SUM(D82:F82,I82:N82)*Captura!$C$19 -> 0 | Q82: 0 | T82: 7 | U82: 54 | V82: 0 | X82: =+V81*Captura!$O$9/12 -> 0 | Y82: 0 | Z82: 0 | AA82: =IF(U82=J$17,Captura!$M$33,0) -> 0 | AC82: =IF(U82+1>=$J$17,0,AC70*(1+Captura!$D$35)) -> 0 | AD82: =IF(U82+1>=$J$17,0,AD70*(1+Captura!$D$35)) -> 0 | AE82: =IF(U82+1>=$J$17,0,AE70*(1+Captura!$D$35)) -> 0 | AG82: =+(W82+AB82+AC82+AD82+AE82+AF82)*Captura!$C$19 -> 0 | AH82: 0 | AJ82: 0 | AK82: 0
B83: 55 | C83: 2030-10-04 | D83: =IF(B83<J$17,Captura!$M$16,0) -> 0 | H83: 0 | K83: =IF(B83+1>=$J$17,0,K71*(1+Captura!$D$35)) -> 0 | L83: =IF(B83+1>=$J$17,0,L71*(1+Captura!$D$35)) -> 0 | M83: =IF(B83+1>=$J$17,0,M71*(1+Captura!$D$35)) -> 0 | O83: =IF(B83=J$17,Captura!$M$29,0) -> 0 | P83: =SUM(D83:F83,I83:N83)*Captura!$C$19 -> 0 | Q83: 0 | T83: 8 | U83: 55 | V83: 0 | X83: =+V82*Captura!$O$9/12 -> 0 | Y83: 0 | Z83: 0 | AA83: =IF(U83=J$17,Captura!$M$33,0) -> 0 | AC83: =IF(U83+1>=$J$17,0,AC71*(1+Captura!$D$35)) -> 0 | AD83: =IF(U83+1>=$J$17,0,AD71*(1+Captura!$D$35)) -> 0 | AE83: =IF(U83+1>=$J$17,0,AE71*(1+Captura!$D$35)) -> 0 | AG83: =+(W83+AB83+AC83+AD83+AE83+AF83)*Captura!$C$19 -> 0 | AH83: 0 | AJ83: 0 | AK83: 0
B84: 56 | C84: 2030-11-04 | D84: =IF(B84<J$17,Captura!$M$16,0) -> 0 | H84: 0 | K84: =IF(B84+1>=$J$17,0,K72*(1+Captura!$D$35)) -> 0 | L84: =IF(B84+1>=$J$17,0,L72*(1+Captura!$D$35)) -> 0 | M84: =IF(B84+1>=$J$17,0,M72*(1+Captura!$D$35)) -> 0 | O84: =IF(B84=J$17,Captura!$M$29,0) -> 0 | P84: =SUM(D84:F84,I84:N84)*Captura!$C$19 -> 0 | Q84: 0 | T84: 9 | U84: 56 | V84: 0 | X84: =+V83*Captura!$O$9/12 -> 0 | Y84: 0 | Z84: 0 | AA84: =IF(U84=J$17,Captura!$M$33,0) -> 0 | AC84: =IF(U84+1>=$J$17,0,AC72*(1+Captura!$D$35)) -> 0 | AD84: =IF(U84+1>=$J$17,0,AD72*(1+Captura!$D$35)) -> 0 | AE84: =IF(U84+1>=$J$17,0,AE72*(1+Captura!$D$35)) -> 0 | AG84: =+(W84+AB84+AC84+AD84+AE84+AF84)*Captura!$C$19 -> 0 | AH84: 0 | AJ84: 0 | AK84: 0
B85: 57 | C85: 2030-12-04 | D85: =IF(B85<J$17,Captura!$M$16,0) -> 0 | H85: 0 | K85: =IF(B85+1>=$J$17,0,K73*(1+Captura!$D$35)) -> 0 | L85: =IF(B85+1>=$J$17,0,L73*(1+Captura!$D$35)) -> 0 | M85: =IF(B85+1>=$J$17,0,M73*(1+Captura!$D$35)) -> 0 | O85: =IF(B85=J$17,Captura!$M$29,0) -> 0 | P85: =SUM(D85:F85,I85:N85)*Captura!$C$19 -> 0 | Q85: 0 | T85: 10 | U85: 57 | V85: 0 | X85: =+V84*Captura!$O$9/12 -> 0 | Y85: 0 | Z85: 0 | AA85: =IF(U85=J$17,Captura!$M$33,0) -> 0 | AC85: =IF(U85+1>=$J$17,0,AC73*(1+Captura!$D$35)) -> 0 | AD85: =IF(U85+1>=$J$17,0,AD73*(1+Captura!$D$35)) -> 0 | AE85: =IF(U85+1>=$J$17,0,AE73*(1+Captura!$D$35)) -> 0 | AG85: =+(W85+AB85+AC85+AD85+AE85+AF85)*Captura!$C$19 -> 0 | AH85: 0 | AJ85: 0 | AK85: 0
B86: 58 | C86: 2031-01-04 | D86: =IF(B86<J$17,Captura!$M$16,0) -> 0 | H86: 0 | K86: =IF(B86+1>=$J$17,0,K74*(1+Captura!$D$35)) -> 0 | L86: =IF(B86+1>=$J$17,0,L74*(1+Captura!$D$35)) -> 0 | M86: =IF(B86+1>=$J$17,0,M74*(1+Captura!$D$35)) -> 0 | O86: =IF(B86=J$17,Captura!$M$29,0) -> 0 | P86: =SUM(D86:F86,I86:N86)*Captura!$C$19 -> 0 | Q86: 0 | T86: 11 | U86: 58 | V86: 0 | X86: =+V85*Captura!$O$9/12 -> 0 | Y86: 0 | Z86: 0 | AA86: =IF(U86=J$17,Captura!$M$33,0) -> 0 | AC86: =IF(U86+1>=$J$17,0,AC74*(1+Captura!$D$35)) -> 0 | AD86: =IF(U86+1>=$J$17,0,AD74*(1+Captura!$D$35)) -> 0 | AE86: =IF(U86+1>=$J$17,0,AE74*(1+Captura!$D$35)) -> 0 | AG86: =+(W86+AB86+AC86+AD86+AE86+AF86)*Captura!$C$19 -> 0 | AH86: 0 | AJ86: 0 | AK86: 0
B87: 59 | C87: 2031-02-04 | D87: =IF(B87<J$17,Captura!$M$16,0) -> 0 | H87: 0 | K87: =IF(B87+1>=$J$17,0,K75*(1+Captura!$D$35)) -> 0 | L87: =IF(B87+1>=$J$17,0,L75*(1+Captura!$D$35)) -> 0 | M87: =IF(B87+1>=$J$17,0,M75*(1+Captura!$D$35)) -> 0 | O87: =IF(B87=J$17,Captura!$M$29,0) -> 0 | P87: =SUM(D87:F87,I87:N87)*Captura!$C$19 -> 0 | Q87: 0 | T87: 12 | U87: 59 | V87: 0 | X87: =+V86*Captura!$O$9/12 -> 0 | Y87: 0 | Z87: 0 | AA87: =IF(U87=J$17,Captura!$M$33,0) -> 0 | AC87: =IF(U87+1>=$J$17,0,AC75*(1+Captura!$D$35)) -> 0 | AD87: =IF(U87+1>=$J$17,0,AD75*(1+Captura!$D$35)) -> 0 | AE87: =IF(U87+1>=$J$17,0,AE75*(1+Captura!$D$35)) -> 0 | AG87: =+(W87+AB87+AC87+AD87+AE87+AF87)*Captura!$C$19 -> 0 | AH87: 0 | AJ87: 0 | AK87: 0
B88: 60 | C88: 2031-03-04 | D88: =IF(B88<J$17,Captura!$M$16,0) -> 0 | H88: 0 | K88: =IF(B88+1>=$J$17,0,K76*(1+Captura!$D$35)) -> 0 | L88: =IF(B88+1>=$J$17,0,L76*(1+Captura!$D$35)) -> 0 | M88: =IF(B88+1>=$J$17,0,M76*(1+Captura!$D$35)) -> 0 | O88: =IF(B88=J$17,Captura!$M$29,0) -> 0 | P88: =SUM(D88:F88,I88:N88)*Captura!$C$19 -> 0 | Q88: 0 | T88: 1 | U88: 60 | V88: 0 | X88: =+V87*Captura!$O$9/12 -> 0 | Y88: 0 | Z88: 0 | AA88: =IF(U88=J$17,Captura!$M$33,0) -> 0 | AC88: =IF(U88+1>=$J$17,0,AC76*(1+Captura!$D$35)) -> 0 | AD88: =IF(U88+1>=$J$17,0,AD76*(1+Captura!$D$35)) -> 0 | AE88: =IF(U88+1>=$J$17,0,AE76*(1+Captura!$D$35)) -> 0 | AG88: =+(W88+AB88+AC88+AD88+AE88+AF88)*Captura!$C$19 -> 0 | AH88: 0 | AJ88: 0 | AK88: 0
B92: Notas:
B93: 1. Esta cotización no es una autorización y no representa ninguna obligación para Leasing Mobile de México, S. A. de C. V.
B94: 2. La información descrita en el presente documento está sujeta a cambios sin previo aviso.
B95: 3. Esta cotización no considera gastos que el equipo requiera para su adquisición, uso o mantenimiento.
B96: 4. Las rentas en depósito serán devueltas al cumplimiento de todas las obligaciones contractauales del Arrendatario.
B107: __________________________________
B108: Leasing Mobile de Mexico, SA de CV
B109: =+Captura!D31 -> xxxx
B110: =+Captura!D32 -> xxxx
B111: =+Captura!D33 -> xxxx

Sheet Plazo 4 (hidden)
B7: Cotización
B8: Arrendamiento Puro
P10: =+Captura!N3 -> 2026-03-04
B12: Cliente: | E12: =+Captura!D7 -> 0 | J12: Teléfono | K12: =+Captura!D9 -> 0
B13: Atención: | E13: =+Captura!D8 -> 0 | J13: E-mail | K13: =+Captura!D10 -> 0
Q14: =+Captura!O40 -> v. 20240220
B17: Tipo de equipo | E17: =+Captura!T7 -> Vehículo utilitario | H17: Plazo del arrendamiento | J17: =+Captura!N13 -> 48 | L17: Gestoría y Registro | N17: =+Captura!F23 -> Pago único | AJ17: Valor presente de flujos
B18: Estado del equipo | E18: =+Captura!T17 -> Nuevo | H18: No. de rentas en depósito | J18: =+Captura!K8 -> 1 | L18: Equipo de geolocalizacióon | N18: =+Captura!F24 -> Pago único | Q18: =+Captura!N36 -> 0 | AJ18: =NPV(Captura!$D$35/12,AJ29:AJ88)+AJ28 ->  | AK18: =NPV(Captura!$D$35/12,AK29:AK88)+AK28 -> -1518.37624
B19: Descripción | E19: =+Captura!D15 -> 0 | H19: Comisión de apertura | J19: =+Captura!K9 -> 0.03 | L19: Seguro de daños | N19: =+Captura!T26 -> Pago en renta | AJ19: Tasa Interna de Retorno
H20: Anticipo | J20: =+Captura!K10 -> 0 | L20: Placas y Tenencia | N20: =+Captura!T33 -> Pago anual | AJ20: =IRR(AJ28:AJ88,0.01)*12 ->  | AK20: =IRR(AK28:AK88,0.01)*12 -> 
H21: Residual estimado | J21: Valor mercado | L21: Servicio de geolocalización | N21: =+Captura!T40 -> Pago anual | Q21: =+Captura!N37 -> Positivo | AJ21: Capital Req. | AK21: =+Captura!N34 -> 0
B22: Valor factura sin IVA | E22: =+Captura!G18 -> 0 | L22: =+Captura!I25 -> Otro | N22: =+Captura!F28 -> 0 | AJ22: VP / CR | AK22: =+(AJ18+AK18)/AK21 -> 
B23: IVA | E23: =+Captura!G19 -> 0 | Q23: Regresar
B24: Valor factua con IVA | E24: =+Captura!G20 -> 0 | AJ24: Indicador anualizado | AK24: =+AK22/J17*12 -> 
B26: Periodo | C26: Mes | D26: Renta | E26: Anticipo | F26: Comisión de apertura | G26: Rentas en depósito | H26: Devolución de rentas en depósito | I26: Gestoría y Registro | J26: Equipo de geo localización | K26: Seguro de daños | L26: Placas y Tenencia | M26: Servicio de geo localización | N26: =+L22 -> Otro | O26: Residual estimado | P26: IVA | Q26: TOTAL | T26: Mes | U26: Periodo | V26: Fondeo | W26: Comisión de apertura | X26: Intereses | Y26: Capital | Z26: Pago | AA26: Bullet | AB26: Equipo de geo localización | AC26: Seguro de daños | AD26: Placas y Tenencia | AE26: Servicio de geo localización | AF26: Otro | AG26: IVA | AH26: TOTAL | AJ26: Flujo Activo sin IVA | AK26: Flujo Pasivo sin IVA
B28: 0 | C28: =+P10 -> 2026-03-04 | D28: =+Captura!N16+Resumen!M29+Resumen!L30 ->  | E28: =+Captura!K10 -> 0 | F28: =+Captura!N18 -> 0 | G28: =+Captura!N19 -> 0 | H28: =IF(B28=J$17,-G$28,0) -> 0 | I28: =+Captura!N20 -> 0 | J28: =+Captura!N21 -> 0 | K28: =+Captura!N22 -> 0 | L28: =+Captura!N23 -> 0 | M28: =+Captura!N24 -> 0 | N28: =+Captura!N25 -> 0 | O28: =IF(B28=J$17,Captura!$N$29,0) -> 0 | P28: =SUM(D28:F28,I28:N28)*Captura!$C$19 ->  | Q28: =SUM(D28:P28)-O28 ->  | T28: 1 | U28: =+B28 -> 0 | V28: =+Captura!O8 -> 0 | W28: =+Captura!N31 -> 0 | AB28: =+J28 -> 0 | AC28: =+Captura!G25 -> 0 | AD28: =+Captura!G26 -> 0 | AE28: =+Captura!G27 -> 380 | AF28: =+N28 -> 0 | AG28: =+(W28+AB28+AC28+AD28+AE28+AF28)*Captura!$C$19 -> 60.8 | AH28: =SUM(W28,Z28:AG28) -> 440.8 | AJ28: =-E22+(Q28-P28)+O28 ->  | AK28: =+V28-(AH28-AG28) -> -380
B29: 1 | C29: =EDATE(C28,1) -> 2026-04-04 | D29: =IF(B29<J$17,Captura!$N$16,0)+Resumen!$L$29+Resumen!$L$30 ->  | H29: 0 | K29: 0 | L29: 0 | M29: 0 | O29: =IF(B29=J$17,Captura!$N$29,0) -> 0 | P29: =SUM(D29:F29,I29:N29)*Captura!$C$19 ->  | Q29: =SUM(D29:P29)-O29 ->  | T29: =IF(T28=12,1,T28+1) -> 2 | U29: =+B29 -> 1 | V29: =+V28-Y29-AA29 -> 0 | X29: =+V28*Captura!$O$9/12 -> 0 | Y29: =+Z29-X29 -> 0 | Z29: =+Captura!N30 -> 0 | AA29: =IF(U29=J$17,Captura!$N$33,0) -> 0 | AC29: 0 | AD29: 0 | AE29: 0 | AG29: =+(W29+AB29+AC29+AD29+AE29+AF29)*Captura!$C$19 -> 0 | AH29: =SUM(W29,Z29:AG29) -> 0 | AJ29: =Q29-P29+O29 ->  | AK29: =-(AH29-AG29) -> 0
B30: 2 | C30: =EDATE(C29,1) -> 2026-05-04 | D30: =IF(B30<J$17,Captura!$N$16,0)+Resumen!$L$29+Resumen!$L$30 ->  | H30: 0 | K30: 0 | L30: 0 | M30: 0 | O30: =IF(B30=J$17,Captura!$N$29,0) -> 0 | P30: =SUM(D30:F30,I30:N30)*Captura!$C$19 ->  | T30: =IF(T29=12,1,T29+1) -> 3 | U30: 2 | V30: =+V29-Y30-AA30 -> 0 | X30: =+V29*Captura!$O$9/12 -> 0 | Y30: =+Z30-X30 -> 0 | Z30: =IF(U30>J$17,0,Z29) -> 0 | AA30: =IF(U30=J$17,Captura!$N$33,0) -> 0 | AC30: 0 | AD30: 0 | AE30: 0 | AG30: =+(W30+AB30+AC30+AD30+AE30+AF30)*Captura!$C$19 -> 0 | AH30: 0 | AJ30: =Q30-P30+O30 ->  | AK30: =-(AH30-AG30) -> 0
B31: 3 | C31: 2026-06-04 | D31: =IF(B31<J$17,Captura!$N$16,0)+Resumen!$L$29+Resumen!$L$30 ->  | H31: 0 | K31: 0 | L31: 0 | M31: 0 | O31: =IF(B31=J$17,Captura!$N$29,0) -> 0 | P31: =SUM(D31:F31,I31:N31)*Captura!$C$19 ->  | T31: 4 | U31: 3 | V31: 0 | X31: =+V30*Captura!$O$9/12 -> 0 | Y31: 0 | Z31: =IF(U31>J$17,0,Z30) -> 0 | AA31: =IF(U31=J$17,Captura!$N$33,0) -> 0 | AC31: 0 | AD31: 0 | AE31: 0 | AG31: =+(W31+AB31+AC31+AD31+AE31+AF31)*Captura!$C$19 -> 0 | AH31: 0 | AK31: 0
B32: 4 | C32: 2026-07-04 | D32: =IF(B32<J$17,Captura!$N$16,0)+Resumen!$L$29+Resumen!$L$30 ->  | H32: 0 | K32: 0 | L32: 0 | M32: 0 | O32: =IF(B32=J$17,Captura!$N$29,0) -> 0 | P32: =SUM(D32:F32,I32:N32)*Captura!$C$19 ->  | T32: 5 | U32: 4 | V32: 0 | X32: =+V31*Captura!$O$9/12 -> 0 | Y32: 0 | Z32: 0 | AA32: =IF(U32=J$17,Captura!$N$33,0) -> 0 | AC32: 0 | AD32: 0 | AE32: 0 | AG32: =+(W32+AB32+AC32+AD32+AE32+AF32)*Captura!$C$19 -> 0 | AH32: 0 | AK32: 0
B33: 5 | C33: 2026-08-04 | D33: =IF(B33<J$17,Captura!$N$16,0)+Resumen!$L$29+Resumen!$L$30 ->  | H33: 0 | K33: 0 | L33: 0 | M33: 0 | O33: =IF(B33=J$17,Captura!$N$29,0) -> 0 | P33: =SUM(D33:F33,I33:N33)*Captura!$C$19 ->  | T33: 6 | U33: 5 | V33: 0 | X33: =+V32*Captura!$O$9/12 -> 0 | Y33: 0 | Z33: 0 | AA33: =IF(U33=J$17,Captura!$N$33,0) -> 0 | AC33: 0 | AD33: 0 | AE33: 0 | AG33: =+(W33+AB33+AC33+AD33+AE33+AF33)*Captura!$C$19 -> 0 | AH33: 0 | AK33: 0
B34: 6 | C34: 2026-09-04 | D34: =IF(B34<J$17,Captura!$N$16,0)+Resumen!$L$29+Resumen!$L$30 ->  | H34: 0 | K34: 0 | L34: 0 | M34: 0 | O34: =IF(B34=J$17,Captura!$N$29,0) -> 0 | P34: =SUM(D34:F34,I34:N34)*Captura!$C$19 ->  | T34: 7 | U34: 6 | V34: 0 | X34: =+V33*Captura!$O$9/12 -> 0 | Y34: 0 | Z34: 0 | AA34: =IF(U34=J$17,Captura!$N$33,0) -> 0 | AC34: 0 | AD34: 0 | AE34: 0 | AG34: =+(W34+AB34+AC34+AD34+AE34+AF34)*Captura!$C$19 -> 0 | AH34: 0 | AK34: 0
B35: 7 | C35: 2026-10-04 | D35: =IF(B35<J$17,Captura!$N$16,0)+Resumen!$L$29+Resumen!$L$30 ->  | H35: 0 | K35: 0 | L35: 0 | M35: 0 | O35: =IF(B35=J$17,Captura!$N$29,0) -> 0 | P35: =SUM(D35:F35,I35:N35)*Captura!$C$19 ->  | T35: 8 | U35: 7 | V35: 0 | X35: =+V34*Captura!$O$9/12 -> 0 | Y35: 0 | Z35: 0 | AA35: =IF(U35=J$17,Captura!$N$33,0) -> 0 | AC35: 0 | AD35: 0 | AE35: 0 | AG35: =+(W35+AB35+AC35+AD35+AE35+AF35)*Captura!$C$19 -> 0 | AH35: 0 | AK35: 0
B36: 8 | C36: 2026-11-04 | D36: =IF(B36<J$17,Captura!$N$16,0)+Resumen!$L$29+Resumen!$L$30 ->  | H36: 0 | K36: 0 | L36: 0 | M36: 0 | O36: =IF(B36=J$17,Captura!$N$29,0) -> 0 | P36: =SUM(D36:F36,I36:N36)*Captura!$C$19 ->  | T36: 9 | U36: 8 | V36: 0 | X36: =+V35*Captura!$O$9/12 -> 0 | Y36: 0 | Z36: 0 | AA36: =IF(U36=J$17,Captura!$N$33,0) -> 0 | AC36: 0 | AD36: 0 | AE36: 0 | AG36: =+(W36+AB36+AC36+AD36+AE36+AF36)*Captura!$C$19 -> 0 | AH36: 0 | AK36: 0
B37: 9 | C37: 2026-12-04 | D37: =IF(B37<J$17,Captura!$N$16,0)+Resumen!$L$29+Resumen!$L$30 ->  | H37: 0 | K37: 0 | L37: 0 | M37: 0 | O37: =IF(B37=J$17,Captura!$N$29,0) -> 0 | P37: =SUM(D37:F37,I37:N37)*Captura!$C$19 ->  | T37: 10 | U37: 9 | V37: 0 | X37: =+V36*Captura!$O$9/12 -> 0 | Y37: 0 | Z37: 0 | AA37: =IF(U37=J$17,Captura!$N$33,0) -> 0 | AC37: 0 | AD37: 0 | AE37: 0 | AG37: =+(W37+AB37+AC37+AD37+AE37+AF37)*Captura!$C$19 -> 0 | AH37: 0 | AK37: 0
B38: 10 | C38: 2027-01-04 | D38: =IF(B38<J$17,Captura!$N$16,0)+Resumen!$L$29+Resumen!$L$30 ->  | H38: 0 | K38: 0 | L38: 0 | M38: 0 | O38: =IF(B38=J$17,Captura!$N$29,0) -> 0 | P38: =SUM(D38:F38,I38:N38)*Captura!$C$19 ->  | T38: 11 | U38: 10 | V38: 0 | X38: =+V37*Captura!$O$9/12 -> 0 | Y38: 0 | Z38: 0 | AA38: =IF(U38=J$17,Captura!$N$33,0) -> 0 | AC38: 0 | AD38: 0 | AE38: 0 | AG38: =+(W38+AB38+AC38+AD38+AE38+AF38)*Captura!$C$19 -> 0 | AH38: 0 | AK38: 0
B39: 11 | C39: 2027-02-04 | D39: =IF(B39<J$17,Captura!$N$16,0)+Resumen!$L$29+Resumen!$L$30 ->  | H39: 0 | K39: 0 | L39: 0 | M39: 0 | O39: =IF(B39=J$17,Captura!$N$29,0) -> 0 | P39: =SUM(D39:F39,I39:N39)*Captura!$C$19 ->  | T39: 12 | U39: 11 | V39: 0 | X39: =+V38*Captura!$O$9/12 -> 0 | Y39: 0 | Z39: 0 | AA39: =IF(U39=J$17,Captura!$N$33,0) -> 0 | AC39: 0 | AD39: 0 | AE39: 0 | AG39: =+(W39+AB39+AC39+AD39+AE39+AF39)*Captura!$C$19 -> 0 | AH39: 0 | AK39: 0
B40: 12 | C40: 2027-03-04 | D40: =IF(B40<J$17,Captura!$N$16,0)+Resumen!$L$29+Resumen!$L$30 ->  | H40: 0 | K40: =IF(B40+1>=$J$17,0,K28*(1+Captura!$D$35)) -> 0 | L40: =IF(B40+1>=$J$17,0,L28*(1+Captura!$D$35)) -> 0 | M40: =IF(B40+1>=$J$17,0,M28*(1+Captura!$D$35)) -> 0 | O40: =IF(B40=J$17,Captura!$N$29,0) -> 0 | P40: =SUM(D40:F40,I40:N40)*Captura!$C$19 ->  | T40: 1 | U40: 12 | V40: 0 | X40: =+V39*Captura!$O$9/12 -> 0 | Y40: 0 | Z40: 0 | AA40: =IF(U40=J$17,Captura!$N$33,0) -> 0 | AC40: =IF(U40+1>=$J$17,0,AC28*(1+Captura!$D$35)) -> 0 | AD40: =IF(U40+1>=$J$17,0,AD28*(1+Captura!$D$35)) -> 0 | AE40: =IF(U40+1>=$J$17,0,AE28*(1+Captura!$D$35)) -> 395.2 | AG40: =+(W40+AB40+AC40+AD40+AE40+AF40)*Captura!$C$19 -> 63.232 | AH40: 458.432 | AK40: -395.2
B41: 13 | C41: 2027-04-04 | D41: =IF(B41<J$17,Captura!$N$16,0)+Resumen!$L$29+Resumen!$L$30 ->  | H41: 0 | K41: =IF(B41+1>=$J$17,0,K29*(1+Captura!$D$35)) -> 0 | L41: =IF(B41+1>=$J$17,0,L29*(1+Captura!$D$35)) -> 0 | M41: =IF(B41+1>=$J$17,0,M29*(1+Captura!$D$35)) -> 0 | O41: =IF(B41=J$17,Captura!$N$29,0) -> 0 | P41: =SUM(D41:F41,I41:N41)*Captura!$C$19 ->  | T41: 2 | U41: 13 | V41: 0 | X41: =+V40*Captura!$O$9/12 -> 0 | Y41: 0 | Z41: 0 | AA41: =IF(U41=J$17,Captura!$N$33,0) -> 0 | AC41: =IF(U41+1>=$J$17,0,AC29*(1+Captura!$D$35)) -> 0 | AD41: =IF(U41+1>=$J$17,0,AD29*(1+Captura!$D$35)) -> 0 | AE41: =IF(U41+1>=$J$17,0,AE29*(1+Captura!$D$35)) -> 0 | AG41: =+(W41+AB41+AC41+AD41+AE41+AF41)*Captura!$C$19 -> 0 | AH41: 0 | AK41: 0
B42: 14 | C42: 2027-05-04 | D42: =IF(B42<J$17,Captura!$N$16,0)+Resumen!$L$29+Resumen!$L$30 ->  | H42: 0 | K42: =IF(B42+1>=$J$17,0,K30*(1+Captura!$D$35)) -> 0 | L42: =IF(B42+1>=$J$17,0,L30*(1+Captura!$D$35)) -> 0 | M42: =IF(B42+1>=$J$17,0,M30*(1+Captura!$D$35)) -> 0 | O42: =IF(B42=J$17,Captura!$N$29,0) -> 0 | P42: =SUM(D42:F42,I42:N42)*Captura!$C$19 ->  | T42: 3 | U42: 14 | V42: 0 | X42: =+V41*Captura!$O$9/12 -> 0 | Y42: 0 | Z42: 0 | AA42: =IF(U42=J$17,Captura!$N$33,0) -> 0 | AC42: =IF(U42+1>=$J$17,0,AC30*(1+Captura!$D$35)) -> 0 | AD42: =IF(U42+1>=$J$17,0,AD30*(1+Captura!$D$35)) -> 0 | AE42: =IF(U42+1>=$J$17,0,AE30*(1+Captura!$D$35)) -> 0 | AG42: =+(W42+AB42+AC42+AD42+AE42+AF42)*Captura!$C$19 -> 0 | AH42: 0 | AK42: 0
B43: 15 | C43: 2027-06-04 | D43: =IF(B43<J$17,Captura!$N$16,0)+Resumen!$L$29+Resumen!$L$30 ->  | H43: 0 | K43: =IF(B43+1>=$J$17,0,K31*(1+Captura!$D$35)) -> 0 | L43: =IF(B43+1>=$J$17,0,L31*(1+Captura!$D$35)) -> 0 | M43: =IF(B43+1>=$J$17,0,M31*(1+Captura!$D$35)) -> 0 | O43: =IF(B43=J$17,Captura!$N$29,0) -> 0 | P43: =SUM(D43:F43,I43:N43)*Captura!$C$19 ->  | T43: 4 | U43: 15 | V43: 0 | X43: =+V42*Captura!$O$9/12 -> 0 | Y43: 0 | Z43: 0 | AA43: =IF(U43=J$17,Captura!$N$33,0) -> 0 | AC43: =IF(U43+1>=$J$17,0,AC31*(1+Captura!$D$35)) -> 0 | AD43: =IF(U43+1>=$J$17,0,AD31*(1+Captura!$D$35)) -> 0 | AE43: =IF(U43+1>=$J$17,0,AE31*(1+Captura!$D$35)) -> 0 | AG43: =+(W43+AB43+AC43+AD43+AE43+AF43)*Captura!$C$19 -> 0 | AH43: 0 | AK43: 0
B44: 16 | C44: 2027-07-04 | D44: =IF(B44<J$17,Captura!$N$16,0)+Resumen!$L$29+Resumen!$L$30 ->  | H44: 0 | K44: =IF(B44+1>=$J$17,0,K32*(1+Captura!$D$35)) -> 0 | L44: =IF(B44+1>=$J$17,0,L32*(1+Captura!$D$35)) -> 0 | M44: =IF(B44+1>=$J$17,0,M32*(1+Captura!$D$35)) -> 0 | O44: =IF(B44=J$17,Captura!$N$29,0) -> 0 | P44: =SUM(D44:F44,I44:N44)*Captura!$C$19 ->  | T44: 5 | U44: 16 | V44: 0 | X44: =+V43*Captura!$O$9/12 -> 0 | Y44: 0 | Z44: 0 | AA44: =IF(U44=J$17,Captura!$N$33,0) -> 0 | AC44: =IF(U44+1>=$J$17,0,AC32*(1+Captura!$D$35)) -> 0 | AD44: =IF(U44+1>=$J$17,0,AD32*(1+Captura!$D$35)) -> 0 | AE44: =IF(U44+1>=$J$17,0,AE32*(1+Captura!$D$35)) -> 0 | AG44: =+(W44+AB44+AC44+AD44+AE44+AF44)*Captura!$C$19 -> 0 | AH44: 0 | AK44: 0
B45: 17 | C45: 2027-08-04 | D45: =IF(B45<J$17,Captura!$N$16,0)+Resumen!$L$29+Resumen!$L$30 ->  | H45: 0 | K45: =IF(B45+1>=$J$17,0,K33*(1+Captura!$D$35)) -> 0 | L45: =IF(B45+1>=$J$17,0,L33*(1+Captura!$D$35)) -> 0 | M45: =IF(B45+1>=$J$17,0,M33*(1+Captura!$D$35)) -> 0 | O45: =IF(B45=J$17,Captura!$N$29,0) -> 0 | P45: =SUM(D45:F45,I45:N45)*Captura!$C$19 ->  | T45: 6 | U45: 17 | V45: 0 | X45: =+V44*Captura!$O$9/12 -> 0 | Y45: 0 | Z45: 0 | AA45: =IF(U45=J$17,Captura!$N$33,0) -> 0 | AC45: =IF(U45+1>=$J$17,0,AC33*(1+Captura!$D$35)) -> 0 | AD45: =IF(U45+1>=$J$17,0,AD33*(1+Captura!$D$35)) -> 0 | AE45: =IF(U45+1>=$J$17,0,AE33*(1+Captura!$D$35)) -> 0 | AG45: =+(W45+AB45+AC45+AD45+AE45+AF45)*Captura!$C$19 -> 0 | AH45: 0 | AK45: 0
B46: 18 | C46: 2027-09-04 | D46: =IF(B46<J$17,Captura!$N$16,0)+Resumen!$L$29+Resumen!$L$30 ->  | H46: 0 | K46: =IF(B46+1>=$J$17,0,K34*(1+Captura!$D$35)) -> 0 | L46: =IF(B46+1>=$J$17,0,L34*(1+Captura!$D$35)) -> 0 | M46: =IF(B46+1>=$J$17,0,M34*(1+Captura!$D$35)) -> 0 | O46: =IF(B46=J$17,Captura!$N$29,0) -> 0 | P46: =SUM(D46:F46,I46:N46)*Captura!$C$19 ->  | T46: 7 | U46: 18 | V46: 0 | X46: =+V45*Captura!$O$9/12 -> 0 | Y46: 0 | Z46: 0 | AA46: =IF(U46=J$17,Captura!$N$33,0) -> 0 | AC46: =IF(U46+1>=$J$17,0,AC34*(1+Captura!$D$35)) -> 0 | AD46: =IF(U46+1>=$J$17,0,AD34*(1+Captura!$D$35)) -> 0 | AE46: =IF(U46+1>=$J$17,0,AE34*(1+Captura!$D$35)) -> 0 | AG46: =+(W46+AB46+AC46+AD46+AE46+AF46)*Captura!$C$19 -> 0 | AH46: 0 | AK46: 0
B47: 19 | C47: 2027-10-04 | D47: =IF(B47<J$17,Captura!$N$16,0)+Resumen!$L$29+Resumen!$L$30 ->  | H47: 0 | K47: =IF(B47+1>=$J$17,0,K35*(1+Captura!$D$35)) -> 0 | L47: =IF(B47+1>=$J$17,0,L35*(1+Captura!$D$35)) -> 0 | M47: =IF(B47+1>=$J$17,0,M35*(1+Captura!$D$35)) -> 0 | O47: =IF(B47=J$17,Captura!$N$29,0) -> 0 | P47: =SUM(D47:F47,I47:N47)*Captura!$C$19 ->  | T47: 8 | U47: 19 | V47: 0 | X47: =+V46*Captura!$O$9/12 -> 0 | Y47: 0 | Z47: 0 | AA47: =IF(U47=J$17,Captura!$N$33,0) -> 0 | AC47: =IF(U47+1>=$J$17,0,AC35*(1+Captura!$D$35)) -> 0 | AD47: =IF(U47+1>=$J$17,0,AD35*(1+Captura!$D$35)) -> 0 | AE47: =IF(U47+1>=$J$17,0,AE35*(1+Captura!$D$35)) -> 0 | AG47: =+(W47+AB47+AC47+AD47+AE47+AF47)*Captura!$C$19 -> 0 | AH47: 0 | AK47: 0
B48: 20 | C48: 2027-11-04 | D48: =IF(B48<J$17,Captura!$N$16,0)+Resumen!$L$29+Resumen!$L$30 ->  | H48: 0 | K48: =IF(B48+1>=$J$17,0,K36*(1+Captura!$D$35)) -> 0 | L48: =IF(B48+1>=$J$17,0,L36*(1+Captura!$D$35)) -> 0 | M48: =IF(B48+1>=$J$17,0,M36*(1+Captura!$D$35)) -> 0 | O48: =IF(B48=J$17,Captura!$N$29,0) -> 0 | P48: =SUM(D48:F48,I48:N48)*Captura!$C$19 ->  | T48: 9 | U48: 20 | V48: 0 | X48: =+V47*Captura!$O$9/12 -> 0 | Y48: 0 | Z48: 0 | AA48: =IF(U48=J$17,Captura!$N$33,0) -> 0 | AC48: =IF(U48+1>=$J$17,0,AC36*(1+Captura!$D$35)) -> 0 | AD48: =IF(U48+1>=$J$17,0,AD36*(1+Captura!$D$35)) -> 0 | AE48: =IF(U48+1>=$J$17,0,AE36*(1+Captura!$D$35)) -> 0 | AG48: =+(W48+AB48+AC48+AD48+AE48+AF48)*Captura!$C$19 -> 0 | AH48: 0 | AK48: 0
B49: 21 | C49: 2027-12-04 | D49: =IF(B49<J$17,Captura!$N$16,0)+Resumen!$L$29+Resumen!$L$30 ->  | H49: 0 | K49: =IF(B49+1>=$J$17,0,K37*(1+Captura!$D$35)) -> 0 | L49: =IF(B49+1>=$J$17,0,L37*(1+Captura!$D$35)) -> 0 | M49: =IF(B49+1>=$J$17,0,M37*(1+Captura!$D$35)) -> 0 | O49: =IF(B49=J$17,Captura!$N$29,0) -> 0 | P49: =SUM(D49:F49,I49:N49)*Captura!$C$19 ->  | T49: 10 | U49: 21 | V49: 0 | X49: =+V48*Captura!$O$9/12 -> 0 | Y49: 0 | Z49: 0 | AA49: =IF(U49=J$17,Captura!$N$33,0) -> 0 | AC49: =IF(U49+1>=$J$17,0,AC37*(1+Captura!$D$35)) -> 0 | AD49: =IF(U49+1>=$J$17,0,AD37*(1+Captura!$D$35)) -> 0 | AE49: =IF(U49+1>=$J$17,0,AE37*(1+Captura!$D$35)) -> 0 | AG49: =+(W49+AB49+AC49+AD49+AE49+AF49)*Captura!$C$19 -> 0 | AH49: 0 | AK49: 0
B50: 22 | C50: 2028-01-04 | D50: =IF(B50<J$17,Captura!$N$16,0)+Resumen!$L$29+Resumen!$L$30 ->  | H50: 0 | K50: =IF(B50+1>=$J$17,0,K38*(1+Captura!$D$35)) -> 0 | L50: =IF(B50+1>=$J$17,0,L38*(1+Captura!$D$35)) -> 0 | M50: =IF(B50+1>=$J$17,0,M38*(1+Captura!$D$35)) -> 0 | O50: =IF(B50=J$17,Captura!$N$29,0) -> 0 | P50: =SUM(D50:F50,I50:N50)*Captura!$C$19 ->  | T50: 11 | U50: 22 | V50: 0 | X50: =+V49*Captura!$O$9/12 -> 0 | Y50: 0 | Z50: 0 | AA50: =IF(U50=J$17,Captura!$N$33,0) -> 0 | AC50: =IF(U50+1>=$J$17,0,AC38*(1+Captura!$D$35)) -> 0 | AD50: =IF(U50+1>=$J$17,0,AD38*(1+Captura!$D$35)) -> 0 | AE50: =IF(U50+1>=$J$17,0,AE38*(1+Captura!$D$35)) -> 0 | AG50: =+(W50+AB50+AC50+AD50+AE50+AF50)*Captura!$C$19 -> 0 | AH50: 0 | AK50: 0
B51: 23 | C51: 2028-02-04 | D51: =IF(B51<J$17,Captura!$N$16,0)+Resumen!$L$29+Resumen!$L$30 ->  | H51: 0 | K51: =IF(B51+1>=$J$17,0,K39*(1+Captura!$D$35)) -> 0 | L51: =IF(B51+1>=$J$17,0,L39*(1+Captura!$D$35)) -> 0 | M51: =IF(B51+1>=$J$17,0,M39*(1+Captura!$D$35)) -> 0 | O51: =IF(B51=J$17,Captura!$N$29,0) -> 0 | P51: =SUM(D51:F51,I51:N51)*Captura!$C$19 ->  | T51: 12 | U51: 23 | V51: 0 | X51: =+V50*Captura!$O$9/12 -> 0 | Y51: 0 | Z51: 0 | AA51: =IF(U51=J$17,Captura!$N$33,0) -> 0 | AC51: =IF(U51+1>=$J$17,0,AC39*(1+Captura!$D$35)) -> 0 | AD51: =IF(U51+1>=$J$17,0,AD39*(1+Captura!$D$35)) -> 0 | AE51: =IF(U51+1>=$J$17,0,AE39*(1+Captura!$D$35)) -> 0 | AG51: =+(W51+AB51+AC51+AD51+AE51+AF51)*Captura!$C$19 -> 0 | AH51: 0 | AK51: 0
B52: 24 | C52: 2028-03-04 | D52: =IF(B52<J$17,Captura!$N$16,0)+Resumen!$L$29+Resumen!$L$30 ->  | H52: 0 | K52: =IF(B52+1>=$J$17,0,K40*(1+Captura!$D$35)) -> 0 | L52: =IF(B52+1>=$J$17,0,L40*(1+Captura!$D$35)) -> 0 | M52: =IF(B52+1>=$J$17,0,M40*(1+Captura!$D$35)) -> 0 | O52: =IF(B52=J$17,Captura!$N$29,0) -> 0 | P52: =SUM(D52:F52,I52:N52)*Captura!$C$19 ->  | T52: 1 | U52: 24 | V52: 0 | X52: =+V51*Captura!$O$9/12 -> 0 | Y52: 0 | Z52: 0 | AA52: =IF(U52=J$17,Captura!$N$33,0) -> 0 | AC52: =IF(U52+1>=$J$17,0,AC40*(1+Captura!$D$35)) -> 0 | AD52: =IF(U52+1>=$J$17,0,AD40*(1+Captura!$D$35)) -> 0 | AE52: =IF(U52+1>=$J$17,0,AE40*(1+Captura!$D$35)) -> 411.008 | AG52: =+(W52+AB52+AC52+AD52+AE52+AF52)*Captura!$C$19 -> 65.76128 | AH52: 476.76928 | AK52: -411.008
B53: 25 | C53: 2028-04-04 | D53: =IF(B53<J$17,Captura!$N$16,0)+Resumen!$L$29+Resumen!$L$30 ->  | H53: 0 | K53: =IF(B53+1>=$J$17,0,K41*(1+Captura!$D$35)) -> 0 | L53: =IF(B53+1>=$J$17,0,L41*(1+Captura!$D$35)) -> 0 | M53: =IF(B53+1>=$J$17,0,M41*(1+Captura!$D$35)) -> 0 | O53: =IF(B53=J$17,Captura!$N$29,0) -> 0 | P53: =SUM(D53:F53,I53:N53)*Captura!$C$19 ->  | T53: 2 | U53: 25 | V53: 0 | X53: =+V52*Captura!$O$9/12 -> 0 | Y53: 0 | Z53: 0 | AA53: =IF(U53=J$17,Captura!$N$33,0) -> 0 | AC53: =IF(U53+1>=$J$17,0,AC41*(1+Captura!$D$35)) -> 0 | AD53: =IF(U53+1>=$J$17,0,AD41*(1+Captura!$D$35)) -> 0 | AE53: =IF(U53+1>=$J$17,0,AE41*(1+Captura!$D$35)) -> 0 | AG53: =+(W53+AB53+AC53+AD53+AE53+AF53)*Captura!$C$19 -> 0 | AH53: 0 | AK53: 0
B54: 26 | C54: 2028-05-04 | D54: =IF(B54<J$17,Captura!$N$16,0)+Resumen!$L$29+Resumen!$L$30 ->  | H54: 0 | K54: =IF(B54+1>=$J$17,0,K42*(1+Captura!$D$35)) -> 0 | L54: =IF(B54+1>=$J$17,0,L42*(1+Captura!$D$35)) -> 0 | M54: =IF(B54+1>=$J$17,0,M42*(1+Captura!$D$35)) -> 0 | O54: =IF(B54=J$17,Captura!$N$29,0) -> 0 | P54: =SUM(D54:F54,I54:N54)*Captura!$C$19 ->  | T54: 3 | U54: 26 | V54: 0 | X54: =+V53*Captura!$O$9/12 -> 0 | Y54: 0 | Z54: 0 | AA54: =IF(U54=J$17,Captura!$N$33,0) -> 0 | AC54: =IF(U54+1>=$J$17,0,AC42*(1+Captura!$D$35)) -> 0 | AD54: =IF(U54+1>=$J$17,0,AD42*(1+Captura!$D$35)) -> 0 | AE54: =IF(U54+1>=$J$17,0,AE42*(1+Captura!$D$35)) -> 0 | AG54: =+(W54+AB54+AC54+AD54+AE54+AF54)*Captura!$C$19 -> 0 | AH54: 0 | AK54: 0
B55: 27 | C55: 2028-06-04 | D55: =IF(B55<J$17,Captura!$N$16,0)+Resumen!$L$29+Resumen!$L$30 ->  | H55: 0 | K55: =IF(B55+1>=$J$17,0,K43*(1+Captura!$D$35)) -> 0 | L55: =IF(B55+1>=$J$17,0,L43*(1+Captura!$D$35)) -> 0 | M55: =IF(B55+1>=$J$17,0,M43*(1+Captura!$D$35)) -> 0 | O55: =IF(B55=J$17,Captura!$N$29,0) -> 0 | P55: =SUM(D55:F55,I55:N55)*Captura!$C$19 ->  | T55: 4 | U55: 27 | V55: 0 | X55: =+V54*Captura!$O$9/12 -> 0 | Y55: 0 | Z55: 0 | AA55: =IF(U55=J$17,Captura!$N$33,0) -> 0 | AC55: =IF(U55+1>=$J$17,0,AC43*(1+Captura!$D$35)) -> 0 | AD55: =IF(U55+1>=$J$17,0,AD43*(1+Captura!$D$35)) -> 0 | AE55: =IF(U55+1>=$J$17,0,AE43*(1+Captura!$D$35)) -> 0 | AG55: =+(W55+AB55+AC55+AD55+AE55+AF55)*Captura!$C$19 -> 0 | AH55: 0 | AK55: 0
B56: 28 | C56: 2028-07-04 | D56: =IF(B56<J$17,Captura!$N$16,0)+Resumen!$L$29+Resumen!$L$30 ->  | H56: 0 | K56: =IF(B56+1>=$J$17,0,K44*(1+Captura!$D$35)) -> 0 | L56: =IF(B56+1>=$J$17,0,L44*(1+Captura!$D$35)) -> 0 | M56: =IF(B56+1>=$J$17,0,M44*(1+Captura!$D$35)) -> 0 | O56: =IF(B56=J$17,Captura!$N$29,0) -> 0 | P56: =SUM(D56:F56,I56:N56)*Captura!$C$19 ->  | T56: 5 | U56: 28 | V56: 0 | X56: =+V55*Captura!$O$9/12 -> 0 | Y56: 0 | Z56: 0 | AA56: =IF(U56=J$17,Captura!$N$33,0) -> 0 | AC56: =IF(U56+1>=$J$17,0,AC44*(1+Captura!$D$35)) -> 0 | AD56: =IF(U56+1>=$J$17,0,AD44*(1+Captura!$D$35)) -> 0 | AE56: =IF(U56+1>=$J$17,0,AE44*(1+Captura!$D$35)) -> 0 | AG56: =+(W56+AB56+AC56+AD56+AE56+AF56)*Captura!$C$19 -> 0 | AH56: 0 | AK56: 0
B57: 29 | C57: 2028-08-04 | D57: =IF(B57<J$17,Captura!$N$16,0)+Resumen!$L$29+Resumen!$L$30 ->  | H57: 0 | K57: =IF(B57+1>=$J$17,0,K45*(1+Captura!$D$35)) -> 0 | L57: =IF(B57+1>=$J$17,0,L45*(1+Captura!$D$35)) -> 0 | M57: =IF(B57+1>=$J$17,0,M45*(1+Captura!$D$35)) -> 0 | O57: =IF(B57=J$17,Captura!$N$29,0) -> 0 | P57: =SUM(D57:F57,I57:N57)*Captura!$C$19 ->  | T57: 6 | U57: 29 | V57: 0 | X57: =+V56*Captura!$O$9/12 -> 0 | Y57: 0 | Z57: 0 | AA57: =IF(U57=J$17,Captura!$N$33,0) -> 0 | AC57: =IF(U57+1>=$J$17,0,AC45*(1+Captura!$D$35)) -> 0 | AD57: =IF(U57+1>=$J$17,0,AD45*(1+Captura!$D$35)) -> 0 | AE57: =IF(U57+1>=$J$17,0,AE45*(1+Captura!$D$35)) -> 0 | AG57: =+(W57+AB57+AC57+AD57+AE57+AF57)*Captura!$C$19 -> 0 | AH57: 0 | AK57: 0
B58: 30 | C58: 2028-09-04 | D58: =IF(B58<J$17,Captura!$N$16,0)+Resumen!$L$29+Resumen!$L$30 ->  | H58: 0 | K58: =IF(B58+1>=$J$17,0,K46*(1+Captura!$D$35)) -> 0 | L58: =IF(B58+1>=$J$17,0,L46*(1+Captura!$D$35)) -> 0 | M58: =IF(B58+1>=$J$17,0,M46*(1+Captura!$D$35)) -> 0 | O58: =IF(B58=J$17,Captura!$N$29,0) -> 0 | P58: =SUM(D58:F58,I58:N58)*Captura!$C$19 ->  | T58: 7 | U58: 30 | V58: 0 | X58: =+V57*Captura!$O$9/12 -> 0 | Y58: 0 | Z58: 0 | AA58: =IF(U58=J$17,Captura!$N$33,0) -> 0 | AC58: =IF(U58+1>=$J$17,0,AC46*(1+Captura!$D$35)) -> 0 | AD58: =IF(U58+1>=$J$17,0,AD46*(1+Captura!$D$35)) -> 0 | AE58: =IF(U58+1>=$J$17,0,AE46*(1+Captura!$D$35)) -> 0 | AG58: =+(W58+AB58+AC58+AD58+AE58+AF58)*Captura!$C$19 -> 0 | AH58: 0 | AK58: 0
B59: 31 | C59: 2028-10-04 | D59: =IF(B59<J$17,Captura!$N$16,0)+Resumen!$L$29+Resumen!$L$30 ->  | H59: 0 | K59: =IF(B59+1>=$J$17,0,K47*(1+Captura!$D$35)) -> 0 | L59: =IF(B59+1>=$J$17,0,L47*(1+Captura!$D$35)) -> 0 | M59: =IF(B59+1>=$J$17,0,M47*(1+Captura!$D$35)) -> 0 | O59: =IF(B59=J$17,Captura!$N$29,0) -> 0 | P59: =SUM(D59:F59,I59:N59)*Captura!$C$19 ->  | T59: 8 | U59: 31 | V59: 0 | X59: =+V58*Captura!$O$9/12 -> 0 | Y59: 0 | Z59: 0 | AA59: =IF(U59=J$17,Captura!$N$33,0) -> 0 | AC59: =IF(U59+1>=$J$17,0,AC47*(1+Captura!$D$35)) -> 0 | AD59: =IF(U59+1>=$J$17,0,AD47*(1+Captura!$D$35)) -> 0 | AE59: =IF(U59+1>=$J$17,0,AE47*(1+Captura!$D$35)) -> 0 | AG59: =+(W59+AB59+AC59+AD59+AE59+AF59)*Captura!$C$19 -> 0 | AH59: 0 | AK59: 0
B60: 32 | C60: 2028-11-04 | D60: =IF(B60<J$17,Captura!$N$16,0)+Resumen!$L$29+Resumen!$L$30 ->  | H60: 0 | K60: =IF(B60+1>=$J$17,0,K48*(1+Captura!$D$35)) -> 0 | L60: =IF(B60+1>=$J$17,0,L48*(1+Captura!$D$35)) -> 0 | M60: =IF(B60+1>=$J$17,0,M48*(1+Captura!$D$35)) -> 0 | O60: =IF(B60=J$17,Captura!$N$29,0) -> 0 | P60: =SUM(D60:F60,I60:N60)*Captura!$C$19 ->  | T60: 9 | U60: 32 | V60: 0 | X60: =+V59*Captura!$O$9/12 -> 0 | Y60: 0 | Z60: 0 | AA60: =IF(U60=J$17,Captura!$N$33,0) -> 0 | AC60: =IF(U60+1>=$J$17,0,AC48*(1+Captura!$D$35)) -> 0 | AD60: =IF(U60+1>=$J$17,0,AD48*(1+Captura!$D$35)) -> 0 | AE60: =IF(U60+1>=$J$17,0,AE48*(1+Captura!$D$35)) -> 0 | AG60: =+(W60+AB60+AC60+AD60+AE60+AF60)*Captura!$C$19 -> 0 | AH60: 0 | AK60: 0
B61: 33 | C61: 2028-12-04 | D61: =IF(B61<J$17,Captura!$N$16,0)+Resumen!$L$29+Resumen!$L$30 ->  | H61: 0 | K61: =IF(B61+1>=$J$17,0,K49*(1+Captura!$D$35)) -> 0 | L61: =IF(B61+1>=$J$17,0,L49*(1+Captura!$D$35)) -> 0 | M61: =IF(B61+1>=$J$17,0,M49*(1+Captura!$D$35)) -> 0 | O61: =IF(B61=J$17,Captura!$N$29,0) -> 0 | P61: =SUM(D61:F61,I61:N61)*Captura!$C$19 ->  | T61: 10 | U61: 33 | V61: 0 | X61: =+V60*Captura!$O$9/12 -> 0 | Y61: 0 | Z61: 0 | AA61: =IF(U61=J$17,Captura!$N$33,0) -> 0 | AC61: =IF(U61+1>=$J$17,0,AC49*(1+Captura!$D$35)) -> 0 | AD61: =IF(U61+1>=$J$17,0,AD49*(1+Captura!$D$35)) -> 0 | AE61: =IF(U61+1>=$J$17,0,AE49*(1+Captura!$D$35)) -> 0 | AG61: =+(W61+AB61+AC61+AD61+AE61+AF61)*Captura!$C$19 -> 0 | AH61: 0 | AK61: 0
B62: 34 | C62: 2029-01-04 | D62: =IF(B62<J$17,Captura!$N$16,0)+Resumen!$L$29+Resumen!$L$30 ->  | H62: 0 | K62: =IF(B62+1>=$J$17,0,K50*(1+Captura!$D$35)) -> 0 | L62: =IF(B62+1>=$J$17,0,L50*(1+Captura!$D$35)) -> 0 | M62: =IF(B62+1>=$J$17,0,M50*(1+Captura!$D$35)) -> 0 | O62: =IF(B62=J$17,Captura!$N$29,0) -> 0 | P62: =SUM(D62:F62,I62:N62)*Captura!$C$19 ->  | T62: 11 | U62: 34 | V62: 0 | X62: =+V61*Captura!$O$9/12 -> 0 | Y62: 0 | Z62: 0 | AA62: =IF(U62=J$17,Captura!$N$33,0) -> 0 | AC62: =IF(U62+1>=$J$17,0,AC50*(1+Captura!$D$35)) -> 0 | AD62: =IF(U62+1>=$J$17,0,AD50*(1+Captura!$D$35)) -> 0 | AE62: =IF(U62+1>=$J$17,0,AE50*(1+Captura!$D$35)) -> 0 | AG62: =+(W62+AB62+AC62+AD62+AE62+AF62)*Captura!$C$19 -> 0 | AH62: 0 | AK62: 0
B63: 35 | C63: 2029-02-04 | D63: =IF(B63<J$17,Captura!$N$16,0)+Resumen!$L$29+Resumen!$L$30 ->  | H63: 0 | K63: =IF(B63+1>=$J$17,0,K51*(1+Captura!$D$35)) -> 0 | L63: =IF(B63+1>=$J$17,0,L51*(1+Captura!$D$35)) -> 0 | M63: =IF(B63+1>=$J$17,0,M51*(1+Captura!$D$35)) -> 0 | O63: =IF(B63=J$17,Captura!$N$29,0) -> 0 | P63: =SUM(D63:F63,I63:N63)*Captura!$C$19 ->  | T63: 12 | U63: 35 | V63: 0 | X63: =+V62*Captura!$O$9/12 -> 0 | Y63: 0 | Z63: 0 | AA63: =IF(U63=J$17,Captura!$N$33,0) -> 0 | AC63: =IF(U63+1>=$J$17,0,AC51*(1+Captura!$D$35)) -> 0 | AD63: =IF(U63+1>=$J$17,0,AD51*(1+Captura!$D$35)) -> 0 | AE63: =IF(U63+1>=$J$17,0,AE51*(1+Captura!$D$35)) -> 0 | AG63: =+(W63+AB63+AC63+AD63+AE63+AF63)*Captura!$C$19 -> 0 | AH63: 0 | AK63: 0
B64: 36 | C64: 2029-03-04 | D64: =IF(B64<J$17,Captura!$N$16,0)+Resumen!$L$29+Resumen!$L$30 ->  | H64: 0 | K64: =IF(B64+1>=$J$17,0,K52*(1+Captura!$D$35)) -> 0 | L64: =IF(B64+1>=$J$17,0,L52*(1+Captura!$D$35)) -> 0 | M64: =IF(B64+1>=$J$17,0,M52*(1+Captura!$D$35)) -> 0 | O64: =IF(B64=J$17,Captura!$N$29,0) -> 0 | P64: =SUM(D64:F64,I64:N64)*Captura!$C$19 ->  | T64: 1 | U64: 36 | V64: 0 | X64: =+V63*Captura!$O$9/12 -> 0 | Y64: 0 | Z64: 0 | AA64: =IF(U64=J$17,Captura!$N$33,0) -> 0 | AC64: =IF(U64+1>=$J$17,0,AC52*(1+Captura!$D$35)) -> 0 | AD64: =IF(U64+1>=$J$17,0,AD52*(1+Captura!$D$35)) -> 0 | AE64: =IF(U64+1>=$J$17,0,AE52*(1+Captura!$D$35)) -> 427.44832 | AG64: =+(W64+AB64+AC64+AD64+AE64+AF64)*Captura!$C$19 -> 68.3917312 | AH64: 495.8400512 | AK64: -427.44832
B65: 37 | C65: 2029-04-04 | D65: =IF(B65<J$17,Captura!$N$16,0)+Resumen!$L$29+Resumen!$L$30 ->  | H65: 0 | K65: =IF(B65+1>=$J$17,0,K53*(1+Captura!$D$35)) -> 0 | L65: =IF(B65+1>=$J$17,0,L53*(1+Captura!$D$35)) -> 0 | M65: =IF(B65+1>=$J$17,0,M53*(1+Captura!$D$35)) -> 0 | O65: =IF(B65=J$17,Captura!$N$29,0) -> 0 | P65: =SUM(D65:F65,I65:N65)*Captura!$C$19 ->  | T65: 2 | U65: 37 | V65: 0 | X65: =+V64*Captura!$O$9/12 -> 0 | Y65: 0 | Z65: 0 | AA65: =IF(U65=J$17,Captura!$N$33,0) -> 0 | AC65: =IF(U65+1>=$J$17,0,AC53*(1+Captura!$D$35)) -> 0 | AD65: =IF(U65+1>=$J$17,0,AD53*(1+Captura!$D$35)) -> 0 | AE65: =IF(U65+1>=$J$17,0,AE53*(1+Captura!$D$35)) -> 0 | AG65: =+(W65+AB65+AC65+AD65+AE65+AF65)*Captura!$C$19 -> 0 | AH65: 0 | AK65: 0
B66: 38 | C66: 2029-05-04 | D66: =IF(B66<J$17,Captura!$N$16,0)+Resumen!$L$29+Resumen!$L$30 ->  | H66: 0 | K66: =IF(B66+1>=$J$17,0,K54*(1+Captura!$D$35)) -> 0 | L66: =IF(B66+1>=$J$17,0,L54*(1+Captura!$D$35)) -> 0 | M66: =IF(B66+1>=$J$17,0,M54*(1+Captura!$D$35)) -> 0 | O66: =IF(B66=J$17,Captura!$N$29,0) -> 0 | P66: =SUM(D66:F66,I66:N66)*Captura!$C$19 ->  | T66: 3 | U66: 38 | V66: 0 | X66: =+V65*Captura!$O$9/12 -> 0 | Y66: 0 | Z66: 0 | AA66: =IF(U66=J$17,Captura!$N$33,0) -> 0 | AC66: =IF(U66+1>=$J$17,0,AC54*(1+Captura!$D$35)) -> 0 | AD66: =IF(U66+1>=$J$17,0,AD54*(1+Captura!$D$35)) -> 0 | AE66: =IF(U66+1>=$J$17,0,AE54*(1+Captura!$D$35)) -> 0 | AG66: =+(W66+AB66+AC66+AD66+AE66+AF66)*Captura!$C$19 -> 0 | AH66: 0 | AK66: 0
B67: 39 | C67: 2029-06-04 | D67: =IF(B67<J$17,Captura!$N$16,0)+Resumen!$L$29+Resumen!$L$30 ->  | H67: 0 | K67: =IF(B67+1>=$J$17,0,K55*(1+Captura!$D$35)) -> 0 | L67: =IF(B67+1>=$J$17,0,L55*(1+Captura!$D$35)) -> 0 | M67: =IF(B67+1>=$J$17,0,M55*(1+Captura!$D$35)) -> 0 | O67: =IF(B67=J$17,Captura!$N$29,0) -> 0 | P67: =SUM(D67:F67,I67:N67)*Captura!$C$19 ->  | T67: 4 | U67: 39 | V67: 0 | X67: =+V66*Captura!$O$9/12 -> 0 | Y67: 0 | Z67: 0 | AA67: =IF(U67=J$17,Captura!$N$33,0) -> 0 | AC67: =IF(U67+1>=$J$17,0,AC55*(1+Captura!$D$35)) -> 0 | AD67: =IF(U67+1>=$J$17,0,AD55*(1+Captura!$D$35)) -> 0 | AE67: =IF(U67+1>=$J$17,0,AE55*(1+Captura!$D$35)) -> 0 | AG67: =+(W67+AB67+AC67+AD67+AE67+AF67)*Captura!$C$19 -> 0 | AH67: 0 | AK67: 0
B68: 40 | C68: 2029-07-04 | D68: =IF(B68<J$17,Captura!$N$16,0)+Resumen!$L$29+Resumen!$L$30 ->  | H68: 0 | K68: =IF(B68+1>=$J$17,0,K56*(1+Captura!$D$35)) -> 0 | L68: =IF(B68+1>=$J$17,0,L56*(1+Captura!$D$35)) -> 0 | M68: =IF(B68+1>=$J$17,0,M56*(1+Captura!$D$35)) -> 0 | O68: =IF(B68=J$17,Captura!$N$29,0) -> 0 | P68: =SUM(D68:F68,I68:N68)*Captura!$C$19 ->  | T68: 5 | U68: 40 | V68: 0 | X68: =+V67*Captura!$O$9/12 -> 0 | Y68: 0 | Z68: 0 | AA68: =IF(U68=J$17,Captura!$N$33,0) -> 0 | AC68: =IF(U68+1>=$J$17,0,AC56*(1+Captura!$D$35)) -> 0 | AD68: =IF(U68+1>=$J$17,0,AD56*(1+Captura!$D$35)) -> 0 | AE68: =IF(U68+1>=$J$17,0,AE56*(1+Captura!$D$35)) -> 0 | AG68: =+(W68+AB68+AC68+AD68+AE68+AF68)*Captura!$C$19 -> 0 | AH68: 0 | AK68: 0
B69: 41 | C69: 2029-08-04 | D69: =IF(B69<J$17,Captura!$N$16,0)+Resumen!$L$29+Resumen!$L$30 ->  | H69: 0 | K69: =IF(B69+1>=$J$17,0,K57*(1+Captura!$D$35)) -> 0 | L69: =IF(B69+1>=$J$17,0,L57*(1+Captura!$D$35)) -> 0 | M69: =IF(B69+1>=$J$17,0,M57*(1+Captura!$D$35)) -> 0 | O69: =IF(B69=J$17,Captura!$N$29,0) -> 0 | P69: =SUM(D69:F69,I69:N69)*Captura!$C$19 ->  | T69: 6 | U69: 41 | V69: 0 | X69: =+V68*Captura!$O$9/12 -> 0 | Y69: 0 | Z69: 0 | AA69: =IF(U69=J$17,Captura!$N$33,0) -> 0 | AC69: =IF(U69+1>=$J$17,0,AC57*(1+Captura!$D$35)) -> 0 | AD69: =IF(U69+1>=$J$17,0,AD57*(1+Captura!$D$35)) -> 0 | AE69: =IF(U69+1>=$J$17,0,AE57*(1+Captura!$D$35)) -> 0 | AG69: =+(W69+AB69+AC69+AD69+AE69+AF69)*Captura!$C$19 -> 0 | AH69: 0 | AK69: 0
B70: 42 | C70: 2029-09-04 | D70: =IF(B70<J$17,Captura!$N$16,0)+Resumen!$L$29+Resumen!$L$30 ->  | H70: 0 | K70: =IF(B70+1>=$J$17,0,K58*(1+Captura!$D$35)) -> 0 | L70: =IF(B70+1>=$J$17,0,L58*(1+Captura!$D$35)) -> 0 | M70: =IF(B70+1>=$J$17,0,M58*(1+Captura!$D$35)) -> 0 | O70: =IF(B70=J$17,Captura!$N$29,0) -> 0 | P70: =SUM(D70:F70,I70:N70)*Captura!$C$19 ->  | T70: 7 | U70: 42 | V70: 0 | X70: =+V69*Captura!$O$9/12 -> 0 | Y70: 0 | Z70: 0 | AA70: =IF(U70=J$17,Captura!$N$33,0) -> 0 | AC70: =IF(U70+1>=$J$17,0,AC58*(1+Captura!$D$35)) -> 0 | AD70: =IF(U70+1>=$J$17,0,AD58*(1+Captura!$D$35)) -> 0 | AE70: =IF(U70+1>=$J$17,0,AE58*(1+Captura!$D$35)) -> 0 | AG70: =+(W70+AB70+AC70+AD70+AE70+AF70)*Captura!$C$19 -> 0 | AH70: 0 | AK70: 0
B71: 43 | C71: 2029-10-04 | D71: =IF(B71<J$17,Captura!$N$16,0)+Resumen!$L$29+Resumen!$L$30 ->  | H71: 0 | K71: =IF(B71+1>=$J$17,0,K59*(1+Captura!$D$35)) -> 0 | L71: =IF(B71+1>=$J$17,0,L59*(1+Captura!$D$35)) -> 0 | M71: =IF(B71+1>=$J$17,0,M59*(1+Captura!$D$35)) -> 0 | O71: =IF(B71=J$17,Captura!$N$29,0) -> 0 | P71: =SUM(D71:F71,I71:N71)*Captura!$C$19 ->  | T71: 8 | U71: 43 | V71: 0 | X71: =+V70*Captura!$O$9/12 -> 0 | Y71: 0 | Z71: 0 | AA71: =IF(U71=J$17,Captura!$N$33,0) -> 0 | AC71: =IF(U71+1>=$J$17,0,AC59*(1+Captura!$D$35)) -> 0 | AD71: =IF(U71+1>=$J$17,0,AD59*(1+Captura!$D$35)) -> 0 | AE71: =IF(U71+1>=$J$17,0,AE59*(1+Captura!$D$35)) -> 0 | AG71: =+(W71+AB71+AC71+AD71+AE71+AF71)*Captura!$C$19 -> 0 | AH71: 0 | AK71: 0
B72: 44 | C72: 2029-11-04 | D72: =IF(B72<J$17,Captura!$N$16,0)+Resumen!$L$29+Resumen!$L$30 ->  | H72: 0 | K72: =IF(B72+1>=$J$17,0,K60*(1+Captura!$D$35)) -> 0 | L72: =IF(B72+1>=$J$17,0,L60*(1+Captura!$D$35)) -> 0 | M72: =IF(B72+1>=$J$17,0,M60*(1+Captura!$D$35)) -> 0 | O72: =IF(B72=J$17,Captura!$N$29,0) -> 0 | P72: =SUM(D72:F72,I72:N72)*Captura!$C$19 ->  | T72: 9 | U72: 44 | V72: 0 | X72: =+V71*Captura!$O$9/12 -> 0 | Y72: 0 | Z72: 0 | AA72: =IF(U72=J$17,Captura!$N$33,0) -> 0 | AC72: =IF(U72+1>=$J$17,0,AC60*(1+Captura!$D$35)) -> 0 | AD72: =IF(U72+1>=$J$17,0,AD60*(1+Captura!$D$35)) -> 0 | AE72: =IF(U72+1>=$J$17,0,AE60*(1+Captura!$D$35)) -> 0 | AG72: =+(W72+AB72+AC72+AD72+AE72+AF72)*Captura!$C$19 -> 0 | AH72: 0 | AK72: 0
B73: 45 | C73: 2029-12-04 | D73: =IF(B73<J$17,Captura!$N$16,0)+Resumen!$L$29+Resumen!$L$30 ->  | H73: 0 | K73: =IF(B73+1>=$J$17,0,K61*(1+Captura!$D$35)) -> 0 | L73: =IF(B73+1>=$J$17,0,L61*(1+Captura!$D$35)) -> 0 | M73: =IF(B73+1>=$J$17,0,M61*(1+Captura!$D$35)) -> 0 | O73: =IF(B73=J$17,Captura!$N$29,0) -> 0 | P73: =SUM(D73:F73,I73:N73)*Captura!$C$19 ->  | T73: 10 | U73: 45 | V73: 0 | X73: =+V72*Captura!$O$9/12 -> 0 | Y73: 0 | Z73: 0 | AA73: =IF(U73=J$17,Captura!$N$33,0) -> 0 | AC73: =IF(U73+1>=$J$17,0,AC61*(1+Captura!$D$35)) -> 0 | AD73: =IF(U73+1>=$J$17,0,AD61*(1+Captura!$D$35)) -> 0 | AE73: =IF(U73+1>=$J$17,0,AE61*(1+Captura!$D$35)) -> 0 | AG73: =+(W73+AB73+AC73+AD73+AE73+AF73)*Captura!$C$19 -> 0 | AH73: 0 | AK73: 0
B74: 46 | C74: 2030-01-04 | D74: =IF(B74<J$17,Captura!$N$16,0)+Resumen!$L$29+Resumen!$L$30 ->  | H74: 0 | K74: =IF(B74+1>=$J$17,0,K62*(1+Captura!$D$35)) -> 0 | L74: =IF(B74+1>=$J$17,0,L62*(1+Captura!$D$35)) -> 0 | M74: =IF(B74+1>=$J$17,0,M62*(1+Captura!$D$35)) -> 0 | O74: =IF(B74=J$17,Captura!$N$29,0) -> 0 | P74: =SUM(D74:F74,I74:N74)*Captura!$C$19 ->  | T74: 11 | U74: 46 | V74: 0 | X74: =+V73*Captura!$O$9/12 -> 0 | Y74: 0 | Z74: 0 | AA74: =IF(U74=J$17,Captura!$N$33,0) -> 0 | AC74: =IF(U74+1>=$J$17,0,AC62*(1+Captura!$D$35)) -> 0 | AD74: =IF(U74+1>=$J$17,0,AD62*(1+Captura!$D$35)) -> 0 | AE74: =IF(U74+1>=$J$17,0,AE62*(1+Captura!$D$35)) -> 0 | AG74: =+(W74+AB74+AC74+AD74+AE74+AF74)*Captura!$C$19 -> 0 | AH74: 0 | AK74: 0
B75: 47 | C75: 2030-02-04 | D75: =IF(B75<J$17,Captura!$N$16,0)+Resumen!$L$29+Resumen!$L$30 ->  | H75: 0 | K75: =IF(B75+1>=$J$17,0,K63*(1+Captura!$D$35)) -> 0 | L75: =IF(B75+1>=$J$17,0,L63*(1+Captura!$D$35)) -> 0 | M75: =IF(B75+1>=$J$17,0,M63*(1+Captura!$D$35)) -> 0 | O75: =IF(B75=J$17,Captura!$N$29,0) -> 0 | P75: =SUM(D75:F75,I75:N75)*Captura!$C$19 ->  | T75: 12 | U75: 47 | V75: 0 | X75: =+V74*Captura!$O$9/12 -> 0 | Y75: 0 | Z75: 0 | AA75: =IF(U75=J$17,Captura!$N$33,0) -> 0 | AC75: =IF(U75+1>=$J$17,0,AC63*(1+Captura!$D$35)) -> 0 | AD75: =IF(U75+1>=$J$17,0,AD63*(1+Captura!$D$35)) -> 0 | AE75: =IF(U75+1>=$J$17,0,AE63*(1+Captura!$D$35)) -> 0 | AG75: =+(W75+AB75+AC75+AD75+AE75+AF75)*Captura!$C$19 -> 0 | AH75: 0 | AK75: 0
B76: 48 | C76: 2030-03-04 | D76: =IF(B76<J$17,Captura!$N$16,0) -> 0 | H76: 0 | K76: =IF(B76+1>=$J$17,0,K64*(1+Captura!$D$35)) -> 0 | L76: =IF(B76+1>=$J$17,0,L64*(1+Captura!$D$35)) -> 0 | M76: =IF(B76+1>=$J$17,0,M64*(1+Captura!$D$35)) -> 0 | O76: =IF(B76=J$17,Captura!$N$29,0) -> 0 | P76: =SUM(D76:F76,I76:N76)*Captura!$C$19 -> 0 | Q76: 0 | T76: 1 | U76: 48 | V76: 0 | X76: =+V75*Captura!$O$9/12 -> 0 | Y76: 0 | Z76: 0 | AA76: =IF(U76=J$17,Captura!$N$33,0) -> 0 | AC76: =IF(U76+1>=$J$17,0,AC64*(1+Captura!$D$35)) -> 0 | AD76: =IF(U76+1>=$J$17,0,AD64*(1+Captura!$D$35)) -> 0 | AE76: =IF(U76+1>=$J$17,0,AE64*(1+Captura!$D$35)) -> 0 | AG76: =+(W76+AB76+AC76+AD76+AE76+AF76)*Captura!$C$19 -> 0 | AH76: 0 | AJ76: 0 | AK76: 0
B77: 49 | C77: 2030-04-04 | D77: =IF(B77<J$17,Captura!$N$16,0) -> 0 | H77: 0 | K77: =IF(B77+1>=$J$17,0,K65*(1+Captura!$D$35)) -> 0 | L77: =IF(B77+1>=$J$17,0,L65*(1+Captura!$D$35)) -> 0 | M77: =IF(B77+1>=$J$17,0,M65*(1+Captura!$D$35)) -> 0 | O77: =IF(B77=J$17,Captura!$N$29,0) -> 0 | P77: =SUM(D77:F77,I77:N77)*Captura!$C$19 -> 0 | Q77: 0 | T77: 2 | U77: 49 | V77: 0 | X77: =+V76*Captura!$O$9/12 -> 0 | Y77: 0 | Z77: 0 | AA77: =IF(U77=J$17,Captura!$N$33,0) -> 0 | AC77: =IF(U77+1>=$J$17,0,AC65*(1+Captura!$D$35)) -> 0 | AD77: =IF(U77+1>=$J$17,0,AD65*(1+Captura!$D$35)) -> 0 | AE77: =IF(U77+1>=$J$17,0,AE65*(1+Captura!$D$35)) -> 0 | AG77: =+(W77+AB77+AC77+AD77+AE77+AF77)*Captura!$C$19 -> 0 | AH77: 0 | AJ77: 0 | AK77: 0
B78: 50 | C78: 2030-05-04 | D78: =IF(B78<J$17,Captura!$N$16,0) -> 0 | H78: 0 | K78: =IF(B78+1>=$J$17,0,K66*(1+Captura!$D$35)) -> 0 | L78: =IF(B78+1>=$J$17,0,L66*(1+Captura!$D$35)) -> 0 | M78: =IF(B78+1>=$J$17,0,M66*(1+Captura!$D$35)) -> 0 | O78: =IF(B78=J$17,Captura!$N$29,0) -> 0 | P78: =SUM(D78:F78,I78:N78)*Captura!$C$19 -> 0 | Q78: 0 | T78: 3 | U78: 50 | V78: 0 | X78: =+V77*Captura!$O$9/12 -> 0 | Y78: 0 | Z78: 0 | AA78: =IF(U78=J$17,Captura!$N$33,0) -> 0 | AC78: =IF(U78+1>=$J$17,0,AC66*(1+Captura!$D$35)) -> 0 | AD78: =IF(U78+1>=$J$17,0,AD66*(1+Captura!$D$35)) -> 0 | AE78: =IF(U78+1>=$J$17,0,AE66*(1+Captura!$D$35)) -> 0 | AG78: =+(W78+AB78+AC78+AD78+AE78+AF78)*Captura!$C$19 -> 0 | AH78: 0 | AJ78: 0 | AK78: 0
B79: 51 | C79: 2030-06-04 | D79: =IF(B79<J$17,Captura!$N$16,0) -> 0 | H79: 0 | K79: =IF(B79+1>=$J$17,0,K67*(1+Captura!$D$35)) -> 0 | L79: =IF(B79+1>=$J$17,0,L67*(1+Captura!$D$35)) -> 0 | M79: =IF(B79+1>=$J$17,0,M67*(1+Captura!$D$35)) -> 0 | O79: =IF(B79=J$17,Captura!$N$29,0) -> 0 | P79: =SUM(D79:F79,I79:N79)*Captura!$C$19 -> 0 | Q79: 0 | T79: 4 | U79: 51 | V79: 0 | X79: =+V78*Captura!$O$9/12 -> 0 | Y79: 0 | Z79: 0 | AA79: =IF(U79=J$17,Captura!$N$33,0) -> 0 | AC79: =IF(U79+1>=$J$17,0,AC67*(1+Captura!$D$35)) -> 0 | AD79: =IF(U79+1>=$J$17,0,AD67*(1+Captura!$D$35)) -> 0 | AE79: =IF(U79+1>=$J$17,0,AE67*(1+Captura!$D$35)) -> 0 | AG79: =+(W79+AB79+AC79+AD79+AE79+AF79)*Captura!$C$19 -> 0 | AH79: 0 | AJ79: 0 | AK79: 0
B80: 52 | C80: 2030-07-04 | D80: =IF(B80<J$17,Captura!$N$16,0) -> 0 | H80: 0 | K80: =IF(B80+1>=$J$17,0,K68*(1+Captura!$D$35)) -> 0 | L80: =IF(B80+1>=$J$17,0,L68*(1+Captura!$D$35)) -> 0 | M80: =IF(B80+1>=$J$17,0,M68*(1+Captura!$D$35)) -> 0 | O80: =IF(B80=J$17,Captura!$N$29,0) -> 0 | P80: =SUM(D80:F80,I80:N80)*Captura!$C$19 -> 0 | Q80: 0 | T80: 5 | U80: 52 | V80: 0 | X80: =+V79*Captura!$O$9/12 -> 0 | Y80: 0 | Z80: 0 | AA80: =IF(U80=J$17,Captura!$N$33,0) -> 0 | AC80: =IF(U80+1>=$J$17,0,AC68*(1+Captura!$D$35)) -> 0 | AD80: =IF(U80+1>=$J$17,0,AD68*(1+Captura!$D$35)) -> 0 | AE80: =IF(U80+1>=$J$17,0,AE68*(1+Captura!$D$35)) -> 0 | AG80: =+(W80+AB80+AC80+AD80+AE80+AF80)*Captura!$C$19 -> 0 | AH80: 0 | AJ80: 0 | AK80: 0
B81: 53 | C81: 2030-08-04 | D81: =IF(B81<J$17,Captura!$N$16,0) -> 0 | H81: 0 | K81: =IF(B81+1>=$J$17,0,K69*(1+Captura!$D$35)) -> 0 | L81: =IF(B81+1>=$J$17,0,L69*(1+Captura!$D$35)) -> 0 | M81: =IF(B81+1>=$J$17,0,M69*(1+Captura!$D$35)) -> 0 | O81: =IF(B81=J$17,Captura!$N$29,0) -> 0 | P81: =SUM(D81:F81,I81:N81)*Captura!$C$19 -> 0 | Q81: 0 | T81: 6 | U81: 53 | V81: 0 | X81: =+V80*Captura!$O$9/12 -> 0 | Y81: 0 | Z81: 0 | AA81: =IF(U81=J$17,Captura!$N$33,0) -> 0 | AC81: =IF(U81+1>=$J$17,0,AC69*(1+Captura!$D$35)) -> 0 | AD81: =IF(U81+1>=$J$17,0,AD69*(1+Captura!$D$35)) -> 0 | AE81: =IF(U81+1>=$J$17,0,AE69*(1+Captura!$D$35)) -> 0 | AG81: =+(W81+AB81+AC81+AD81+AE81+AF81)*Captura!$C$19 -> 0 | AH81: 0 | AJ81: 0 | AK81: 0
B82: 54 | C82: 2030-09-04 | D82: =IF(B82<J$17,Captura!$N$16,0) -> 0 | H82: 0 | K82: =IF(B82+1>=$J$17,0,K70*(1+Captura!$D$35)) -> 0 | L82: =IF(B82+1>=$J$17,0,L70*(1+Captura!$D$35)) -> 0 | M82: =IF(B82+1>=$J$17,0,M70*(1+Captura!$D$35)) -> 0 | O82: =IF(B82=J$17,Captura!$N$29,0) -> 0 | P82: =SUM(D82:F82,I82:N82)*Captura!$C$19 -> 0 | Q82: 0 | T82: 7 | U82: 54 | V82: 0 | X82: =+V81*Captura!$O$9/12 -> 0 | Y82: 0 | Z82: 0 | AA82: =IF(U82=J$17,Captura!$N$33,0) -> 0 | AC82: =IF(U82+1>=$J$17,0,AC70*(1+Captura!$D$35)) -> 0 | AD82: =IF(U82+1>=$J$17,0,AD70*(1+Captura!$D$35)) -> 0 | AE82: =IF(U82+1>=$J$17,0,AE70*(1+Captura!$D$35)) -> 0 | AG82: =+(W82+AB82+AC82+AD82+AE82+AF82)*Captura!$C$19 -> 0 | AH82: 0 | AJ82: 0 | AK82: 0
B83: 55 | C83: 2030-10-04 | D83: =IF(B83<J$17,Captura!$N$16,0) -> 0 | H83: 0 | K83: =IF(B83+1>=$J$17,0,K71*(1+Captura!$D$35)) -> 0 | L83: =IF(B83+1>=$J$17,0,L71*(1+Captura!$D$35)) -> 0 | M83: =IF(B83+1>=$J$17,0,M71*(1+Captura!$D$35)) -> 0 | O83: =IF(B83=J$17,Captura!$N$29,0) -> 0 | P83: =SUM(D83:F83,I83:N83)*Captura!$C$19 -> 0 | Q83: 0 | T83: 8 | U83: 55 | V83: 0 | X83: =+V82*Captura!$O$9/12 -> 0 | Y83: 0 | Z83: 0 | AA83: =IF(U83=J$17,Captura!$N$33,0) -> 0 | AC83: =IF(U83+1>=$J$17,0,AC71*(1+Captura!$D$35)) -> 0 | AD83: =IF(U83+1>=$J$17,0,AD71*(1+Captura!$D$35)) -> 0 | AE83: =IF(U83+1>=$J$17,0,AE71*(1+Captura!$D$35)) -> 0 | AG83: =+(W83+AB83+AC83+AD83+AE83+AF83)*Captura!$C$19 -> 0 | AH83: 0 | AJ83: 0 | AK83: 0
B84: 56 | C84: 2030-11-04 | D84: =IF(B84<J$17,Captura!$N$16,0) -> 0 | H84: 0 | K84: =IF(B84+1>=$J$17,0,K72*(1+Captura!$D$35)) -> 0 | L84: =IF(B84+1>=$J$17,0,L72*(1+Captura!$D$35)) -> 0 | M84: =IF(B84+1>=$J$17,0,M72*(1+Captura!$D$35)) -> 0 | O84: =IF(B84=J$17,Captura!$N$29,0) -> 0 | P84: =SUM(D84:F84,I84:N84)*Captura!$C$19 -> 0 | Q84: 0 | T84: 9 | U84: 56 | V84: 0 | X84: =+V83*Captura!$O$9/12 -> 0 | Y84: 0 | Z84: 0 | AA84: =IF(U84=J$17,Captura!$N$33,0) -> 0 | AC84: =IF(U84+1>=$J$17,0,AC72*(1+Captura!$D$35)) -> 0 | AD84: =IF(U84+1>=$J$17,0,AD72*(1+Captura!$D$35)) -> 0 | AE84: =IF(U84+1>=$J$17,0,AE72*(1+Captura!$D$35)) -> 0 | AG84: =+(W84+AB84+AC84+AD84+AE84+AF84)*Captura!$C$19 -> 0 | AH84: 0 | AJ84: 0 | AK84: 0
B85: 57 | C85: 2030-12-04 | D85: =IF(B85<J$17,Captura!$N$16,0) -> 0 | H85: 0 | K85: =IF(B85+1>=$J$17,0,K73*(1+Captura!$D$35)) -> 0 | L85: =IF(B85+1>=$J$17,0,L73*(1+Captura!$D$35)) -> 0 | M85: =IF(B85+1>=$J$17,0,M73*(1+Captura!$D$35)) -> 0 | O85: =IF(B85=J$17,Captura!$N$29,0) -> 0 | P85: =SUM(D85:F85,I85:N85)*Captura!$C$19 -> 0 | Q85: 0 | T85: 10 | U85: 57 | V85: 0 | X85: =+V84*Captura!$O$9/12 -> 0 | Y85: 0 | Z85: 0 | AA85: =IF(U85=J$17,Captura!$N$33,0) -> 0 | AC85: =IF(U85+1>=$J$17,0,AC73*(1+Captura!$D$35)) -> 0 | AD85: =IF(U85+1>=$J$17,0,AD73*(1+Captura!$D$35)) -> 0 | AE85: =IF(U85+1>=$J$17,0,AE73*(1+Captura!$D$35)) -> 0 | AG85: =+(W85+AB85+AC85+AD85+AE85+AF85)*Captura!$C$19 -> 0 | AH85: 0 | AJ85: 0 | AK85: 0
B86: 58 | C86: 2031-01-04 | D86: =IF(B86<J$17,Captura!$N$16,0) -> 0 | H86: 0 | K86: =IF(B86+1>=$J$17,0,K74*(1+Captura!$D$35)) -> 0 | L86: =IF(B86+1>=$J$17,0,L74*(1+Captura!$D$35)) -> 0 | M86: =IF(B86+1>=$J$17,0,M74*(1+Captura!$D$35)) -> 0 | O86: =IF(B86=J$17,Captura!$N$29,0) -> 0 | P86: =SUM(D86:F86,I86:N86)*Captura!$C$19 -> 0 | Q86: 0 | T86: 11 | U86: 58 | V86: 0 | X86: =+V85*Captura!$O$9/12 -> 0 | Y86: 0 | Z86: 0 | AA86: =IF(U86=J$17,Captura!$N$33,0) -> 0 | AC86: =IF(U86+1>=$J$17,0,AC74*(1+Captura!$D$35)) -> 0 | AD86: =IF(U86+1>=$J$17,0,AD74*(1+Captura!$D$35)) -> 0 | AE86: =IF(U86+1>=$J$17,0,AE74*(1+Captura!$D$35)) -> 0 | AG86: =+(W86+AB86+AC86+AD86+AE86+AF86)*Captura!$C$19 -> 0 | AH86: 0 | AJ86: 0 | AK86: 0
B87: 59 | C87: 2031-02-04 | D87: =IF(B87<J$17,Captura!$N$16,0) -> 0 | H87: 0 | K87: =IF(B87+1>=$J$17,0,K75*(1+Captura!$D$35)) -> 0 | L87: =IF(B87+1>=$J$17,0,L75*(1+Captura!$D$35)) -> 0 | M87: =IF(B87+1>=$J$17,0,M75*(1+Captura!$D$35)) -> 0 | O87: =IF(B87=J$17,Captura!$N$29,0) -> 0 | P87: =SUM(D87:F87,I87:N87)*Captura!$C$19 -> 0 | Q87: 0 | T87: 12 | U87: 59 | V87: 0 | X87: =+V86*Captura!$O$9/12 -> 0 | Y87: 0 | Z87: 0 | AA87: =IF(U87=J$17,Captura!$N$33,0) -> 0 | AC87: =IF(U87+1>=$J$17,0,AC75*(1+Captura!$D$35)) -> 0 | AD87: =IF(U87+1>=$J$17,0,AD75*(1+Captura!$D$35)) -> 0 | AE87: =IF(U87+1>=$J$17,0,AE75*(1+Captura!$D$35)) -> 0 | AG87: =+(W87+AB87+AC87+AD87+AE87+AF87)*Captura!$C$19 -> 0 | AH87: 0 | AJ87: 0 | AK87: 0
B88: 60 | C88: 2031-03-04 | D88: =IF(B88<J$17,Captura!$N$16,0) -> 0 | H88: 0 | K88: =IF(B88+1>=$J$17,0,K76*(1+Captura!$D$35)) -> 0 | L88: =IF(B88+1>=$J$17,0,L76*(1+Captura!$D$35)) -> 0 | M88: =IF(B88+1>=$J$17,0,M76*(1+Captura!$D$35)) -> 0 | O88: =IF(B88=J$17,Captura!$N$29,0) -> 0 | P88: =SUM(D88:F88,I88:N88)*Captura!$C$19 -> 0 | Q88: 0 | T88: 1 | U88: 60 | V88: 0 | X88: =+V87*Captura!$O$9/12 -> 0 | Y88: 0 | Z88: 0 | AA88: =IF(U88=J$17,Captura!$N$33,0) -> 0 | AC88: =IF(U88+1>=$J$17,0,AC76*(1+Captura!$D$35)) -> 0 | AD88: =IF(U88+1>=$J$17,0,AD76*(1+Captura!$D$35)) -> 0 | AE88: =IF(U88+1>=$J$17,0,AE76*(1+Captura!$D$35)) -> 0 | AG88: =+(W88+AB88+AC88+AD88+AE88+AF88)*Captura!$C$19 -> 0 | AH88: 0 | AJ88: 0 | AK88: 0
B92: Notas:
B93: 1. Esta cotización no es una autorización y no representa ninguna obligación para Leasing Mobile de México, S. A. de C. V.
B94: 2. La información descrita en el presente documento está sujeta a cambios sin previo aviso.
B95: 3. Esta cotización no considera gastos que el equipo requiera para su adquisición, uso o mantenimiento.
B96: 4. Las rentas en depósito serán devueltas al cumplimiento de todas las obligaciones contractauales del Arrendatario.
B107: __________________________________
B108: Leasing Mobile de Mexico, SA de CV
B109: =+Captura!D31 -> xxxx
B110: =+Captura!D32 -> xxxx
B111: =+Captura!D33 -> xxxx

Sheet Plazo 5 (hidden)
B7: Cotización
B8: Arrendamiento Puro
P10: =+Captura!N3 -> 2026-03-04
B12: Cliente: | E12: =+Captura!D7 -> 0 | J12: Teléfono | K12: =+Captura!D9 -> 0
B13: Atención: | E13: =+Captura!D8 -> 0 | J13: E-mail | K13: =+Captura!D10 -> 0
Q14: =+Captura!O40 -> v. 20240220
B17: Tipo de equipo | E17: =+Captura!T7 -> Vehículo utilitario | H17: Plazo del arrendamiento | J17: =+Captura!O13 -> 60 | L17: Gestoría y Registro | N17: =+Captura!F23 -> Pago único | AJ17: Valor presente de flujos
B18: Estado del equipo | E18: =+Captura!T17 -> Nuevo | H18: No. de rentas en depósito | J18: =+Captura!K8 -> 1 | L18: Equipo de geolocalizacióon | N18: =+Captura!F24 -> Pago único | Q18: =+Captura!O36 -> 0 | AJ18: =NPV(Captura!$D$35/12,AJ29:AJ88)+AJ28 ->  | AK18: =NPV(Captura!$D$35/12,AK29:AK88)+AK28 -> -1897.294375
B19: Descripción | E19: =+Captura!D15 -> 0 | H19: Comisión de apertura | J19: =+Captura!K9 -> 0.03 | L19: Seguro de daños | N19: =+Captura!T26 -> Pago en renta | AJ19: Tasa Interna de Retorno
H20: Anticipo | J20: =+Captura!K10 -> 0 | L20: Placas y Tenencia | N20: =+Captura!T33 -> Pago anual | AJ20: =IRR(AJ28:AJ88,0.01)*12 ->  | AK20: =IRR(AK28:AK88,0.01)*12 -> 
H21: Residual estimado | J21: Valor mercado | L21: Servicio de geolocalización | N21: =+Captura!T40 -> Pago anual | Q21: =+Captura!O37 -> Positivo | AJ21: Capital Req. | AK21: =+Captura!O34 -> 0
B22: Valor factura sin IVA | E22: =+Captura!G18 -> 0 | L22: =+Captura!I25 -> Otro | N22: =+Captura!F28 -> 0 | AJ22: VP / CR | AK22: =+(AJ18+AK18)/AK21 -> 
B23: IVA | E23: =+Captura!G19 -> 0 | Q23: Regresar
B24: Valor factua con IVA | E24: =+Captura!G20 -> 0 | AJ24: Indicador anualizado | AK24: =+AK22/J17*12 -> 
B26: Periodo | C26: Mes | D26: Renta | E26: Anticipo | F26: Comisión de apertura | G26: Rentas en depósito | H26: Devolución de rentas en depósito | I26: Gestoría y Registro | J26: Equipo de geo localización | K26: Seguro de daños | L26: Placas y Tenencia | M26: Servicio de geo localización | N26: =+L22 -> Otro | O26: Residual estimado | P26: IVA | Q26: TOTAL | T26: Mes | U26: Periodo | V26: Fondeo | W26: Comisión de apertura | X26: Intereses | Y26: Capital | Z26: Pago | AA26: Bullet | AB26: Equipo de geo localización | AC26: Seguro de daños | AD26: Placas y Tenencia | AE26: Servicio de geo localización | AF26: Otro | AG26: IVA | AH26: TOTAL | AJ26: Flujo Activo sin IVA | AK26: Flujo Pasivo sin IVA
B28: 0 | C28: =+P10 -> 2026-03-04 | D28: =+Captura!O16+Resumen!M29+Resumen!M30 ->  | E28: =+Captura!K10 -> 0 | F28: =+Captura!O18 -> 0 | G28: =+Captura!O19 -> 0 | H28: =IF(B28=J$17,-G$28,0) -> 0 | I28: =+Captura!O20 -> 0 | J28: =+Captura!O21 -> 0 | K28: =+Captura!O22 -> 0 | L28: =+Captura!O23 -> 0 | M28: =+Captura!O24 -> 0 | N28: =+Captura!O25 -> 0 | O28: =IF(B28=J$17,Captura!$O$29,0) -> 0 | P28: =SUM(D28:F28,I28:N28)*Captura!$C$19 ->  | Q28: =SUM(D28:P28)-O28 ->  | T28: 1 | U28: =+B28 -> 0 | V28: =+Captura!O8 -> 0 | W28: =+Captura!O31 -> 0 | AB28: =+J28 -> 0 | AC28: =+Captura!G25 -> 0 | AD28: =+Captura!G26 -> 0 | AE28: =+Captura!G27 -> 380 | AF28: =+N28 -> 0 | AG28: =+(W28+AB28+AC28+AD28+AE28+AF28)*Captura!$C$19 -> 60.8 | AH28: =SUM(W28,Z28:AG28) -> 440.8 | AJ28: =-E22+(Q28-P28)+O28 ->  | AK28: =+V28-(AH28-AG28) -> -380
B29: 1 | C29: =EDATE(C28,1) -> 2026-04-04 | D29: =IF(B29<J$17,Captura!$O$16,0)+Resumen!$M$29+Resumen!$M$30 ->  | H29: 0 | K29: 0 | L29: 0 | M29: 0 | O29: =IF(B29=J$17,Captura!$O$29,0) -> 0 | P29: =SUM(D29:F29,I29:N29)*Captura!$C$19 ->  | Q29: =SUM(D29:P29)-O29 ->  | T29: =IF(T28=12,1,T28+1) -> 2 | U29: =+B29 -> 1 | V29: =+V28-Y29-AA29 -> 0 | X29: =+V28*Captura!$O$9/12 -> 0 | Y29: =+Z29-X29 -> 0 | Z29: =+Captura!O30 -> 0 | AA29: =IF(U29=J$17,Captura!$O$33,0) -> 0 | AC29: 0 | AD29: 0 | AE29: 0 | AG29: =+(W29+AB29+AC29+AD29+AE29+AF29)*Captura!$C$19 -> 0 | AH29: =SUM(W29,Z29:AG29) -> 0 | AJ29: =Q29-P29+O29 ->  | AK29: =-(AH29-AG29) -> 0
B30: 2 | C30: =EDATE(C29,1) -> 2026-05-04 | D30: =IF(B30<J$17,Captura!$O$16,0)+Resumen!$M$29+Resumen!$M$30 ->  | H30: 0 | K30: 0 | L30: 0 | M30: 0 | O30: =IF(B30=J$17,Captura!$O$29,0) -> 0 | P30: =SUM(D30:F30,I30:N30)*Captura!$C$19 ->  | T30: =IF(T29=12,1,T29+1) -> 3 | U30: 2 | V30: =+V29-Y30-AA30 -> 0 | X30: =+V29*Captura!$O$9/12 -> 0 | Y30: =+Z30-X30 -> 0 | Z30: =IF(U30>J$17,0,Z29) -> 0 | AA30: =IF(U30=J$17,Captura!$O$33,0) -> 0 | AC30: 0 | AD30: 0 | AE30: 0 | AG30: =+(W30+AB30+AC30+AD30+AE30+AF30)*Captura!$C$19 -> 0 | AH30: 0 | AJ30: =Q30-P30+O30 ->  | AK30: =-(AH30-AG30) -> 0
B31: 3 | C31: 2026-06-04 | D31: =IF(B31<J$17,Captura!$O$16,0)+Resumen!$M$29+Resumen!$M$30 ->  | H31: 0 | K31: 0 | L31: 0 | M31: 0 | O31: =IF(B31=J$17,Captura!$O$29,0) -> 0 | P31: =SUM(D31:F31,I31:N31)*Captura!$C$19 ->  | T31: 4 | U31: 3 | V31: 0 | X31: =+V30*Captura!$O$9/12 -> 0 | Y31: 0 | Z31: =IF(U31>J$17,0,Z30) -> 0 | AA31: =IF(U31=J$17,Captura!$O$33,0) -> 0 | AC31: 0 | AD31: 0 | AE31: 0 | AG31: =+(W31+AB31+AC31+AD31+AE31+AF31)*Captura!$C$19 -> 0 | AH31: 0 | AK31: 0
B32: 4 | C32: 2026-07-04 | D32: =IF(B32<J$17,Captura!$O$16,0)+Resumen!$M$29+Resumen!$M$30 ->  | H32: 0 | K32: 0 | L32: 0 | M32: 0 | O32: =IF(B32=J$17,Captura!$O$29,0) -> 0 | P32: =SUM(D32:F32,I32:N32)*Captura!$C$19 ->  | T32: 5 | U32: 4 | V32: 0 | X32: =+V31*Captura!$O$9/12 -> 0 | Y32: 0 | Z32: 0 | AA32: =IF(U32=J$17,Captura!$O$33,0) -> 0 | AC32: 0 | AD32: 0 | AE32: 0 | AG32: =+(W32+AB32+AC32+AD32+AE32+AF32)*Captura!$C$19 -> 0 | AH32: 0 | AK32: 0
B33: 5 | C33: 2026-08-04 | D33: =IF(B33<J$17,Captura!$O$16,0)+Resumen!$M$29+Resumen!$M$30 ->  | H33: 0 | K33: 0 | L33: 0 | M33: 0 | O33: =IF(B33=J$17,Captura!$O$29,0) -> 0 | P33: =SUM(D33:F33,I33:N33)*Captura!$C$19 ->  | T33: 6 | U33: 5 | V33: 0 | X33: =+V32*Captura!$O$9/12 -> 0 | Y33: 0 | Z33: 0 | AA33: =IF(U33=J$17,Captura!$O$33,0) -> 0 | AC33: 0 | AD33: 0 | AE33: 0 | AG33: =+(W33+AB33+AC33+AD33+AE33+AF33)*Captura!$C$19 -> 0 | AH33: 0 | AK33: 0
B34: 6 | C34: 2026-09-04 | D34: =IF(B34<J$17,Captura!$O$16,0)+Resumen!$M$29+Resumen!$M$30 ->  | H34: 0 | K34: 0 | L34: 0 | M34: 0 | O34: =IF(B34=J$17,Captura!$O$29,0) -> 0 | P34: =SUM(D34:F34,I34:N34)*Captura!$C$19 ->  | T34: 7 | U34: 6 | V34: 0 | X34: =+V33*Captura!$O$9/12 -> 0 | Y34: 0 | Z34: 0 | AA34: =IF(U34=J$17,Captura!$O$33,0) -> 0 | AC34: 0 | AD34: 0 | AE34: 0 | AG34: =+(W34+AB34+AC34+AD34+AE34+AF34)*Captura!$C$19 -> 0 | AH34: 0 | AK34: 0
B35: 7 | C35: 2026-10-04 | D35: =IF(B35<J$17,Captura!$O$16,0)+Resumen!$M$29+Resumen!$M$30 ->  | H35: 0 | K35: 0 | L35: 0 | M35: 0 | O35: =IF(B35=J$17,Captura!$O$29,0) -> 0 | P35: =SUM(D35:F35,I35:N35)*Captura!$C$19 ->  | T35: 8 | U35: 7 | V35: 0 | X35: =+V34*Captura!$O$9/12 -> 0 | Y35: 0 | Z35: 0 | AA35: =IF(U35=J$17,Captura!$O$33,0) -> 0 | AC35: 0 | AD35: 0 | AE35: 0 | AG35: =+(W35+AB35+AC35+AD35+AE35+AF35)*Captura!$C$19 -> 0 | AH35: 0 | AK35: 0
B36: 8 | C36: 2026-11-04 | D36: =IF(B36<J$17,Captura!$O$16,0)+Resumen!$M$29+Resumen!$M$30 ->  | H36: 0 | K36: 0 | L36: 0 | M36: 0 | O36: =IF(B36=J$17,Captura!$O$29,0) -> 0 | P36: =SUM(D36:F36,I36:N36)*Captura!$C$19 ->  | T36: 9 | U36: 8 | V36: 0 | X36: =+V35*Captura!$O$9/12 -> 0 | Y36: 0 | Z36: 0 | AA36: =IF(U36=J$17,Captura!$O$33,0) -> 0 | AC36: 0 | AD36: 0 | AE36: 0 | AG36: =+(W36+AB36+AC36+AD36+AE36+AF36)*Captura!$C$19 -> 0 | AH36: 0 | AK36: 0
B37: 9 | C37: 2026-12-04 | D37: =IF(B37<J$17,Captura!$O$16,0)+Resumen!$M$29+Resumen!$M$30 ->  | H37: 0 | K37: 0 | L37: 0 | M37: 0 | O37: =IF(B37=J$17,Captura!$O$29,0) -> 0 | P37: =SUM(D37:F37,I37:N37)*Captura!$C$19 ->  | T37: 10 | U37: 9 | V37: 0 | X37: =+V36*Captura!$O$9/12 -> 0 | Y37: 0 | Z37: 0 | AA37: =IF(U37=J$17,Captura!$O$33,0) -> 0 | AC37: 0 | AD37: 0 | AE37: 0 | AG37: =+(W37+AB37+AC37+AD37+AE37+AF37)*Captura!$C$19 -> 0 | AH37: 0 | AK37: 0
B38: 10 | C38: 2027-01-04 | D38: =IF(B38<J$17,Captura!$O$16,0)+Resumen!$M$29+Resumen!$M$30 ->  | H38: 0 | K38: 0 | L38: 0 | M38: 0 | O38: =IF(B38=J$17,Captura!$O$29,0) -> 0 | P38: =SUM(D38:F38,I38:N38)*Captura!$C$19 ->  | T38: 11 | U38: 10 | V38: 0 | X38: =+V37*Captura!$O$9/12 -> 0 | Y38: 0 | Z38: 0 | AA38: =IF(U38=J$17,Captura!$O$33,0) -> 0 | AC38: 0 | AD38: 0 | AE38: 0 | AG38: =+(W38+AB38+AC38+AD38+AE38+AF38)*Captura!$C$19 -> 0 | AH38: 0 | AK38: 0
B39: 11 | C39: 2027-02-04 | D39: =IF(B39<J$17,Captura!$O$16,0)+Resumen!$M$29+Resumen!$M$30 ->  | H39: 0 | K39: 0 | L39: 0 | M39: 0 | O39: =IF(B39=J$17,Captura!$O$29,0) -> 0 | P39: =SUM(D39:F39,I39:N39)*Captura!$C$19 ->  | T39: 12 | U39: 11 | V39: 0 | X39: =+V38*Captura!$O$9/12 -> 0 | Y39: 0 | Z39: 0 | AA39: =IF(U39=J$17,Captura!$O$33,0) -> 0 | AC39: 0 | AD39: 0 | AE39: 0 | AG39: =+(W39+AB39+AC39+AD39+AE39+AF39)*Captura!$C$19 -> 0 | AH39: 0 | AK39: 0
B40: 12 | C40: 2027-03-04 | D40: =IF(B40<J$17,Captura!$O$16,0)+Resumen!$M$29+Resumen!$M$30 ->  | H40: 0 | K40: =IF(B40+1>=$J$17,0,K28*(1+Captura!$D$35)) -> 0 | L40: =IF(B40+1>=$J$17,0,L28*(1+Captura!$D$35)) -> 0 | M40: =IF(B40+1>=$J$17,0,M28*(1+Captura!$D$35)) -> 0 | O40: =IF(B40=J$17,Captura!$O$29,0) -> 0 | P40: =SUM(D40:F40,I40:N40)*Captura!$C$19 ->  | T40: 1 | U40: 12 | V40: 0 | X40: =+V39*Captura!$O$9/12 -> 0 | Y40: 0 | Z40: 0 | AA40: =IF(U40=J$17,Captura!$O$33,0) -> 0 | AC40: =IF(U40+1>=$J$17,0,AC28*(1+Captura!$D$35)) -> 0 | AD40: =IF(U40+1>=$J$17,0,AD28*(1+Captura!$D$35)) -> 0 | AE40: =IF(U40+1>=$J$17,0,AE28*(1+Captura!$D$35)) -> 395.2 | AG40: =+(W40+AB40+AC40+AD40+AE40+AF40)*Captura!$C$19 -> 63.232 | AH40: 458.432 | AK40: -395.2
B41: 13 | C41: 2027-04-04 | D41: =IF(B41<J$17,Captura!$O$16,0)+Resumen!$M$29+Resumen!$M$30 ->  | H41: 0 | K41: =IF(B41+1>=$J$17,0,K29*(1+Captura!$D$35)) -> 0 | L41: =IF(B41+1>=$J$17,0,L29*(1+Captura!$D$35)) -> 0 | M41: =IF(B41+1>=$J$17,0,M29*(1+Captura!$D$35)) -> 0 | O41: =IF(B41=J$17,Captura!$O$29,0) -> 0 | P41: =SUM(D41:F41,I41:N41)*Captura!$C$19 ->  | T41: 2 | U41: 13 | V41: 0 | X41: =+V40*Captura!$O$9/12 -> 0 | Y41: 0 | Z41: 0 | AA41: =IF(U41=J$17,Captura!$O$33,0) -> 0 | AC41: =IF(U41+1>=$J$17,0,AC29*(1+Captura!$D$35)) -> 0 | AD41: =IF(U41+1>=$J$17,0,AD29*(1+Captura!$D$35)) -> 0 | AE41: =IF(U41+1>=$J$17,0,AE29*(1+Captura!$D$35)) -> 0 | AG41: =+(W41+AB41+AC41+AD41+AE41+AF41)*Captura!$C$19 -> 0 | AH41: 0 | AK41: 0
B42: 14 | C42: 2027-05-04 | D42: =IF(B42<J$17,Captura!$O$16,0)+Resumen!$M$29+Resumen!$M$30 ->  | H42: 0 | K42: =IF(B42+1>=$J$17,0,K30*(1+Captura!$D$35)) -> 0 | L42: =IF(B42+1>=$J$17,0,L30*(1+Captura!$D$35)) -> 0 | M42: =IF(B42+1>=$J$17,0,M30*(1+Captura!$D$35)) -> 0 | O42: =IF(B42=J$17,Captura!$O$29,0) -> 0 | P42: =SUM(D42:F42,I42:N42)*Captura!$C$19 ->  | T42: 3 | U42: 14 | V42: 0 | X42: =+V41*Captura!$O$9/12 -> 0 | Y42: 0 | Z42: 0 | AA42: =IF(U42=J$17,Captura!$O$33,0) -> 0 | AC42: =IF(U42+1>=$J$17,0,AC30*(1+Captura!$D$35)) -> 0 | AD42: =IF(U42+1>=$J$17,0,AD30*(1+Captura!$D$35)) -> 0 | AE42: =IF(U42+1>=$J$17,0,AE30*(1+Captura!$D$35)) -> 0 | AG42: =+(W42+AB42+AC42+AD42+AE42+AF42)*Captura!$C$19 -> 0 | AH42: 0 | AK42: 0
B43: 15 | C43: 2027-06-04 | D43: =IF(B43<J$17,Captura!$O$16,0)+Resumen!$M$29+Resumen!$M$30 ->  | H43: 0 | K43: =IF(B43+1>=$J$17,0,K31*(1+Captura!$D$35)) -> 0 | L43: =IF(B43+1>=$J$17,0,L31*(1+Captura!$D$35)) -> 0 | M43: =IF(B43+1>=$J$17,0,M31*(1+Captura!$D$35)) -> 0 | O43: =IF(B43=J$17,Captura!$O$29,0) -> 0 | P43: =SUM(D43:F43,I43:N43)*Captura!$C$19 ->  | T43: 4 | U43: 15 | V43: 0 | X43: =+V42*Captura!$O$9/12 -> 0 | Y43: 0 | Z43: 0 | AA43: =IF(U43=J$17,Captura!$O$33,0) -> 0 | AC43: =IF(U43+1>=$J$17,0,AC31*(1+Captura!$D$35)) -> 0 | AD43: =IF(U43+1>=$J$17,0,AD31*(1+Captura!$D$35)) -> 0 | AE43: =IF(U43+1>=$J$17,0,AE31*(1+Captura!$D$35)) -> 0 | AG43: =+(W43+AB43+AC43+AD43+AE43+AF43)*Captura!$C$19 -> 0 | AH43: 0 | AK43: 0
B44: 16 | C44: 2027-07-04 | D44: =IF(B44<J$17,Captura!$O$16,0)+Resumen!$M$29+Resumen!$M$30 ->  | H44: 0 | K44: =IF(B44+1>=$J$17,0,K32*(1+Captura!$D$35)) -> 0 | L44: =IF(B44+1>=$J$17,0,L32*(1+Captura!$D$35)) -> 0 | M44: =IF(B44+1>=$J$17,0,M32*(1+Captura!$D$35)) -> 0 | O44: =IF(B44=J$17,Captura!$O$29,0) -> 0 | P44: =SUM(D44:F44,I44:N44)*Captura!$C$19 ->  | T44: 5 | U44: 16 | V44: 0 | X44: =+V43*Captura!$O$9/12 -> 0 | Y44: 0 | Z44: 0 | AA44: =IF(U44=J$17,Captura!$O$33,0) -> 0 | AC44: =IF(U44+1>=$J$17,0,AC32*(1+Captura!$D$35)) -> 0 | AD44: =IF(U44+1>=$J$17,0,AD32*(1+Captura!$D$35)) -> 0 | AE44: =IF(U44+1>=$J$17,0,AE32*(1+Captura!$D$35)) -> 0 | AG44: =+(W44+AB44+AC44+AD44+AE44+AF44)*Captura!$C$19 -> 0 | AH44: 0 | AK44: 0
B45: 17 | C45: 2027-08-04 | D45: =IF(B45<J$17,Captura!$O$16,0)+Resumen!$M$29+Resumen!$M$30 ->  | H45: 0 | K45: =IF(B45+1>=$J$17,0,K33*(1+Captura!$D$35)) -> 0 | L45: =IF(B45+1>=$J$17,0,L33*(1+Captura!$D$35)) -> 0 | M45: =IF(B45+1>=$J$17,0,M33*(1+Captura!$D$35)) -> 0 | O45: =IF(B45=J$17,Captura!$O$29,0) -> 0 | P45: =SUM(D45:F45,I45:N45)*Captura!$C$19 ->  | T45: 6 | U45: 17 | V45: 0 | X45: =+V44*Captura!$O$9/12 -> 0 | Y45: 0 | Z45: 0 | AA45: =IF(U45=J$17,Captura!$O$33,0) -> 0 | AC45: =IF(U45+1>=$J$17,0,AC33*(1+Captura!$D$35)) -> 0 | AD45: =IF(U45+1>=$J$17,0,AD33*(1+Captura!$D$35)) -> 0 | AE45: =IF(U45+1>=$J$17,0,AE33*(1+Captura!$D$35)) -> 0 | AG45: =+(W45+AB45+AC45+AD45+AE45+AF45)*Captura!$C$19 -> 0 | AH45: 0 | AK45: 0
B46: 18 | C46: 2027-09-04 | D46: =IF(B46<J$17,Captura!$O$16,0)+Resumen!$M$29+Resumen!$M$30 ->  | H46: 0 | K46: =IF(B46+1>=$J$17,0,K34*(1+Captura!$D$35)) -> 0 | L46: =IF(B46+1>=$J$17,0,L34*(1+Captura!$D$35)) -> 0 | M46: =IF(B46+1>=$J$17,0,M34*(1+Captura!$D$35)) -> 0 | O46: =IF(B46=J$17,Captura!$O$29,0) -> 0 | P46: =SUM(D46:F46,I46:N46)*Captura!$C$19 ->  | T46: 7 | U46: 18 | V46: 0 | X46: =+V45*Captura!$O$9/12 -> 0 | Y46: 0 | Z46: 0 | AA46: =IF(U46=J$17,Captura!$O$33,0) -> 0 | AC46: =IF(U46+1>=$J$17,0,AC34*(1+Captura!$D$35)) -> 0 | AD46: =IF(U46+1>=$J$17,0,AD34*(1+Captura!$D$35)) -> 0 | AE46: =IF(U46+1>=$J$17,0,AE34*(1+Captura!$D$35)) -> 0 | AG46: =+(W46+AB46+AC46+AD46+AE46+AF46)*Captura!$C$19 -> 0 | AH46: 0 | AK46: 0
B47: 19 | C47: 2027-10-04 | D47: =IF(B47<J$17,Captura!$O$16,0)+Resumen!$M$29+Resumen!$M$30 ->  | H47: 0 | K47: =IF(B47+1>=$J$17,0,K35*(1+Captura!$D$35)) -> 0 | L47: =IF(B47+1>=$J$17,0,L35*(1+Captura!$D$35)) -> 0 | M47: =IF(B47+1>=$J$17,0,M35*(1+Captura!$D$35)) -> 0 | O47: =IF(B47=J$17,Captura!$O$29,0) -> 0 | P47: =SUM(D47:F47,I47:N47)*Captura!$C$19 ->  | T47: 8 | U47: 19 | V47: 0 | X47: =+V46*Captura!$O$9/12 -> 0 | Y47: 0 | Z47: 0 | AA47: =IF(U47=J$17,Captura!$O$33,0) -> 0 | AC47: =IF(U47+1>=$J$17,0,AC35*(1+Captura!$D$35)) -> 0 | AD47: =IF(U47+1>=$J$17,0,AD35*(1+Captura!$D$35)) -> 0 | AE47: =IF(U47+1>=$J$17,0,AE35*(1+Captura!$D$35)) -> 0 | AG47: =+(W47+AB47+AC47+AD47+AE47+AF47)*Captura!$C$19 -> 0 | AH47: 0 | AK47: 0
B48: 20 | C48: 2027-11-04 | D48: =IF(B48<J$17,Captura!$O$16,0)+Resumen!$M$29+Resumen!$M$30 ->  | H48: 0 | K48: =IF(B48+1>=$J$17,0,K36*(1+Captura!$D$35)) -> 0 | L48: =IF(B48+1>=$J$17,0,L36*(1+Captura!$D$35)) -> 0 | M48: =IF(B48+1>=$J$17,0,M36*(1+Captura!$D$35)) -> 0 | O48: =IF(B48=J$17,Captura!$O$29,0) -> 0 | P48: =SUM(D48:F48,I48:N48)*Captura!$C$19 ->  | T48: 9 | U48: 20 | V48: 0 | X48: =+V47*Captura!$O$9/12 -> 0 | Y48: 0 | Z48: 0 | AA48: =IF(U48=J$17,Captura!$O$33,0) -> 0 | AC48: =IF(U48+1>=$J$17,0,AC36*(1+Captura!$D$35)) -> 0 | AD48: =IF(U48+1>=$J$17,0,AD36*(1+Captura!$D$35)) -> 0 | AE48: =IF(U48+1>=$J$17,0,AE36*(1+Captura!$D$35)) -> 0 | AG48: =+(W48+AB48+AC48+AD48+AE48+AF48)*Captura!$C$19 -> 0 | AH48: 0 | AK48: 0
B49: 21 | C49: 2027-12-04 | D49: =IF(B49<J$17,Captura!$O$16,0)+Resumen!$M$29+Resumen!$M$30 ->  | H49: 0 | K49: =IF(B49+1>=$J$17,0,K37*(1+Captura!$D$35)) -> 0 | L49: =IF(B49+1>=$J$17,0,L37*(1+Captura!$D$35)) -> 0 | M49: =IF(B49+1>=$J$17,0,M37*(1+Captura!$D$35)) -> 0 | O49: =IF(B49=J$17,Captura!$O$29,0) -> 0 | P49: =SUM(D49:F49,I49:N49)*Captura!$C$19 ->  | T49: 10 | U49: 21 | V49: 0 | X49: =+V48*Captura!$O$9/12 -> 0 | Y49: 0 | Z49: 0 | AA49: =IF(U49=J$17,Captura!$O$33,0) -> 0 | AC49: =IF(U49+1>=$J$17,0,AC37*(1+Captura!$D$35)) -> 0 | AD49: =IF(U49+1>=$J$17,0,AD37*(1+Captura!$D$35)) -> 0 | AE49: =IF(U49+1>=$J$17,0,AE37*(1+Captura!$D$35)) -> 0 | AG49: =+(W49+AB49+AC49+AD49+AE49+AF49)*Captura!$C$19 -> 0 | AH49: 0 | AK49: 0
B50: 22 | C50: 2028-01-04 | D50: =IF(B50<J$17,Captura!$O$16,0)+Resumen!$M$29+Resumen!$M$30 ->  | H50: 0 | K50: =IF(B50+1>=$J$17,0,K38*(1+Captura!$D$35)) -> 0 | L50: =IF(B50+1>=$J$17,0,L38*(1+Captura!$D$35)) -> 0 | M50: =IF(B50+1>=$J$17,0,M38*(1+Captura!$D$35)) -> 0 | O50: =IF(B50=J$17,Captura!$O$29,0) -> 0 | P50: =SUM(D50:F50,I50:N50)*Captura!$C$19 ->  | T50: 11 | U50: 22 | V50: 0 | X50: =+V49*Captura!$O$9/12 -> 0 | Y50: 0 | Z50: 0 | AA50: =IF(U50=J$17,Captura!$O$33,0) -> 0 | AC50: =IF(U50+1>=$J$17,0,AC38*(1+Captura!$D$35)) -> 0 | AD50: =IF(U50+1>=$J$17,0,AD38*(1+Captura!$D$35)) -> 0 | AE50: =IF(U50+1>=$J$17,0,AE38*(1+Captura!$D$35)) -> 0 | AG50: =+(W50+AB50+AC50+AD50+AE50+AF50)*Captura!$C$19 -> 0 | AH50: 0 | AK50: 0
B51: 23 | C51: 2028-02-04 | D51: =IF(B51<J$17,Captura!$O$16,0)+Resumen!$M$29+Resumen!$M$30 ->  | H51: 0 | K51: =IF(B51+1>=$J$17,0,K39*(1+Captura!$D$35)) -> 0 | L51: =IF(B51+1>=$J$17,0,L39*(1+Captura!$D$35)) -> 0 | M51: =IF(B51+1>=$J$17,0,M39*(1+Captura!$D$35)) -> 0 | O51: =IF(B51=J$17,Captura!$O$29,0) -> 0 | P51: =SUM(D51:F51,I51:N51)*Captura!$C$19 ->  | T51: 12 | U51: 23 | V51: 0 | X51: =+V50*Captura!$O$9/12 -> 0 | Y51: 0 | Z51: 0 | AA51: =IF(U51=J$17,Captura!$O$33,0) -> 0 | AC51: =IF(U51+1>=$J$17,0,AC39*(1+Captura!$D$35)) -> 0 | AD51: =IF(U51+1>=$J$17,0,AD39*(1+Captura!$D$35)) -> 0 | AE51: =IF(U51+1>=$J$17,0,AE39*(1+Captura!$D$35)) -> 0 | AG51: =+(W51+AB51+AC51+AD51+AE51+AF51)*Captura!$C$19 -> 0 | AH51: 0 | AK51: 0
B52: 24 | C52: 2028-03-04 | D52: =IF(B52<J$17,Captura!$O$16,0)+Resumen!$M$29+Resumen!$M$30 ->  | H52: 0 | K52: =IF(B52+1>=$J$17,0,K40*(1+Captura!$D$35)) -> 0 | L52: =IF(B52+1>=$J$17,0,L40*(1+Captura!$D$35)) -> 0 | M52: =IF(B52+1>=$J$17,0,M40*(1+Captura!$D$35)) -> 0 | O52: =IF(B52=J$17,Captura!$O$29,0) -> 0 | P52: =SUM(D52:F52,I52:N52)*Captura!$C$19 ->  | T52: 1 | U52: 24 | V52: 0 | X52: =+V51*Captura!$O$9/12 -> 0 | Y52: 0 | Z52: 0 | AA52: =IF(U52=J$17,Captura!$O$33,0) -> 0 | AC52: =IF(U52+1>=$J$17,0,AC40*(1+Captura!$D$35)) -> 0 | AD52: =IF(U52+1>=$J$17,0,AD40*(1+Captura!$D$35)) -> 0 | AE52: =IF(U52+1>=$J$17,0,AE40*(1+Captura!$D$35)) -> 411.008 | AG52: =+(W52+AB52+AC52+AD52+AE52+AF52)*Captura!$C$19 -> 65.76128 | AH52: 476.76928 | AK52: -411.008
B53: 25 | C53: 2028-04-04 | D53: =IF(B53<J$17,Captura!$O$16,0)+Resumen!$M$29+Resumen!$M$30 ->  | H53: 0 | K53: =IF(B53+1>=$J$17,0,K41*(1+Captura!$D$35)) -> 0 | L53: =IF(B53+1>=$J$17,0,L41*(1+Captura!$D$35)) -> 0 | M53: =IF(B53+1>=$J$17,0,M41*(1+Captura!$D$35)) -> 0 | O53: =IF(B53=J$17,Captura!$O$29,0) -> 0 | P53: =SUM(D53:F53,I53:N53)*Captura!$C$19 ->  | T53: 2 | U53: 25 | V53: 0 | X53: =+V52*Captura!$O$9/12 -> 0 | Y53: 0 | Z53: 0 | AA53: =IF(U53=J$17,Captura!$O$33,0) -> 0 | AC53: =IF(U53+1>=$J$17,0,AC41*(1+Captura!$D$35)) -> 0 | AD53: =IF(U53+1>=$J$17,0,AD41*(1+Captura!$D$35)) -> 0 | AE53: =IF(U53+1>=$J$17,0,AE41*(1+Captura!$D$35)) -> 0 | AG53: =+(W53+AB53+AC53+AD53+AE53+AF53)*Captura!$C$19 -> 0 | AH53: 0 | AK53: 0
B54: 26 | C54: 2028-05-04 | D54: =IF(B54<J$17,Captura!$O$16,0)+Resumen!$M$29+Resumen!$M$30 ->  | H54: 0 | K54: =IF(B54+1>=$J$17,0,K42*(1+Captura!$D$35)) -> 0 | L54: =IF(B54+1>=$J$17,0,L42*(1+Captura!$D$35)) -> 0 | M54: =IF(B54+1>=$J$17,0,M42*(1+Captura!$D$35)) -> 0 | O54: =IF(B54=J$17,Captura!$O$29,0) -> 0 | P54: =SUM(D54:F54,I54:N54)*Captura!$C$19 ->  | T54: 3 | U54: 26 | V54: 0 | X54: =+V53*Captura!$O$9/12 -> 0 | Y54: 0 | Z54: 0 | AA54: =IF(U54=J$17,Captura!$O$33,0) -> 0 | AC54: =IF(U54+1>=$J$17,0,AC42*(1+Captura!$D$35)) -> 0 | AD54: =IF(U54+1>=$J$17,0,AD42*(1+Captura!$D$35)) -> 0 | AE54: =IF(U54+1>=$J$17,0,AE42*(1+Captura!$D$35)) -> 0 | AG54: =+(W54+AB54+AC54+AD54+AE54+AF54)*Captura!$C$19 -> 0 | AH54: 0 | AK54: 0
B55: 27 | C55: 2028-06-04 | D55: =IF(B55<J$17,Captura!$O$16,0)+Resumen!$M$29+Resumen!$M$30 ->  | H55: 0 | K55: =IF(B55+1>=$J$17,0,K43*(1+Captura!$D$35)) -> 0 | L55: =IF(B55+1>=$J$17,0,L43*(1+Captura!$D$35)) -> 0 | M55: =IF(B55+1>=$J$17,0,M43*(1+Captura!$D$35)) -> 0 | O55: =IF(B55=J$17,Captura!$O$29,0) -> 0 | P55: =SUM(D55:F55,I55:N55)*Captura!$C$19 ->  | T55: 4 | U55: 27 | V55: 0 | X55: =+V54*Captura!$O$9/12 -> 0 | Y55: 0 | Z55: 0 | AA55: =IF(U55=J$17,Captura!$O$33,0) -> 0 | AC55: =IF(U55+1>=$J$17,0,AC43*(1+Captura!$D$35)) -> 0 | AD55: =IF(U55+1>=$J$17,0,AD43*(1+Captura!$D$35)) -> 0 | AE55: =IF(U55+1>=$J$17,0,AE43*(1+Captura!$D$35)) -> 0 | AG55: =+(W55+AB55+AC55+AD55+AE55+AF55)*Captura!$C$19 -> 0 | AH55: 0 | AK55: 0
B56: 28 | C56: 2028-07-04 | D56: =IF(B56<J$17,Captura!$O$16,0)+Resumen!$M$29+Resumen!$M$30 ->  | H56: 0 | K56: =IF(B56+1>=$J$17,0,K44*(1+Captura!$D$35)) -> 0 | L56: =IF(B56+1>=$J$17,0,L44*(1+Captura!$D$35)) -> 0 | M56: =IF(B56+1>=$J$17,0,M44*(1+Captura!$D$35)) -> 0 | O56: =IF(B56=J$17,Captura!$O$29,0) -> 0 | P56: =SUM(D56:F56,I56:N56)*Captura!$C$19 ->  | T56: 5 | U56: 28 | V56: 0 | X56: =+V55*Captura!$O$9/12 -> 0 | Y56: 0 | Z56: 0 | AA56: =IF(U56=J$17,Captura!$O$33,0) -> 0 | AC56: =IF(U56+1>=$J$17,0,AC44*(1+Captura!$D$35)) -> 0 | AD56: =IF(U56+1>=$J$17,0,AD44*(1+Captura!$D$35)) -> 0 | AE56: =IF(U56+1>=$J$17,0,AE44*(1+Captura!$D$35)) -> 0 | AG56: =+(W56+AB56+AC56+AD56+AE56+AF56)*Captura!$C$19 -> 0 | AH56: 0 | AK56: 0
B57: 29 | C57: 2028-08-04 | D57: =IF(B57<J$17,Captura!$O$16,0)+Resumen!$M$29+Resumen!$M$30 ->  | H57: 0 | K57: =IF(B57+1>=$J$17,0,K45*(1+Captura!$D$35)) -> 0 | L57: =IF(B57+1>=$J$17,0,L45*(1+Captura!$D$35)) -> 0 | M57: =IF(B57+1>=$J$17,0,M45*(1+Captura!$D$35)) -> 0 | O57: =IF(B57=J$17,Captura!$O$29,0) -> 0 | P57: =SUM(D57:F57,I57:N57)*Captura!$C$19 ->  | T57: 6 | U57: 29 | V57: 0 | X57: =+V56*Captura!$O$9/12 -> 0 | Y57: 0 | Z57: 0 | AA57: =IF(U57=J$17,Captura!$O$33,0) -> 0 | AC57: =IF(U57+1>=$J$17,0,AC45*(1+Captura!$D$35)) -> 0 | AD57: =IF(U57+1>=$J$17,0,AD45*(1+Captura!$D$35)) -> 0 | AE57: =IF(U57+1>=$J$17,0,AE45*(1+Captura!$D$35)) -> 0 | AG57: =+(W57+AB57+AC57+AD57+AE57+AF57)*Captura!$C$19 -> 0 | AH57: 0 | AK57: 0
B58: 30 | C58: 2028-09-04 | D58: =IF(B58<J$17,Captura!$O$16,0)+Resumen!$M$29+Resumen!$M$30 ->  | H58: 0 | K58: =IF(B58+1>=$J$17,0,K46*(1+Captura!$D$35)) -> 0 | L58: =IF(B58+1>=$J$17,0,L46*(1+Captura!$D$35)) -> 0 | M58: =IF(B58+1>=$J$17,0,M46*(1+Captura!$D$35)) -> 0 | O58: =IF(B58=J$17,Captura!$O$29,0) -> 0 | P58: =SUM(D58:F58,I58:N58)*Captura!$C$19 ->  | T58: 7 | U58: 30 | V58: 0 | X58: =+V57*Captura!$O$9/12 -> 0 | Y58: 0 | Z58: 0 | AA58: =IF(U58=J$17,Captura!$O$33,0) -> 0 | AC58: =IF(U58+1>=$J$17,0,AC46*(1+Captura!$D$35)) -> 0 | AD58: =IF(U58+1>=$J$17,0,AD46*(1+Captura!$D$35)) -> 0 | AE58: =IF(U58+1>=$J$17,0,AE46*(1+Captura!$D$35)) -> 0 | AG58: =+(W58+AB58+AC58+AD58+AE58+AF58)*Captura!$C$19 -> 0 | AH58: 0 | AK58: 0
B59: 31 | C59: 2028-10-04 | D59: =IF(B59<J$17,Captura!$O$16,0)+Resumen!$M$29+Resumen!$M$30 ->  | H59: 0 | K59: =IF(B59+1>=$J$17,0,K47*(1+Captura!$D$35)) -> 0 | L59: =IF(B59+1>=$J$17,0,L47*(1+Captura!$D$35)) -> 0 | M59: =IF(B59+1>=$J$17,0,M47*(1+Captura!$D$35)) -> 0 | O59: =IF(B59=J$17,Captura!$O$29,0) -> 0 | P59: =SUM(D59:F59,I59:N59)*Captura!$C$19 ->  | T59: 8 | U59: 31 | V59: 0 | X59: =+V58*Captura!$O$9/12 -> 0 | Y59: 0 | Z59: 0 | AA59: =IF(U59=J$17,Captura!$O$33,0) -> 0 | AC59: =IF(U59+1>=$J$17,0,AC47*(1+Captura!$D$35)) -> 0 | AD59: =IF(U59+1>=$J$17,0,AD47*(1+Captura!$D$35)) -> 0 | AE59: =IF(U59+1>=$J$17,0,AE47*(1+Captura!$D$35)) -> 0 | AG59: =+(W59+AB59+AC59+AD59+AE59+AF59)*Captura!$C$19 -> 0 | AH59: 0 | AK59: 0
B60: 32 | C60: 2028-11-04 | D60: =IF(B60<J$17,Captura!$O$16,0)+Resumen!$M$29+Resumen!$M$30 ->  | H60: 0 | K60: =IF(B60+1>=$J$17,0,K48*(1+Captura!$D$35)) -> 0 | L60: =IF(B60+1>=$J$17,0,L48*(1+Captura!$D$35)) -> 0 | M60: =IF(B60+1>=$J$17,0,M48*(1+Captura!$D$35)) -> 0 | O60: =IF(B60=J$17,Captura!$O$29,0) -> 0 | P60: =SUM(D60:F60,I60:N60)*Captura!$C$19 ->  | T60: 9 | U60: 32 | V60: 0 | X60: =+V59*Captura!$O$9/12 -> 0 | Y60: 0 | Z60: 0 | AA60: =IF(U60=J$17,Captura!$O$33,0) -> 0 | AC60: =IF(U60+1>=$J$17,0,AC48*(1+Captura!$D$35)) -> 0 | AD60: =IF(U60+1>=$J$17,0,AD48*(1+Captura!$D$35)) -> 0 | AE60: =IF(U60+1>=$J$17,0,AE48*(1+Captura!$D$35)) -> 0 | AG60: =+(W60+AB60+AC60+AD60+AE60+AF60)*Captura!$C$19 -> 0 | AH60: 0 | AK60: 0
B61: 33 | C61: 2028-12-04 | D61: =IF(B61<J$17,Captura!$O$16,0)+Resumen!$M$29+Resumen!$M$30 ->  | H61: 0 | K61: =IF(B61+1>=$J$17,0,K49*(1+Captura!$D$35)) -> 0 | L61: =IF(B61+1>=$J$17,0,L49*(1+Captura!$D$35)) -> 0 | M61: =IF(B61+1>=$J$17,0,M49*(1+Captura!$D$35)) -> 0 | O61: =IF(B61=J$17,Captura!$O$29,0) -> 0 | P61: =SUM(D61:F61,I61:N61)*Captura!$C$19 ->  | T61: 10 | U61: 33 | V61: 0 | X61: =+V60*Captura!$O$9/12 -> 0 | Y61: 0 | Z61: 0 | AA61: =IF(U61=J$17,Captura!$O$33,0) -> 0 | AC61: =IF(U61+1>=$J$17,0,AC49*(1+Captura!$D$35)) -> 0 | AD61: =IF(U61+1>=$J$17,0,AD49*(1+Captura!$D$35)) -> 0 | AE61: =IF(U61+1>=$J$17,0,AE49*(1+Captura!$D$35)) -> 0 | AG61: =+(W61+AB61+AC61+AD61+AE61+AF61)*Captura!$C$19 -> 0 | AH61: 0 | AK61: 0
B62: 34 | C62: 2029-01-04 | D62: =IF(B62<J$17,Captura!$O$16,0)+Resumen!$M$29+Resumen!$M$30 ->  | H62: 0 | K62: =IF(B62+1>=$J$17,0,K50*(1+Captura!$D$35)) -> 0 | L62: =IF(B62+1>=$J$17,0,L50*(1+Captura!$D$35)) -> 0 | M62: =IF(B62+1>=$J$17,0,M50*(1+Captura!$D$35)) -> 0 | O62: =IF(B62=J$17,Captura!$O$29,0) -> 0 | P62: =SUM(D62:F62,I62:N62)*Captura!$C$19 ->  | T62: 11 | U62: 34 | V62: 0 | X62: =+V61*Captura!$O$9/12 -> 0 | Y62: 0 | Z62: 0 | AA62: =IF(U62=J$17,Captura!$O$33,0) -> 0 | AC62: =IF(U62+1>=$J$17,0,AC50*(1+Captura!$D$35)) -> 0 | AD62: =IF(U62+1>=$J$17,0,AD50*(1+Captura!$D$35)) -> 0 | AE62: =IF(U62+1>=$J$17,0,AE50*(1+Captura!$D$35)) -> 0 | AG62: =+(W62+AB62+AC62+AD62+AE62+AF62)*Captura!$C$19 -> 0 | AH62: 0 | AK62: 0
B63: 35 | C63: 2029-02-04 | D63: =IF(B63<J$17,Captura!$O$16,0)+Resumen!$M$29+Resumen!$M$30 ->  | H63: 0 | K63: =IF(B63+1>=$J$17,0,K51*(1+Captura!$D$35)) -> 0 | L63: =IF(B63+1>=$J$17,0,L51*(1+Captura!$D$35)) -> 0 | M63: =IF(B63+1>=$J$17,0,M51*(1+Captura!$D$35)) -> 0 | O63: =IF(B63=J$17,Captura!$O$29,0) -> 0 | P63: =SUM(D63:F63,I63:N63)*Captura!$C$19 ->  | T63: 12 | U63: 35 | V63: 0 | X63: =+V62*Captura!$O$9/12 -> 0 | Y63: 0 | Z63: 0 | AA63: =IF(U63=J$17,Captura!$O$33,0) -> 0 | AC63: =IF(U63+1>=$J$17,0,AC51*(1+Captura!$D$35)) -> 0 | AD63: =IF(U63+1>=$J$17,0,AD51*(1+Captura!$D$35)) -> 0 | AE63: =IF(U63+1>=$J$17,0,AE51*(1+Captura!$D$35)) -> 0 | AG63: =+(W63+AB63+AC63+AD63+AE63+AF63)*Captura!$C$19 -> 0 | AH63: 0 | AK63: 0
B64: 36 | C64: 2029-03-04 | D64: =IF(B64<J$17,Captura!$O$16,0)+Resumen!$M$29+Resumen!$M$30 ->  | H64: 0 | K64: =IF(B64+1>=$J$17,0,K52*(1+Captura!$D$35)) -> 0 | L64: =IF(B64+1>=$J$17,0,L52*(1+Captura!$D$35)) -> 0 | M64: =IF(B64+1>=$J$17,0,M52*(1+Captura!$D$35)) -> 0 | O64: =IF(B64=J$17,Captura!$O$29,0) -> 0 | P64: =SUM(D64:F64,I64:N64)*Captura!$C$19 ->  | T64: 1 | U64: 36 | V64: 0 | X64: =+V63*Captura!$O$9/12 -> 0 | Y64: 0 | Z64: 0 | AA64: =IF(U64=J$17,Captura!$O$33,0) -> 0 | AC64: =IF(U64+1>=$J$17,0,AC52*(1+Captura!$D$35)) -> 0 | AD64: =IF(U64+1>=$J$17,0,AD52*(1+Captura!$D$35)) -> 0 | AE64: =IF(U64+1>=$J$17,0,AE52*(1+Captura!$D$35)) -> 427.44832 | AG64: =+(W64+AB64+AC64+AD64+AE64+AF64)*Captura!$C$19 -> 68.3917312 | AH64: 495.8400512 | AK64: -427.44832
B65: 37 | C65: 2029-04-04 | D65: =IF(B65<J$17,Captura!$O$16,0)+Resumen!$M$29+Resumen!$M$30 ->  | H65: 0 | K65: =IF(B65+1>=$J$17,0,K53*(1+Captura!$D$35)) -> 0 | L65: =IF(B65+1>=$J$17,0,L53*(1+Captura!$D$35)) -> 0 | M65: =IF(B65+1>=$J$17,0,M53*(1+Captura!$D$35)) -> 0 | O65: =IF(B65=J$17,Captura!$O$29,0) -> 0 | P65: =SUM(D65:F65,I65:N65)*Captura!$C$19 ->  | T65: 2 | U65: 37 | V65: 0 | X65: =+V64*Captura!$O$9/12 -> 0 | Y65: 0 | Z65: 0 | AA65: =IF(U65=J$17,Captura!$O$33,0) -> 0 | AC65: =IF(U65+1>=$J$17,0,AC53*(1+Captura!$D$35)) -> 0 | AD65: =IF(U65+1>=$J$17,0,AD53*(1+Captura!$D$35)) -> 0 | AE65: =IF(U65+1>=$J$17,0,AE53*(1+Captura!$D$35)) -> 0 | AG65: =+(W65+AB65+AC65+AD65+AE65+AF65)*Captura!$C$19 -> 0 | AH65: 0 | AK65: 0
B66: 38 | C66: 2029-05-04 | D66: =IF(B66<J$17,Captura!$O$16,0)+Resumen!$M$29+Resumen!$M$30 ->  | H66: 0 | K66: =IF(B66+1>=$J$17,0,K54*(1+Captura!$D$35)) -> 0 | L66: =IF(B66+1>=$J$17,0,L54*(1+Captura!$D$35)) -> 0 | M66: =IF(B66+1>=$J$17,0,M54*(1+Captura!$D$35)) -> 0 | O66: =IF(B66=J$17,Captura!$O$29,0) -> 0 | P66: =SUM(D66:F66,I66:N66)*Captura!$C$19 ->  | T66: 3 | U66: 38 | V66: 0 | X66: =+V65*Captura!$O$9/12 -> 0 | Y66: 0 | Z66: 0 | AA66: =IF(U66=J$17,Captura!$O$33,0) -> 0 | AC66: =IF(U66+1>=$J$17,0,AC54*(1+Captura!$D$35)) -> 0 | AD66: =IF(U66+1>=$J$17,0,AD54*(1+Captura!$D$35)) -> 0 | AE66: =IF(U66+1>=$J$17,0,AE54*(1+Captura!$D$35)) -> 0 | AG66: =+(W66+AB66+AC66+AD66+AE66+AF66)*Captura!$C$19 -> 0 | AH66: 0 | AK66: 0
B67: 39 | C67: 2029-06-04 | D67: =IF(B67<J$17,Captura!$O$16,0)+Resumen!$M$29+Resumen!$M$30 ->  | H67: 0 | K67: =IF(B67+1>=$J$17,0,K55*(1+Captura!$D$35)) -> 0 | L67: =IF(B67+1>=$J$17,0,L55*(1+Captura!$D$35)) -> 0 | M67: =IF(B67+1>=$J$17,0,M55*(1+Captura!$D$35)) -> 0 | O67: =IF(B67=J$17,Captura!$O$29,0) -> 0 | P67: =SUM(D67:F67,I67:N67)*Captura!$C$19 ->  | T67: 4 | U67: 39 | V67: 0 | X67: =+V66*Captura!$O$9/12 -> 0 | Y67: 0 | Z67: 0 | AA67: =IF(U67=J$17,Captura!$O$33,0) -> 0 | AC67: =IF(U67+1>=$J$17,0,AC55*(1+Captura!$D$35)) -> 0 | AD67: =IF(U67+1>=$J$17,0,AD55*(1+Captura!$D$35)) -> 0 | AE67: =IF(U67+1>=$J$17,0,AE55*(1+Captura!$D$35)) -> 0 | AG67: =+(W67+AB67+AC67+AD67+AE67+AF67)*Captura!$C$19 -> 0 | AH67: 0 | AK67: 0
B68: 40 | C68: 2029-07-04 | D68: =IF(B68<J$17,Captura!$O$16,0)+Resumen!$M$29+Resumen!$M$30 ->  | H68: 0 | K68: =IF(B68+1>=$J$17,0,K56*(1+Captura!$D$35)) -> 0 | L68: =IF(B68+1>=$J$17,0,L56*(1+Captura!$D$35)) -> 0 | M68: =IF(B68+1>=$J$17,0,M56*(1+Captura!$D$35)) -> 0 | O68: =IF(B68=J$17,Captura!$O$29,0) -> 0 | P68: =SUM(D68:F68,I68:N68)*Captura!$C$19 ->  | T68: 5 | U68: 40 | V68: 0 | X68: =+V67*Captura!$O$9/12 -> 0 | Y68: 0 | Z68: 0 | AA68: =IF(U68=J$17,Captura!$O$33,0) -> 0 | AC68: =IF(U68+1>=$J$17,0,AC56*(1+Captura!$D$35)) -> 0 | AD68: =IF(U68+1>=$J$17,0,AD56*(1+Captura!$D$35)) -> 0 | AE68: =IF(U68+1>=$J$17,0,AE56*(1+Captura!$D$35)) -> 0 | AG68: =+(W68+AB68+AC68+AD68+AE68+AF68)*Captura!$C$19 -> 0 | AH68: 0 | AK68: 0
B69: 41 | C69: 2029-08-04 | D69: =IF(B69<J$17,Captura!$O$16,0)+Resumen!$M$29+Resumen!$M$30 ->  | H69: 0 | K69: =IF(B69+1>=$J$17,0,K57*(1+Captura!$D$35)) -> 0 | L69: =IF(B69+1>=$J$17,0,L57*(1+Captura!$D$35)) -> 0 | M69: =IF(B69+1>=$J$17,0,M57*(1+Captura!$D$35)) -> 0 | O69: =IF(B69=J$17,Captura!$O$29,0) -> 0 | P69: =SUM(D69:F69,I69:N69)*Captura!$C$19 ->  | T69: 6 | U69: 41 | V69: 0 | X69: =+V68*Captura!$O$9/12 -> 0 | Y69: 0 | Z69: 0 | AA69: =IF(U69=J$17,Captura!$O$33,0) -> 0 | AC69: =IF(U69+1>=$J$17,0,AC57*(1+Captura!$D$35)) -> 0 | AD69: =IF(U69+1>=$J$17,0,AD57*(1+Captura!$D$35)) -> 0 | AE69: =IF(U69+1>=$J$17,0,AE57*(1+Captura!$D$35)) -> 0 | AG69: =+(W69+AB69+AC69+AD69+AE69+AF69)*Captura!$C$19 -> 0 | AH69: 0 | AK69: 0
B70: 42 | C70: 2029-09-04 | D70: =IF(B70<J$17,Captura!$O$16,0)+Resumen!$M$29+Resumen!$M$30 ->  | H70: 0 | K70: =IF(B70+1>=$J$17,0,K58*(1+Captura!$D$35)) -> 0 | L70: =IF(B70+1>=$J$17,0,L58*(1+Captura!$D$35)) -> 0 | M70: =IF(B70+1>=$J$17,0,M58*(1+Captura!$D$35)) -> 0 | O70: =IF(B70=J$17,Captura!$O$29,0) -> 0 | P70: =SUM(D70:F70,I70:N70)*Captura!$C$19 ->  | T70: 7 | U70: 42 | V70: 0 | X70: =+V69*Captura!$O$9/12 -> 0 | Y70: 0 | Z70: 0 | AA70: =IF(U70=J$17,Captura!$O$33,0) -> 0 | AC70: =IF(U70+1>=$J$17,0,AC58*(1+Captura!$D$35)) -> 0 | AD70: =IF(U70+1>=$J$17,0,AD58*(1+Captura!$D$35)) -> 0 | AE70: =IF(U70+1>=$J$17,0,AE58*(1+Captura!$D$35)) -> 0 | AG70: =+(W70+AB70+AC70+AD70+AE70+AF70)*Captura!$C$19 -> 0 | AH70: 0 | AK70: 0
B71: 43 | C71: 2029-10-04 | D71: =IF(B71<J$17,Captura!$O$16,0)+Resumen!$M$29+Resumen!$M$30 ->  | H71: 0 | K71: =IF(B71+1>=$J$17,0,K59*(1+Captura!$D$35)) -> 0 | L71: =IF(B71+1>=$J$17,0,L59*(1+Captura!$D$35)) -> 0 | M71: =IF(B71+1>=$J$17,0,M59*(1+Captura!$D$35)) -> 0 | O71: =IF(B71=J$17,Captura!$O$29,0) -> 0 | P71: =SUM(D71:F71,I71:N71)*Captura!$C$19 ->  | T71: 8 | U71: 43 | V71: 0 | X71: =+V70*Captura!$O$9/12 -> 0 | Y71: 0 | Z71: 0 | AA71: =IF(U71=J$17,Captura!$O$33,0) -> 0 | AC71: =IF(U71+1>=$J$17,0,AC59*(1+Captura!$D$35)) -> 0 | AD71: =IF(U71+1>=$J$17,0,AD59*(1+Captura!$D$35)) -> 0 | AE71: =IF(U71+1>=$J$17,0,AE59*(1+Captura!$D$35)) -> 0 | AG71: =+(W71+AB71+AC71+AD71+AE71+AF71)*Captura!$C$19 -> 0 | AH71: 0 | AK71: 0
B72: 44 | C72: 2029-11-04 | D72: =IF(B72<J$17,Captura!$O$16,0)+Resumen!$M$29+Resumen!$M$30 ->  | H72: 0 | K72: =IF(B72+1>=$J$17,0,K60*(1+Captura!$D$35)) -> 0 | L72: =IF(B72+1>=$J$17,0,L60*(1+Captura!$D$35)) -> 0 | M72: =IF(B72+1>=$J$17,0,M60*(1+Captura!$D$35)) -> 0 | O72: =IF(B72=J$17,Captura!$O$29,0) -> 0 | P72: =SUM(D72:F72,I72:N72)*Captura!$C$19 ->  | T72: 9 | U72: 44 | V72: 0 | X72: =+V71*Captura!$O$9/12 -> 0 | Y72: 0 | Z72: 0 | AA72: =IF(U72=J$17,Captura!$O$33,0) -> 0 | AC72: =IF(U72+1>=$J$17,0,AC60*(1+Captura!$D$35)) -> 0 | AD72: =IF(U72+1>=$J$17,0,AD60*(1+Captura!$D$35)) -> 0 | AE72: =IF(U72+1>=$J$17,0,AE60*(1+Captura!$D$35)) -> 0 | AG72: =+(W72+AB72+AC72+AD72+AE72+AF72)*Captura!$C$19 -> 0 | AH72: 0 | AK72: 0
B73: 45 | C73: 2029-12-04 | D73: =IF(B73<J$17,Captura!$O$16,0)+Resumen!$M$29+Resumen!$M$30 ->  | H73: 0 | K73: =IF(B73+1>=$J$17,0,K61*(1+Captura!$D$35)) -> 0 | L73: =IF(B73+1>=$J$17,0,L61*(1+Captura!$D$35)) -> 0 | M73: =IF(B73+1>=$J$17,0,M61*(1+Captura!$D$35)) -> 0 | O73: =IF(B73=J$17,Captura!$O$29,0) -> 0 | P73: =SUM(D73:F73,I73:N73)*Captura!$C$19 ->  | T73: 10 | U73: 45 | V73: 0 | X73: =+V72*Captura!$O$9/12 -> 0 | Y73: 0 | Z73: 0 | AA73: =IF(U73=J$17,Captura!$O$33,0) -> 0 | AC73: =IF(U73+1>=$J$17,0,AC61*(1+Captura!$D$35)) -> 0 | AD73: =IF(U73+1>=$J$17,0,AD61*(1+Captura!$D$35)) -> 0 | AE73: =IF(U73+1>=$J$17,0,AE61*(1+Captura!$D$35)) -> 0 | AG73: =+(W73+AB73+AC73+AD73+AE73+AF73)*Captura!$C$19 -> 0 | AH73: 0 | AK73: 0
B74: 46 | C74: 2030-01-04 | D74: =IF(B74<J$17,Captura!$O$16,0)+Resumen!$M$29+Resumen!$M$30 ->  | H74: 0 | K74: =IF(B74+1>=$J$17,0,K62*(1+Captura!$D$35)) -> 0 | L74: =IF(B74+1>=$J$17,0,L62*(1+Captura!$D$35)) -> 0 | M74: =IF(B74+1>=$J$17,0,M62*(1+Captura!$D$35)) -> 0 | O74: =IF(B74=J$17,Captura!$O$29,0) -> 0 | P74: =SUM(D74:F74,I74:N74)*Captura!$C$19 ->  | T74: 11 | U74: 46 | V74: 0 | X74: =+V73*Captura!$O$9/12 -> 0 | Y74: 0 | Z74: 0 | AA74: =IF(U74=J$17,Captura!$O$33,0) -> 0 | AC74: =IF(U74+1>=$J$17,0,AC62*(1+Captura!$D$35)) -> 0 | AD74: =IF(U74+1>=$J$17,0,AD62*(1+Captura!$D$35)) -> 0 | AE74: =IF(U74+1>=$J$17,0,AE62*(1+Captura!$D$35)) -> 0 | AG74: =+(W74+AB74+AC74+AD74+AE74+AF74)*Captura!$C$19 -> 0 | AH74: 0 | AK74: 0
B75: 47 | C75: 2030-02-04 | D75: =IF(B75<J$17,Captura!$O$16,0)+Resumen!$M$29+Resumen!$M$30 ->  | H75: 0 | K75: =IF(B75+1>=$J$17,0,K63*(1+Captura!$D$35)) -> 0 | L75: =IF(B75+1>=$J$17,0,L63*(1+Captura!$D$35)) -> 0 | M75: =IF(B75+1>=$J$17,0,M63*(1+Captura!$D$35)) -> 0 | O75: =IF(B75=J$17,Captura!$O$29,0) -> 0 | P75: =SUM(D75:F75,I75:N75)*Captura!$C$19 ->  | T75: 12 | U75: 47 | V75: 0 | X75: =+V74*Captura!$O$9/12 -> 0 | Y75: 0 | Z75: 0 | AA75: =IF(U75=J$17,Captura!$O$33,0) -> 0 | AC75: =IF(U75+1>=$J$17,0,AC63*(1+Captura!$D$35)) -> 0 | AD75: =IF(U75+1>=$J$17,0,AD63*(1+Captura!$D$35)) -> 0 | AE75: =IF(U75+1>=$J$17,0,AE63*(1+Captura!$D$35)) -> 0 | AG75: =+(W75+AB75+AC75+AD75+AE75+AF75)*Captura!$C$19 -> 0 | AH75: 0 | AK75: 0
B76: 48 | C76: 2030-03-04 | D76: =IF(B76<J$17,Captura!$O$16,0)+Resumen!$M$29+Resumen!$M$30 ->  | H76: 0 | K76: =IF(B76+1>=$J$17,0,K64*(1+Captura!$D$35)) -> 0 | L76: =IF(B76+1>=$J$17,0,L64*(1+Captura!$D$35)) -> 0 | M76: =IF(B76+1>=$J$17,0,M64*(1+Captura!$D$35)) -> 0 | O76: =IF(B76=J$17,Captura!$O$29,0) -> 0 | P76: =SUM(D76:F76,I76:N76)*Captura!$C$19 ->  | T76: 1 | U76: 48 | V76: 0 | X76: =+V75*Captura!$O$9/12 -> 0 | Y76: 0 | Z76: 0 | AA76: =IF(U76=J$17,Captura!$O$33,0) -> 0 | AC76: =IF(U76+1>=$J$17,0,AC64*(1+Captura!$D$35)) -> 0 | AD76: =IF(U76+1>=$J$17,0,AD64*(1+Captura!$D$35)) -> 0 | AE76: =IF(U76+1>=$J$17,0,AE64*(1+Captura!$D$35)) -> 444.5462528 | AG76: =+(W76+AB76+AC76+AD76+AE76+AF76)*Captura!$C$19 -> 71.12740045 | AH76: 515.6736532 | AK76: -444.5462528
B77: 49 | C77: 2030-04-04 | D77: =IF(B77<J$17,Captura!$O$16,0)+Resumen!$M$29+Resumen!$M$30 ->  | H77: 0 | K77: =IF(B77+1>=$J$17,0,K65*(1+Captura!$D$35)) -> 0 | L77: =IF(B77+1>=$J$17,0,L65*(1+Captura!$D$35)) -> 0 | M77: =IF(B77+1>=$J$17,0,M65*(1+Captura!$D$35)) -> 0 | O77: =IF(B77=J$17,Captura!$O$29,0) -> 0 | P77: =SUM(D77:F77,I77:N77)*Captura!$C$19 ->  | T77: 2 | U77: 49 | V77: 0 | X77: =+V76*Captura!$O$9/12 -> 0 | Y77: 0 | Z77: 0 | AA77: =IF(U77=J$17,Captura!$O$33,0) -> 0 | AC77: =IF(U77+1>=$J$17,0,AC65*(1+Captura!$D$35)) -> 0 | AD77: =IF(U77+1>=$J$17,0,AD65*(1+Captura!$D$35)) -> 0 | AE77: =IF(U77+1>=$J$17,0,AE65*(1+Captura!$D$35)) -> 0 | AG77: =+(W77+AB77+AC77+AD77+AE77+AF77)*Captura!$C$19 -> 0 | AH77: 0 | AK77: 0
B78: 50 | C78: 2030-05-04 | D78: =IF(B78<J$17,Captura!$O$16,0)+Resumen!$M$29+Resumen!$M$30 ->  | H78: 0 | K78: =IF(B78+1>=$J$17,0,K66*(1+Captura!$D$35)) -> 0 | L78: =IF(B78+1>=$J$17,0,L66*(1+Captura!$D$35)) -> 0 | M78: =IF(B78+1>=$J$17,0,M66*(1+Captura!$D$35)) -> 0 | O78: =IF(B78=J$17,Captura!$O$29,0) -> 0 | P78: =SUM(D78:F78,I78:N78)*Captura!$C$19 ->  | T78: 3 | U78: 50 | V78: 0 | X78: =+V77*Captura!$O$9/12 -> 0 | Y78: 0 | Z78: 0 | AA78: =IF(U78=J$17,Captura!$O$33,0) -> 0 | AC78: =IF(U78+1>=$J$17,0,AC66*(1+Captura!$D$35)) -> 0 | AD78: =IF(U78+1>=$J$17,0,AD66*(1+Captura!$D$35)) -> 0 | AE78: =IF(U78+1>=$J$17,0,AE66*(1+Captura!$D$35)) -> 0 | AG78: =+(W78+AB78+AC78+AD78+AE78+AF78)*Captura!$C$19 -> 0 | AH78: 0 | AK78: 0
B79: 51 | C79: 2030-06-04 | D79: =IF(B79<J$17,Captura!$O$16,0)+Resumen!$M$29+Resumen!$M$30 ->  | H79: 0 | K79: =IF(B79+1>=$J$17,0,K67*(1+Captura!$D$35)) -> 0 | L79: =IF(B79+1>=$J$17,0,L67*(1+Captura!$D$35)) -> 0 | M79: =IF(B79+1>=$J$17,0,M67*(1+Captura!$D$35)) -> 0 | O79: =IF(B79=J$17,Captura!$O$29,0) -> 0 | P79: =SUM(D79:F79,I79:N79)*Captura!$C$19 ->  | T79: 4 | U79: 51 | V79: 0 | X79: =+V78*Captura!$O$9/12 -> 0 | Y79: 0 | Z79: 0 | AA79: =IF(U79=J$17,Captura!$O$33,0) -> 0 | AC79: =IF(U79+1>=$J$17,0,AC67*(1+Captura!$D$35)) -> 0 | AD79: =IF(U79+1>=$J$17,0,AD67*(1+Captura!$D$35)) -> 0 | AE79: =IF(U79+1>=$J$17,0,AE67*(1+Captura!$D$35)) -> 0 | AG79: =+(W79+AB79+AC79+AD79+AE79+AF79)*Captura!$C$19 -> 0 | AH79: 0 | AK79: 0
B80: 52 | C80: 2030-07-04 | D80: =IF(B80<J$17,Captura!$O$16,0)+Resumen!$M$29+Resumen!$M$30 ->  | H80: 0 | K80: =IF(B80+1>=$J$17,0,K68*(1+Captura!$D$35)) -> 0 | L80: =IF(B80+1>=$J$17,0,L68*(1+Captura!$D$35)) -> 0 | M80: =IF(B80+1>=$J$17,0,M68*(1+Captura!$D$35)) -> 0 | O80: =IF(B80=J$17,Captura!$O$29,0) -> 0 | P80: =SUM(D80:F80,I80:N80)*Captura!$C$19 ->  | T80: 5 | U80: 52 | V80: 0 | X80: =+V79*Captura!$O$9/12 -> 0 | Y80: 0 | Z80: 0 | AA80: =IF(U80=J$17,Captura!$O$33,0) -> 0 | AC80: =IF(U80+1>=$J$17,0,AC68*(1+Captura!$D$35)) -> 0 | AD80: =IF(U80+1>=$J$17,0,AD68*(1+Captura!$D$35)) -> 0 | AE80: =IF(U80+1>=$J$17,0,AE68*(1+Captura!$D$35)) -> 0 | AG80: =+(W80+AB80+AC80+AD80+AE80+AF80)*Captura!$C$19 -> 0 | AH80: 0 | AK80: 0
B81: 53 | C81: 2030-08-04 | D81: =IF(B81<J$17,Captura!$O$16,0)+Resumen!$M$29+Resumen!$M$30 ->  | H81: 0 | K81: =IF(B81+1>=$J$17,0,K69*(1+Captura!$D$35)) -> 0 | L81: =IF(B81+1>=$J$17,0,L69*(1+Captura!$D$35)) -> 0 | M81: =IF(B81+1>=$J$17,0,M69*(1+Captura!$D$35)) -> 0 | O81: =IF(B81=J$17,Captura!$O$29,0) -> 0 | P81: =SUM(D81:F81,I81:N81)*Captura!$C$19 ->  | T81: 6 | U81: 53 | V81: 0 | X81: =+V80*Captura!$O$9/12 -> 0 | Y81: 0 | Z81: 0 | AA81: =IF(U81=J$17,Captura!$O$33,0) -> 0 | AC81: =IF(U81+1>=$J$17,0,AC69*(1+Captura!$D$35)) -> 0 | AD81: =IF(U81+1>=$J$17,0,AD69*(1+Captura!$D$35)) -> 0 | AE81: =IF(U81+1>=$J$17,0,AE69*(1+Captura!$D$35)) -> 0 | AG81: =+(W81+AB81+AC81+AD81+AE81+AF81)*Captura!$C$19 -> 0 | AH81: 0 | AK81: 0
B82: 54 | C82: 2030-09-04 | D82: =IF(B82<J$17,Captura!$O$16,0)+Resumen!$M$29+Resumen!$M$30 ->  | H82: 0 | K82: =IF(B82+1>=$J$17,0,K70*(1+Captura!$D$35)) -> 0 | L82: =IF(B82+1>=$J$17,0,L70*(1+Captura!$D$35)) -> 0 | M82: =IF(B82+1>=$J$17,0,M70*(1+Captura!$D$35)) -> 0 | O82: =IF(B82=J$17,Captura!$O$29,0) -> 0 | P82: =SUM(D82:F82,I82:N82)*Captura!$C$19 ->  | T82: 7 | U82: 54 | V82: 0 | X82: =+V81*Captura!$O$9/12 -> 0 | Y82: 0 | Z82: 0 | AA82: =IF(U82=J$17,Captura!$O$33,0) -> 0 | AC82: =IF(U82+1>=$J$17,0,AC70*(1+Captura!$D$35)) -> 0 | AD82: =IF(U82+1>=$J$17,0,AD70*(1+Captura!$D$35)) -> 0 | AE82: =IF(U82+1>=$J$17,0,AE70*(1+Captura!$D$35)) -> 0 | AG82: =+(W82+AB82+AC82+AD82+AE82+AF82)*Captura!$C$19 -> 0 | AH82: 0 | AK82: 0
B83: 55 | C83: 2030-10-04 | D83: =IF(B83<J$17,Captura!$O$16,0)+Resumen!$M$29+Resumen!$M$30 ->  | H83: 0 | K83: =IF(B83+1>=$J$17,0,K71*(1+Captura!$D$35)) -> 0 | L83: =IF(B83+1>=$J$17,0,L71*(1+Captura!$D$35)) -> 0 | M83: =IF(B83+1>=$J$17,0,M71*(1+Captura!$D$35)) -> 0 | O83: =IF(B83=J$17,Captura!$O$29,0) -> 0 | P83: =SUM(D83:F83,I83:N83)*Captura!$C$19 ->  | T83: 8 | U83: 55 | V83: 0 | X83: =+V82*Captura!$O$9/12 -> 0 | Y83: 0 | Z83: 0 | AA83: =IF(U83=J$17,Captura!$O$33,0) -> 0 | AC83: =IF(U83+1>=$J$17,0,AC71*(1+Captura!$D$35)) -> 0 | AD83: =IF(U83+1>=$J$17,0,AD71*(1+Captura!$D$35)) -> 0 | AE83: =IF(U83+1>=$J$17,0,AE71*(1+Captura!$D$35)) -> 0 | AG83: =+(W83+AB83+AC83+AD83+AE83+AF83)*Captura!$C$19 -> 0 | AH83: 0 | AK83: 0
B84: 56 | C84: 2030-11-04 | D84: =IF(B84<J$17,Captura!$O$16,0)+Resumen!$M$29+Resumen!$M$30 ->  | H84: 0 | K84: =IF(B84+1>=$J$17,0,K72*(1+Captura!$D$35)) -> 0 | L84: =IF(B84+1>=$J$17,0,L72*(1+Captura!$D$35)) -> 0 | M84: =IF(B84+1>=$J$17,0,M72*(1+Captura!$D$35)) -> 0 | O84: =IF(B84=J$17,Captura!$O$29,0) -> 0 | P84: =SUM(D84:F84,I84:N84)*Captura!$C$19 ->  | T84: 9 | U84: 56 | V84: 0 | X84: =+V83*Captura!$O$9/12 -> 0 | Y84: 0 | Z84: 0 | AA84: =IF(U84=J$17,Captura!$O$33,0) -> 0 | AC84: =IF(U84+1>=$J$17,0,AC72*(1+Captura!$D$35)) -> 0 | AD84: =IF(U84+1>=$J$17,0,AD72*(1+Captura!$D$35)) -> 0 | AE84: =IF(U84+1>=$J$17,0,AE72*(1+Captura!$D$35)) -> 0 | AG84: =+(W84+AB84+AC84+AD84+AE84+AF84)*Captura!$C$19 -> 0 | AH84: 0 | AK84: 0
B85: 57 | C85: 2030-12-04 | D85: =IF(B85<J$17,Captura!$O$16,0)+Resumen!$M$29+Resumen!$M$30 ->  | H85: 0 | K85: =IF(B85+1>=$J$17,0,K73*(1+Captura!$D$35)) -> 0 | L85: =IF(B85+1>=$J$17,0,L73*(1+Captura!$D$35)) -> 0 | M85: =IF(B85+1>=$J$17,0,M73*(1+Captura!$D$35)) -> 0 | O85: =IF(B85=J$17,Captura!$O$29,0) -> 0 | P85: =SUM(D85:F85,I85:N85)*Captura!$C$19 ->  | T85: 10 | U85: 57 | V85: 0 | X85: =+V84*Captura!$O$9/12 -> 0 | Y85: 0 | Z85: 0 | AA85: =IF(U85=J$17,Captura!$O$33,0) -> 0 | AC85: =IF(U85+1>=$J$17,0,AC73*(1+Captura!$D$35)) -> 0 | AD85: =IF(U85+1>=$J$17,0,AD73*(1+Captura!$D$35)) -> 0 | AE85: =IF(U85+1>=$J$17,0,AE73*(1+Captura!$D$35)) -> 0 | AG85: =+(W85+AB85+AC85+AD85+AE85+AF85)*Captura!$C$19 -> 0 | AH85: 0 | AK85: 0
B86: 58 | C86: 2031-01-04 | D86: =IF(B86<J$17,Captura!$O$16,0)+Resumen!$M$29+Resumen!$M$30 ->  | H86: 0 | K86: =IF(B86+1>=$J$17,0,K74*(1+Captura!$D$35)) -> 0 | L86: =IF(B86+1>=$J$17,0,L74*(1+Captura!$D$35)) -> 0 | M86: =IF(B86+1>=$J$17,0,M74*(1+Captura!$D$35)) -> 0 | O86: =IF(B86=J$17,Captura!$O$29,0) -> 0 | P86: =SUM(D86:F86,I86:N86)*Captura!$C$19 ->  | T86: 11 | U86: 58 | V86: 0 | X86: =+V85*Captura!$O$9/12 -> 0 | Y86: 0 | Z86: 0 | AA86: =IF(U86=J$17,Captura!$O$33,0) -> 0 | AC86: =IF(U86+1>=$J$17,0,AC74*(1+Captura!$D$35)) -> 0 | AD86: =IF(U86+1>=$J$17,0,AD74*(1+Captura!$D$35)) -> 0 | AE86: =IF(U86+1>=$J$17,0,AE74*(1+Captura!$D$35)) -> 0 | AG86: =+(W86+AB86+AC86+AD86+AE86+AF86)*Captura!$C$19 -> 0 | AH86: 0 | AK86: 0
B87: 59 | C87: 2031-02-04 | D87: =IF(B87<J$17,Captura!$O$16,0)+Resumen!$M$29+Resumen!$M$30 ->  | H87: 0 | K87: =IF(B87+1>=$J$17,0,K75*(1+Captura!$D$35)) -> 0 | L87: =IF(B87+1>=$J$17,0,L75*(1+Captura!$D$35)) -> 0 | M87: =IF(B87+1>=$J$17,0,M75*(1+Captura!$D$35)) -> 0 | O87: =IF(B87=J$17,Captura!$O$29,0) -> 0 | P87: =SUM(D87:F87,I87:N87)*Captura!$C$19 ->  | T87: 12 | U87: 59 | V87: 0 | X87: =+V86*Captura!$O$9/12 -> 0 | Y87: 0 | Z87: 0 | AA87: =IF(U87=J$17,Captura!$O$33,0) -> 0 | AC87: =IF(U87+1>=$J$17,0,AC75*(1+Captura!$D$35)) -> 0 | AD87: =IF(U87+1>=$J$17,0,AD75*(1+Captura!$D$35)) -> 0 | AE87: =IF(U87+1>=$J$17,0,AE75*(1+Captura!$D$35)) -> 0 | AG87: =+(W87+AB87+AC87+AD87+AE87+AF87)*Captura!$C$19 -> 0 | AH87: 0 | AK87: 0
B88: 60 | C88: 2031-03-04 | D88: =IF(B88<J$17,Captura!$O$16,0) -> 0 | H88: 0 | K88: =IF(B88+1>=$J$17,0,K76*(1+Captura!$D$35)) -> 0 | L88: =IF(B88+1>=$J$17,0,L76*(1+Captura!$D$35)) -> 0 | M88: =IF(B88+1>=$J$17,0,M76*(1+Captura!$D$35)) -> 0 | O88: =IF(B88=J$17,Captura!$O$29,0) -> 0 | P88: =SUM(D88:F88,I88:N88)*Captura!$C$19 -> 0 | Q88: 0 | T88: 1 | U88: 60 | V88: 0 | X88: =+V87*Captura!$O$9/12 -> 0 | Y88: 0 | Z88: 0 | AA88: =IF(U88=J$17,Captura!$O$33,0) -> 0 | AC88: =IF(U88+1>=$J$17,0,AC76*(1+Captura!$D$35)) -> 0 | AD88: =IF(U88+1>=$J$17,0,AD76*(1+Captura!$D$35)) -> 0 | AE88: =IF(U88+1>=$J$17,0,AE76*(1+Captura!$D$35)) -> 0 | AG88: =+(W88+AB88+AC88+AD88+AE88+AF88)*Captura!$C$19 -> 0 | AH88: 0 | AJ88: 0 | AK88: 0
B92: Notas:
B93: 1. Esta cotización no es una autorización y no representa ninguna obligación para Leasing Mobile de México, S. A. de C. V.
B94: 2. La información descrita en el presente documento está sujeta a cambios sin previo aviso.
B95: 3. Esta cotización no considera gastos que el equipo requiera para su adquisición, uso o mantenimiento.
B96: 4. Las rentas en depósito serán devueltas al cumplimiento de todas las obligaciones contractauales del Arrendatario.
B107: __________________________________
B108: Leasing Mobile de Mexico, SA de CV
B109: =+Captura!D31 -> xxxx
B110: =+Captura!D32 -> xxxx
B111: =+Captura!D33 -> xxxx
